Workbook

Sheet Intro
B2: Simplified Performance-based Liquefaction Analysis Tool "CPTLiq"
B6: A Simplified, Performance-based Tool for Estimating Liquefaction Hazard, Settlement, and Lateral Spread
E10: Jingwen He
E11: Jenny Blonquist
E12: Dr. Kevin Franke
E19: January 2022
C22: Brigham Young University With special recognition to sponsors through TPF-5(338)
E30: Version 1.42
E31: Compatible with Excel 2010 and more recent versions
B33: This program has not yet been tested or peer reviewed for accuracy. By using this program, the user agrees to full responsibility for any damages or liability that result from the use of this program or data herein. The authors are not liable for any damages or liability ensuing as a result of the use of this program or data obtained from this program.

Sheet Inputs
B2: Company: | C2: GEO Company | G2: Project Name: | H2: Example Problem
B3: Designer: | C3: JLB | E3: Checked By: | F3: JLB | G3: Location: | H3: Salt Lake City, UT
B4: Date: | C4: 2018-09-05 | E4: Date: | F4: 2020-04-04 | G4: Project #: | H4: AB-123-4567 | Q4: = General | T4: = Liquefaction-specific | W4: = Lateral Spread-specific
G5: CPT Sounding: | H5: CPT-01 | T5: =Settlement-specific
B7: Units: | C7: 2 | D7: (1 = SI, 2 = US Customary) | G7: Latitude = | H7: 40.621 | I7: Longitude= | J7: -111.904 | DX7: Yes
P8: Analysis Selections: | DX8: No
B9: Site Characteristics: | G9: Return Period: | H9: 2475 | I9: yrs | V9: *Select "TRUE" to run analysis
G10: Probability of Exceedance: | H10: =IF(H9=475,"10% in 50 yrs",IF(H9=1033,"7% in 75 yrs","2% in 50 yrs")) -> 2% in 50 yrs | S10: Liquefaction Initiation & Settlement: | T10: TRUE | DX10: Yes
D11: Ic susceptibility threshold = | E11: 2.6 | S11: Lateral Spread: | T11: TRUE | DX11: No
D12: Water Level at Time of Exploration = | E12: 3 | F12: =IF(units=1,"m","ft") -> ft
D13: Design Water Level = | E13: 2 | F13: =IF(units=1,"m","ft") -> ft | H13: Probabilistic Analysis Parameters: | P13: Liquefaction Initiation & Settlement Options: | U13: Lateral Spread Options:
H14: PGA = | I14: 0.636 | J14: S(%) = | K14: 2.5 | P14: Ku et al.: | Q14: TRUE | R14: B&I: | S14: TRUE | U14: Ku et al: | V14: TRUE
A15: Start Here --> | B15: =IF(units=1,"Depth (m)","Depth (ft)") -> Depth (ft) | C15: =IF(units=1,"qc (MPa)","qc (tsf)") -> qc (tsf) | D15: =IF(units=1,"fs (kPa)","fs (tsf)") -> fs (tsf) | E15: =IF(units=1,"u (kPa)","u (tsf)") -> u (tsf) | F15: Non-Liq? | H15: FPGA = | I15: 1.1 | J15: W (L/H) = | K15: 0 | U15: B&I: | V15: TRUE
A16: 1 | B16: 0.08202 | C16: 32.03 | D16: 0.116 | E16: 0.151008 | H16: Mw = | I16: 6.83
A17: 2 | B17: 0.16404 | C17: 146.44 | D17: 0.194 | E17: 0.328536 | H17: Site Class = | I17: D | P17: PL/FSL: | Q17: FSL | R17: PL = Probability of Liq.
A18: 3 | B18: 0.24606 | C18: 187.82 | D18: 0.279 | E18: 0.1404 | R18: FSL = Factor of Safety
A19: 4 | B19: 0.32808 | C19: 188.99 | D19: 0.255 | E19: 0.058968 | H19: Fpga Calc = | I19: 1
A20: 5 | B20: 0.4101 | C20: 463.34 | D20: 0.453 | E20: 0.259584 | P20: Deterministic Options:
A21: 6 | B21: 0.49212 | C21: 688.55 | D21: 0.794 | E21: 0.231504 | R21: Liquefaction Initiation & Settlement: | S21: TRUE
A22: 7 | B22: 0.57414 | C22: 693.87 | D22: 1.077 | E22: 0.23244 | R22: Lateral Spread: | S22: TRUE
A23: 8 | B23: 0.65616 | C23: 537.13 | D23: 2.129 | E23: 0.117936
A24: 9 | B24: 0.73818 | C24: 426.54 | D24: 2.054 | E24: -0.050856 | P24: Optional CPT Modifications/Corrections
A25: 10 | B25: 0.8202 | C25: 313.78 | D25: 2.714 | E25: 0.288288
A26: 11 | B26: 0.90222 | C26: 235.7 | D26: 2.895 | E26: 0.021216
A27: 12 | B27: 0.98424 | C27: 171.79 | D27: 3.609 | E27: 0.502008 | P27: General Corrections (apply to triggering, settlement, & lateral spread):
A28: 13 | B28: 1.06626 | C28: 141.88 | D28: 4.415 | E28: 0.20124 | U28: Lateral Spread-Specific Corrections:
A29: 14 | B29: 1.14828 | C29: 108.12 | D29: 3.942 | E29: 0.541632 | H29: URL: | I29: https://earthquake.usgs.gov/hazards/interactive/ | P29: Thin Layer Correction: | U29: Dilative/Contractive Behavior:
A30: 15 | B30: 1.2303 | C30: 111.68 | D30: 3.76 | E30: 0.423384 | H30: Mapped Reference Values: | Q30: Apply? | R30: Yes | V30: Apply? | W30: No
A31: 16 | B31: 1.31232 | C31: 90.09 | D31: 3.461 | E31: 0.760656 | H31: CSR(%)ref = | I31: 81.91 | Q31: Diameter of Cone: | R31: 4 | S31: cm | V31: Min. Qtncs/qc1ncs: | W31: 70
A32: 17 | B32: 1.39434 | C32: 77.66 | D32: 3.312 | E32: 0.562536 | H32: qreqref = | I32: 196.169 | Q32: Min Ic: | R32: 2.6
A33: 18 | B33: 1.47636 | C33: 85.02 | D33: 3.325 | E33: 0.252408 | H33: εv,ku(%)ref = | I33: 2.316 | Q33: Max Ic: | R33: 3 | U33: Soil Depth Modification:
A34: 19 | B34: 1.55838 | C34: 74.27 | D34: 2.632 | E34: 0.007176 | H34: εv,B&I(%)ref = | I34: 3.277 | Q34: Change in Ic: | R34: 0.01 | V34: Apply? | W34: Yes
A35: 20 | B35: 1.6404 | C35: 56.09 | D35: 2.328 | E35: 0.523224 | H35: gmax,KUref(%) = | I35: 12.207 | V35: Geometry: | W35: GS
A36: 21 | B36: 1.72242 | C36: 56.24 | D36: 2.072 | E36: 0.398736 | H36: gmax,BIref(%) = | I36: 28.94 | P36: Eliminate Transition Layers: | U36: If "Free Face: is selected:
A37: 22 | B37: 1.80444 | C37: 55.32 | D37: 1.974 | E37: 0.622752 | Q37: Apply? | R37: No | V37: H: | W37: 1 | X37: m | AP37: A
A38: 23 | B38: 1.88646 | C38: 50.04 | D38: 1.742 | E38: 0.597168 | Q38: Change in Ic: | R38: 0.01 | AA38: 15 | AP38: B
A39: 24 | B39: 1.96848 | C39: 50.47 | D39: 1.778 | E39: 1.599624 | U39: Fines Content Modification: | AA39: =CONVERT(AA38,"m","ft") -> 49.21259843 | AP39: C
A40: 25 | B40: 2.0505 | C40: 55.63 | D40: 1.712 | E40: 1.2246 | V40: Apply? | W40: No | AP40: D
A41: 26 | B41: 2.13252 | C41: 61.2 | D41: 1.835 | E41: 0.574392 | P41: Settlement-Specific Corrections: | AP41: E
A42: 27 | B42: 2.21454 | C42: 55.03 | D42: 1.962 | E42: 0.522912 | H42: URL: | I42: http://tethys.byu.edu/apps/lfhazard/ | P42: Soil Depth Modification: | U42: Eliminate Thin Sand Layers: | AP42: F
A43: 28 | B43: 2.29656 | C43: 50.34 | D43: 1.935 | E43: 0.525408 | Q43: Apply? | R43: Yes | V43: Apply? | W43: No
A44: 29 | B44: 2.37858 | C44: 49.42 | D44: 1.87 | E44: 0.2808 | H44: Deterministic Analysis Parameters: | V44: Ic (Sand): | W44: 2.6
A45: 30 | B45: 2.4606 | C45: 42.95 | D45: 2.075 | E45: 0.370656 | H45: PGA = | I45: 0.64
A46: 31 | B46: 2.54262 | C46: 42.53 | D46: 1.838 | E46: 0.442416 | H46: FPGA = | I46: 1.1
A47: 32 | B47: 2.62464 | C47: 42.79 | D47: 1.595 | E47: 0.224952 | H47: Mw = | I47: 6.83
A48: 33 | B48: 2.70666 | C48: 45.53 | D48: 1.429 | E48: 0.206856 | H48: Percentile = | I48: 85
A49: 34 | B49: 2.78868 | C49: 40.79 | D49: 1.453 | E49: 0.1248 | H49: Fpga Calc = | I49: 1
A50: 35 | B50: 2.8707 | C50: 45.18 | D50: 1.48 | E50: 0.187512
A51: 36 | B51: 2.95272 | C51: 49 | D51: 1.663 | E51: 0.144768
A52: 37 | B52: 3.03474 | C52: 52.07 | D52: 1.78 | E52: 0.098904
A53: 38 | B53: 3.11676 | C53: 63.56 | D53: 1.932 | E53: 0.156624
A54: 39 | B54: 3.19878 | C54: 71.85 | D54: 1.952 | E54: 0.244296
A55: 40 | B55: 3.2808 | C55: 72.27 | D55: 2.16 | E55: 0.203736
A56: 41 | B56: 3.36282 | C56: 77.01 | D56: 2.02 | E56: 0.178464
A57: 42 | B57: 3.44484 | C57: 86.96 | D57: 2.008 | E57: 0.170352
A58: 43 | B58: 3.52686 | C58: 88.31 | D58: 2.139 | E58: 0.16536
A59: 44 | B59: 3.60888 | C59: 97.15 | D59: 2.184 | E59: 0.122616
A60: 45 | B60: 3.6909 | C60: 97.39 | D60: 1.915 | E60: 0.058968
A61: 46 | B61: 3.77292 | C61: 79.17 | D61: 1.747 | E61: 0.015912
A62: 47 | B62: 3.85494 | C62: 69.57 | D62: 2.069 | E62: 0.064584
A63: 48 | B63: 3.93696 | C63: 67.13 | D63: 2.004 | E63: 0.039624
A64: 49 | B64: 4.01898 | C64: 58.79 | D64: 2.042 | E64: 0.006552
A65: 50 | B65: 4.101 | C65: 50.56 | D65: 1.909 | E65: 0.138528
A66: 51 | B66: 4.18302 | C66: 38.32 | D66: 1.706 | E66: 0.036192
A67: 52 | B67: 4.26504 | C67: 35.73 | D67: 1.647 | E67: 0.128232
A68: 53 | B68: 4.34706 | C68: 36.11 | D68: 1.387 | E68: 0.188448
A69: 54 | B69: 4.42908 | C69: 33.88 | D69: 1.377 | E69: 0.162552
A70: 55 | B70: 4.5111 | C70: 33.57 | D70: 1.198 | E70: 0.147576
A71: 56 | B71: 4.59312 | C71: 33.9 | D71: 1.61 | E71: 0.055848
A72: 57 | B72: 4.67514 | C72: 40.64 | D72: 1.394 | E72: 0.008112
A73: 58 | B73: 4.75716 | C73: 52.5 | D73: 1.306 | E73: -0.056472
A74: 59 | B74: 4.83918 | C74: 49.58 | D74: 1.143 | E74: -0.032136
A75: 60 | B75: 4.9212 | C75: 54.56 | D75: 1.045 | E75: 0.450528
A76: 61 | B76: 5.00322 | C76: 65.05 | D76: 1.052 | E76: 0.256776
A77: 62 | B77: 5.08524 | C77: 65.04 | D77: 1.032 | E77: 0.14976
A78: 63 | B78: 5.16726 | C78: 56.24 | D78: 0.275 | E78: 0.030888
A79: 64 | B79: 5.24928 | C79: 50.35 | D79: 0.138 | E79: -0.012792
A80: 65 | B80: 5.3313 | C80: 43.99 | D80: 0.403 | E80: -0.017472
A81: 66 | B81: 5.41332 | C81: 40.31 | D81: 0.418 | E81: 0.0156
A82: 67 | B82: 5.49534 | C82: 37.57 | D82: 0.616 | E82: 0.030576
A83: 68 | B83: 5.57736 | C83: 37.02 | D83: 0.697 | E83: 0.052104
A84: 69 | B84: 5.65938 | C84: 34.33 | D84: 0.711 | E84: 0.005928
A85: 70 | B85: 5.7414 | C85: 33.71 | D85: 0.79 | E85: 0.051792
A86: 71 | B86: 5.82342 | C86: 32.96 | D86: 0.94 | E86: 0.122304
A87: 72 | B87: 5.90544 | C87: 32.76 | D87: 0.896 | E87: 0.04056
A88: 73 | B88: 5.98746 | C88: 36.24 | D88: 0.221 | E88: 0.007176
A89: 74 | B89: 6.06948 | C89: 31.36 | D89: 0.269 | E89: 0.0078
A90: 75 | B90: 6.1515 | C90: 33.34 | D90: 0.38 | E90: 0.039312
A91: 76 | B91: 6.23352 | C91: 21.02 | D91: 0.431 | E91: 0
A92: 77 | B92: 6.31554 | C92: 20.61 | D92: 0.422 | E92: 0.140712
A93: 78 | B93: 6.39756 | C93: 18.5 | D93: 0.373 | E93: 0.07488
A94: 79 | B94: 6.47958 | C94: 12.4 | D94: 0.345 | E94: 0.145392
A95: 80 | B95: 6.5616 | C95: 10.74 | D95: 0.305 | E95: 0.302952
A96: 81 | B96: 6.64362 | C96: 9.97 | D96: 0.281 | E96: 0.404976
A97: 82 | B97: 6.72564 | C97: 10.39 | D97: 0.239 | E97: 0.529152
A98: 83 | B98: 6.80766 | C98: 11.3 | D98: 0.244 | E98: 0.576888
A99: 84 | B99: 6.88968 | C99: 11.79 | D99: 0.264 | E99: 0.686088
A100: 85 | B100: 6.9717 | C100: 11.47 | D100: 0.255 | E100: 0.672984
A101: 86 | B101: 7.05372 | C101: 10.11 | D101: 0.246 | E101: 0.616824
A102: 87 | B102: 7.13574 | C102: 9.76 | D102: 0.249 | E102: 0.848328
A103: 88 | B103: 7.21776 | C103: 8.37 | D103: 0.224 | E103: 0.847704
A104: 89 | B104: 7.29978 | C104: 7.58 | D104: 0.148 | E104: 0.623688
A105: 90 | B105: 7.3818 | C105: 7.68 | D105: 0.134 | E105: 0.60684
A106: 91 | B106: 7.46382 | C106: 6.86 | D106: 0.122 | E106: 0.47268
A107: 92 | B107: 7.54584 | C107: 6.13 | D107: 0.088 | E107: 0.449904
A108: 93 | B108: 7.62786 | C108: 5.68 | D108: 0.076 | E108: 0.526968
A109: 94 | B109: 7.70988 | C109: 5.77 | D109: 0.069 | E109: 0.655512
A110: 95 | B110: 7.7919 | C110: 6.08 | D110: 0.058 | E110: 0.729456
A111: 96 | B111: 7.87392 | C111: 6.17 | D111: 0.06 | E111: 0.733512
A112: 97 | B112: 7.95594 | C112: 5.6 | D112: 0.058 | E112: 0.7176
A113: 98 | B113: 8.03796 | C113: 5.22 | D113: 0.055 | E113: 0.71916
A114: 99 | B114: 8.11998 | C114: 4.66 | D114: 0.047 | E114: 0.701688
A115: 100 | B115: 8.202 | C115: 4.27 | D115: 0.042 | E115: 0.696072
A116: 101 | B116: 8.28402 | C116: 4.03 | D116: 0.04 | E116: 0.707616
A117: 102 | B117: 8.36604 | C117: 3.65 | D117: 0.041 | E117: 0.71136
A118: 103 | B118: 8.44806 | C118: 3.53 | D118: 0.045 | E118: 0.674544
A119: 104 | B119: 8.53008 | C119: 3.39 | D119: 0.045 | E119: 0.571584
A120: 105 | B120: 8.6121 | C120: 3.86 | D120: 0.046 | E120: 0.568776
A121: 106 | B121: 8.69412 | C121: 4.64 | D121: 0.045 | E121: 0.560664
A122: 107 | B122: 8.77614 | C122: 4.71 | D122: 0.055 | E122: 0.545376
A123: 108 | B123: 8.85816 | C123: 4.37 | D123: 0.062 | E123: 0.564096
A124: 109 | B124: 8.94018 | C124: 4.01 | D124: 0.058 | E124: 0.672048
A125: 110 | B125: 9.0222 | C125: 3.9 | D125: 0.064 | E125: 0.694824
A126: 111 | B126: 9.10422 | C126: 4.24 | D126: 0.065 | E126: 0.707616
A127: 112 | B127: 9.18624 | C127: 4.94 | D127: 0.053 | E127: 0.796848
A128: 113 | B128: 9.26826 | C128: 5.57 | D128: 0.08 | E128: 0.818376
A129: 114 | B129: 9.35028 | C129: 7.17 | D129: 0.104 | E129: 0.812136
A130: 115 | B130: 9.4323 | C130: 7.55 | D130: 0.119 | E130: 0.802776
A131: 116 | B131: 9.51432 | C131: 6.13 | D131: 0.138 | E131: 1.218048
A132: 117 | B132: 9.59634 | C132: 8.07 | D132: 0.159 | E132: 0.616824
A133: 118 | B133: 9.67836 | C133: 7.59 | D133: 0.162 | E133: 0.531024
A134: 119 | B134: 9.76038 | C134: 6.76 | D134: 0.15 | E134: 0.541632
A135: 120 | B135: 9.8424 | C135: 6.12 | D135: 0.128 | E135: 0.520728
A136: 121 | B136: 9.92442 | C136: 5.89 | D136: 0.12 | E136: 0.582504
A137: 122 | B137: 10.00644 | C137: 5.47 | D137: 0.108 | E137: 0.628056
A138: 123 | B138: 10.08846 | C138: 5.75 | D138: 0.1 | E138: 0.893256
A139: 124 | B139: 10.17048 | C139: 6.34 | D139: 0.097 | E139: 1.121328
A140: 125 | B140: 10.2525 | C140: 6.5 | D140: 0.088 | E140: 1.23552
A141: 126 | B141: 10.33452 | C141: 6.2 | D141: 0.085 | E141: 1.248
A142: 127 | B142: 10.41654 | C142: 6.08 | D142: 0.1 | E142: 1.270152
A143: 128 | B143: 10.49856 | C143: 6.43 | D143: 0.119 | E143: 1.33692
A144: 129 | B144: 10.58058 | C144: 9.49 | D144: 0.112 | E144: 1.413672
A145: 130 | B145: 10.6626 | C145: 12.35 | D145: 0.13 | E145: 1.125384
A146: 131 | B146: 10.74462 | C146: 13.08 | D146: 0.167 | E146: 0.649584
A147: 132 | B147: 10.82664 | C147: 10.62 | D147: 0.195 | E147: 0.414648
A148: 133 | B148: 10.90866 | C148: 11.33 | D148: 0.245 | E148: 0.441168
A149: 134 | B149: 10.99068 | C149: 11.58 | D149: 0.257 | E149: 0.499512
A150: 135 | B150: 11.0727 | C150: 13.91 | D150: 0.277 | E150: 0.381264
A151: 136 | B151: 11.15472 | C151: 14.22 | D151: 0.226 | E151: 0.338832
A152: 137 | B152: 11.23674 | C152: 13.73 | D152: 0.201 | E152: 0.205296
A153: 138 | B153: 11.31876 | C153: 11.04 | D153: 0.189 | E153: 0
A154: 139 | B154: 11.40078 | C154: 9.62 | D154: 0.17 | E154: 0.084864
A155: 140 | B155: 11.4828 | C155: 7.41 | D155: 0.137 | E155: 0.140088
A156: 141 | B156: 11.56482 | C156: 6.25 | D156: 0.123 | E156: 0.29328
A157: 142 | B157: 11.64684 | C157: 5.98 | D157: 0.11 | E157: 0.456456
A158: 143 | B158: 11.72886 | C158: 5.79 | D158: 0.086 | E158: 0.544128
A159: 144 | B159: 11.81088 | C159: 5.93 | D159: 0.084 | E159: 0.734448
A160: 145 | B160: 11.8929 | C160: 5.96 | D160: 0.089 | E160: 0.873912
A161: 146 | B161: 11.97492 | C161: 6.35 | D161: 0.09 | E161: 1.072656
A162: 147 | B162: 12.05694 | C162: 6.5 | D162: 0.104 | E162: 1.360632
A163: 148 | B163: 12.13896 | C163: 6.78 | D163: 0.124 | E163: 1.429896
A164: 149 | B164: 12.22098 | C164: 6.96 | D164: 0.151 | E164: 1.615536
A165: 150 | B165: 12.303 | C165: 7.57 | D165: 0.18 | E165: 1.673256
A166: 151 | B166: 12.38502 | C166: 8.47 | D166: 0.26 | E166: 1.814592
A167: 152 | B167: 12.46704 | C167: 10.04 | D167: 0.326 | E167: 2.011776
A168: 153 | B168: 12.54906 | C168: 11.6 | D168: 0.373 | E168: 0.999336
A169: 154 | B169: 12.63108 | C169: 11.46 | D169: 0.431 | E169: 0.374712
A170: 155 | B170: 12.7131 | C170: 11.16 | D170: 0.486 | E170: -0.025272
A171: 156 | B171: 12.79512 | C171: 10.53 | D171: 0.549 | E171: 0.799656
A172: 157 | B172: 12.87714 | C172: 10.68 | D172: 0.564 | E172: 0.502008
A173: 158 | B173: 12.95916 | C173: 10.81 | D173: 0.539 | E173: 0.304512
A174: 159 | B174: 13.04118 | C174: 10.48 | D174: 0.48 | E174: 0.216216
A175: 160 | B175: 13.1232 | C175: 10.18 | D175: 0.428 | E175: 0.16068
A176: 161 | B176: 13.20522 | C176: 9.4 | D176: 0.382 | E176: 0.096408
A177: 162 | B177: 13.28724 | C177: 9.21 | D177: 0.343 | E177: 0.080808
A178: 163 | B178: 13.36926 | C178: 9.08 | D178: 0.328 | E178: 0.080496
A179: 164 | B179: 13.45128 | C179: 9.66 | D179: 0.302 | E179: 0.089856
A180: 165 | B180: 13.5333 | C180: 9.47 | D180: 0.284 | E180: 0.089544
A181: 166 | B181: 13.61532 | C181: 10.16 | D181: 0.271 | E181: 0.103896
A182: 167 | B182: 13.69734 | C182: 11.02 | D182: 0.274 | E182: 0.121056
A183: 168 | B183: 13.77936 | C183: 11.61 | D183: 0.24 | E183: 0.16848
A184: 169 | B184: 13.86138 | C184: 11.51 | D184: 0.217 | E184: 0.246168
A185: 170 | B185: 13.9434 | C185: 11 | D185: 0.186 | E185: 0.27612
A186: 171 | B186: 14.02542 | C186: 10.39 | D186: 0.177 | E186: 0.317928
A187: 172 | B187: 14.10744 | C187: 9.73 | D187: 0.182 | E187: 0.393744
A188: 173 | B188: 14.18946 | C188: 9.53 | D188: 0.255 | E188: 0.523848
A189: 174 | B189: 14.27148 | C189: 11.3 | D189: 0.307 | E189: 0.79404
A190: 175 | B190: 14.3535 | C190: 15.78 | D190: 0.393 | E190: 1.141296
A191: 176 | B191: 14.43552 | C191: 26.46 | D191: 0.415 | E191: 1.399944
A192: 177 | B192: 14.51754 | C192: 43.7 | D192: 0.415 | E192: 0.526656
A193: 178 | B193: 14.59956 | C193: 50.44 | D193: 0.36 | E193: 0.175032
A194: 179 | B194: 14.68158 | C194: 57.34 | D194: 0.274 | E194: -0.006864
A195: 180 | B195: 14.7636 | C195: 60.77 | D195: 0.204 | E195: -0.064584
A196: 181 | B196: 14.84562 | C196: 62.17 | D196: 0.164 | E196: -0.105456
A197: 182 | B197: 14.92764 | C197: 59.01 | D197: 0.219 | E197: -0.146016
A198: 183 | B198: 15.00966 | C198: 53.09 | D198: 0.357 | E198: -0.170352
A199: 184 | B199: 15.09168 | C199: 43.86 | D199: 0.472 | E199: -0.1872
A200: 185 | B200: 15.1737 | C200: 36.37 | D200: 0.446 | E200: -0.19188
A201: 186 | B201: 15.25572 | C201: 34.87 | D201: 0.479 | E201: -0.180024
A202: 187 | B202: 15.33774 | C202: 33.26 | D202: 0.454 | E202: -0.142896
... 923 more rows

Sheet Final Summary
A1: Company: | B1: =Inputs!$C$2 -> GEO Company | E1: Project: | F1: =Inputs!$H$2 -> Example Problem | I1: Mw: | J1: =Mw_prob -> 6.83 | K1: =Inputs!$H$5 -> CPT-01 | M1: Company: | N1: =Inputs!$C$2 -> GEO Company | Q1: Project: | R1: =Inputs!$H$2 -> Example Problem | U1: Mw: | V1: =Mw_prob -> 6.83 | W1: =Inputs!$H$5 -> CPT-01 | Y1: Company: | Z1: =Inputs!$C$2 -> GEO Company | AC1: Project: | AD1: =Inputs!$H$2 -> Example Problem | AG1: Mw: | AH1: =Mw_prob -> 6.83 | AI1: =Inputs!$H$5 -> CPT-01
A2: Designer: | B2: =Inputs!$C$3 -> JLB | C2: Checked by: | D2: =Inputs!$F$3 -> JLB | E2: Location: | F2: =Inputs!$H$3 -> Salt Lake City, UT | I2: PGA: | J2: =PGA_prob -> 0.636 | M2: Designer: | N2: =Inputs!$C$3 -> JLB | O2: Checked by: | P2: =Inputs!$F$3 -> JLB | Q2: Location: | R2: =Inputs!$H$3 -> Salt Lake City, UT | U2: PGA: | V2: =PGA_prob -> 0.636 | Y2: Designer: | Z2: =Inputs!$C$3 -> JLB | AA2: Checked by: | AB2: =Inputs!$F$3 -> JLB | AC2: Location: | AD2: =Inputs!$H$3 -> Salt Lake City, UT | AG2: PGA: | AH2: =PGA_prob -> 0.636
A3: Date: | B3: =Inputs!$C$4 -> 2018-09-05 | C3: Date: | D3: =Inputs!$F$4 -> 2020-04-04 | E3: Project #: | F3: =Inputs!$H$4 -> AB-123-4567 | I3: Return Period: | J3: =Tr -> 2475 | M3: Date: | N3: =Inputs!$C$4 -> 2018-09-05 | O3: Date: | P3: =Inputs!$F$4 -> 2020-04-04 | Q3: Project #: | R3: =Inputs!$H$4 -> AB-123-4567 | U3: Return Period: | V3: =Tr -> 2475 | Y3: Date: | Z3: =Inputs!$C$4 -> 2018-09-05 | AA3: Date: | AB3: =Inputs!$F$4 -> 2020-04-04 | AC3: Project #: | AD3: =Inputs!$H$4 -> AB-123-4567 | AG3: Return Period: | AH3: =Tr -> 2475
M4: SIMPLIFIED PERFORMANCE-BASED LIQUEFACTION TRIGGERING AND SETTLEMENT OUTPUTS : | Y4: SIMPLIFIED PERFORMANCE-BASED LATERAL SPREAD OUTPUT : | AC4: DETERMINISTIC LATERAL SPREAD OUTPUT :
AF7: Lateral Displacement (LD):
AG9: DETERMINISTIC:
AG10: B&I: | AH10: =IF(units=1, 'Det Lateral Spread'!J11,'Det Lateral Spread'!L11) -> 15.0173944 | AI10: =IF(units=1,"[m]","[ft]") -> [ft]
AG11: Ku: | AH11: =IF(units=1, 'Det Lateral Spread'!T11,'Det Lateral Spread'!V11) -> 11.2954161 | AI11: =IF(units=1,"[m]","[ft]") -> [ft]
AG13: SIMPLIFIED PB:
AG14: B&I: | AH14: =IF(units=1, 'PB Lateral Spread'!W11,'PB Lateral Spread'!AU11) -> 15.35115066 | AI14: =IF(units=1,"[m]","[ft]") -> [ft]
AG15: Ku: | AH15: =IF(units=1,'PB Lateral Spread'!AQ11,'PB Lateral Spread'!AW11) -> 11.89790454 | AI15: =IF(units=1,"[m]","[ft]") -> [ft]
AF20: Summary of Inputs for Lateral Spread Analysis:
AG22: =LS_Geometry -> GS | AH22: FF = Free Face
AH23: GS = Ground Slope
AF24: Free Face Height= | AG24: =IF(AND(AG22="FF", units=1),LS_height,CONVERT(LS_height,"m","ft")) -> 3.280839895 | AH24: =IF(units=1,"[m]","[ft]") -> [ft]
AF26: =IF(LS_Geometry="GS","S =","W =") -> S = | AG26: =IF(LS_Geometry="GS",S_Prob,W_prob) -> 2.5 | AH26: =IF(LS_Geometry="GS","%","") -> %
AF28: Mapped Reference Values:
AF30: gmax,BIref(%) = | AG30: =gmax_BI_ref -> 28.94
AF31: gmax,KUref(%) = | AG31: =gmax_KU_ref -> 12.207
A36: Company: | B36: =Inputs!$C$2 -> GEO Company | E36: Project: | F36: =Inputs!$H$2 -> Example Problem | I36: Mw: | J36: =Mw_prob -> 6.83 | K36: =Inputs!$H$5 -> CPT-01 | M36: Company: | N36: =Inputs!$C$2 -> GEO Company | Q36: Project: | R36: =Inputs!$H$2 -> Example Problem | U36: Mw: | V36: =Mw_prob -> 6.83 | W36: =Inputs!$H$5 -> CPT-01
A37: Designer: | B37: =Inputs!$C$3 -> JLB | C37: Checked by: | D37: =Inputs!$F$3 -> JLB | E37: Location: | F37: =Inputs!$H$3 -> Salt Lake City, UT | I37: PGA: | J37: =PGA_prob -> 0.636 | M37: Designer: | N37: =Inputs!$C$3 -> JLB | O37: Checked by: | P37: =Inputs!$F$3 -> JLB | Q37: Location: | R37: =Inputs!$H$3 -> Salt Lake City, UT | U37: PGA: | V37: =PGA_prob -> 0.636
A38: Date: | B38: =Inputs!$C$4 -> 2018-09-05 | C38: Date: | D38: =Inputs!$F$4 -> 2020-04-04 | E38: Project #: | F38: =Inputs!$H$4 -> AB-123-4567 | I38: Return Period: | J38: =Tr -> 2475 | M38: Date: | N38: =Inputs!$C$4 -> 2018-09-05 | O38: Date: | P38: =Inputs!$F$4 -> 2020-04-04 | Q38: Project #: | R38: =Inputs!$H$4 -> AB-123-4567 | U38: Return Period: | V38: =Tr -> 2475
A39: DETERMINISTIC LIQUEFACTION TRIGGERING AND SETTLEMENT OUTPUTS :
M40: Summary of Inputs for Liquefaction Initiation:
O42: Water Level at Time of Exploration = | P42: =gw_drilling -> 3 | Q42: =IF(units=1,"[m]","[ft]") -> [ft] | T42: Latitude = | U42: =Lat -> 40.621
O43: Design Water Level = | P43: =design_gw -> 2 | Q43: =IF(units=1,"[m]","[ft]") -> [ft] | T43: Longitude = | U43: =Long -> -111.904
O46: Site Liquefaction Parameters: | T46: Mapped Reference Values:
O48: PGA = | P48: =PGA_prob -> 0.636 | U48: CSR(%)ref = | V48: =CSR_ref_BI -> 81.91
O49: FPGA = | P49: =Fpga -> 1.1 | U49: qreqref = | V49: =qreq_ref_ku -> 196.169
O50: Mw = | P50: =Mw_prob -> 6.83 | U50: εv,Ku(%)ref = | V50: =strain_ref_ku -> 2.316
U51: εv,B&I(%)ref = | V51: =strain_ref_BI -> 3.277
O52: Site Class = | P52: =Class -> D | U52: Return Period = | V52: =Tr -> 2475 | W52: yrs
U53: Probability of Exceedance = | V53: =PE -> 2% in 50 yrs
O55: Deterministic Analysis Parameters: | T55: Corrections Applied (if any):
O57: PGA = | P57: =PGA_det -> 0.64 | U57: Thin Layer Correction= | V57: =TLC -> Yes
O58: FPGA = | P58: =Fpga_det -> 1.1 | U58: Eliminate Transition Layers= | V58: =TransitionCorrection -> No
O59: Mw = | P59: =Mw_det -> 6.83 | U59: Soil Depth Modification = | V59: =IF(AND(Soil_depth_mod_LS="No",Soil_depth_mod_S="No"),"No",IF(AND(Soil_depth_mod_LS="Yes",Soil_depth_mod_S="Yes"),"Yes",IF(AND(Soil_depth_mod_LS="Yes",Soil_depth_mod_S="No"),"Yes for LS","Yes (Settlement)"))) -> Yes
O60: Percentile = | P60: =Percentile_Liq -> 85 | U60: Dilative/Contractive Behavior= | V60: =dila_contr_behav -> No
U61: Fines Content Modification= | V61: =Fines_mod -> No
U62: Eliminate Thin Sand Layers= | V62: =Thin_sand -> No

Sheet References
A1: Liquefaction Initiation / Settlement | T1: Lateral Spread Displacement
A4: Liquefaction Initiation Parameters (Performance-Based): | T4: Lateral Spread Parameters:
T14: Site Geometry:
A20: Convert between Return Period and Exceedance Probability:
B22: Return Period | D22: Exceedance Probability
D23: Percent | E23: Years
B24: 475 | D24: 10 | E24: 50
B25: 1,039 (1,033) | D25: 2 (7) | E25: 21 (75)
B26: 2475 | D26: 2 | E26: 50
A29: Site Amplification Factors (Fpga):
A30: *For Site Class definitions, see below
B32: Site Class | C32: Site Amplification Factor, Fpga
C33: PGA(g)<0.10 | D33: PGA(g)=0.20 | E33: PGA(g)=0.30 | F33: PGA(g)=0.40 | G33: PGA(g)>=0.50 | T33: Corrections:
B34: A | C34: 0.8 | D34: 0.8 | E34: 0.8 | F34: 0.8 | G34: 0.8
B35: B | C35: 1 | D35: 1 | E35: 1 | F35: 1 | G35: 1
B36: C | C36: 1.2 | D36: 1.2 | E36: 1.1 | F36: 1 | G36: 1 | T36: Thin Layer Correction
B37: D | C37: 1.6 | D37: 1.4 | E37: 1.2 | F37: 1.1 | G37: 1
B38: E | C38: 2.5 | D38: 1.7 | E38: 1.2 | F38: 0.9 | G38: 0.9 | T38: When thin sand layers are embedded within a soft clay layer, the cone will read the sand layer's cone tip resistance as much lower than the actual stiffness of the thing layer because it has already started to detect the soft clay layer's resistance early. A correction factor is applied to the cone tip resistance, qc. (See figure to the right). A thin layer is identified if a steep negative change in the soil behavior index, Ic, is equal to or greater than 0.01 for four consecutive soil sublayer increments (Robertson, 2011). The user must define the diameter of the cone, the Min and Max Ic (default 2.6 and 3), and the change in Ic (default 0.01).
B39: F | C39: Site Response Analysis Required
B40: *For intermediate PGA values, interpolate linearly
A42: Site Class Definitions:
A43: From AASHTO LRFD Bridge Design Specifications (2007):
T53: Eliminate Transition Layer
T55: In thinly interbedded layers that have a sharp contrast of cone tip resistance, the CPT is not able to accurately report these layer changes. The CPT tend to show the strength of the soil layer below before the tip reaches that layer. These areas are called the transition zone. Robertson (2011) suggests removing these sublayers from the analysis. A transition zone is identified if htere is a steep change in the soil behavior index (Ic) usually a change of 0.01 or greater for multiple sublayer increments (default 4).
T70: Soil Depth Modification
T71: Deformations at great depths may have little influence on ground surface displacements. A depth weight factor is applied, DF (shown on right). At depths greater than 18m the depth factor is zero which indicates liquefaction past these depths will not contribute to the ground surface settlement. For settlement, DF is multplieid by the strain. For lateral spread, the soil depth modification is applied depending on the geometry. The equation to the right applies for flat or gently sloping ground. For free face conditions, layers below 2H (Chu et al. (2006) where H is the height of the free face, won't contribute towards lateral spread
T84: Dilative/Contractive Behavior
T85: Specific to lateral spread. Current SPT-based lateral displacement methods filter out dilative soils with a criterion of N1(60) < 15. Youd suggests the equivalent for CPT's is the clean-sand equivalent normalized CPT tip resistances, Qtncs (or qc1ncs) < 70. Layers with Qtncs (or qc1ncs) <70 will not contirbute to lateral spread
T94: Fines Content Modification
T95: Specific to lateral spread. Current practicies consider layers with a fines content > 50% will not likely contribute to lateral spread. To apply this to CPT data, an Ic cutoff of 2.4 (Boulanger and Idriss) and 2.6 (Robertson/Ku) is used to correspond with a approx. FC=50%
T103: Eliminate Thin Sand Layers
T104: Specific to lateral spread. When sand layers are too thin/not sufficiently continuous are present, lateral spread predictions may be over-estimated. Zhang et al. (2004) and Youd (2018) determined that no single soil layer less than 0.6m in thickness likely contributes to lateral spread. However, Youd recommends limiting soil layer thickness to 0.3m or greater. This correction targets thin sand layers (Ic < 2.6) with a thickness <0.3m. Layers that meet this criteria will not contribute to lateral spread.
A107: How to Turn on Iterative Calculations:
A114: Where to Obtain PGA from USGS Deaggregation Output:
A141: Technical References:

Sheet Soil Info
A1: 1 | B1: 2 | C1: 3 | D1: 4 | E1: 5 | F1: 6 | G1: 7 | H1: 8 | I1: 9 | J1: 10 | K1: 11 | L1: 12 | M1: 13 | N1: 14 | O1: 15 | P1: 16 | Q1: 17 | R1: 18 | S1: 19 | T1: 20 | U1: 21 | V1: 22 | W1: 23 | X1: 24 | Y1: 25 | Z1: 26 | AA1: 27 | AB1: 28 | AC1: 29 | AD1: 30 | AE1: 31 | AF1: 32 | AG1: 33 | AH1: 34 | AI1: 35 | AJ1: 36 | AK1: 37 | AL1: 38 | AM1: 39 | AN1: 40 | AO1: 41 | AP1: 42 | AQ1: 43 | AR1: 44 | AS1: 45 | AT1: 46 | AU1: 47 | AV1: 48 | AW1: 49 | AX1: 50 | AY1: 51 | AZ1: 52 | BA1: 53 | BB1: 54 | BC1: 55 | BD1: 56 | BE1: 57 | BF1: 58 | BG1: 59 | BH1: 60 | BI1: 61 | BJ1: 62 | BK1: 63
B2: Pa: | C2: 101.325 | D2: kPa | AO2: =IF(AS13<0,0,1) -> 0 | AR2: Diameter of cone: | AS2: =dc -> 4 | AT2: cm
B3: gw: | C3: 9.81 | D3: kN/m3 | AR3: Min. Ic: | AS3: 1.7
B4: a: | C4: 0.8 | AR4: Max Ic: | AS4: =Max_Ic -> 3 | AY4: Change in Ic: | AZ4: =delta_Ic_transition -> 0.01
B5: GW at time of drilling: | C5: =IF(units=2,CONVERT(gw_drilling,"ft","m"),gw_drilling) -> 0.9144 | D5: [m] | AR5: Change in Ic: | AS5: =delta_Ic -> 0.01
B6: Design GW: | C6: =IF(units=2,CONVERT(design_gw,"ft","m"),design_gw) -> 0.6096 | D6: [m] | AQ6: Dr Jamiolkowski, M., Lo Presti,D.C.F. & Manassero, M. 2001.Evaluation of relative density andshear strength of sands from conepenetration test(CPT) and flatdilatometer test(DMT)
BK7: Thin Sand Layers Not Eliminated
AU8: TLC applied | AZ8: Transition Layer Not Eliminated
M9: Boulanger & Idriss | Z9: Robertson & Wride | AQ9: Thin Layer Correction | AY9: Transition Layer | BB9: Corrected qc (kPa) | BC9: Eliminate Transition Layers?
B10: Depth (m) | C10: qc (kPa) | D10: fs (kPa) | E10: u (kPa) | F10: u0 (kPa) | G10: qt (kPa) | H10: Rf (%) | I10: g (kN/m3) | J10: gsum (kN/m3) | K10: sv (kPa) | L10: s'v (kPa) | M10: m | N10: CN | O10: qc1n | P10: qc1n,cs | Q10: Cs | R10: Ks | S10: MSFMax | T10: MSF | U10: rd | V10: Det CRR | W10: CRR Cap | X10: CSR | Y10: FSL | Z10: F | AA10: Qt | AB10: n | AC10: Ic | AD10: qc1N | AE10: Kc | AF10: qc1Ncs | AG10: CRR | AH10: CRR cap | AI10: MSF | AJ10: rd | AK10: Dr | AL10: f | AM10: Ks | AN10: CSR | AO10: FSL | AQ10: =B10 -> Depth (m) | AR10: Ic | AS10: ∆Ic | AT10: |∆Ic| | AU10: TLC? | AV10: Layer Thickness | AW10: H | AX10: KH | AY10: |∆Ic| > delta Ic? | AZ10: H | BA10: Transition Layers?
A11: 1 | B11: =IF(Inputs!B16="","",IF(units=2,CONVERT(Inputs!B16,"ft","m"),Inputs!B16)) -> 0.024999696 | C11: =IF(Inputs!C16="","",IF(units=2,Inputs!C16*95.76,Inputs!C16*1000)) -> 3067.1928 | D11: =IF(Inputs!D16="","",IF(units=2,Inputs!D16*95.76,Inputs!D16)) -> 11.10816 | E11: =IF(Inputs!E16="","",IF(units=2,Inputs!E16*95.76,Inputs!E16)) -> 14.46052608 | F11: =IF(B11="","",IF(B11<$C$5,0,$C$3*(B11-$C$5))) -> 0 | G11: =IF(B11="","",C11+E11*(1-$C$4)) -> 3070.084905 | H11: =IF(B11="","",(D11/G11)*100) -> 0.3618193093 | I11: =IF(B11="","",(0.27*(LOG(H11))+0.36*(LOG(G11/$C$2))+1.236)*$C$3) -> 16.18756859 | J11: =IF(B11="","",I11) -> 16.18756859 | K11: =IF(B11="","",(J11/A11)*B11) -> 0.4046842937 | L11: =IF(B11="","",K11-F11) -> 0.4046842937 | M11: 0.4241528247 | N11: 10.40813884 | O11: 51.46042694 | P11: 137.6947955 | Q11: =IF(B11="","",IF(P11<=211,1/(37.3-8.27*(P11^(0.264))),0.3)) -> 0.1439153409 | R11: =IF(B11="","",IF(1-Q11*LN(L11/atm)<=1.1, 1-Q11*LN(L11/atm),1.1)) -> 1.1 | S11: =IF(B11="","",IF(1.09+(P11/180)^3<2.2,1.09+(P11/180)^3,2.2)) -> 1.537646363 | T11: =IF(B11="","",1+(S11-1)*(8.64*EXP(-Mw_prob/4)-1.325)) -> 1.12989108 | U11: =IF(B11="","",EXP((-1.012-1.126*SIN((B11/11.73+5.133)))+(0.106+0.118*SIN((B11/11.28+5.142)))*Mw_prob)) -> 1.006922337 | V11: =IF(B11="","",IF(P11>225,10,EXP((P11/113)+(P11/1000)^2-(P11/140)^3+(P11/137)^4-2.8))) -> 0.224591306 | W11: =IF(B11="","",V11*T11*R11) -> 0.2791400846 | X11: =IF($B11="","",0.65*PGA_prob*Fpga*(K11/L11)*U11*(1/T11)*(1/R11)) -> 0.3684086913 | Y11: =IF(B11="","",V11/X11) -> 0.6096254276 | Z11: =IF(C11="","",(D11/(C11-K11)*100)) -> 0.3622082642 | AA11: =IF(C11="","",(G11-K11)/L11) -> 7585.370297 | AB11: =IF(C11="","",MIN(0.381*AC11+0.05*(L11/atm)-0.15,1)) -> 0.18557863 | AC11: =IF(C11="","",((3.47-LOG(AA11))^2+(1.22+LOG(Z11))^2)^0.5) -> 0.8802596688 | AD11: =IF(C11="","",((G11-K11)/atm)*(atm/L11)^AB11) -> 84.43168842 | AE11: =IF(B11="","",IF(AC11<=1.64,1,-0.403*AC11^4+5.58*AC11^3-21.63*AC11^2+33.75*AC11-17.88)) -> 1 | AF11: =IF(C11="","",MIN(AE11*AD11,250)) -> 84.43168842 | AG11: =IF(C11="","",IF(AF11<50,0.833*(AF11/1000)+0.05,93*(AF11/1000)^3+0.08)) -> 0.1359756791 | AH11: =IF($B11="","",IF(B11<$C$5, 4,AG11)) -> 4 | AI11: =IF($B11="","",ROUND((10^2.24)/(Mw_prob)^2.56,2)) -> 1.27 | AJ11: =IF($B11="","",IF(B11<=9.15, 1-0.00765*B11, IF(AND(B11>9.15, B11<=23),1.174-0.0267*B11,IF(AND(B11>23,B11<=30),0.744-0.008*B11,0.5)))) -> 0.9998087523 | AK11: =IF($B11="","",-1.292+0.268*LN(C11/(L11^0.52))) -> 0.9857145812 | AL11: =IF($B11="","",IF(AK11<=0.4,0.8,IF(AND(AK11<=0.6,AK11>0.4),0.7,0.6))) -> 0.6 | AM11: =IF($B11="","",IF((L11/atm)^(AL11-1)>1,1,(L11/atm)^(AL11-1))) -> 1 | AN11: =IF($B11="","",0.65*PGA_prob*Fpga*(K11/L11)*AJ11*(1/AM11)*(1/AI11)) -> 0.3579945134 | AO11: =IF($B11="","",AG11/AN11) -> 0.3798261537 | AP11: 1 | AQ11: =IF(B11="","",B11) -> 0.024999696 | AR11: =IF(AQ11="","",AC11) -> 0.8802596688 | AS11: =IF(AR11="","",AR11-0) -> 0.8802596688 | AT11: =IF(AS11="","",ABS(AS11)) -> 0.8802596688 | AU11: =IF(AR11="","",IF(OR(AT11<=$AS$5,AR11<$AS$3,AR11>$AS$4),"No TLC Needed",IF(AND(AT11>$AS$5,AS11<0),"YES-TLC","No TLC Needed"))) -> No TLC Needed | AV11: =IF(AQ11="","",AQ11-0) -> 0.024999696 | AW11: <4 consecutive layers | AX11: =IF(AW11="","",IF(OR(AW11="--", AW11="<4 consecutive layers"), "1", IF(AW11>1, "Height Exceeds 1m or 3ft, no TLC needed", 0.25*((((AW11*100)/$AS$2)/17)-1.77)^2+1))) -> 1 | AY11: =IF(AQ11="","",IF(AS11>$AZ$4,"Positive Change",IF(AS11<$AZ$4,"Negative Change","No Transition"))) -> Positive Change | AZ11: <4 consecutive layers | BA11: =IF(AZ11="","",IF(AZ11="<4 consecutive layers", "No", "Yes")) -> No | BB11: =IF(C11="","",IF(AND(TLC="Yes",AU11="YES-TLC"), ROUND(AX11*C11,2),IF(AX11="Height Exceeds 1m or 3ft, no TLC needed",C11*1,C11))) -> 3067.1928 | BC11: =IF(BA11="","",IF(AND(TransitionCorrection="Yes", BA11="Yes"), "Yes", "No")) -> No
A12: 2 | B12: =IF(Inputs!B17="","",IF(units=2,CONVERT(Inputs!B17,"ft","m"),Inputs!B17)) -> 0.049999392 | C12: =IF(Inputs!C17="","",IF(units=2,Inputs!C17*95.76,Inputs!C17*1000)) -> 14023.0944 | D12: =IF(Inputs!D17="","",IF(units=2,Inputs!D17*95.76,Inputs!D17)) -> 18.57744 | E12: =IF(Inputs!E17="","",IF(units=2,Inputs!E17*95.76,Inputs!E17)) -> 31.46060736 | F12: =IF(B12="","",IF(B12<$C$5,0,$C$3*(B12-$C$5))) -> 0 | G12: =IF(B12="","",C12+E12*(1-$C$4)) -> 14029.38652 | H12: =IF(B12="","",(D12/G12)*100) -> 0.1324180496 | I12: =IF(B12="","",(0.27*(LOG(H12))+0.36*(LOG(G12/$C$2))+1.236)*$C$3) -> 17.36175453 | J12: =IF(B12="","",J11+I12) -> 33.54932312 | K12: =IF(B12="","",(J12/A12)*B12) -> 0.838722879 | L12: =IF(B12="","",K12-F12) -> 0.838722879 | M12: 0.1338061163 | N12: 1.899317035 | O12: 235.2752083 | P12: 391.5542404 | Q12: =IF(B12="","",IF(P12<=211,1/(37.3-8.27*(P12^(0.264))),0.3)) -> 0.3 | R12: =IF(B12="","",IF(1-Q12*LN(L12/atm)<=1.1, 1-Q12*LN(L12/atm),1.1)) -> 1.1 | S12: =IF(B12="","",IF(1.09+(P12/180)^3<2.2,1.09+(P12/180)^3,2.2)) -> 2.2 | T12: =IF(B12="","",1+(S12-1)*(8.64*EXP(-Mw_prob/4)-1.325)) -> 1.289910444 | U12: =IF(B12="","",EXP((-1.012-1.126*SIN((B12/11.73+5.133)))+(0.106+0.118*SIN((B12/11.28+5.142)))*Mw_prob)) -> 1.006683215 | V12: =IF(B12="","",IF(P12>225,10,EXP((P12/113)+(P12/1000)^2-(P12/140)^3+(P12/137)^4-2.8))) -> 10 | W12: =IF(B12="","",V12*T12*R12) -> 14.18901489 | X12: 0.3226292515 | Y12: =IF(B12="","",V12/X12) -> 30.99532963 | Z12: =IF(C12="","",(D12/(C12-K12)*100)) -> 0.1324853891 | AA12: =IF(C12="","",(G12-K12)/L12) -> 16726.08218 | AB12: 0.1656742357 | AC12: =IF(C12="","",((3.47-LOG(AA12))^2+(1.22+LOG(Z12))^2)^0.5) -> 0.8274550082 | AD12: 306.369917 | AE12: =IF(B12="","",IF(AC12<=1.64,1,-0.403*AC12^4+5.58*AC12^3-21.63*AC12^2+33.75*AC12-17.88)) -> 1 | AF12: =IF(C12="","",MIN(AE12*AD12,250)) -> 250 | AG12: =IF(C12="","",IF(AF12<50,0.833*(AF12/1000)+0.05,93*(AF12/1000)^3+0.08)) -> 1.533125 | AH12: =IF($B12="","",IF(B12<$C$5, 4,AG12)) -> 4 | AI12: 1.27 | AJ12: 0.9996175047 | AK12: 1.291497437 | AL12: =IF($B12="","",IF(AK12<=0.4,0.8,IF(AND(AK12<=0.6,AK12>0.4),0.7,0.6))) -> 0.6 | AM12: 1 | AN12: 0.3579260347 | AO12: =IF($B12="","",AG12/AN12) -> 4.283357039 | AP12: 2 | AQ12: =IF(B12="","",B12) -> 0.049999392 | AR12: 0.8274550082 | AS12: =IF(AR12="","",AR12-AR11) -> -0.05280466058 | AT12: =IF(AS12="","",ABS(AS12)) -> 0.05280466058 | AU12: =IF(AR12="","",IF(OR(AT12<=$AS$5,AR12<$AS$3,AR12>$AS$4),"No TLC Needed",IF(AND(AT12>$AS$5,AS12<0),"YES-TLC","No TLC Needed"))) -> No TLC Needed | AV12: =IF(AQ12="","",AQ12-AQ11) -> 0.024999696 | AW12: -- | AX12: =IF(AW12="","",IF(OR(AW12="--", AW12="<4 consecutive layers"), "1", IF(AW12>1, "Height Exceeds 1m or 3ft, no TLC needed", 0.25*((((AW12*100)/$AS$2)/17)-1.77)^2+1))) -> 1 | AY12: =IF(AQ12="","",IF(AS12>$AZ$4,"Positive Change",IF(AS12<$AZ$4,"Negative Change","No Transition"))) -> Negative Change | AZ12: <4 consecutive layers | BA12: =IF(AZ12="","",IF(AZ12="<4 consecutive layers", "No", "Yes")) -> No | BB12: 14023.0944 | BC12: No
A13: 3 | B13: =IF(Inputs!B18="","",IF(units=2,CONVERT(Inputs!B18,"ft","m"),Inputs!B18)) -> 0.074999088 | C13: =IF(Inputs!C18="","",IF(units=2,Inputs!C18*95.76,Inputs!C18*1000)) -> 17985.6432 | D13: =IF(Inputs!D18="","",IF(units=2,Inputs!D18*95.76,Inputs!D18)) -> 26.71704 | E13: =IF(Inputs!E18="","",IF(units=2,Inputs!E18*95.76,Inputs!E18)) -> 13.444704 | F13: 0 | G13: 17988.33214 | H13: 0.1485242756 | I13: =IF(B13="","",(0.27*(LOG(H13))+0.36*(LOG(G13/$C$2))+1.236)*$C$3) -> 17.87503695 | J13: =IF(B13="","",J12+I13) -> 51.42436007 | K13: =IF(B13="","",(J13/A13)*B13) -> 1.285593369 | L13: =IF(B13="","",K13-F13) -> 1.285593369 | M13: 0.06514546283 | N13: 1.329094103 | O13: 301.7576456 | P13: 483.0732446 | Q13: 0.3 | R13: 1.1 | S13: 2.2 | T13: 1.289910444 | U13: 1.006443075 | V13: 10 | W13: 14.18901489 | X13: 0.3225522896 | Y13: 31.00272521 | Z13: 0.1485570994 | AA13: 13991.24092 | AB13: 0.1482932095 | AC13: 0.7812567413 | AD13: 339.2329846 | AE13: 1 | AF13: =IF(C13="","",MIN(AE13*AD13,250)) -> 250 | AG13: 1.533125 | AH13: 4 | AI13: 1.27 | AJ13: 0.999426257 | AK13: 1.298674132 | AL13: 0.6 | AM13: 1 | AN13: 0.357857556 | AO13: 4.284176691 | AP13: 3 | AQ13: 0.074999088 | AR13: 0.7812567413 | AS13: =IF(AR13="","",AR13-AR12) -> -0.04619826683 | AT13: 0.04619826683 | AU13: =IF(AR13="","",IF(OR(AT13<=$AS$5,AR13<$AS$3,AR13>$AS$4),"No TLC Needed",IF(AND(AT13>$AS$5,AS13<0),"YES-TLC","No TLC Needed"))) -> No TLC Needed | AV13: 0.024999696 | AW13: -- | AX13: 1 | AY13: Negative Change | AZ13: <4 consecutive layers | BA13: No | BB13: 17985.6432 | BC13: No
A14: 4 | B14: =IF(Inputs!B19="","",IF(units=2,CONVERT(Inputs!B19,"ft","m"),Inputs!B19)) -> 0.099998784 | C14: =IF(Inputs!C19="","",IF(units=2,Inputs!C19*95.76,Inputs!C19*1000)) -> 18097.6824 | D14: =IF(Inputs!D19="","",IF(units=2,Inputs!D19*95.76,Inputs!D19)) -> 24.4188 | E14: =IF(Inputs!E19="","",IF(units=2,Inputs!E19*95.76,Inputs!E19)) -> 5.64677568 | F14: 0 | G14: 18098.81176 | H14: 0.1349193545 | I14: 17.77391585 | J14: 69.19827592 | K14: 1.729935862 | L14: 1.729935862 | M14: 0.06406526165 | N14: 1.297918149 | O14: 303.6374052 | P14: 484.6279519 | Q14: 0.3 | R14: 1.1 | S14: 2.2 | T14: 1.289910444 | U14: 1.006201918 | V14: 10 | W14: 14.18901489 | X14: 0.3224750019 | Y14: 31.01015565 | Z14: 0.1349406728 | AA14: 10461.12877 | AB14: 0.0991290586 | AC14: 0.6516414741 | AD14: 267.3751536 | AE14: 1 | AF14: 250 | AG14: 1.533125 | AH14: 4 | AI14: 1.27 | AJ14: 0.9992350093 | AK14: 1.258967463 | AL14: 0.6 | AM14: 1 | AN14: 0.3577890773 | AO14: 4.284996657 | AP14: 4 | AQ14: 0.099998784 | AR14: 0.6516414741 | AS14: -0.1296152673 | AT14: 0.1296152673 | AU14: No TLC Needed | AV14: 0.024999696 | AW14: -- | AX14: 1 | AY14: Negative Change | AZ14: <4 consecutive layers | BA14: No | BB14: 18097.6824 | BC14: No
A15: 5 | B15: =IF(Inputs!B20="","",IF(units=2,CONVERT(Inputs!B20,"ft","m"),Inputs!B20)) -> 0.12499848 | C15: =IF(Inputs!C20="","",IF(units=2,Inputs!C20*95.76,Inputs!C20*1000)) -> 44369.4384 | D15: =IF(Inputs!D20="","",IF(units=2,Inputs!D20*95.76,Inputs!D20)) -> 43.37928 | E15: =IF(Inputs!E20="","",IF(units=2,Inputs!E20*95.76,Inputs!E20)) -> 24.85776384 | F15: 0 | G15: 44374.40995 | H15: 0.09775742381 | I15: 18.77879431 | J15: 87.97707023 | K15: 2.199400011 | L15: 2.199400011 | M15: -0.2420853681 | N15: 0.3956509377 | O15: 744.4169285 | P15: 1095.724902 | Q15: 0.3 | R15: 1.1 | S15: 2.2 | T15: 1.289910444 | U15: 1.005959746 | V15: 10 | W15: 14.18901489 | X15: 0.3223973888 | Y15: 31.01762095 | Z15: 0.09777322407 | AA15: 20174.6887 | AB15: 0.1790762869 | AC15: 0.8608686807 | AD15: 869.5051667 | AE15: 1 | AF15: 250 | AG15: 1.533125 | AH15: 4 | AI15: 1.27 | AJ15: 0.9990437616 | AK15: 1.465840652 | AL15: 0.6 | AM15: 1 | AN15: 0.3577205986 | AO15: 4.285816937 | AP15: 5 | AQ15: 0.12499848 | AR15: 0.8608686807 | AS15: 0.2092272067 | AT15: 0.2092272067 | AU15: No TLC Needed | AV15: 0.024999696 | AW15: -- | AX15: 1 | AY15: Positive Change | AZ15: <4 consecutive layers | BA15: No | BB15: 44369.4384 | BC15: No
A16: 6 | B16: =IF(Inputs!B21="","",IF(units=2,CONVERT(Inputs!B21,"ft","m"),Inputs!B21)) -> 0.149998176 | C16: =IF(Inputs!C21="","",IF(units=2,Inputs!C21*95.76,Inputs!C21*1000)) -> 65935.548 | D16: =IF(Inputs!D21="","",IF(units=2,Inputs!D21*95.76,Inputs!D21)) -> 76.03344 | E16: =IF(Inputs!E21="","",IF(units=2,Inputs!E21*95.76,Inputs!E21)) -> 22.16882304 | F16: 0 | G16: 65939.98176 | H16: 0.1153070383 | I16: 19.5762147 | J16: 107.5532849 | K16: 2.688799427 | L16: 2.688799427 | M16: -0.4075323637 | N16: 0.2278581258 | O16: 1106.246549 | P16: 1597.781051 | Q16: 0.3 | R16: 1.1 | S16: 2.2 | T16: 1.289910444 | U16: 1.00571656 | V16: 10 | W16: 14.18901489 | X16: 0.3223194508 | Y16: 31.02512112 | Z16: 0.1153194946 | AA16: 24522.94965 | AB16: 0.2177773475 | AC16: 0.9618124099 | AD16: 1434.386054 | AE16: 1 | AF16: 250 | AG16: 1.533125 | AH16: 4 | AI16: 1.27 | AJ16: 0.998852514 | AK16: 1.544003794 | AL16: 0.6 | AM16: 1 | AN16: 0.3576521198 | AO16: 4.286637531 | AP16: 6 | AQ16: 0.149998176 | AR16: 0.9618124099 | AS16: 0.1009437291 | AT16: 0.1009437291 | AU16: No TLC Needed | AV16: 0.024999696 | AW16: -- | AX16: 1 | AY16: Positive Change | AZ16: <4 consecutive layers | BA16: No | BB16: 65935.548 | BC16: No
A17: 7 | B17: =IF(Inputs!B22="","",IF(units=2,CONVERT(Inputs!B22,"ft","m"),Inputs!B22)) -> 0.174997872 | C17: =IF(Inputs!C22="","",IF(units=2,Inputs!C22*95.76,Inputs!C22*1000)) -> 66444.9912 | D17: =IF(Inputs!D22="","",IF(units=2,Inputs!D22*95.76,Inputs!D22)) -> 103.13352 | E17: =IF(Inputs!E22="","",IF(units=2,Inputs!E22*95.76,Inputs!E22)) -> 22.2584544 | F17: 0 | G17: 66449.44289 | H17: 0.1552059965 | I17: 19.92984098 | J17: 127.4831259 | K17: 3.187039393 | L17: 3.187039393 | M17: -0.4108550425 | N17: 0.2414129042 | O17: 1114.793832 | P17: 1609.33222 | Q17: 0.3 | R17: 1.1 | S17: 2.2 | T17: 1.289910444 | U17: 1.005472362 | V17: 10 | W17: 14.18901489 | X17: 0.3222411885 | Y17: 31.03265615 | Z17: 0.1552238403 | AA17: 20848.89694 | AB17: 0.2109728125 | AC17: 0.9433074299 | AD17: 1360.518696 | AE17: 1 | AF17: 250 | AG17: 1.533125 | AH17: 4 | AI17: 1.27 | AJ17: 0.9986612663 | AK17: 1.522375639 | AL17: 0.6 | AM17: 1 | AN17: 0.3575836411 | AO17: 4.28745844 | AP17: 7 | AQ17: 0.174997872 | AR17: 0.9433074299 | AS17: -0.01850497996 | AT17: 0.01850497996 | AU17: No TLC Needed | AV17: 0.024999696 | AW17: -- | AX17: 1 | AY17: Negative Change | AZ17: <4 consecutive layers | BA17: No | BB17: 66444.9912 | BC17: No
A18: 8 | B18: =IF(Inputs!B23="","",IF(units=2,CONVERT(Inputs!B23,"ft","m"),Inputs!B23)) -> 0.199997568 | C18: =IF(Inputs!C23="","",IF(units=2,Inputs!C23*95.76,Inputs!C23*1000)) -> 51435.5688 | D18: =IF(Inputs!D23="","",IF(units=2,Inputs!D23*95.76,Inputs!D23)) -> 203.87304 | E18: =IF(Inputs!E23="","",IF(units=2,Inputs!E23*95.76,Inputs!E23)) -> 11.29355136 | F18: 0 | G18: 51437.82751 | H18: 0.3963484655 | I18: 20.61556393 | J18: 148.0986898 | K18: 3.702422224 | L18: 3.702422224 | M18: -0.3020190015 | N18: 0.3680688198 | O18: 862.970313 | P18: 1261.668325 | Q18: 0.3 | R18: 1.1 | S18: 2.2 | T18: 1.289910444 | U18: 1.005227154 | V18: 10 | W18: 14.18901489 | X18: 0.3221626023 | Y18: 31.04022605 | Z18: 0.3963944036 | AA18: 13892.02041 | AB18: 0.2553896294 | AC18: 1.059219491 | AD18: 1181.92128 | AE18: 1 | AF18: 250 | AG18: 1.533125 | AH18: 4 | AI18: 1.27 | AJ18: 0.9984700186 | AK18: 1.432866372 | AL18: 0.6 | AM18: 1 | AN18: 0.3575151624 | AO18: 4.288279663 | AP18: 8 | AQ18: 0.199997568 | AR18: 1.059219491 | AS18: 0.1159120611 | AT18: 0.1159120611 | AU18: No TLC Needed | AV18: 0.024999696 | AW18: -- | AX18: 1 | AY18: Positive Change | AZ18: <4 consecutive layers | BA18: No | BB18: 51435.5688 | BC18: No
A19: 9 | B19: =IF(Inputs!B24="","",IF(units=2,CONVERT(Inputs!B24,"ft","m"),Inputs!B24)) -> 0.224997264 | C19: =IF(Inputs!C24="","",IF(units=2,Inputs!C24*95.76,Inputs!C24*1000)) -> 40845.4704 | D19: =IF(Inputs!D24="","",IF(units=2,Inputs!D24*95.76,Inputs!D24)) -> 196.69104 | E19: =IF(Inputs!E24="","",IF(units=2,Inputs!E24*95.76,Inputs!E24)) -> -4.86997056 | F19: 0 | G19: 40844.49641 | H19: 0.4815606931 | I19: 20.48588823 | J19: 168.5845781 | K19: 4.214563202 | L19: 4.214563202 | M19: -0.2100420636 | N19: 0.5127899004 | O19: 684.0317667 | P19: 1013.906169 | Q19: 0.3 | R19: 1.1 | S19: 2.2 | T19: 1.289910444 | U19: 1.004980937 | V19: 10 | W19: 14.18901489 | X19: 0.3220836929 | Y19: 31.0478308 | Z19: 0.4815989028 | AA19: 9690.276284 | AB19: 0.2482911715 | AC19: 1.039925056 | AD19: 887.6735874 | AE19: 1 | AF19: 250 | AG19: 1.533125 | AH19: 4 | AI19: 1.27 | AJ19: 0.9982787709 | AK19: 1.35302796 | AL19: 0.6 | AM19: 1 | AN19: 0.3574466837 | AO19: 4.2891012 | AP19: 9 | AQ19: 0.224997264 | AR19: 1.039925056 | AS19: -0.01929443535 | AT19: 0.01929443535 | AU19: No TLC Needed | AV19: 0.024999696 | AW19: -- | AX19: 1 | AY19: Negative Change | AZ19: <4 consecutive layers | BA19: No | BB19: 40845.4704 | BC19: No
A20: 10 | B20: =IF(Inputs!B25="","",IF(units=2,CONVERT(Inputs!B25,"ft","m"),Inputs!B25)) -> 0.24999696 | C20: =IF(Inputs!C25="","",IF(units=2,Inputs!C25*95.76,Inputs!C25*1000)) -> 30047.5728 | D20: =IF(Inputs!D25="","",IF(units=2,Inputs!D25*95.76,Inputs!D25)) -> 259.89264 | E20: =IF(Inputs!E25="","",IF(units=2,Inputs!E25*95.76,Inputs!E25)) -> 27.60645888 | F20: 0 | G20: 30053.09409 | H20: 0.8647783127 | I20: 20.6887644 | J20: 189.2733425 | K20: 4.731776022 | L20: 4.731776022 | M20: 0.03694236899 | N20: 1.119847619 | O20: 332.1490219 | P20: 524.8861375 | Q20: 0.3 | R20: 1.1 | S20: 2.2 | T20: 1.289910444 | U20: 1.004733713 | V20: 10 | W20: 14.18901489 | X20: 0.3220044606 | Y20: 31.05547042 | Z20: 0.8650734456 | AA20: 6350.334879 | AB20: 0.3110445826 | AC20: 1.20396229 | AD20: 769.1461442 | AE20: 1 | AF20: 250 | AG20: 1.533125 | AH20: 4 | AI20: 1.27 | AJ20: 0.9980875233 | AK20: 1.254616627 | AL20: 0.6 | AM20: 1 | AN20: 0.357378205 | AO20: 4.289923052 | AP20: 10 | AQ20: 0.24999696 | AR20: 1.20396229 | AS20: 0.1640372347 | AT20: 0.1640372347 | AU20: No TLC Needed | AV20: 0.024999696 | AW20: -- | AX20: 1 | AY20: Positive Change | AZ20: 0.125 | BA20: Yes | BB20: 30047.5728 | BC20: No
A21: 11 | B21: =IF(Inputs!B26="","",IF(units=2,CONVERT(Inputs!B26,"ft","m"),Inputs!B26)) -> 0.274996656 | C21: =IF(Inputs!C26="","",IF(units=2,Inputs!C26*95.76,Inputs!C26*1000)) -> 22570.632 | D21: =IF(Inputs!D26="","",IF(units=2,Inputs!D26*95.76,Inputs!D26)) -> 277.2252 | E21: =IF(Inputs!E26="","",IF(units=2,Inputs!E26*95.76,Inputs!E26)) -> 2.03164416 | F21: 0 | G21: 22571.03833 | H21: 1.228234147 | I21: 20.65325285 | J21: 209.9265953 | K21: 5.248101065 | L21: 5.248101065 | M21: 0.08510805692 | N21: 1.286544037 | O21: 286.64033 | P21: 454.9970659 | Q21: 0.3 | R21: 1.1 | S21: 2.2 | T21: 1.289910444 | U21: 1.004485483 | V21: 10 | W21: 14.18901489 | X21: 0.321924906 | Y21: 31.06314489 | Z21: 1.228541917 | AA21: 4299.801004 | AB21: 0.3553390488 | AC21: 1.319552001 | AD21: 637.673654 | AE21: 1 | AF21: 250 | AG21: 1.533125 | AH21: 4 | AI21: 1.27 | AJ21: 0.9978962756 | AK21: 1.163500257 | AL21: 0.6 | AM21: 1 | AN21: 0.3573097263 | AO21: 4.29074522 | AP21: 11 | AQ21: 0.274996656 | AR21: 1.319552001 | AS21: 0.1155897103 | AT21: 0.1155897103 | AU21: No TLC Needed | AV21: 0.024999696 | AW21: -- | AX21: 1 | AY21: Positive Change | AZ21: 0.125 | BA21: Yes | BB21: 22570.632 | BC21: No
A22: 12 | B22: =IF(Inputs!B27="","",IF(units=2,CONVERT(Inputs!B27,"ft","m"),Inputs!B27)) -> 0.299996352 | C22: =IF(Inputs!C27="","",IF(units=2,Inputs!C27*95.76,Inputs!C27*1000)) -> 16450.6104 | D22: =IF(Inputs!D27="","",IF(units=2,Inputs!D27*95.76,Inputs!D27)) -> 345.59784 | E22: =IF(Inputs!E27="","",IF(units=2,Inputs!E27*95.76,Inputs!E27)) -> 48.07228608 | F22: 0 | G22: 16460.22486 | H22: 2.099593675 | I22: 20.78577541 | J22: 230.7123707 | K22: 5.767739131 | L22: 5.767739131 | M22: 0.1841809427 | N22: 1.695321407 | O22: 275.1780437 | P22: 333.0380005 | Q22: 0.3 | R22: 1.1 | S22: 2.2 | T22: 1.289910444 | U22: 1.004236249 | V22: 10 | W22: 14.18901489 | X22: 0.3218450297 | Y22: 31.07085422 | Z22: 2.101557595 | AA22: 2852.843505 | AB22: 0.4405811581 | AC22: 1.542611549 | AD22: 574.0677649 | AE22: 1 | AF22: 250 | AG22: 1.533125 | AH22: 4 | AI22: 1.27 | AJ22: 0.9977050279 | AK22: 1.065577822 | AL22: 0.6 | AM22: 1 | AN22: 0.3572412476 | AO22: 4.291567703 | AP22: 12 | AQ22: 0.299996352 | AR22: 1.542611549 | AS22: 0.2230595484 | AT22: 0.2230595484 | AU22: No TLC Needed | AV22: 0.024999696 | AW22: -- | AX22: 1 | AY22: Positive Change | AZ22: 0.125 | BA22: Yes | BB22: 16450.6104 | BC22: No
A23: 13 | B23: =IF(Inputs!B28="","",IF(units=2,CONVERT(Inputs!B28,"ft","m"),Inputs!B28)) -> 0.324996048 | C23: =IF(Inputs!C28="","",IF(units=2,Inputs!C28*95.76,Inputs!C28*1000)) -> 13586.4288 | D23: =IF(Inputs!D28="","",IF(units=2,Inputs!D28*95.76,Inputs!D28)) -> 422.7804 | E23: =IF(Inputs!E28="","",IF(units=2,Inputs!E28*95.76,Inputs!E28)) -> 19.2707424 | F23: 0 | G23: 13590.28295 | H23: 3.110902117 | I23: 20.94418904 | J23: 251.6565598 | K23: 6.291337491 | L23: 6.291337491 | M23: 0.2940769658 | N23: 2.264347843 | O23: 227.9489658 | P23: 227.9489658 | Q23: 0.3 | R23: 1.1 | S23: 2.2 | T23: 1.289910444 | U23: 1.003986012 | V23: 10 | W23: 14.18901489 | X23: 0.3217648321 | Y23: 31.07859841 | Z23: 3.113226219 | AA23: 2159.15799 | AB23: 0.5078826638 | AC23: 1.718577769 | AD23: 549.9355238 | AE23: 1.045295105 | AF23: 250 | AG23: 1.533125 | AH23: 4 | AI23: 1.27 | AJ23: 0.9975137802 | AK23: 1.002202308 | AL23: =IF($B23="","",IF(AK23<=0.4,0.8,IF(AND(AK23<=0.6,AK23>0.4),0.7,0.6))) -> 0.6 | AM23: 1 | AN23: 0.3571727688 | AO23: 4.292390501 | AP23: 13 | AQ23: 0.324996048 | AR23: 1.718577769 | AS23: 0.1759662205 | AT23: 0.1759662205 | AU23: No TLC Needed | AV23: 0.024999696 | AW23: -- | AX23: 1 | AY23: Positive Change | AZ23: 0.125 | BA23: Yes | BB23: 13586.4288 | BC23: No
A24: 14 | B24: =IF(Inputs!B29="","",IF(units=2,CONVERT(Inputs!B29,"ft","m"),Inputs!B29)) -> 0.349995744 | C24: =IF(Inputs!C29="","",IF(units=2,Inputs!C29*95.76,Inputs!C29*1000)) -> 10353.5712 | D24: =IF(Inputs!D29="","",IF(units=2,Inputs!D29*95.76,Inputs!D29)) -> 377.48592 | E24: =IF(Inputs!E29="","",IF(units=2,Inputs!E29*95.76,Inputs!E29)) -> 51.86668032 | F24: 0 | G24: 10363.94454 | H24: 3.642299693 | I24: 20.70991534 | J24: 272.3664751 | K24: 6.809079078 | L24: 6.809079078 | M24: 0.3623965771 | N24: 2.660458314 | O24: 173.7090653 | P24: 176.3974505 | Q24: 0.2041887907 | R24: 1.1 | S24: 2.031151192 | T24: 1.249117917 | U24: 1.003734775 | V24: 0.631479705 | W24: 0.867671875 | X24: 0.3321895799 | Y24: 1.90096181 | Z24: 3.648348301 | AA24: 1521.077276 | AB24: 0.5411387967 | AC24: 1.805193642 | AD24: 440.6336659 | AE24: 1.10457678 | AF24: 250 | AG24: 1.533125 | AH24: 4 | AI24: 1.27 | AJ24: 0.9973225326 | AK24: 0.9183549789 | AL24: 0.6 | AM24: 1 | AN24: 0.3571042901 | AO24: 4.293213614 | AP24: 14 | AQ24: 0.349995744 | AR24: 1.805193642 | AS24: 0.0866158721 | AT24: 0.0866158721 | AU24: No TLC Needed | AV24: 0.024999696 | AW24: -- | AX24: 1 | AY24: Positive Change | AZ24: 0.125 | BA24: Yes | BB24: 10353.5712 | BC24: No
A25: 15 | B25: =IF(Inputs!B30="","",IF(units=2,CONVERT(Inputs!B30,"ft","m"),Inputs!B30)) -> 0.37499544 | C25: =IF(Inputs!C30="","",IF(units=2,Inputs!C30*95.76,Inputs!C30*1000)) -> 10694.4768 | D25: =IF(Inputs!D30="","",IF(units=2,Inputs!D30*95.76,Inputs!D30)) -> 360.0576 | E25: =IF(Inputs!E30="","",IF(units=2,Inputs!E30*95.76,Inputs!E30)) -> 40.54325184 | F25: 0 | G25: 10702.58545 | H25: 3.364211402 | I25: 20.66786926 | J25: 293.0343444 | K25: 7.325769527 | L25: 7.325769527 | M25: 0.3577422498 | N25: 2.559381495 | O25: 179.4286756 | P25: 179.606369 | Q25: 0.2108439132 | R25: 1.1 | S25: 2.08345382 | T25: 1.261753815 | U25: 1.003482539 | V25: 0.7147691138 | W25: 0.9920489219 | X25: 0.3287802078 | Y25: 2.174002865 | Z25: 3.369070007 | AA25: 1459.950336 | AB25: 0.5295245065 | AC25: 1.774040736 | AD25: 424.2187203 | AE25: 1.08258055 | AF25: 250 | AG25: 1.533125 | AH25: 4 | AI25: 1.27 | AJ25: 0.9971312849 | AK25: 0.9168441099 | AL25: 0.6 | AM25: 1 | AN25: 0.3570358114 | AO25: 4.294037043 | AP25: 15 | AQ25: 0.37499544 | AR25: 1.774040736 | AS25: -0.03115290588 | AT25: 0.03115290588 | AU25: YES-TLC | AV25: 0.024999696 | AW25: <4 consecutive layers | AX25: 1 | AY25: Negative Change | AZ25: <4 consecutive layers | BA25: No | BB25: 10694.48 | BC25: No
A26: 16 | B26: =IF(Inputs!B31="","",IF(units=2,CONVERT(Inputs!B31,"ft","m"),Inputs!B31)) -> 0.399995136 | C26: =IF(Inputs!C31="","",IF(units=2,Inputs!C31*95.76,Inputs!C31*1000)) -> 8627.0184 | D26: =IF(Inputs!D31="","",IF(units=2,Inputs!D31*95.76,Inputs!D31)) -> 331.42536 | E26: =IF(Inputs!E31="","",IF(units=2,Inputs!E31*95.76,Inputs!E31)) -> 72.84041856 | F26: 0 | G26: 8641.586484 | H26: 3.835237437 | I26: 20.4905353 | J26: 313.5248797 | K26: 7.83802668 | L26: 7.83802668 | M26: 0.3897025005 | N26: 2.71117891 | O26: 144.7414881 | P26: 158.4136662 | Q26: 0.1722849934 | R26: 1.1 | S26: 1.771648401 | T26: 1.186424109 | U26: 1.003229305 | V26: 0.3555492247 | W26: 0.4640153892 | X26: 0.3495672345 | Y26: 1.01711256 | Z26: 3.845207382 | AA26: 1101.520677 | AB26: 0.5606125631 | AC26: 1.854973222 | AD26: 357.7743315 | AE26: 1.142779896 | AF26: 250 | AG26: 1.533125 | AH26: 4 | AI26: 1.27 | AJ26: 0.9969400372 | AK26: 0.8498508914 | AL26: 0.6 | AM26: 1 | AN26: 0.3569673327 | AO26: 4.294860789 | AP26: 16 | AQ26: 0.399995136 | AR26: 1.854973222 | AS26: 0.0809324865 | AT26: 0.0809324865 | AU26: No TLC Needed | AV26: 0.024999696 | AW26: -- | AX26: 1 | AY26: Positive Change | AZ26: <4 consecutive layers | BA26: No | BB26: 8627.0184 | BC26: No
A27: 17 | B27: =IF(Inputs!B32="","",IF(units=2,CONVERT(Inputs!B32,"ft","m"),Inputs!B32)) -> 0.424994832 | C27: =IF(Inputs!C32="","",IF(units=2,Inputs!C32*95.76,Inputs!C32*1000)) -> 7436.7216 | D27: =IF(Inputs!D32="","",IF(units=2,Inputs!D32*95.76,Inputs!D32)) -> 317.15712 | E27: =IF(Inputs!E32="","",IF(units=2,Inputs!E32*95.76,Inputs!E32)) -> 53.86844736 | F27: 0 | G27: 7447.495289 | H27: 4.258574295 | I27: 20.38289473 | J27: 333.9077744 | K27: 8.347592852 | L27: 8.347592852 | M27: 0.3940570946 | N27: 2.674355325 | O27: 124.7710508 | P27: 155.6758103 | Q27: 0.16809648 | R27: 1.1 | S27: 1.736913016 | T27: 1.178032316 | U27: 1.002975075 | V27: 0.330954959 | W27: 0.4288632007 | X27: 0.3519681848 | Y27: 0.9402979398 | Z27: 4.269536236 | AA27: 891.1728002 | AB27: 0.5864274176 | AC27: 1.922068769 | AD27: 317.3839737 | AE27: 1.203254629 | AF27: 250 | AG27: 1.533125 | AH27: 4 | AI27: 1.27 | AJ27: 0.9967487895 | AK27: 0.8012834959 | AL27: 0.6 | AM27: 1 | AN27: 0.356898854 | AO27: 4.29568485 | AP27: 17 | AQ27: 0.424994832 | AR27: 1.922068769 | AS27: 0.06709554631 | AT27: 0.06709554631 | AU27: No TLC Needed | AV27: 0.024999696 | AW27: -- | AX27: 1 | AY27: Positive Change | AZ27: <4 consecutive layers | BA27: No | BB27: 7436.7216 | BC27: No
A28: 18 | B28: =IF(Inputs!B33="","",IF(units=2,CONVERT(Inputs!B33,"ft","m"),Inputs!B33)) -> 0.449994528 | C28: =IF(Inputs!C33="","",IF(units=2,Inputs!C33*95.76,Inputs!C33*1000)) -> 8141.5152 | D28: =IF(Inputs!D33="","",IF(units=2,Inputs!D33*95.76,Inputs!D33)) -> 318.402 | E28: =IF(Inputs!E33="","",IF(units=2,Inputs!E33*95.76,Inputs!E33)) -> 24.17059008 | F28: 0 | G28: 8146.349318 | H28: 3.908523776 | I28: 20.42179244 | J28: 354.3295668 | K28: 8.858131454 | L28: 8.858131454 | M28: 0.3908533748 | N28: 2.59220439 | O28: 136.5958632 | P28: 157.6866615 | Q28: 0.1711578522 | R28: 1.1 | S28: 1.762306578 | T28: 1.184167199 | U28: 1.002719851 | V28: 0.3487180362 | W28: 0.454234506 | X28: 0.350055623 | Y28: 0.9961789307 | Z28: 3.915104219 | AA28: 918.6464695 | AB28: 0.571515669 | AC28: 1.882269084 | AD28: 323.3341112 | AE28: 1.165922529 | AF28: 250 | AG28: 1.533125 | AH28: 4 | AI28: 1.27 | AJ28: 0.9965575419 | AK28: 0.8172771011 | AL28: 0.6 | AM28: 1 | AN28: 0.3568303753 | AO28: 4.296509228 | AP28: 18 | AQ28: 0.449994528 | AR28: 1.882269084 | AS28: -0.03979968446 | AT28: 0.03979968446 | AU28: YES-TLC | AV28: 0.024999696 | AW28: <4 consecutive layers | AX28: 1 | AY28: Negative Change | AZ28: <4 consecutive layers | BA28: No | BB28: 8141.52 | BC28: No
A29: 19 | B29: =IF(Inputs!B34="","",IF(units=2,CONVERT(Inputs!B34,"ft","m"),Inputs!B34)) -> 0.474994224 | C29: =IF(Inputs!C34="","",IF(units=2,Inputs!C34*95.76,Inputs!C34*1000)) -> 7112.0952 | D29: =IF(Inputs!D34="","",IF(units=2,Inputs!D34*95.76,Inputs!D34)) -> 252.04032 | E29: =IF(Inputs!E34="","",IF(units=2,Inputs!E34*95.76,Inputs!E34)) -> 0.68717376 | F29: 0 | G29: 7112.232635 | H29: 3.543758099 | I29: 20.10088092 | J29: 374.4304477 | K29: 9.360647367 | L29: 9.360647367 | M29: 0.4293290885 | N29: 2.780370134 | O29: 119.3245679 | P29: 134.7637305 | Q29: 0.1404406007 | R29: 1.1 | S29: 1.509663848 | T29: 1.123130727 | U29: 1.002463635 | V29: 0.213335515 | W29: 0.2635640393 | X29: 0.3689850669 | Y29: 0.5781684251 | Z29: 3.548496965 | AA29: 758.8013637 | AB29: 0.5654681453 | AC29: 1.865745472 | AD29: 269.5527028 | AE29: 1.151699449 | AF29: 250 | AG29: 1.533125 | AH29: 4 | AI29: 1.27 | AJ29: 0.9963662942 | AK29: 0.7733593257 | AL29: 0.6 | AM29: 1 | AN29: 0.3567618965 | AO29: 4.297333922 | AP29: 19 | AQ29: 0.474994224 | AR29: 1.865745472 | AS29: -0.01652361163 | AT29: 0.01652361163 | AU29: YES-TLC | AV29: 0.024999696 | AW29: <4 consecutive layers | AX29: 1 | AY29: Negative Change | AZ29: <4 consecutive layers | BA29: No | BB29: 7112.1 | BC29: No
A30: 20 | B30: =IF(Inputs!B35="","",IF(units=2,CONVERT(Inputs!B35,"ft","m"),Inputs!B35)) -> 0.49999392 | C30: =IF(Inputs!C35="","",IF(units=2,Inputs!C35*95.76,Inputs!C35*1000)) -> 5371.1784 | D30: =IF(Inputs!D35="","",IF(units=2,Inputs!D35*95.76,Inputs!D35)) -> 222.92928 | E30: =IF(Inputs!E35="","",IF(units=2,Inputs!E35*95.76,Inputs!E35)) -> 50.10393024 | F30: 0 | G30: 5381.199186 | H30: 4.142743509 | I30: 19.85275457 | J30: 394.2832023 | K30: 9.856960196 | L30: 9.856960196 | M30: 0.4398674879 | N30: 2.786982807 | O30: 90.11599585 | P30: 128.9385685 | Q30: 0.1338605953 | R30: 1.1 | S30: 1.457562348 | T30: 1.11054342 | U30: 1.002206427 | V30: 0.1941880898 | W30: 0.2372197359 | X30: 0.3730715338 | Y30: 0.5205116773 | Z30: 4.158103231 | AA30: 544.9288745 | AB30: 0.6091856346 | AC30: 1.979846727 | AD30: 219.2027492 | AE30: 1.266786918 | AF30: 250 | AG30: 1.533125 | AH30: 4 | AI30: 1.27 | AJ30: 0.9961750465 | AK30: 0.6909186365 | AL30: 0.6 | AM30: 1 | AN30: 0.3566934178 | AO30: 4.298158932 | AP30: 20 | AQ30: 0.49999392 | AR30: 1.979846727 | AS30: 0.1141012545 | AT30: 0.1141012545 | AU30: No TLC Needed | AV30: 0.024999696 | AW30: -- | AX30: 1 | AY30: Positive Change | AZ30: <4 consecutive layers | BA30: No | BB30: 5371.1784 | BC30: No
A31: 21 | B31: =IF(Inputs!B36="","",IF(units=2,CONVERT(Inputs!B36,"ft","m"),Inputs!B36)) -> 0.524993616 | C31: =IF(Inputs!C36="","",IF(units=2,Inputs!C36*95.76,Inputs!C36*1000)) -> 5385.5424 | D31: =IF(Inputs!D36="","",IF(units=2,Inputs!D36*95.76,Inputs!D36)) -> 198.41472 | E31: =IF(Inputs!E36="","",IF(units=2,Inputs!E36*95.76,Inputs!E36)) -> 38.18295936 | F31: 0 | G31: 5393.178992 | H31: 3.678993786 | I31: 19.71960097 | J31: 414.0028033 | K31: 10.34994423 | L31: 10.34994423 | M31: 0.4538238758 | N31: 2.816041078 | O31: 90.35699067 | P31: 121.5119741 | Q31: 0.1260399911 | R31: 1.1 | S31: 1.397637812 | T31: 1.096066129 | U31: 1.00194823 | V31: 0.1746645878 | W31: 0.2105883325 | X31: 0.3779018323 | Y31: 0.4621956628 | Z31: 3.691304481 | AA31: 520.0829039 | AB31: 0.5941312675 | AC31: 1.939695452 | AD31: 206.0376188 | AE31: 1.221364499 | AF31: 250 | AG31: 1.533125 | AH31: 4 | AI31: 1.27 | AJ31: 0.9959837988 | AK31: 0.6848331564 | AL31: 0.6 | AM31: 1 | AN31: 0.3566249391 | AO31: 4.29898426 | AP31: 21 | AQ31: 0.524993616 | AR31: 1.939695452 | AS31: -0.0401512752 | AT31: 0.0401512752 | AU31: YES-TLC | AV31: 0.024999696 | AW31: <4 consecutive layers | AX31: 1 | AY31: Negative Change | AZ31: <4 consecutive layers | BA31: No | BB31: 5385.54 | BC31: No
A32: 22 | B32: =IF(Inputs!B37="","",IF(units=2,CONVERT(Inputs!B37,"ft","m"),Inputs!B37)) -> 0.549993312 | C32: =IF(Inputs!C37="","",IF(units=2,Inputs!C37*95.76,Inputs!C37*1000)) -> 5297.4432 | D32: =IF(Inputs!D37="","",IF(units=2,Inputs!D37*95.76,Inputs!D37)) -> 189.03024 | E32: =IF(Inputs!E37="","",IF(units=2,Inputs!E37*95.76,Inputs!E37)) -> 59.63473152 | F32: 0 | G32: 5309.370146 | H32: 3.560313837 | I32: 19.6578601 | J32: 433.6606634 | K32: 10.84138475 | L32: 10.84138475 | M32: 0.4578278819 | N32: 2.782161434 | O32: 88.87888912 | P32: 119.4407439 | Q32: 0.1239622158 | R32: 1.1 | S32: 1.382172935 | T32: 1.092329938 | U32: 1.001689046 | V32: 0.1699966749 | W32: 0.204261703 | X32: 0.3790963126 | Y32: 0.4484260839 | Z32: 3.575647393 | AA32: 488.7317333 | AB32: 0.5936092183 | AC32: 1.937688742 | AD32: 197.0673608 | AE32: 1.219249662 | AF32: 240.2743131 | AG32: 1.370045362 | AH32: 4 | AI32: 1.27 | AJ32: 0.9957925512 | AK32: 0.673947979 | AL32: 0.6 | AM32: 1 | AN32: 0.3565564604 | AO32: 3.84243595 | AP32: 22 | AQ32: 0.549993312 | AR32: 1.937688742 | AS32: -0.002006709308 | AT32: 0.002006709308 | AU32: No TLC Needed | AV32: 0.024999696 | AW32: -- | AX32: 1 | AY32: Negative Change | AZ32: <4 consecutive layers | BA32: No | BB32: 5297.4432 | BC32: No
A33: 23 | B33: =IF(Inputs!B38="","",IF(units=2,CONVERT(Inputs!B38,"ft","m"),Inputs!B38)) -> 0.574993008 | C33: =IF(Inputs!C38="","",IF(units=2,Inputs!C38*95.76,Inputs!C38*1000)) -> 4791.8304 | D33: =IF(Inputs!D38="","",IF(units=2,Inputs!D38*95.76,Inputs!D38)) -> 166.81392 | E33: =IF(Inputs!E38="","",IF(units=2,Inputs!E38*95.76,Inputs!E38)) -> 57.18480768 | F33: 0 | G33: 4803.267362 | H33: 3.472925978 | I33: 19.47562668 | J33: 453.1362901 | K33: 11.3282695 | L33: 11.3282695 | M33: 0.4701801542 | N33: 2.801569206 | O33: 80.3958715 | P33: 113.2145874 | Q33: 0.1179630831 | R33: 1.1 | S33: 1.3388225 | T33: 1.081856818 | U33: 1.001428876 | V33: 0.1575904796 | W33: 0.1875393683 | X33: 0.3826668098 | Y33: 0.4118216568 | Z33: 3.4894644 | AA33: 423.0071586 | AB33: 0.6001568404 | AC33: 1.954243501 | AD33: 176.1471995 | AE33: 1.237123609 | AF33: 217.9158591 | AG33: 1.042386366 | AH33: 4 | AI33: 1.27 | AJ33: 0.9956013035 | AK33: 0.6409422432 | AL33: 0.6 | AM33: 1 | AN33: 0.3564879817 | AO33: 2.924043501 | AP33: 23 | AQ33: 0.574993008 | AR33: 1.954243501 | AS33: 0.01655475903 | AT33: 0.01655475903 | AU33: No TLC Needed | AV33: 0.024999696 | AW33: -- | AX33: 1 | AY33: Positive Change | AZ33: <4 consecutive layers | BA33: No | BB33: 4791.8304 | BC33: No
A34: 24 | B34: =IF(Inputs!B39="","",IF(units=2,CONVERT(Inputs!B39,"ft","m"),Inputs!B39)) -> 0.599992704 | C34: =IF(Inputs!C39="","",IF(units=2,Inputs!C39*95.76,Inputs!C39*1000)) -> 4833.0072 | D34: =IF(Inputs!D39="","",IF(units=2,Inputs!D39*95.76,Inputs!D39)) -> 170.26128 | E34: =IF(Inputs!E39="","",IF(units=2,Inputs!E39*95.76,Inputs!E39)) -> 153.1799942 | F34: 0 | G34: 4863.643199 | H34: 3.500694295 | I34: 19.50394637 | J34: 472.6402364 | K34: 11.81586223 | L34: 11.81586223 | M34: 0.464789113 | N34: 2.714969747 | O34: 81.08672332 | P34: 115.9017868 | Q34: 0.1205084024 | R34: 1.1 | S34: 1.356964109 | T34: 1.086239686 | U34: 1.001167721 | V34: 0.1626690281 | W34: 0.1943673094 | X34: 0.3810233977 | Y34: 0.4269266115 | Z34: 3.531518832 | AA34: 410.6198298 | AB34: 0.6043170906 | AC34: 1.964531275 | AD34: 175.4560593 | AE34: 1.248737696 | AF34: 219.0985953 | AG34: 1.058141597 | AH34: 4 | AI34: 1.27 | AJ34: 0.9954100558 | AK34: 0.6373625148 | AL34: 0.6 | AM34: 1 | AN34: 0.356419503 | AO34: 2.968809473 | AP34: 24 | AQ34: 0.599992704 | AR34: 1.964531275 | AS34: 0.01028777399 | AT34: 0.01028777399 | AU34: No TLC Needed | AV34: 0.024999696 | AW34: -- | AX34: 1 | AY34: Positive Change | AZ34: <4 consecutive layers | BA34: No | BB34: 4833.0072 | BC34: No
A35: 25 | B35: =IF(Inputs!B40="","",IF(units=2,CONVERT(Inputs!B40,"ft","m"),Inputs!B40)) -> 0.6249924 | C35: =IF(Inputs!C40="","",IF(units=2,Inputs!C40*95.76,Inputs!C40*1000)) -> 5327.1288 | D35: =IF(Inputs!D40="","",IF(units=2,Inputs!D40*95.76,Inputs!D40)) -> 163.94112 | E35: =IF(Inputs!E40="","",IF(units=2,Inputs!E40*95.76,Inputs!E40)) -> 117.267696 | F35: 0 | G35: 5350.582339 | H35: 3.06398649 | I35: 19.49702033 | J35: 492.1372568 | K35: 12.30328181 | L35: 12.30328181 | M35: 0.4730147385 | N35: 2.711050042 | O35: 89.37694508 | P35: 111.8202103 | Q35: 0.1166674225 | R35: 1.1 | S35: 1.3297416 | T35: 1.079662945 | U35: 1.000905584 | V35: 0.1551034108 | W35: 0.1842053457 | X35: 0.3832440212 | Y35: 0.4047118864 | Z35: 3.084600227 | AA35: 433.8906594 | AB35: 0.5804339041 | AC35: 1.901214453 | AD35: 179.1370656 | AE35: 1.18311612 | AF35: 211.9399501 | AG35: 0.965363129 | AH35: 4 | AI35: 1.27 | AJ35: 0.9952188081 | AK35: 0.6578172083 | AL35: 0.6 | AM35: 1 | AN35: 0.3563510243 | AO35: 2.709023023 | AP35: 25 | AQ35: 0.6249924 | AR35: 1.901214453 | AS35: -0.06331682251 | AT35: 0.06331682251 | AU35: YES-TLC | AV35: 0.024999696 | AW35: <4 consecutive layers | AX35: 1 | AY35: Negative Change | AZ35: <4 consecutive layers | BA35: No | BB35: 5327.13 | BC35: No
A36: 26 | B36: =IF(Inputs!B41="","",IF(units=2,CONVERT(Inputs!B41,"ft","m"),Inputs!B41)) -> 0.649992096 | C36: =IF(Inputs!C41="","",IF(units=2,Inputs!C41*95.76,Inputs!C41*1000)) -> 5860.512 | D36: =IF(Inputs!D41="","",IF(units=2,Inputs!D41*95.76,Inputs!D41)) -> 175.7196 | E36: =IF(Inputs!E41="","",IF(units=2,Inputs!E41*95.76,Inputs!E41)) -> 55.00377792 | F36: 0 | G36: 5871.512756 | H36: 2.992748331 | I36: 19.61245587 | J36: 511.7497126 | K36: 12.79358724 | L36: 12.79358724 | M36: 0.463706725 | N36: 2.610624992 | O36: 98.32588601 | P36: 116.4469171 | Q36: 0.1210327379 | R36: 1.1 | S36: 1.360748756 | T36: 1.087154027 | U36: 1.000642466 | V36: 0.1637482278 | W36: 0.1958214998 | X36: 0.3805032087 | Y36: 0.4303465097 | Z36: 3.004925812 | AA36: 457.9418623 | AB36: 0.5728998399 | AC36: 1.880804975 | AD36: 189.2191395 | AE36: 1.164634339 | AF36: 220.3711076 | AG36: 1.075283746 | AH36: 4 | AI36: 1.27 | AJ36: 0.9950275605 | AK36: 0.6779450806 | AL36: 0.6 | AM36: 1 | AN36: 0.3562825455 | AO36: 3.018064622 | AP36: 26 | AQ36: 0.649992096 | AR36: 1.880804975 | AS36: -0.02040947806 | AT36: 0.02040947806 | AU36: YES-TLC | AV36: 0.024999696 | AW36: <4 consecutive layers | AX36: 1 | AY36: Negative Change | AZ36: <4 consecutive layers | BA36: No | BB36: 5860.51 | BC36: No
A37: 27 | B37: =IF(Inputs!B42="","",IF(units=2,CONVERT(Inputs!B42,"ft","m"),Inputs!B42)) -> 0.674991792 | C37: =IF(Inputs!C42="","",IF(units=2,Inputs!C42*95.76,Inputs!C42*1000)) -> 5269.6728 | D37: =IF(Inputs!D42="","",IF(units=2,Inputs!D42*95.76,Inputs!D42)) -> 187.88112 | E37: =IF(Inputs!E42="","",IF(units=2,Inputs!E42*95.76,Inputs!E42)) -> 50.07405312 | F37: 0 | G37: 5279.687611 | H37: 3.558565087 | I37: 19.64869629 | J37: 531.3984089 | K37: 13.28479868 | L37: 13.28479868 | M37: 0.444756604 | N37: 2.468517238 | O37: 88.4129658 | P37: 126.2999806 | Q37: 0.1310128371 | R37: 1.1 | S37: 1.435455679 | T37: 1.105202624 | U37: 1.000378369 | V37: 0.1867010613 | W37: 0.2269767532 | X37: 0.3741905861 | Y37: 0.4989464413 | Z37: 3.57433888 | AA37: 396.4232308 | AB37: 0.6093877873 | AC37: 1.975937661 | AD37: 179.2659744 | AE37: 1.262091428 | AF37: 226.2500496 | AG37: 1.15708257 | AH37: 4 | AI37: 1.27 | AJ37: 0.9948363128 | AK37: 0.6442144896 | AL37: 0.6 | AM37: 1 | AN37: 0.3562140668 | AO37: 3.248278711 | AP37: 27 | AQ37: 0.674991792 | AR37: 1.975937661 | AS37: 0.09513268629 | AT37: 0.09513268629 | AU37: No TLC Needed | AV37: 0.024999696 | AW37: -- | AX37: 1 | AY37: Positive Change | AZ37: <4 consecutive layers | BA37: No | BB37: 5269.6728 | BC37: No
A38: 28 | B38: =IF(Inputs!B43="","",IF(units=2,CONVERT(Inputs!B43,"ft","m"),Inputs!B43)) -> 0.699991488 | C38: =IF(Inputs!C43="","",IF(units=2,Inputs!C43*95.76,Inputs!C43*1000)) -> 4820.5584 | D38: =IF(Inputs!D43="","",IF(units=2,Inputs!D43*95.76,Inputs!D43)) -> 185.2956 | E38: =IF(Inputs!E43="","",IF(units=2,Inputs!E43*95.76,Inputs!E43)) -> 50.31307008 | F38: 0 | G38: 4830.621014 | H38: 3.835854634 | I38: 19.59867174 | J38: 550.9970807 | K38: 13.77475951 | L38: 13.77475951 | M38: 0.4456379783 | N38: 2.433348958 | O38: 80.87786114 | P38: 125.8285774 | Q38: 0.1305123051 | R38: 1.1 | S38: 1.431601952 | T38: 1.104271595 | U38: 1.000113295 | V38: 0.1854313929 | W38: 0.225243282 | X38: 0.3744068379 | Y38: 0.4952671109 | Z38: 3.854877062 | AA38: 349.6864137 | AB38: 0.6301189277 | AC38: 2.029715518 | AD38: 167.1582318 | AE38: 1.332436586 | AF38: 222.7277437 | AG38: 1.10755695 | AH38: 4 | AI38: 1.27 | AJ38: 0.9946450651 | AK38: 0.6152941844 | AL38: 0.6 | AM38: 1 | AN38: 0.3561455881 | AO38: 3.109843242 | AP38: 28 | AQ38: 0.699991488 | AR38: 2.029715518 | AS38: 0.05377785693 | AT38: 0.05377785693 | AU38: No TLC Needed | AV38: 0.024999696 | AW38: -- | AX38: 1 | AY38: Positive Change | AZ38: <4 consecutive layers | BA38: No | BB38: 4820.5584 | BC38: No
A39: 29 | B39: =IF(Inputs!B44="","",IF(units=2,CONVERT(Inputs!B44,"ft","m"),Inputs!B44)) -> 0.724991184 | C39: =IF(Inputs!C44="","",IF(units=2,Inputs!C44*95.76,Inputs!C44*1000)) -> 4732.4592 | D39: =IF(Inputs!D44="","",IF(units=2,Inputs!D44*95.76,Inputs!D44)) -> 179.0712 | E39: =IF(Inputs!E44="","",IF(units=2,Inputs!E44*95.76,Inputs!E44)) -> 26.889408 | F39: 0 | G39: 4737.837082 | H39: 3.779598093 | I39: 19.55193019 | J39: 570.5490109 | K39: 14.26355182 | L39: 14.26355182 | M39: 0.4476987488 | N39: 2.405528617 | O39: 79.39975959 | P39: 124.7314285 | Q39: 0.1293567877 | R39: 1.1 | S39: 1.422743954 | T39: 1.102131573 | U39: 0.9998472443 | V39: 0.182551287 | W39: 0.2213150908 | X39: 0.3750340349 | Y39: 0.4867592539 | Z39: 3.795332228 | AA39: 331.1639056 | AB39: 0.6322324435 | AC39: 2.034629732 | AD39: 161.0248834 | AE39: 1.339520033 | AF39: 215.6960571 | AG39: 1.01327486 | AH39: 4 | AI39: 1.27 | AJ39: 0.9944538174 | AK39: 0.6054915585 | AL39: 0.6 | AM39: 1 | AN39: 0.3560771094 | AO39: 2.845661328 | AP39: 29 | AQ39: 0.724991184 | AR39: 2.034629732 | AS39: 0.004914213935 | AT39: 0.004914213935 | AU39: No TLC Needed | AV39: 0.024999696 | AW39: -- | AX39: 1 | AY39: Negative Change | AZ39: <4 consecutive layers | BA39: No | BB39: 4732.4592 | BC39: No
A40: 30 | B40: =IF(Inputs!B45="","",IF(units=2,CONVERT(Inputs!B45,"ft","m"),Inputs!B45)) -> 0.74999088 | C40: =IF(Inputs!C45="","",IF(units=2,Inputs!C45*95.76,Inputs!C45*1000)) -> 4112.892 | D40: =IF(Inputs!D45="","",IF(units=2,Inputs!D45*95.76,Inputs!D45)) -> 198.702 | E40: =IF(Inputs!E45="","",IF(units=2,Inputs!E45*95.76,Inputs!E45)) -> 35.49401856 | F40: 0 | G40: 4119.990804 | H40: 4.822874843 | I40: 19.61801138 | J40: 590.1670222 | K40: 14.75399615 | L40: 14.75399615 | M40: 0.4480632968 | N40: 2.371059647 | O40: 69.00484974 | P40: 124.5380796 | Q40: 0.1291545046 | R40: 1.1 | S40: 1.421198971 | T40: 1.101758317 | U40: 0.9995802199 | V40: 0.1820543176 | W40: 0.2206378444 | X40: 0.3750608972 | Y40: 0.485399355 | Z40: 4.84859221 | AA40: 278.2457557 | AB40: 0.6817884615 | AC40: 2.164062809 | AD40: 150.711684 | AE40: 1.573033796 | AF40: 237.0745724 | AG40: 1.319189931 | AH40: 4 | AI40: 1.27 | AJ40: 0.9942625698 | AK40: 0.5631749112 | AL40: 0.7 | AM40: 1 | AN40: 0.3560086307 | AO40: 3.705499861 | AP40: 30 | AQ40: 0.74999088 | AR40: 2.164062809 | AS40: 0.1294330775 | AT40: 0.1294330775 | AU40: No TLC Needed | AV40: 0.024999696 | AW40: -- | AX40: 1 | AY40: Positive Change | AZ40: <4 consecutive layers | BA40: No | BB40: 4112.892 | BC40: No
A41: 31 | B41: =IF(Inputs!B46="","",IF(units=2,CONVERT(Inputs!B46,"ft","m"),Inputs!B46)) -> 0.774990576 | C41: =IF(Inputs!C46="","",IF(units=2,Inputs!C46*95.76,Inputs!C46*1000)) -> 4072.6728 | D41: =IF(Inputs!D46="","",IF(units=2,Inputs!D46*95.76,Inputs!D46)) -> 176.00688 | E41: =IF(Inputs!E46="","",IF(units=2,Inputs!E46*95.76,Inputs!E46)) -> 42.36575616 | F41: 0 | G41: 4081.145951 | H41: 4.312682813 | I41: 19.47486512 | J41: 609.6418874 | K41: 15.24086185 | L41: 15.24086185 | M41: 0.4543783333 | N41: 2.364940804 | O41: 68.33006425 | P41: 121.2235942 | Q41: 0.1257481246 | R41: 1.1 | S41: 1.39545269 | T41: 1.095538221 | U41: 0.9993122232 | V41: 0.1739965774 | W41: 0.2096818909 | X41: 0.3770892382 | Y41: 0.4614201621 | Z41: 4.337888662 | AA41: 266.7765858 | AB41: 0.6692484706 | AC41: 2.130518872 | AD41: 142.5726045 | AE41: 1.503115442 | AF41: 214.3030834 | AG41: 0.9953100007 | AH41: 4 | AI41: 1.27 | AJ41: 0.9940713221 | AK41: 0.5560168117 | AL41: 0.7 | AM41: 1 | AN41: 0.355940152 | AO41: 2.796284699 | AP41: 31 | AQ41: 0.774990576 | AR41: 2.130518872 | AS41: -0.03354393796 | AT41: 0.03354393796 | AU41: YES-TLC | AV41: 0.024999696 | AW41: <4 consecutive layers | AX41: 1 | AY41: Negative Change | AZ41: <4 consecutive layers | BA41: No | BB41: 4072.67 | BC41: No
A42: 32 | B42: =IF(Inputs!B47="","",IF(units=2,CONVERT(Inputs!B47,"ft","m"),Inputs!B47)) -> 0.799990272 | C42: =IF(Inputs!C47="","",IF(units=2,Inputs!C47*95.76,Inputs!C47*1000)) -> 4097.5704 | D42: =IF(Inputs!D47="","",IF(units=2,Inputs!D47*95.76,Inputs!D47)) -> 152.7372 | E42: =IF(Inputs!E47="","",IF(units=2,Inputs!E47*95.76,Inputs!E47)) -> 21.54140352 | F42: 0 | G42: 4101.878681 | H42: 3.723591356 | I42: 19.31368839 | J42: 628.9555758 | K42: 15.72369819 | L42: 15.72369819 | M42: 0.462067404 | N42: 2.365306061 | O42: 68.7477886 | P42: 117.2761296 | Q42: 0.1218356117 | R42: 1.1 | S42: 1.366574005 | T42: 1.08856136 | U42: 0.9990432559 | V42: 0.1654233501 | W42: 0.1980808137 | X42: 0.3794039518 | Y42: 0.4360085057 | Z42: 3.741865169 | AA42: 259.8723871 | AB42: 0.6504493176 | AC42: 2.080551905 | AD42: 135.4930555 | AE42: 1.411580799 | AF42: 191.2593956 | AG42: 0.7306557705 | AH42: 4 | AI42: 1.27 | AJ42: 0.9938800744 | AK42: 0.5533037101 | AL42: 0.7 | AM42: 1 | AN42: 0.3558716733 | AO42: 2.053143943 | AP42: 32 | AQ42: 0.799990272 | AR42: 2.080551905 | AS42: -0.04996696654 | AT42: 0.04996696654 | AU42: YES-TLC | AV42: 0.024999696 | AW42: <4 consecutive layers | AX42: 1 | AY42: Negative Change | AZ42: <4 consecutive layers | BA42: No | BB42: 4097.57 | BC42: No
A43: 33 | B43: =IF(Inputs!B48="","",IF(units=2,CONVERT(Inputs!B48,"ft","m"),Inputs!B48)) -> 0.824989968 | C43: =IF(Inputs!C48="","",IF(units=2,Inputs!C48*95.76,Inputs!C48*1000)) -> 4359.9528 | D43: =IF(Inputs!D48="","",IF(units=2,Inputs!D48*95.76,Inputs!D48)) -> 136.84104 | E43: =IF(Inputs!E48="","",IF(units=2,Inputs!E48*95.76,Inputs!E48)) -> 19.80853056 | F43: 0 | G43: 4363.914506 | H43: 3.135740625 | I43: 19.21101423 | J43: 648.16659 | K43: 16.20396771 | L43: 16.20396771 | M43: 0.4686603466 | N43: 2.361012426 | O43: 73.14996062 | P43: 113.9674531 | Q43: 0.1186696946 | R43: 1.1 | S43: 1.343819517 | T43: 1.083064057 | U43: 0.9987733198 | V43: 0.1589742597 | W43: 0.1893972374 | X43: 0.3812266574 | Y43: 0.4170071967 | Z43: 3.150298171 | AA43: 268.3114788 | AB43: 0.6235277834 | AC43: 2.009269677 | AD43: 134.564813 | AE43: 1.304183985 | AF43: 175.497274 | AG43: 0.5826828555 | AH43: 4 | AI43: 1.27 | AJ43: 0.9936888267 | AK43: 0.5657447302 | AL43: 0.7 | AM43: 1 | AN43: 0.3558031945 | AO43: 1.637654929 | AP43: 33 | AQ43: 0.824989968 | AR43: 2.009269677 | AS43: -0.07128222763 | AT43: 0.07128222763 | AU43: YES-TLC | AV43: 0.024999696 | AW43: <4 consecutive layers | AX43: 1 | AY43: Negative Change | AZ43: <4 consecutive layers | BA43: No | BB43: 4359.95 | BC43: No
A44: 34 | B44: =IF(Inputs!B49="","",IF(units=2,CONVERT(Inputs!B49,"ft","m"),Inputs!B49)) -> 0.849989664 | C44: =IF(Inputs!C49="","",IF(units=2,Inputs!C49*95.76,Inputs!C49*1000)) -> 3906.0504 | D44: =IF(Inputs!D49="","",IF(units=2,Inputs!D49*95.76,Inputs!D49)) -> 139.13928 | E44: =IF(Inputs!E49="","",IF(units=2,Inputs!E49*95.76,Inputs!E49)) -> 11.950848 | F44: 0 | G44: 3908.44057 | H44: 3.559969188 | I44: 19.18790647 | J44: 667.3544964 | K44: 16.68365954 | L44: 16.68365954 | M44: 0.4682890987 | N44: 2.327391933 | O44: 65.53452435 | P44: 114.1519164 | Q44: 0.1188435891 | R44: 1.1 | S44: 1.34505398 | T44: 1.083362294 | U44: 0.9985024164 | V44: 0.1593178302 | W44: 0.189858823 | X44: 0.3810183364 | Y44: 0.418136911 | Z44: 3.57742762 | AA44: 233.2675815 | AB44: 0.6538095129 | AC44: 2.088127997 | AD44: 124.9223089 | AE44: 1.424541417 | AF44: 177.9570029 | AG44: 0.6041169402 | AH44: 4 | AI44: 1.27 | AJ44: 0.9934975791 | AK44: 0.5322166472 | AL44: 0.7 | AM44: 1 | AN44: 0.3557347158 | AO44: 1.698223179 | AP44: 34 | AQ44: 0.849989664 | AR44: 2.088127997 | AS44: 0.07885831993 | AT44: 0.07885831993 | AU44: No TLC Needed | AV44: 0.024999696 | AW44: -- | AX44: 1 | AY44: Positive Change | AZ44: <4 consecutive layers | BA44: No | BB44: 3906.0504 | BC44: No
A45: 35 | B45: =IF(Inputs!B50="","",IF(units=2,CONVERT(Inputs!B50,"ft","m"),Inputs!B50)) -> 0.87498936 | C45: =IF(Inputs!C50="","",IF(units=2,Inputs!C50*95.76,Inputs!C50*1000)) -> 4326.4368 | D45: =IF(Inputs!D50="","",IF(units=2,Inputs!D50*95.76,Inputs!D50)) -> 141.7248 | E45: =IF(Inputs!E50="","",IF(units=2,Inputs!E50*95.76,Inputs!E50)) -> 17.95614912 | F45: 0 | G45: 4330.02803 | H45: 3.273068881 | I45: 19.24836349 | J45: 686.6028599 | K45: 17.16486277 | L45: 17.16486277 | M45: 0.4618708511 | N45: 2.270584434 | O45: 72.58763938 | P45: 117.3758422 | Q45: 0.1219325911 | R45: 1.1 | S45: 1.367280066 | T45: 1.088731939 | U45: 0.9982305477 | V45: 0.1656275653 | W45: 0.1983564224 | X45: 0.3790359165 | Y45: 0.4369706355 | Z45: 3.288833986 | AA45: 251.2611504 | AB45: 0.6357425595 | AC45: 2.04008493 | AD45: 131.5997526 | AE45: 1.347520219 | AF45: 177.3333275 | AG45: 0.5986257056 | AH45: 4 | AI45: 1.27 | AJ45: 0.9933063314 | AK45: 0.5556482981 | AL45: 0.7 | AM45: 1 | AN45: 0.3556662371 | AO45: 1.683110858 | AP45: 35 | AQ45: 0.87498936 | AR45: 2.04008493 | AS45: -0.04804306735 | AT45: 0.04804306735 | AU45: YES-TLC | AV45: 0.024999696 | AW45: <4 consecutive layers | AX45: 1 | AY45: Negative Change | AZ45: 0.125 | BA45: Yes | BB45: 4326.44 | BC45: No
A46: 36 | B46: =IF(Inputs!B51="","",IF(units=2,CONVERT(Inputs!B51,"ft","m"),Inputs!B51)) -> 0.899989056 | C46: =IF(Inputs!C51="","",IF(units=2,Inputs!C51*95.76,Inputs!C51*1000)) -> 4692.24 | D46: =IF(Inputs!D51="","",IF(units=2,Inputs!D51*95.76,Inputs!D51)) -> 159.24888 | E46: =IF(Inputs!E51="","",IF(units=2,Inputs!E51*95.76,Inputs!E51)) -> 13.86298368 | F46: 0 | G46: 4695.012597 | H46: 3.391873328 | I46: 19.41349903 | J46: 706.016359 | K46: 17.65019435 | L46: 17.65019435 | M46: 0.4476370459 | N46: 2.186461325 | O46: 78.72497409 | P46: 124.7641763 | Q46: 0.1293910886 | R46: 1.1 | S46: 1.423006106 | T46: 1.102194907 | U46: 0.9979577153 | V46: 0.1826357689 | W46: 0.2214302356 | X46: 0.3743037797 | Y46: 0.4879346103 | Z46: 3.406692065 | AA46: 265.0034504 | AB46: 0.6363934023 | AC46: 2.041164589 | AD46: 140.3738063 | AE46: 1.349120835 | AF46: 189.3812267 | AG46: 0.7116750519 | AH46: 4 | AI46: 1.27 | AJ46: 0.9931150837 | AK46: 0.573515043 | AL46: 0.7 | AM46: 1 | AN46: 0.3555977584 | AO46: 2.001348532 | AP46: 36 | AQ46: 0.899989056 | AR46: 2.041164589 | AS46: 0.001079659472 | AT46: 0.001079659472 | AU46: No TLC Needed | AV46: 0.024999696 | AW46: -- | AX46: 1 | AY46: Negative Change | AZ46: 0.125 | BA46: Yes | BB46: 4692.24 | BC46: No
A47: 37 | B47: =IF(Inputs!B52="","",IF(units=2,CONVERT(Inputs!B52,"ft","m"),Inputs!B52)) -> 0.924988752 | C47: =IF(Inputs!C52="","",IF(units=2,Inputs!C52*95.76,Inputs!C52*1000)) -> 4986.2232 | D47: =IF(Inputs!D52="","",IF(units=2,Inputs!D52*95.76,Inputs!D52)) -> 170.4528 | E47: =IF(Inputs!E52="","",IF(units=2,Inputs!E52*95.76,Inputs!E52)) -> 9.47104704 | F47: 0.1038756571 | G47: 4988.117409 | H47: 3.417176983 | I47: 19.51492938 | J47: 725.5312884 | K47: 18.13806165 | L47: 18.03418599 | M47: 0.4382504227 | N47: 2.130695122 | O47: 83.65733472 | P47: 129.8201365 | Q47: 0.1348299278 | R47: 1.1 | S47: 1.465153212 | T47: 1.112377312 | U47: 0.997683921 | V47: 0.1968421594 | W47: 0.2408590274 | X47: 0.3729113933 | Y47: 0.5278523611 | Z47: 3.430955695 | AA47: 275.5865638 | AB47: 0.6342927508 | AC47: 2.035153732 | AD47: 146.5941186 | AE47: 1.340282204 | AF47: 196.4774883 | AG47: 0.7853770764 | AH47: 0.7853770764 | AI47: 1.27 | AJ47: 0.992923836 | AK47: 0.5868016869 | AL47: 0.7 | AM47: 1 | AN47: 0.3575771036 | AO47: 2.196385251 | AP47: 37 | AQ47: 0.924988752 | AR47: 2.035153732 | AS47: -0.006010857403 | AT47: 0.006010857403 | AU47: No TLC Needed | AV47: 0.024999696 | AW47: -- | AX47: 1 | AY47: Negative Change | AZ47: 0.125 | BA47: Yes | BB47: 4986.2232 | BC47: No
A48: 38 | B48: =IF(Inputs!B53="","",IF(units=2,CONVERT(Inputs!B53,"ft","m"),Inputs!B53)) -> 0.949988448 | C48: =IF(Inputs!C53="","",IF(units=2,Inputs!C53*95.76,Inputs!C53*1000)) -> 6086.5056 | D48: =IF(Inputs!D53="","",IF(units=2,Inputs!D53*95.76,Inputs!D53)) -> 185.00832 | E48: =IF(Inputs!E53="","",IF(units=2,Inputs!E53*95.76,Inputs!E53)) -> 14.99831424 | F48: 0.3491226749 | G48: 6089.505263 | H48: 3.03815026 | I48: 19.68568816 | J48: 745.2169765 | K48: 18.63019787 | L48: 18.28107519 | M48: 0.4254481721 | N48: 2.072106796 | O48: 102.1175378 | P48: 136.9569455 | Q48: 0.1430297647 | R48: 1.1 | S48: 1.530488596 | T48: 1.12816182 | U48: 0.9974091665 | V48: 0.221642469 | W48: 0.2750534285 | X48: 0.3724673095 | Y48: 0.5950655625 | Z48: 3.048980207 | AA48: 332.0852303 | AB48: 0.6021439352 | AC48: 1.950453874 | AD48: 168.0188802 | AE48: 1.232944927 | AF48: 207.158026 | AG48: 0.9067767217 | AH48: 0.9067767217 | AI48: 1.27 | AJ48: 0.9927325884 | AK48: 0.638344741 | AL48: 0.6 | AM48: 1 | AN48: 0.3622492105 | AO48: 2.503184811 | AP48: 38 | AQ48: 0.949988448 | AR48: 1.950453874 | AS48: -0.08469985804 | AT48: 0.08469985804 | AU48: YES-TLC | AV48: 0.024999696 | AW48: <4 consecutive layers | AX48: 1 | AY48: Negative Change | AZ48: 0.125 | BA48: Yes | BB48: 6086.51 | BC48: No
A49: 39 | B49: =IF(Inputs!B54="","",IF(units=2,CONVERT(Inputs!B54,"ft","m"),Inputs!B54)) -> 0.974988144 | C49: =IF(Inputs!C54="","",IF(units=2,Inputs!C54*95.76,Inputs!C54*1000)) -> 6880.356 | D49: =IF(Inputs!D54="","",IF(units=2,Inputs!D54*95.76,Inputs!D54)) -> 186.92352 | E49: =IF(Inputs!E54="","",IF(units=2,Inputs!E54*95.76,Inputs!E54)) -> 23.39378496 | F49: 0.5943696926 | G49: 6885.034757 | H49: 2.714924857 | I49: 19.74461485 | J49: 764.9615914 | K49: 19.12380724 | L49: 18.52943754 | M49: 0.4276099631 | N49: 2.06782548 | O49: 115.4365181 | P49: 135.7320421 | Q49: 0.1415758614 | R49: 1.1 | S49: 1.518775176 | T49: 1.125331951 | U49: 0.9971334536 | V49: 0.2169210772 | W49: 0.2685190411 | X49: 0.3780552124 | Y49: 0.5737814746 | Z49: 2.724343307 | AA49: 370.5407104 | AB49: 0.5772035857 | AC49: 1.884671966 | AD49: 180.6648835 | AE49: 1.16804891 | AF49: 211.0254202 | AG49: 0.9539513746 | AH49: 0.9539513746 | AI49: 1.27 | AJ49: 0.9925413407 | AK49: 0.6693199754 | AL49: 0.6 | AM49: 1 | AN49: 0.3667922595 | AO49: 2.600794727 | AP49: 39 | AQ49: 0.974988144 | AR49: 1.884671966 | AS49: -0.0657819076 | AT49: 0.0657819076 | AU49: YES-TLC | AV49: 0.024999696 | AW49: <4 consecutive layers | AX49: 1 | AY49: Negative Change | AZ49: 0.125 | BA49: Yes | BB49: 6880.36 | BC49: No
A50: 40 | B50: =IF(Inputs!B55="","",IF(units=2,CONVERT(Inputs!B55,"ft","m"),Inputs!B55)) -> 0.99998784 | C50: =IF(Inputs!C55="","",IF(units=2,Inputs!C55*95.76,Inputs!C55*1000)) -> 6920.5752 | D50: =IF(Inputs!D55="","",IF(units=2,Inputs!D55*95.76,Inputs!D55)) -> 206.8416 | E50: =IF(Inputs!E55="","",IF(units=2,Inputs!E55*95.76,Inputs!E55)) -> 19.50975936 | F50: 0.8396167104 | G50: 6924.477152 | H50: 2.987107842 | I50: 19.86327896 | J50: 784.8248703 | K50: 19.62038317 | L50: 18.78076646 | M50: 0.4094174803 | N50: 1.993861313 | O50: 116.1113036 | P50: 146.2957315 | Q50: 0.1548196897 | R50: 1.1 | S50: 1.626880276 | T50: 1.151449283 | U50: 0.9968567841 | V50: 0.2658803318 | W50: 0.336762489 | X50: 0.3738975332 | Y50: 0.7111048032 | Z50: 2.997289585 | AA50: 367.6557495 | AB50: 0.5918499082 | AC50: 1.922788243 | AD50: 184.7881629 | AE50: 1.203973659 | AF50: 222.4800805 | AG50: 1.10413297 | AH50: 1.10413297 | AI50: 1.27 | AJ50: 0.992350093 | AK50: 0.66900447 | AL50: 0.6 | AM50: 1 | AN50: 0.3712090225 | AO50: 2.974423849 | AP50: 40 | AQ50: 0.99998784 | AR50: 1.922788243 | AS50: 0.03811627646 | AT50: 0.03811627646 | AU50: No TLC Needed | AV50: 0.024999696 | AW50: -- | AX50: 1 | AY50: Positive Change | AZ50: <4 consecutive layers | BA50: No | BB50: 6920.5752 | BC50: No
A51: 41 | B51: =IF(Inputs!B56="","",IF(units=2,CONVERT(Inputs!B56,"ft","m"),Inputs!B56)) -> 1.024987536 | C51: =IF(Inputs!C56="","",IF(units=2,Inputs!C56*95.76,Inputs!C56*1000)) -> 7374.4776 | D51: =IF(Inputs!D56="","",IF(units=2,Inputs!D56*95.76,Inputs!D56)) -> 193.4352 | E51: =IF(Inputs!E56="","",IF(units=2,Inputs!E56*95.76,Inputs!E56)) -> 17.08971264 | F51: 1.084863728 | G51: 7377.895543 | H51: 2.621820801 | I51: 19.81051541 | J51: 804.6353857 | K51: 20.11564003 | L51: 19.03077631 | M51: 0.4227396215 | N51: 2.027771072 | O51: 123.7267399 | P51: 138.5031105 | Q51: 0.1448940835 | R51: 1.1 | S51: 1.54557624 | T51: 1.131806875 | U51: 0.9965791597 | V51: 0.2279162169 | W51: 0.2837528554 | X51: 0.3847576793 | Y51: 0.5923630097 | Z51: 2.630210493 | AA51: 386.625316 | AB51: 0.5689869951 | AC51: 1.86245679 | AD51: 188.0454097 | AE51: 1.148948096 | AF51: 216.0544154 | AG51: 1.017934233 | AH51: 1.017934233 | AI51: 1.27 | AJ51: 0.9921588453 | AK51: 0.6841865628 | AL51: 0.6 | AM51: 1 | AN51: 0.3755069643 | AO51: 2.71082651 | AP51: 41 | AQ51: 1.024987536 | AR51: 1.86245679 | AS51: -0.06033145251 | AT51: 0.06033145251 | AU51: YES-TLC | AV51: 0.024999696 | AW51: <4 consecutive layers | AX51: 1 | AY51: Negative Change | AZ51: <4 consecutive layers | BA51: No | BB51: 7374.48 | BC51: No
A52: 42 | B52: =IF(Inputs!B57="","",IF(units=2,CONVERT(Inputs!B57,"ft","m"),Inputs!B57)) -> 1.049987232 | C52: =IF(Inputs!C57="","",IF(units=2,Inputs!C57*95.76,Inputs!C57*1000)) -> 8327.2896 | D52: =IF(Inputs!D57="","",IF(units=2,Inputs!D57*95.76,Inputs!D57)) -> 192.28608 | E52: =IF(Inputs!E57="","",IF(units=2,Inputs!E57*95.76,Inputs!E57)) -> 16.31290752 | F52: 1.330110746 | G52: 8330.552182 | H52: 2.308203296 | I52: 19.85022676 | J52: 824.4856125 | K52: 20.61188967 | L52: 19.28177892 | M52: 0.4189814507 | N52: 2.004034806 | O52: 139.7127295 | P52: 140.6696778 | Q52: 0.1475628486 | R52: 1.1 | S52: 1.567291789 | T52: 1.137053179 | U52: 0.9963005822 | V52: 0.2373450162 | W52: 0.2968612956 | X52: 0.387213767 | Y52: 0.6129560372 | Z52: 2.314837372 | AA52: 430.9737356 | AB52: 0.5420098953 | AC52: 1.791325662 | AD52: 201.5751991 | AE52: 1.094643905 | AF52: 220.6530631 | AG52: 1.079108907 | AH52: 1.079108907 | AI52: 1.27 | AJ52: 0.9919675977 | AK52: 0.7149259909 | AL52: 0.6 | AM52: 1 | AN52: 0.3796886655 | AO52: 2.842088808 | AP52: 42 | AQ52: 1.049987232 | AR52: 1.791325662 | AS52: -0.07113112853 | AT52: 0.07113112853 | AU52: YES-TLC | AV52: 0.024999696 | AW52: <4 consecutive layers | AX52: 1 | AY52: Negative Change | AZ52: <4 consecutive layers | BA52: No | BB52: 8327.29 | BC52: No
A53: 43 | B53: =IF(Inputs!B58="","",IF(units=2,CONVERT(Inputs!B58,"ft","m"),Inputs!B58)) -> 1.074986928 | C53: =IF(Inputs!C58="","",IF(units=2,Inputs!C58*95.76,Inputs!C58*1000)) -> 8456.5656 | D53: =IF(Inputs!D58="","",IF(units=2,Inputs!D58*95.76,Inputs!D58)) -> 204.83064 | E53: =IF(Inputs!E58="","",IF(units=2,Inputs!E58*95.76,Inputs!E58)) -> 15.8348736 | F53: 1.575357764 | G53: 8459.732575 | H53: 2.421242494 | I53: 19.92882611 | J53: 844.4144386 | K53: 21.11010426 | L53: 19.5347465 | M53: 0.4117399816 | N53: 1.96950256 | O53: 141.8816829 | P53: 144.9145566 | Q53: 0.1529926047 | R53: 1.1 | S53: 1.611817358 | T53: 1.147810202 | U53: 0.9960210534 | V53: 0.258274258 | W53: 0.3260948109 | X53: 0.3876604619 | Y53: 0.666238328 | Z53: 2.428210784 | AA53: 431.9801371 | AB53: 0.5489648999 | AC53: 1.80925263 | AD53: 205.5960663 | AE53: 1.107533717 | AF53: 227.7045755 | AG53: 1.177989586 | AH53: 1.177989586 | AI53: 1.27 | AJ53: 0.99177635 | AK53: 0.717238114 | AL53: 0.6 | AM53: 1 | AN53: 0.3837565338 | AO53: 3.069627439 | AP53: 43 | AQ53: 1.074986928 | AR53: 1.80925263 | AS53: 0.01792696814 | AT53: 0.01792696814 | AU53: No TLC Needed | AV53: 0.024999696 | AW53: -- | AX53: 1 | AY53: Positive Change | AZ53: <4 consecutive layers | BA53: No | BB53: 8456.5656 | BC53: No
A54: 44 | B54: =IF(Inputs!B59="","",IF(units=2,CONVERT(Inputs!B59,"ft","m"),Inputs!B59)) -> 1.099986624 | C54: =IF(Inputs!C59="","",IF(units=2,Inputs!C59*95.76,Inputs!C59*1000)) -> 9303.084 | D54: =IF(Inputs!D59="","",IF(units=2,Inputs!D59*95.76,Inputs!D59)) -> 209.13984 | E54: =IF(Inputs!E59="","",IF(units=2,Inputs!E59*95.76,Inputs!E59)) -> 11.74170816 | F54: 1.820604781 | G54: 9305.432342 | H54: 2.247502666 | I54: 19.98930959 | J54: 864.4037482 | K54: 21.60983093 | L54: 19.78922614 | M54: 0.3933514972 | N54: 1.901075734 | O54: 156.0843109 | P54: 156.1170564 | Q54: 0.1687612854 | R54: 1.1 | S54: 1.742429436 | T54: 1.17936504 | U54: 0.9957405751 | V54: 0.3347163438 | W54: 0.4342280295 | X54: 0.3811456649 | Y54: 0.8781848376 | Z54: 2.253304122 | AA54: 469.1351972 | AB54: 0.5318482535 | AC54: 1.763997453 | AD54: 218.3955046 | AE54: 1.075702163 | AF54: 234.9285167 | AG54: 1.285841312 | AH54: 1.285841312 | AI54: 1.27 | AJ54: 0.9915851023 | AK54: 0.7410023479 | AL54: 0.6 | AM54: 1 | AN54: 0.3877144499 | AO54: 3.316464764 | AP54: 44 | AQ54: 1.099986624 | AR54: 1.763997453 | AS54: -0.04525517669 | AT54: 0.04525517669 | AU54: YES-TLC | AV54: 0.024999696 | AW54: <4 consecutive layers | AX54: 1 | AY54: Negative Change | AZ54: <4 consecutive layers | BA54: No | BB54: 9303.08 | BC54: No
A55: 45 | B55: =IF(Inputs!B60="","",IF(units=2,CONVERT(Inputs!B60,"ft","m"),Inputs!B60)) -> 1.12498632 | C55: =IF(Inputs!C60="","",IF(units=2,Inputs!C60*95.76,Inputs!C60*1000)) -> 9326.0664 | D55: =IF(Inputs!D60="","",IF(units=2,Inputs!D60*95.76,Inputs!D60)) -> 183.3804 | E55: =IF(Inputs!E60="","",IF(units=2,Inputs!E60*95.76,Inputs!E60)) -> 5.64677568 | F55: 2.065851799 | G55: 9327.195755 | H55: 1.966082892 | I55: 19.83900732 | J55: 884.2427555 | K55: 22.10580008 | L55: 20.03994828 | M55: 0.3927883158 | N55: 1.889958547 | O55: 156.4699026 | P55: 156.4699026 | Q55: 0.1692956938 | R55: 1.1 | S55: 1.746863184 | T55: 1.180436198 | U55: 0.995459149 | V55: 0.3377781201 | W55: 0.4385980718 | X55: 0.3845572804 | Y55: 0.8783558062 | Z55: 1.970992869 | AA55: 464.3270444 | AB55: 0.5130970321 | AC55: 1.71445692 | AD55: 210.9268782 | AE55: 1.042559328 | AF55: 219.9037843 | AG55: 1.06896531 | AH55: 1.06896531 | AI55: 1.27 | AJ55: 0.9913938547 | AK55: 0.7399090524 | AL55: 0.6 | AM55: 1 | AN55: 0.3915753102 | AO55: 2.729909886 | AP55: 45 | AQ55: 1.12498632 | AR55: 1.71445692 | AS55: -0.04954053345 | AT55: 0.04954053345 | AU55: YES-TLC | AV55: 0.024999696 | AW55: <4 consecutive layers | AX55: 1 | AY55: Negative Change | AZ55: <4 consecutive layers | BA55: No | BB55: 9326.07 | BC55: No
A56: 46 | B56: =IF(Inputs!B61="","",IF(units=2,CONVERT(Inputs!B61,"ft","m"),Inputs!B61)) -> 1.149986016 | C56: =IF(Inputs!C61="","",IF(units=2,Inputs!C61*95.76,Inputs!C61*1000)) -> 7581.3192 | D56: =IF(Inputs!D61="","",IF(units=2,Inputs!D61*95.76,Inputs!D61)) -> 167.29272 | E56: =IF(Inputs!E61="","",IF(units=2,Inputs!E61*95.76,Inputs!E61)) -> 1.52373312 | F56: 2.311098817 | G56: 7581.623947 | H56: 2.206555234 | I56: 19.65393693 | J56: 903.8966924 | K56: 22.59714253 | L56: 20.28604371 | M56: 0.4389010002 | N56: 2.025726455 | O56: 127.1970653 | P56: 129.4649326 | Q56: 0.1344382631 | R56: 1.1 | S56: 1.462082233 | T56: 1.111635388 | U56: 0.995176777 | V56: 0.1957631403 | W56: 0.2393789578 | X56: 0.41225365 | Y56: 0.4748609025 | Z56: 2.213240793 | AA56: 372.6220308 | AB56: 0.5476106788 | AC56: 1.804725182 | AD56: 179.9972527 | AE56: 1.104237037 | AF56: 198.7596329 | AG56: 0.810243175 | AH56: 0.810243175 | AI56: 1.27 | AJ56: 0.991202607 | AK56: 0.6826983067 | AL56: 0.6 | AM56: 1 | AN56: 0.395346629 | AO56: 2.049450066 | AP56: 46 | AQ56: 1.149986016 | AR56: 1.804725182 | AS56: 0.09026826264 | AT56: 0.09026826264 | AU56: No TLC Needed | AV56: 0.024999696 | AW56: -- | AX56: 1 | AY56: Positive Change | AZ56: 0.175 | BA56: Yes | BB56: 7581.3192 | BC56: No
A57: 47 | B57: =IF(Inputs!B62="","",IF(units=2,CONVERT(Inputs!B62,"ft","m"),Inputs!B62)) -> 1.174985712 | C57: =IF(Inputs!C62="","",IF(units=2,Inputs!C62*95.76,Inputs!C62*1000)) -> 6662.0232 | D57: =IF(Inputs!D62="","",IF(units=2,Inputs!D62*95.76,Inputs!D62)) -> 198.12744 | E57: =IF(Inputs!E62="","",IF(units=2,Inputs!E62*95.76,Inputs!E62)) -> 6.18456384 | F57: 2.556345835 | G57: 6663.260113 | H57: 2.973430973 | I57: 19.79902149 | J57: 923.6957139 | K57: 23.09211205 | L57: 20.53576621 | M57: 0.4077362392 | N57: 1.917101405 | O57: 111.7733969 | P57: 147.3015812 | Q57: 0.1561697691 | R57: 1.1 | S57: 1.638030476 | T57: 1.154143082 | U57: 0.9948934608 | V57: 0.2716938571 | W57: 0.3449309442 | X57: 0.4007191896 | Y57: 0.6780155882 | Z57: 2.984327407 | AA57: 323.3464938 | AB57: 0.6023253091 | AC57: 1.948009702 | AD57: 171.3948598 | AE57: 1.230277637 | AF57: 210.8632632 | AG57: 0.9519382265 | AH57: 0.9519382265 | AI57: 1.27 | AJ57: 0.9910113593 | AK57: 0.6463504976 | AL57: 0.6 | AM57: 1 | AN57: 0.3990164621 | AO57: 2.385711661 | AP57: 47 | AQ57: 1.174985712 | AR57: 1.948009702 | AS57: 0.1432845194 | AT57: 0.1432845194 | AU57: No TLC Needed | AV57: 0.024999696 | AW57: -- | AX57: 1 | AY57: Positive Change | AZ57: 0.175 | BA57: Yes | BB57: 6662.0232 | BC57: No
A58: 48 | B58: =IF(Inputs!B63="","",IF(units=2,CONVERT(Inputs!B63,"ft","m"),Inputs!B63)) -> 1.199985408 | C58: =IF(Inputs!C63="","",IF(units=2,Inputs!C63*95.76,Inputs!C63*1000)) -> 6428.3688 | D58: =IF(Inputs!D63="","",IF(units=2,Inputs!D63*95.76,Inputs!D63)) -> 191.90304 | E58: =IF(Inputs!E63="","",IF(units=2,Inputs!E63*95.76,Inputs!E63)) -> 3.79439424 | F58: 2.801592852 | G58: 6429.127679 | H58: 2.984900123 | I58: 19.74858757 | J58: 943.4443015 | K58: 23.58582073 | L58: 20.78422788 | M58: 0.4109520978 | N58: 1.917467187 | O58: 107.8532145 | P58: 145.3820249 | Q58: 0.1536075711 | R58: 1.1 | S58: 1.616883533 | T58: 1.149034149 | U58: 0.9946092023 | V58: 0.2608013397 | W58: 0.32963661 | X58: 0.4060757987 | Y58: 0.6422479263 | Z58: 2.996245784 | AA58: 308.1924378 | AB58: 0.6069661923 | AC58: 1.959868696 | AD58: 165.3565914 | AE58: 1.24342449 | AF58: 205.6084353 | AG58: 0.8883617076 | AH58: 0.8883617076 | AI58: 1.27 | AJ58: 0.9908201116 | AK58: 0.6351062597 | AL58: 0.6 | AM58: 1 | AN58: 0.402597754 | AO58: 2.206573929 | AP58: 48 | AQ58: 1.199985408 | AR58: 1.959868696 | AS58: 0.01185899445 | AT58: 0.01185899445 | AU58: No TLC Needed | AV58: 0.024999696 | AW58: -- | AX58: 1 | AY58: Positive Change | AZ58: 0.175 | BA58: Yes | BB58: 6428.3688 | BC58: No
A59: 49 | B59: =IF(Inputs!B64="","",IF(units=2,CONVERT(Inputs!B64,"ft","m"),Inputs!B64)) -> 1.224985104 | C59: =IF(Inputs!C64="","",IF(units=2,Inputs!C64*95.76,Inputs!C64*1000)) -> 5629.7304 | D59: =IF(Inputs!D64="","",IF(units=2,Inputs!D64*95.76,Inputs!D64)) -> 195.54192 | E59: =IF(Inputs!E64="","",IF(units=2,Inputs!E64*95.76,Inputs!E64)) -> 0.62741952 | F59: 3.04683987 | G59: 5629.855884 | H59: 3.473302408 | I59: 19.71929232 | J59: 963.1635938 | K59: 24.07879704 | L59: 21.03195717 | M59: 0.4127020344 | N59: 1.913410653 | O59: 94.45390259 | P59: 144.3452512 | Q59: 0.1522483388 | R59: 1.1 | S59: 1.605691516 | T59: 1.146330247 | U59: 0.9943240033 | V59: 0.2552598514 | W59: 0.3218732974 | X59: 0.4105289055 | Y59: 0.6217828953 | Z59: 3.488299556 | AA59: 266.5361593 | AB59: 0.6409406837 | AC59: 2.048719737 | AD59: 151.5574105 | AE59: 1.36048325 | AF59: 206.1913184 | AG59: 0.8952561341 | AH59: 0.8952561341 | AI59: 1.27 | AJ59: 0.990628864 | AK59: 0.5979023518 | AL59: 0.7 | AM59: 1 | AN59: 0.4060930078 | AO59: 2.204559342 | AP59: 49 | AQ59: 1.224985104 | AR59: 2.048719737 | AS59: 0.08885104068 | AT59: 0.08885104068 | AU59: No TLC Needed | AV59: 0.024999696 | AW59: -- | AX59: 1 | AY59: Positive Change | AZ59: 0.175 | BA59: Yes | BB59: 5629.7304 | BC59: No
A60: 50 | B60: =IF(Inputs!B65="","",IF(units=2,CONVERT(Inputs!B65,"ft","m"),Inputs!B65)) -> 1.2499848 | C60: =IF(Inputs!C65="","",IF(units=2,Inputs!C65*95.76,Inputs!C65*1000)) -> 4841.6256 | D60: =IF(Inputs!D65="","",IF(units=2,Inputs!D65*95.76,Inputs!D65)) -> 182.80584 | E60: =IF(Inputs!E65="","",IF(units=2,Inputs!E65*95.76,Inputs!E65)) -> 13.26544128 | F60: 3.292086888 | G60: 4844.278688 | H60: 3.773644164 | I60: 19.58419309 | J60: 982.7477869 | K60: 24.56839592 | L60: 21.27630903 | M60: 0.4275891808 | N60: 1.949075384 | O60: 81.23132021 | P60: 135.7437791 | Q60: 0.1415896977 | R60: 1.1 | S60: 1.518886417 | T60: 1.125358826 | U60: 0.9940378656 | V60: 0.2169653184 | W60: 0.2685802197 | X60: 0.4216604728 | Y60: 0.5145498153 | Z60: 3.794969257 | AA60: 226.5294364 | AB60: 0.6669328106 | AC60: 2.116624064 | AD60: 134.6991746 | AE60: 1.476197484 | AF60: 198.8425827 | AG60: 0.8111578296 | AH60: 0.8111578296 | AI60: 1.27 | AJ60: 0.9904376163 | AK60: 0.5558752294 | AL60: 0.7 | AM60: 1 | AN60: 0.4095124175 | AO60: 1.980789336 | AP60: 50 | AQ60: 1.2499848 | AR60: 2.116624064 | AS60: 0.06790432712 | AT60: 0.06790432712 | AU60: No TLC Needed | AV60: 0.024999696 | AW60: -- | AX60: 1 | AY60: Positive Change | AZ60: 0.175 | BA60: Yes | BB60: 4841.6256 | BC60: No
A61: 51 | B61: =IF(Inputs!B66="","",IF(units=2,CONVERT(Inputs!B66,"ft","m"),Inputs!B66)) -> 1.274984496 | C61: =IF(Inputs!C66="","",IF(units=2,Inputs!C66*95.76,Inputs!C66*1000)) -> 3669.5232 | D61: =IF(Inputs!D66="","",IF(units=2,Inputs!D66*95.76,Inputs!D66)) -> 163.36656 | E61: =IF(Inputs!E66="","",IF(units=2,Inputs!E66*95.76,Inputs!E66)) -> 3.46574592 | F61: 3.537333906 | G61: 3670.216349 | H61: 4.451142507 | I61: 19.34844276 | J61: 1002.09623 | K61: 25.0521011 | L61: 21.5147672 | M61: 0.4566204194 | N61: 2.029067021 | O61: 61.56614301 | P61: 120.0625929 | Q61: 0.1245815468 | R61: 1.1 | S61: 1.38676019 | T61: 1.093438182 | U61: 0.9937507909 | V61: 0.1713669411 | W61: 0.2061170722 | X61: 0.437483048 | Y61: 0.3917110433 | Z61: 4.48258624 | AA61: 169.4261534 | AB61: 0.7161928285 | AC61: 2.245606605 | AD61: 109.1399905 | AE61: 1.77463676 | AF61: 193.6838391 | AG61: 0.7557142893 | AH61: 0.7557142893 | AI61: 1.27 | AJ61: 0.9902463686 | AK61: 0.4800354167 | AL61: 0.7 | AM61: 1 | AN61: 0.4128670266 | AO61: 1.830406016 | AP61: 51 | AQ61: 1.274984496 | AR61: 2.245606605 | AS61: 0.1289825405 | AT61: 0.1289825405 | AU61: No TLC Needed | AV61: 0.024999696 | AW61: -- | AX61: 1 | AY61: Positive Change | AZ61: 0.175 | BA61: Yes | BB61: 3669.5232 | BC61: No
A62: 52 | B62: =IF(Inputs!B67="","",IF(units=2,CONVERT(Inputs!B67,"ft","m"),Inputs!B67)) -> 1.299984192 | C62: =IF(Inputs!C67="","",IF(units=2,Inputs!C67*95.76,Inputs!C67*1000)) -> 3421.5048 | D62: =IF(Inputs!D67="","",IF(units=2,Inputs!D67*95.76,Inputs!D67)) -> 157.71672 | E62: =IF(Inputs!E67="","",IF(units=2,Inputs!E67*95.76,Inputs!E67)) -> 12.27949632 | F62: 3.782580924 | G62: 3423.960699 | H62: 4.606265488 | I62: 19.28132542 | J62: 1021.377555 | K62: 25.53412838 | L62: 21.75154745 | M62: 0.4639443856 | N62: 2.041831556 | O62: 57.4049658 | P62: 116.3270612 | Q62: 0.1209172186 | R62: 1.1 | S62: 1.359913591 | T62: 1.086952258 | U62: 0.9934627812 | V62: 0.1635094686 | W62: 0.1954996846 | X62: 0.4435498976 | Y62: 0.3686382738 | Z62: 4.644230921 | AA62: 156.2383816 | AB62: 0.7286413069 | AC62: 2.277973104 | AD62: 102.9102598 | AE62: 1.868186924 | AF62: 192.2556016 | AG62: 0.7408759624 | AH62: 0.7408759624 | AI62: 1.27 | AJ62: 0.9900551209 | AK62: 0.4597550885 | AL62: 0.7 | AM62: 1 | AN62: 0.4161497992 | AO62: 1.780310753 | AP62: 52 | AQ62: 1.299984192 | AR62: 2.277973104 | AS62: 0.03236649971 | AT62: 0.03236649971 | AU62: No TLC Needed | AV62: 0.024999696 | AW62: -- | AX62: 1 | AY62: Positive Change | AZ62: 0.175 | BA62: Yes | BB62: 3421.5048 | BC62: No
A63: 53 | B63: =IF(Inputs!B68="","",IF(units=2,CONVERT(Inputs!B68,"ft","m"),Inputs!B68)) -> 1.324983888 | C63: =IF(Inputs!C68="","",IF(units=2,Inputs!C68*95.76,Inputs!C68*1000)) -> 3457.8936 | D63: =IF(Inputs!D68="","",IF(units=2,Inputs!D68*95.76,Inputs!D68)) -> 132.81912 | E63: =IF(Inputs!E68="","",IF(units=2,Inputs!E68*95.76,Inputs!E68)) -> 18.04578048 | F63: 4.027827941 | G63: 3461.502756 | H63: 3.837036379 | I63: 19.08786835 | J63: 1040.465423 | K63: 26.01131928 | L63: 21.98349134 | M63: 0.4686896342 | N63: 2.046594438 | O63: 58.01548601 | P63: 113.9529103 | Q63: 0.1186559978 | R63: 1.1 | S63: 1.343722363 | T63: 1.083040586 | U63: 0.9931738382 | V63: 0.1589472495 | W63: 0.1893609545 | X63: 0.4485560564 | Y63: 0.3543531455 | Z63: 3.870153727 | AA63: 156.2759701 | AB63: 0.7039117729 | AC63: 2.212765783 | AD63: 99.40360856 | AE63: 1.687781952 | AF63: 167.7716165 | AG63: 0.5191758148 | AH63: 0.5191758148 | AI63: 1.27 | AJ63: 0.9898638733 | AK63: 0.4611121301 | AL63: 0.7 | AM63: 1 | AN63: 0.4193731522 | AO63: 1.237980572 | AP63: 53 | AQ63: 1.324983888 | AR63: 2.212765783 | AS63: -0.06520732118 | AT63: 0.06520732118 | AU63: YES-TLC | AV63: 0.024999696 | AW63: <4 consecutive layers | AX63: 1 | AY63: Negative Change | AZ63: <4 consecutive layers | BA63: No | BB63: 3457.89 | BC63: No
A64: 54 | B64: =IF(Inputs!B69="","",IF(units=2,CONVERT(Inputs!B69,"ft","m"),Inputs!B69)) -> 1.349983584 | C64: =IF(Inputs!C69="","",IF(units=2,Inputs!C69*95.76,Inputs!C69*1000)) -> 3244.3488 | D64: =IF(Inputs!D69="","",IF(units=2,Inputs!D69*95.76,Inputs!D69)) -> 131.86152 | E64: =IF(Inputs!E69="","",IF(units=2,Inputs!E69*95.76,Inputs!E69)) -> 15.56597952 | F64: 4.273074959 | G64: 3247.461996 | H64: 4.060448441 | I64: 19.05507023 | J64: 1059.520494 | K64: 26.48769025 | L64: 22.21461529 | M64: 0.4737777984 | N64: 2.05237368 | O64: 54.43269637 | P64: 111.4470184 | Q64: 0.1163234832 | R64: 1.1 | S64: 1.327349241 | T64: 1.07908497 | U64: 0.9928839639 | V64: 0.1544538929 | W64: 0.1833357618 | X64: 0.4535431559 | Y64: 0.3405494953 | Z64: 4.097800231 | AA64: 144.9934768 | AB64: 0.7189154546 | AC64: 2.251846179 | AD64: 94.64373602 | AE64: 1.792044718 | AF64: 169.6058072 | AG64: 0.5337379487 | AH64: 0.5337379487 | AI64: 1.27 | AJ64: 0.9896726256 | AK64: 0.4425709632 | AL64: 0.7 | AM64: 1 | AN64: 0.4225287713 | AO64: 1.263199065 | AP64: 54 | AQ64: 1.349983584 | AR64: 2.251846179 | AS64: 0.03908039588 | AT64: 0.03908039588 | AU64: No TLC Needed | AV64: 0.024999696 | AW64: -- | AX64: 1 | AY64: Positive Change | AZ64: <4 consecutive layers | BA64: No | BB64: 3244.3488 | BC64: No
A65: 55 | B65: =IF(Inputs!B70="","",IF(units=2,CONVERT(Inputs!B70,"ft","m"),Inputs!B70)) -> 1.37498328 | C65: =IF(Inputs!C70="","",IF(units=2,Inputs!C70*95.76,Inputs!C70*1000)) -> 3214.6632 | D65: =IF(Inputs!D70="","",IF(units=2,Inputs!D70*95.76,Inputs!D70)) -> 114.72048 | E65: =IF(Inputs!E70="","",IF(units=2,Inputs!E70*95.76,Inputs!E70)) -> 14.13187776 | F65: 4.518321977 | G65: 3217.489576 | H65: 3.565527636 | I65: 18.8913291 | J65: 1078.411823 | K65: 26.95996773 | L65: 22.44164576 | M65: 0.4792292337 | N65: 2.059364042 | O65: 53.93464041 | P65: 108.8074747 | Q65: 0.1139240977 | R65: 1.1 | S65: 1.310881161 | T65: 1.075106413 | U65: 0.9925931599 | V65: 0.150042695 | W65: 0.17744305 | X65: 0.4585164944 | Y65: 0.327235109 | Z65: 3.598844423 | AA65: 142.170037 | AB65: 0.7035709601 | AC65: 2.211277871 | AD65: 90.93839295 | AE65: 1.684032513 | AF65: 153.1432104 | AG65: 0.4140228598 | AH65: 0.4140228598 | AI65: 1.27 | AJ65: 0.9894813779 | AK65: 0.438690479 | AL65: 0.7 | AM65: 1 | AN65: 0.425629506 | AO65: 0.9727306352 | AP65: 55 | AQ65: 1.37498328 | AR65: 2.211277871 | AS65: -0.04056830777 | AT65: 0.04056830777 | AU65: YES-TLC | AV65: 0.024999696 | AW65: <4 consecutive layers | AX65: 1 | AY65: Negative Change | AZ65: <4 consecutive layers | BA65: No | BB65: 3214.66 | BC65: No
A66: 56 | B66: =IF(Inputs!B71="","",IF(units=2,CONVERT(Inputs!B71,"ft","m"),Inputs!B71)) -> 1.399982976 | C66: =IF(Inputs!C71="","",IF(units=2,Inputs!C71*95.76,Inputs!C71*1000)) -> 3246.264 | D66: =IF(Inputs!D71="","",IF(units=2,Inputs!D71*95.76,Inputs!D71)) -> 154.1736 | E66: =IF(Inputs!E71="","",IF(units=2,Inputs!E71*95.76,Inputs!E71)) -> 5.34800448 | F66: 4.763568995 | G66: 3247.333601 | H66: 4.747698233 | I66: 19.23488044 | J66: 1097.646703 | K66: 27.4408339 | L66: 22.6772649 | M66: 0.4685878255 | N66: 2.01669908 | O66: 54.46482902 | P66: 114.0034697 | Q66: 0.1187036239 | R66: 1.1 | S66: 1.344060233 | T66: 1.083122213 | U66: 0.9923014283 | V66: 0.1590412006 | W66: 0.1894871628 | X66: 0.4582930361 | Y66: 0.3470294944 | Z66: 4.789750541 | AA66: 141.9877036 | AB66: 0.7422525285 | AC66: 2.31249913 | AD66: 96.53447039 | AE66: 1.97712355 | AF66: 190.8605748 | AG66: 0.726593941 | AH66: 0.726593941 | AI66: 1.27 | AJ66: 0.9892901302 | AK66: 0.4398565698 | AL66: 0.7 | AM66: 1 | AN66: 0.4286370867 | AO66: 1.695126165 | AP66: 56 | AQ66: 1.399982976 | AR66: 2.31249913 | AS66: 0.1012212583 | AT66: 0.1012212583 | AU66: No TLC Needed | AV66: 0.024999696 | AW66: -- | AX66: 1 | AY66: Positive Change | AZ66: <4 consecutive layers | BA66: No | BB66: 3246.264 | BC66: No
A67: 57 | B67: =IF(Inputs!B72="","",IF(units=2,CONVERT(Inputs!B72,"ft","m"),Inputs!B72)) -> 1.424982672 | C67: =IF(Inputs!C72="","",IF(units=2,Inputs!C72*95.76,Inputs!C72*1000)) -> 3891.6864 | D67: =IF(Inputs!D72="","",IF(units=2,Inputs!D72*95.76,Inputs!D72)) -> 133.48944 | E67: =IF(Inputs!E72="","",IF(units=2,Inputs!E72*95.76,Inputs!E72)) -> 0.77680512 | F67: 5.008816012 | G67: 3891.841761 | H67: 3.429981181 | I67: 19.13859045 | J67: 1116.785294 | K67: 27.91929284 | L67: 22.91047683 | M67: 0.4582273747 | N67: 1.976375173 | O67: 65.29352953 | P67: 119.235526 | Q67: 0.1237586616 | R67: 1.1 | S67: 1.380669525 | T67: 1.091966726 | U67: 0.9920087708 | V67: 0.1695501542 | W67: 0.2036574394 | X67: 0.4576641193 | Y67: 0.3704685315 | Z67: 3.454903888 | AA67: 168.6530794 | AB67: 0.6817533831 | AC67: 2.153406671 | AD67: 105.0770833 | AE67: 1.550046895 | AF67: 162.8744067 | AG67: 0.4818291961 | AH67: 0.4818291961 | AI67: 1.27 | AJ67: 0.9890988826 | AK67: 0.4870292448 | AL67: 0.7 | AM67: 1 | AN67: 0.4315880722 | AO67: 1.116409899 | AP67: 57 | AQ67: 1.424982672 | AR67: 2.153406671 | AS67: -0.159092458 | AT67: 0.159092458 | AU67: YES-TLC | AV67: 0.024999696 | AW67: <4 consecutive layers | AX67: 1 | AY67: Negative Change | AZ67: 0.2 | BA67: Yes | BB67: 3891.69 | BC67: No
A68: 58 | B68: =IF(Inputs!B73="","",IF(units=2,CONVERT(Inputs!B73,"ft","m"),Inputs!B73)) -> 1.449982368 | C68: =IF(Inputs!C73="","",IF(units=2,Inputs!C73*95.76,Inputs!C73*1000)) -> 5027.4 | D68: =IF(Inputs!D73="","",IF(units=2,Inputs!D73*95.76,Inputs!D73)) -> 125.06256 | E68: =IF(Inputs!E73="","",IF(units=2,Inputs!E73*95.76,Inputs!E73)) -> -5.40775872 | F68: 5.25406303 | G68: 5026.318448 | H68: 2.488154328 | I68: 19.16166595 | J68: 1135.94696 | K68: 28.39832866 | L68: 23.14426563 | M68: 0.453218081 | N68: 1.952704883 | O68: 84.34818653 | P68: 121.827632 | Q68: 0.1263604344 | R68: 1.1 | S68: 1.400041545 | T68: 1.096646852 | U68: 0.9917151892 | V68: 0.175402728 | W68: 0.2115903343 | X68: 0.4587119108 | Y68: 0.3823810192 | Z68: 2.501750714 | AA68: 215.9463687 | AB68: 0.6146476866 | AC68: 1.976973437 | AD68: 122.2446303 | AE68: 1.263329574 | AF68: 154.4352568 | AG68: 0.4225486909 | AH68: 0.4225486909 | AI68: 1.27 | AJ68: 0.9889076349 | AK68: 0.5542385377 | AL68: 0.7 | AM68: 1 | AN68: 0.4344747503 | AO68: 0.9725506271 | AP68: 58 | AQ68: 1.449982368 | AR68: 1.976973437 | AS68: -0.1764332344 | AT68: 0.1764332344 | AU68: YES-TLC | AV68: 0.024999696 | AW68: <4 consecutive layers | AX68: 1 | AY68: Negative Change | AZ68: 0.2 | BA68: Yes | BB68: 5027.4 | BC68: No
A69: 59 | B69: =IF(Inputs!B74="","",IF(units=2,CONVERT(Inputs!B74,"ft","m"),Inputs!B74)) -> 1.474982064 | C69: =IF(Inputs!C74="","",IF(units=2,Inputs!C74*95.76,Inputs!C74*1000)) -> 4747.7808 | D69: =IF(Inputs!D74="","",IF(units=2,Inputs!D74*95.76,Inputs!D74)) -> 109.45368 | E69: =IF(Inputs!E74="","",IF(units=2,Inputs!E74*95.76,Inputs!E74)) -> -3.07734336 | F69: 5.499310048 | G69: 4747.165331 | H69: 2.305663957 | I69: 18.98640458 | J69: 1154.933364 | K69: 28.87298301 | L69: 23.37367296 | M69: 0.4670188997 | N69: 1.983746644 | O69: 79.65682073 | P69: 114.7847072 | Q69: 0.1194424312 | R69: 1.1 | S69: 1.349319143 | T69: 1.084392723 | U69: 0.9914206855 | V69: 0.1605102626 | W69: 0.1914617768 | X69: 0.4668813713 | Y69: 0.3437923901 | Z69: 2.319470612 | AA69: 201.8635392 | AB69: 0.6111023004 | AC69: 1.967370839 | AD69: 114.1127244 | AE69: 1.252014398 | AF69: 142.8707739 | AG69: 0.3512146473 | AH69: 0.3512146473 | AI69: 1.27 | AJ69: 0.9887163872 | AK69: 0.5375275219 | AL69: 0.7 | AM69: 1 | AN69: 0.4373164972 | AO69: 0.8031131902 | AP69: 59 | AQ69: 1.474982064 | AR69: 1.967370839 | AS69: -0.009602598201 | AT69: 0.009602598201 | AU69: No TLC Needed | AV69: 0.024999696 | AW69: -- | AX69: 1 | AY69: Negative Change | AZ69: 0.2 | BA69: Yes | BB69: 4747.7808 | BC69: No
A70: 60 | B70: =IF(Inputs!B75="","",IF(units=2,CONVERT(Inputs!B75,"ft","m"),Inputs!B75)) -> 1.49998176 | C70: =IF(Inputs!C75="","",IF(units=2,Inputs!C75*95.76,Inputs!C75*1000)) -> 5224.6656 | D70: =IF(Inputs!D75="","",IF(units=2,Inputs!D75*95.76,Inputs!D75)) -> 100.0692 | E70: =IF(Inputs!E75="","",IF(units=2,Inputs!E75*95.76,Inputs!E75)) -> 43.14256128 | F70: 5.744557066 | G70: 5233.294112 | H70: 1.912164649 | I70: 18.92067353 | J70: 1173.854038 | K70: 29.34599409 | L70: 23.60143703 | M70: 0.4876860252 | N70: 2.035153019 | O70: 87.6578487 | P70: 104.8041965 | Q70: 0.1103917457 | R70: 1.1 | S70: 1.28738698 | T70: 1.069430406 | U70: 0.9911252615 | V70: 0.1439071781 | W70: 0.169288583 | X70: 0.4763836735 | Y70: 0.3020825148 | Z70: 1.926141366 | AA70: 220.4928502 | AB70: 0.5778176058 | AC70: 1.879714441 | AD70: 119.1918911 | AE70: 1.163678466 | AF70: 138.701037 | AG70: 0.3281544532 | AH70: 0.3281544532 | AI70: 1.27 | AJ70: 0.9885251395 | AK70: 0.5618273208 | AL70: 0.7 | AM70: 1 | AN70: 0.4401062479 | AO70: 0.7456255274 | AP70: 60 | AQ70: 1.49998176 | AR70: 1.879714441 | AS70: -0.08765639766 | AT70: 0.08765639766 | AU70: YES-TLC | AV70: 0.024999696 | AW70: <4 consecutive layers | AX70: 1 | AY70: Negative Change | AZ70: 0.2 | BA70: Yes | BB70: 5224.67 | BC70: No
A71: 61 | B71: =IF(Inputs!B76="","",IF(units=2,CONVERT(Inputs!B76,"ft","m"),Inputs!B76)) -> 1.524981456 | C71: =IF(Inputs!C76="","",IF(units=2,Inputs!C76*95.76,Inputs!C76*1000)) -> 6229.188 | D71: =IF(Inputs!D76="","",IF(units=2,Inputs!D76*95.76,Inputs!D76)) -> 100.73952 | E71: =IF(Inputs!E76="","",IF(units=2,Inputs!E76*95.76,Inputs!E76)) -> 24.58886976 | F71: 5.989804083 | G71: 6234.105774 | H71: 1.615941783 | I71: 18.99545284 | J71: 1192.849491 | K71: 29.82087464 | L71: 23.83107055 | M71: 0.4878515431 | N71: 2.026050832 | O71: 104.5114197 | P71: 104.7269422 | Q71: 0.1103247941 | R71: 1.1 | S71: 1.286950802 | T71: 1.069325029 | U71: 0.990828919 | V71: 0.1437947581 | W71: 0.1691396672 | X71: 0.4793317961 | Y71: 0.2999900263 | Z71: 1.624996842 | AA71: 260.3443637 | AB71: 0.5389552087 | AC71: 1.777415984 | AD71: 133.5819702 | AE71: 1.084912067 | AF71: 144.9246914 | AG71: 0.363080596 | AH71: 0.363080596 | AI71: 1.27 | AJ71: 0.9883338919 | AK71: 0.607607143 | AL71: 0.6 | AM71: 1 | AN71: 0.4428329718 | AO71: 0.8199041604 | AP71: 61 | AQ71: 1.524981456 | AR71: 1.777415984 | AS71: -0.1022984576 | AT71: 0.1022984576 | AU71: YES-TLC | AV71: 0.024999696 | AW71: <4 consecutive layers | AX71: 1 | AY71: Negative Change | AZ71: 0.2 | BA71: Yes | BB71: 6229.19 | BC71: No
A72: 62 | B72: =IF(Inputs!B77="","",IF(units=2,CONVERT(Inputs!B77,"ft","m"),Inputs!B77)) -> 1.549981152 | C72: =IF(Inputs!C77="","",IF(units=2,Inputs!C77*95.76,Inputs!C77*1000)) -> 6228.2304 | D72: =IF(Inputs!D77="","",IF(units=2,Inputs!D77*95.76,Inputs!D77)) -> 98.82432 | E72: =IF(Inputs!E77="","",IF(units=2,Inputs!E77*95.76,Inputs!E77)) -> 14.3410176 | F72: 6.235051101 | G72: 6231.098604 | H72: 1.585985495 | I72: 18.97318816 | J72: 1211.822679 | K72: 30.29519857 | L72: 24.06014747 | M72: 0.4880724589 | N72: 2.017257731 | O72: 104.4953534 | P72: 104.6238967 | Q72: 0.1102355606 | R72: 1.1 | S72: 1.286370008 | T72: 1.069184714 | U72: 0.99053166 | V72: 0.1436451392 | W72: 0.1689415057 | X72: 0.4822382018 | Y72: 0.2978717543 | Z72: 1.594471655 | AA72: 257.7209226 | AB72: 0.5375440693 | AC72: 1.773415511 | AD72: 132.5512167 | AE72: 1.082149827 | AF72: 143.4402763 | AG72: 0.3544708881 | AH72: 0.3544708881 | AI72: 1.27 | AJ72: 0.9881426442 | AK72: 0.6062327359 | AL72: 0.6 | AM72: 1 | AN72: 0.4455070665 | AO72: 0.7956571619 | AP72: 62 | AQ72: 1.549981152 | AR72: 1.773415511 | AS72: -0.004000472585 | AT72: 0.004000472585 | AU72: No TLC Needed | AV72: 0.024999696 | AW72: -- | AX72: 1 | AY72: Negative Change | AZ72: 0.2 | BA72: Yes | BB72: 6228.2304 | BC72: No
A73: 63 | B73: =IF(Inputs!B78="","",IF(units=2,CONVERT(Inputs!B78,"ft","m"),Inputs!B78)) -> 1.574980848 | C73: =IF(Inputs!C78="","",IF(units=2,Inputs!C78*95.76,Inputs!C78*1000)) -> 5385.5424 | D73: =IF(Inputs!D78="","",IF(units=2,Inputs!D78*95.76,Inputs!D78)) -> 26.334 | E73: =IF(Inputs!E78="","",IF(units=2,Inputs!E78*95.76,Inputs!E78)) -> 2.95783488 | F73: 6.480298119 | G73: 5386.133967 | H73: 0.488922113 | I73: 17.39603874 | J73: 1229.218717 | K73: 30.73009425 | L73: 24.24979613 | M73: 0.3742677275 | N73: 1.707746672 | O73: 90.35699067 | P73: 168.4040309 | Q73: 0.1889750719 | R73: 1.1 | S73: 1.908917085 | T73: 1.21958713 | U73: 0.9902334863 | V73: 0.4777241363 | W73: 0.6408888291 | X73: 0.4253545166 | Y73: 1.123119933 | Z73: 0.491781943 | AA73: 220.8432534 | AB73: 0.413958398 | AC73: 1.448798042 | AD73: 95.53165646 | AE73: 1 | AF73: 95.53165646 | AG73: 0.1610820785 | AH73: 0.1610820785 | AI73: 1.27 | AJ73: 0.9879513965 | AK73: 0.5661782785 | AL73: 0.7 | AM73: 1 | AN73: 0.4482814999 | AO73: 0.3593324252 | AP73: 63 | AQ73: 1.574980848 | AR73: 1.448798042 | AS73: -0.3246174689 | AT73: 0.3246174689 | AU73: No TLC Needed | AV73: 0.024999696 | AW73: -- | AX73: 1 | AY73: Negative Change | AZ73: 0.2 | BA73: Yes | BB73: 5385.5424 | BC73: No
A74: 64 | B74: =IF(Inputs!B79="","",IF(units=2,CONVERT(Inputs!B79,"ft","m"),Inputs!B79)) -> 1.599980544 | C74: =IF(Inputs!C79="","",IF(units=2,Inputs!C79*95.76,Inputs!C79*1000)) -> 4821.516 | D74: =IF(Inputs!D79="","",IF(units=2,Inputs!D79*95.76,Inputs!D79)) -> 13.21488 | E74: =IF(Inputs!E79="","",IF(units=2,Inputs!E79*95.76,Inputs!E79)) -> -1.22496192 | F74: 6.725545137 | G74: 4821.271008 | H74: 0.2740953574 | I74: 16.5603947 | J74: 1245.779112 | K74: 31.14409909 | L74: 24.41855395 | M74: 0.3698807767 | N74: 1.692719856 | O74: 80.54216418 | P74: 171.326227 | Q74: 0.1943256863 | R74: 1.1 | S74: 1.952291365 | T74: 1.230066011 | U74: 0.9899343998 | V74: 0.5265476857 | W74: 0.7124572523 | X74: 0.4243305507 | Y74: 1.240890351 | Z74: 0.2758633416 | AA74: 196.1675093 | AB74: 0.3764311639 | AC74: 1.350082794 | AD74: 80.77251642 | AE74: 1 | AF74: 80.77251642 | AG74: 0.1290087684 | AH74: 0.1290087684 | AI74: 1.27 | AJ74: 0.9877601488 | AK74: 0.5355630709 | AL74: 0.7 | AM74: 1 | AN74: 0.4510937062 | AO74: 0.2859910625 | AP74: 64 | AQ74: 1.599980544 | AR74: 1.350082794 | AS74: -0.0987152485 | AT74: 0.0987152485 | AU74: No TLC Needed | AV74: 0.024999696 | AW74: -- | AX74: 1 | AY74: Negative Change | AZ74: 0.2 | BA74: Yes | BB74: 4821.516 | BC74: No
A75: 65 | B75: =IF(Inputs!B80="","",IF(units=2,CONVERT(Inputs!B80,"ft","m"),Inputs!B80)) -> 1.62498024 | C75: =IF(Inputs!C80="","",IF(units=2,Inputs!C80*95.76,Inputs!C80*1000)) -> 4212.4824 | D75: =IF(Inputs!D80="","",IF(units=2,Inputs!D80*95.76,Inputs!D80)) -> 38.59128 | E75: =IF(Inputs!E80="","",IF(units=2,Inputs!E80*95.76,Inputs!E80)) -> -1.67311872 | F75: 6.970792154 | G75: 4212.147776 | H75: 0.9161900781 | I75: 17.74137934 | J75: 1263.520491 | K75: 31.58762818 | L75: 24.61683602 | M75: 0.5716860441 | N75: 2.245391861 | O75: 70.67574715 | P75: 70.67574715 | Q75: 0.08439866639 | R75: 1.1 | S75: 1.150533211 | T75: 1.036367625 | U75: 0.9896344024 | V75: 0.1078101038 | W75: 0.1229039914 | X75: =IF($B75="","",0.65*PGA_prob*Fpga*(K75/L75)*U75*(1/T75)*(1/R75)) -> 0.5065428661 | Y75: 0.2128351045 | Z75: 0.9230387777 | AA75: 169.8252425 | AB75: =IF(C75="","",MIN(0.381*AC75+0.05*(L75/atm)-0.15,1)) -> 0.5156863893 | AC75: 1.715325263 | AD75: =IF(C75="","",((G75-K75)/atm)*(atm/L75)^AB75) -> 85.58528375 | AE75: 1.043135875 | AF75: 89.27707987 | AG75: 0.1461763605 | AH75: 0.1461763605 | AI75: =IF($B75="","",ROUND((10^2.24)/(Mw_prob)^2.56,2)) -> 1.27 | AJ75: =IF($B75="","",IF(B75<=9.15, 1-0.00765*B75, IF(AND(B75>9.15, B75<=23),1.174-0.0267*B75,IF(AND(B75>23,B75<=30),0.744-0.008*B75,0.5)))) -> 0.9875689012 | AK75: =IF($B75="","",-1.292+0.268*LN(C75/(L75^0.52))) -> 0.4982462939 | AL75: 0.7 | AM75: =IF($B75="","",IF((L75/atm)^(AL75-1)>1,1,(L75/atm)^(AL75-1))) -> 1 | AN75: =IF($B75="","",0.65*PGA_prob*Fpga*(K75/L75)*AJ75*(1/AM75)*(1/AI75)) -> 0.4537447639 | AO75: 0.3221554762 | AP75: 65 | AQ75: 1.62498024 | AR75: 1.715325263 | AS75: 0.3652424694 | AT75: 0.3652424694 | AU75: No TLC Needed | AV75: 0.024999696 | AW75: -- | AX75: 1 | AY75: Positive Change | AZ75: 0.175 | BA75: Yes | BB75: =IF(C75="","",IF(AND(TLC="Yes",AU75="YES-TLC"), ROUND(AX75*C75,2),IF(AX75="Height Exceeds 1m or 3ft, no TLC needed",C75*1,C75))) -> 4212.4824 | BC75: =IF(BA75="","",IF(AND(TransitionCorrection="Yes", BA75="Yes"), "Yes", "No")) -> No
A76: 66 | B76: =IF(Inputs!B81="","",IF(units=2,CONVERT(Inputs!B81,"ft","m"),Inputs!B81)) -> 1.649979936 | C76: =IF(Inputs!C81="","",IF(units=2,Inputs!C81*95.76,Inputs!C81*1000)) -> 3860.0856 | D76: =IF(Inputs!D81="","",IF(units=2,Inputs!D81*95.76,Inputs!D81)) -> 40.02768 | E76: =IF(Inputs!E81="","",IF(units=2,Inputs!E81*95.76,Inputs!E81)) -> 1.493856 | F76: =IF(B76="","",IF(B76<$C$5,0,$C$3*(B76-$C$5))) -> 7.216039172 | G76: =IF(B76="","",C76+E76*(1-$C$4)) -> 3860.384371 | H76: =IF(B76="","",(D76/G76)*100) -> 1.036883278 | I76: =IF(B76="","",(0.27*(LOG(H76))+0.36*(LOG(G76/$C$2))+1.236)*$C$3) -> 17.74997937 | J76: 1281.270471 | K76: =IF(B76="","",(J76/A76)*B76) -> 32.03137227 | L76: =IF(B76="","",K76-F76) -> 24.81533309 | M76: 0.5881192752 | N76: 2.28738264 | O76: 64.76334093 | P76: 65.10423726 | Q76: =IF(B76="","",IF(P76<=211,1/(37.3-8.27*(P76^(0.264))),0.3)) -> 0.08068209993 | R76: =IF(B76="","",IF(1-Q76*LN(L76/atm)<=1.1, 1-Q76*LN(L76/atm),1.1)) -> 1.1 | S76: =IF(B76="","",IF(1.09+(P76/180)^3<2.2,1.09+(P76/180)^3,2.2)) -> 1.137316243 | T76: =IF(B76="","",1+(S76-1)*(8.64*EXP(-Mw_prob/4)-1.325)) -> 1.033174511 | U76: =IF(B76="","",EXP((-1.012-1.126*SIN((B76/11.73+5.133)))+(0.106+0.118*SIN((B76/11.28+5.142)))*Mw_prob)) -> 0.989333496 | V76: =IF(B76="","",IF(P76>225,10,EXP((P76/113)+(P76/1000)^2-(P76/140)^3+(P76/137)^4-2.8))) -> 0.1033965362 | W76: =IF(B76="","",V76*T76*R76) -> 0.1175093323 | X76: 0.5109694534 | Y76: =IF(B76="","",V76/X76) -> 0.2023536545 | Z76: =IF(C76="","",(D76/(C76-K76)*100)) -> 1.04564036 | AA76: =IF(C76="","",(G76-K76)/L76) -> 154.2736898 | AB76: 0.5415422719 | AC76: =IF(C76="","",((3.47-LOG(AA76))^2+(1.22+LOG(Z76))^2)^0.5) -> 1.782931384 | AD76: 80.94234791 | AE76: =IF(B76="","",IF(AC76<=1.64,1,-0.403*AC76^4+5.58*AC76^3-21.63*AC76^2+33.75*AC76-17.88)) -> 1.088746 | AF76: =IF(C76="","",MIN(AE76*AD76,250)) -> 88.12565751 | AG76: =IF(C76="","",IF(AF76<50,0.833*(AF76/1000)+0.05,93*(AF76/1000)^3+0.08)) -> 0.1436487765 | AH76: =IF($B76="","",IF(B76<$C$5, 4,AG76)) -> 0.1436487765 | AI76: 1.27 | AJ76: 0.9873776535 | AK76: 0.4737138561 | AL76: 0.7 | AM76: 1 | AN76: 0.456350117 | AO76: =IF($B76="","",AG76/AN76) -> 0.3147775603 | AP76: 66 | AQ76: =IF(B76="","",B76) -> 1.649979936 | AR76: =IF(AQ76="","",AC76) -> 1.782931384 | AS76: 0.06760612059 | AT76: =IF(AS76="","",ABS(AS76)) -> 0.06760612059 | AU76: =IF(AR76="","",IF(OR(AT76<=$AS$5,AR76<$AS$3,AR76>$AS$4),"No TLC Needed",IF(AND(AT76>$AS$5,AS76<0),"YES-TLC","No TLC Needed"))) -> No TLC Needed | AV76: =IF(AQ76="","",AQ76-AQ75) -> 0.024999696 | AW76: -- | AX76: =IF(AW76="","",IF(OR(AW76="--", AW76="<4 consecutive layers"), "1", IF(AW76>1, "Height Exceeds 1m or 3ft, no TLC needed", 0.25*((((AW76*100)/$AS$2)/17)-1.77)^2+1))) -> 1 | AY76: =IF(AQ76="","",IF(AS76>$AZ$4,"Positive Change",IF(AS76<$AZ$4,"Negative Change","No Transition"))) -> Positive Change | AZ76: 0.175 | BA76: =IF(AZ76="","",IF(AZ76="<4 consecutive layers", "No", "Yes")) -> Yes | BB76: 3860.0856 | BC76: No
A77: 67 | B77: =IF(Inputs!B82="","",IF(units=2,CONVERT(Inputs!B82,"ft","m"),Inputs!B82)) -> 1.674979632 | C77: =IF(Inputs!C82="","",IF(units=2,Inputs!C82*95.76,Inputs!C82*1000)) -> 3597.7032 | D77: =IF(Inputs!D82="","",IF(units=2,Inputs!D82*95.76,Inputs!D82)) -> 58.98816 | E77: =IF(Inputs!E82="","",IF(units=2,Inputs!E82*95.76,Inputs!E82)) -> 2.92795776 | F77: 7.46128619 | G77: 3598.288792 | H77: 1.639339236 | I77: 18.16907324 | J77: =IF(B77="","",J76+I77) -> 1299.439544 | K77: 32.48559357 | L77: 25.02430738 | M77: 0.5215948493 | N77: 2.073924791 | O77: 60.36116891 | P77: 89.83245971 | Q77: 0.09818498145 | R77: 1.1 | S77: 1.214303214 | T77: 1.05177395 | U77: 0.9890316825 | V77: 0.1253959614 | W77: 0.1450770263 | X77: 0.5046461991 | Y77: 0.2484829206 | Z77: 1.654545851 | AA77: 142.4935821 | AB77: 0.605268398 | AC77: 1.949920899 | AD77: 82.04521757 | AE77: 1.23236145 | AF77: 101.1093633 | AG77: 0.1761295868 | AH77: 0.1761295868 | AI77: 1.27 | AJ77: 0.9871864058 | AK77: 0.4536796786 | AL77: 0.7 | AM77: 1 | AN77: 0.4588675465 | AO77: 0.3838353531 | AP77: 67 | AQ77: 1.674979632 | AR77: 1.949920899 | AS77: =IF(AR77="","",AR77-AR76) -> 0.1669895151 | AT77: 0.1669895151 | AU77: No TLC Needed | AV77: 0.024999696 | AW77: -- | AX77: 1 | AY77: Positive Change | AZ77: 0.175 | BA77: Yes | BB77: 3597.7032 | BC77: No
A78: 68 | B78: =IF(Inputs!B83="","",IF(units=2,CONVERT(Inputs!B83,"ft","m"),Inputs!B83)) -> 1.699979328 | C78: =IF(Inputs!C83="","",IF(units=2,Inputs!C83*95.76,Inputs!C83*1000)) -> 3545.0352 | D78: =IF(Inputs!D83="","",IF(units=2,Inputs!D83*95.76,Inputs!D83)) -> 66.74472 | E78: =IF(Inputs!E83="","",IF(units=2,Inputs!E83*95.76,Inputs!E83)) -> 4.98947904 | F78: 7.706533208 | G78: 3546.033096 | H78: 1.88223624 | I78: 18.3055722 | J78: 1317.745116 | K78: 32.94322731 | L78: 25.23669411 | M78: 0.504966353 | N78: 2.017623757 | O78: 59.47752124 | P78: 96.96232398 | Q78: 0.1038143762 | R78: 1.1 | S78: 1.246311717 | T78: 1.059506949 | U78: 0.9887289637 | V78: 0.1334768566 | W78: 0.1555616228 | X78: 0.5035905809 | Y78: 0.2650503437 | Z78: 1.900426313 | AA78: 139.2056287 | AB78: 0.6249999478 | AC78: 2.001434665 | AD78: 82.65615687 | AE78: 1.293860947 | AF78: 106.9455734 | AG78: 0.1937552341 | AH78: 0.1937552341 | AI78: 1.27 | AJ78: 0.9869951581 | AK78: 0.448549547 | AL78: 0.7 | AM78: 1 | AN78: 0.461326219 | AO78: 0.4199961461 | AP78: 68 | AQ78: 1.699979328 | AR78: 2.001434665 | AS78: 0.05151376678 | AT78: 0.05151376678 | AU78: No TLC Needed | AV78: 0.024999696 | AW78: -- | AX78: 1 | AY78: Positive Change | AZ78: 0.175 | BA78: Yes | BB78: 3545.0352 | BC78: No
A79: 69 | B79: =IF(Inputs!B84="","",IF(units=2,CONVERT(Inputs!B84,"ft","m"),Inputs!B84)) -> 1.724979024 | C79: =IF(Inputs!C84="","",IF(units=2,Inputs!C84*95.76,Inputs!C84*1000)) -> 3287.4408 | D79: =IF(Inputs!D84="","",IF(units=2,Inputs!D84*95.76,Inputs!D84)) -> 68.08536 | E79: =IF(Inputs!E84="","",IF(units=2,Inputs!E84*95.76,Inputs!E84)) -> 0.56766528 | F79: 7.951780225 | G79: 3287.554333 | H79: 2.071003339 | I79: 18.29942777 | J79: 1336.044544 | K79: 33.40070744 | L79: 25.44892722 | M79: 0.501183849 | N79: 1.998637039 | O79: 55.15568083 | P79: 98.64060037 | Q79: 0.1051862112 | R79: 1.1 | S79: 1.254569597 | T79: 1.061501987 | U79: 0.9884253416 | V79: 0.1355561098 | W79: 0.1582823879 | X79: 0.5052190501 | Y79: 0.2683115567 | Z79: 2.092333163 | AA79: 127.8699726 | AB79: 0.6463393667 | AC79: 2.05716876 | AD79: 78.44323995 | AE79: 1.373530558 | AF79: 107.7441872 | AG79: 0.1963227058 | AH79: 0.1963227058 | AI79: 1.27 | AJ79: 0.9868039105 | AK79: 0.4271648998 | AL79: 0.7 | AM79: 1 | AN79: 0.4637420571 | AO79: 0.4233446219 | AP79: 69 | AQ79: 1.724979024 | AR79: 2.05716876 | AS79: 0.05573409452 | AT79: 0.05573409452 | AU79: No TLC Needed | AV79: 0.024999696 | AW79: -- | AX79: 1 | AY79: Positive Change | AZ79: 0.175 | BA79: Yes | BB79: 3287.4408 | BC79: No
A80: 70 | B80: =IF(Inputs!B85="","",IF(units=2,CONVERT(Inputs!B85,"ft","m"),Inputs!B85)) -> 1.74997872 | C80: =IF(Inputs!C85="","",IF(units=2,Inputs!C85*95.76,Inputs!C85*1000)) -> 3228.0696 | D80: =IF(Inputs!D85="","",IF(units=2,Inputs!D85*95.76,Inputs!D85)) -> 75.6504 | E80: =IF(Inputs!E85="","",IF(units=2,Inputs!E85*95.76,Inputs!E85)) -> 4.95960192 | F80: 8.197027243 | G80: 3229.06152 | H80: 2.342798349 | I80: 18.413742 | J80: 1354.458286 | K80: 33.8610454 | L80: 25.66401815 | M80: 0.4938345926 | N80: 1.970239311 | O80: 54.15956891 | P80: 101.9624278 | Q80: 0.10795802 | R80: 1.1 | S80: 1.271761956 | T80: 1.065655525 | U80: 0.9881208181 | V80: 0.1399072735 | W80: 0.1640022548 | X80: 0.505754073 | Y80: 0.2766310366 | Z80: 2.368361324 | AA80: 124.5011773 | AB80: 0.6647947491 | AC80: 2.105329503 | AD80: 78.57054076 | AE80: 1.455163291 | AF80: 114.3329667 | AG80: 0.2189944202 | AH80: 0.2189944202 | AI80: 1.27 | AJ80: 0.9866126628 | AK80: 0.4211076764 | AL80: 0.7 | AM80: 1 | AN80: 0.4661029267 | AO80: 0.4698413325 | AP80: 70 | AQ80: 1.74997872 | AR80: 2.105329503 | AS80: 0.04816074336 | AT80: 0.04816074336 | AU80: No TLC Needed | AV80: 0.024999696 | AW80: -- | AX80: 1 | AY80: Positive Change | AZ80: 0.175 | BA80: Yes | BB80: 3228.0696 | BC80: No
A81: 71 | B81: =IF(Inputs!B86="","",IF(units=2,CONVERT(Inputs!B86,"ft","m"),Inputs!B86)) -> 1.774978416 | C81: =IF(Inputs!C86="","",IF(units=2,Inputs!C86*95.76,Inputs!C86*1000)) -> 3156.2496 | D81: =IF(Inputs!D86="","",IF(units=2,Inputs!D86*95.76,Inputs!D86)) -> 90.0144 | E81: =IF(Inputs!E86="","",IF(units=2,Inputs!E86*95.76,Inputs!E86)) -> 11.71183104 | F81: 8.442274261 | G81: 3158.591966 | H81: 2.849826789 | I81: 18.60526022 | J81: 1373.063546 | K81: 34.32617125 | L81: 25.88389698 | M81: 0.4856241591 | N81: 1.94009547 | O81: 52.95459482 | P81: 105.7700772 | Q81: 0.1112326284 | R81: 1.1 | S81: 1.292894815 | T81: 1.070761055 | U81: 0.9878153951 | V81: 0.1453310322 | W81: 0.1711762903 | X81: 0.5057657288 | Y81: 0.2873485171 | Z81: 2.883299416 | AA81: 120.7030687 | AB81: 0.6930866315 | AC81: 2.179301631 | AD81: 79.39895073 | AE81: 1.607201353 | AF81: 127.610101 | AG81: 0.2732582782 | AH81: 0.2732582782 | AI81: 1.27 | AJ81: 0.9864214151 | AK81: 0.4138888296 | AL81: 0.7 | AM81: 1 | AN81: 0.4684008028 | AO81: 0.583385589 | AP81: 71 | AQ81: 1.774978416 | AR81: 2.179301631 | AS81: 0.0739721277 | AT81: 0.0739721277 | AU81: No TLC Needed | AV81: 0.024999696 | AW81: -- | AX81: 1 | AY81: Positive Change | AZ81: 0.175 | BA81: Yes | BB81: 3156.2496 | BC81: No
A82: 72 | B82: =IF(Inputs!B87="","",IF(units=2,CONVERT(Inputs!B87,"ft","m"),Inputs!B87)) -> 1.799978112 | C82: =IF(Inputs!C87="","",IF(units=2,Inputs!C87*95.76,Inputs!C87*1000)) -> 3137.0976 | D82: =IF(Inputs!D87="","",IF(units=2,Inputs!D87*95.76,Inputs!D87)) -> 85.80096 | E82: =IF(Inputs!E87="","",IF(units=2,Inputs!E87*95.76,Inputs!E87)) -> 3.8840256 | F82: 8.687521279 | G82: 3137.874405 | H82: 2.734365654 | I82: 18.54759139 | J82: 1391.611138 | K82: 34.78985539 | L82: 26.10233411 | M82: 0.4877456413 | N82: 1.937761666 | O82: 52.63326839 | P82: 104.7763663 | Q82: 0.1103676217 | R82: 1.1 | S82: 1.287229777 | T82: 1.069392427 | U82: 0.9875090745 | V82: 0.143866655 | W82: 0.1692349025 | X82: 0.5088007496 | Y82: 0.282756374 | Z82: 2.765714012 | AA82: 118.8814968 | AB82: 0.6895108721 | AC82: 2.169633522 | AD82: 78.02335067 | AE82: 1.585345519 | AF82: 123.6939693 | AG82: 0.2560064272 | AH82: 0.2560064272 | AI82: 1.27 | AJ82: 0.9862301674 | AK82: 0.4110865221 | AL82: 0.7 | AM82: 1 | AN82: 0.4706640186 | AO82: 0.5439260643 | AP82: 72 | AQ82: 1.799978112 | AR82: 2.169633522 | AS82: -0.009668109536 | AT82: 0.009668109536 | AU82: No TLC Needed | AV82: 0.024999696 | AW82: -- | AX82: 1 | AY82: Negative Change | AZ82: <4 consecutive layers | BA82: No | BB82: 3137.0976 | BC82: No
A83: 73 | B83: =IF(Inputs!B88="","",IF(units=2,CONVERT(Inputs!B88,"ft","m"),Inputs!B88)) -> 1.824977808 | C83: =IF(Inputs!C88="","",IF(units=2,Inputs!C88*95.76,Inputs!C88*1000)) -> 3470.3424 | D83: =IF(Inputs!D88="","",IF(units=2,Inputs!D88*95.76,Inputs!D88)) -> 21.16296 | E83: =IF(Inputs!E88="","",IF(units=2,Inputs!E88*95.76,Inputs!E88)) -> 0.68717376 | F83: 8.932768296 | G83: 3470.479835 | H83: 0.6097992499 | I83: 16.97603536 | J83: 1408.587173 | K83: 35.21425112 | L83: 26.28148282 | M83: 0.609906807 | N83: 2.277435567 | O83: 58.22434819 | P83: 58.22434819 | Q83: 0.07623142934 | R83: 1.1 | S83: 1.123845146 | T83: 1.029920001 | U83: 0.9872018582 | V83: 0.09820879098 | W83: 0.1112619179 | X83: 0.530935221 | Y83: 0.1849732078 | Z83: 0.6160748328 | AA83: 130.7104933 | AB83: 0.5063779793 | AC83: 1.688737732 | AD83: 67.14520458 | AE83: 1.025409165 | AF83: 68.85130814 | AG83: 0.1103542521 | AH83: 0.1103542521 | AI83: 1.27 | AJ83: 0.9860389198 | AK83: 0.4371893165 | AL83: 0.7 | AM83: 1 | AN83: 0.4730663814 | AO83: 0.2332743489 | AP83: 73 | AQ83: 1.824977808 | AR83: 1.688737732 | AS83: -0.4808957896 | AT83: 0.4808957896 | AU83: No TLC Needed | AV83: 0.024999696 | AW83: -- | AX83: 1 | AY83: Negative Change | AZ83: <4 consecutive layers | BA83: No | BB83: 3470.3424 | BC83: No
A84: 74 | B84: =IF(Inputs!B89="","",IF(units=2,CONVERT(Inputs!B89,"ft","m"),Inputs!B89)) -> 1.849977504 | C84: =IF(Inputs!C89="","",IF(units=2,Inputs!C89*95.76,Inputs!C89*1000)) -> 3003.0336 | D84: =IF(Inputs!D89="","",IF(units=2,Inputs!D89*95.76,Inputs!D89)) -> 25.75944 | E84: =IF(Inputs!E89="","",IF(units=2,Inputs!E89*95.76,Inputs!E89)) -> 0.746928 | F84: 9.178015314 | G84: 3003.182986 | H84: 0.8577379442 | I84: 17.14667547 | J84: 1425.733849 | K84: 35.64291279 | L84: 26.46489748 | M84: 0.6177483494 | N84: 2.291795958 | O84: 50.38398342 | P84: 55.88449685 | Q84: 0.07474741566 | R84: 1.1 | S84: 1.119926541 | T84: 1.028973297 | U84: 0.9868937482 | V84: 0.09649720843 | W84: 0.1092223558 | X84: 0.5339981318 | Y84: 0.180707015 | Z84: 0.8680838728 | AA84: 112.1311759 | AB84: 0.5613859907 | AC84: 1.83287816 | AD84: 62.2291772 | AE84: 1.125263861 | AF84: 70.02424423 | AG84: 0.1119321558 | AH84: 0.1119321558 | AI84: 1.27 | AJ84: 0.9858476721 | AK84: 0.3974592047 | AL84: 0.8 | AM84: 1 | AN84: 0.4754142815 | AO84: 0.2354412985 | AP84: 74 | AQ84: 1.849977504 | AR84: 1.83287816 | AS84: 0.1441404285 | AT84: 0.1441404285 | AU84: No TLC Needed | AV84: 0.024999696 | AW84: -- | AX84: 1 | AY84: Positive Change | AZ84: <4 consecutive layers | BA84: No | BB84: 3003.0336 | BC84: No
A85: 75 | B85: =IF(Inputs!B90="","",IF(units=2,CONVERT(Inputs!B90,"ft","m"),Inputs!B90)) -> 1.8749772 | C85: =IF(Inputs!C90="","",IF(units=2,Inputs!C90*95.76,Inputs!C90*1000)) -> 3192.6384 | D85: =IF(Inputs!D90="","",IF(units=2,Inputs!D90*95.76,Inputs!D90)) -> 36.3888 | E85: =IF(Inputs!E90="","",IF(units=2,Inputs!E90*95.76,Inputs!E90)) -> 3.76451712 | F85: 9.423262332 | G85: 3193.391303 | H85: 1.139503322 | I85: 17.56761066 | J85: 1443.301459 | K85: 36.08209772 | L85: 26.65883538 | M85: 0.5685097862 | N85: 2.136312896 | O85: 53.56511503 | P85: 71.79179716 | Q85: 0.08515685474 | R85: 1.1 | S85: 1.153446396 | T85: 1.037071427 | U85: 0.9865847465 | V85: 0.1087222209 | W85: 0.1240279798 | X85: 0.532288159 | Y85: 0.2042544421 | Z85: 1.1528006 | AA85: 118.4338761 | AB85: 0.5853660394 | AC85: 1.895566737 | AD85: 68.08318947 | AE85: 1.177885918 | AF85: 80.19423012 | AG85: 0.12796366 | AH85: 0.12796366 | AI85: 1.27 | AJ85: 0.9856564244 | AK85: 0.4128498966 | AL85: 0.7 | AM85: 1 | AN85: 0.4776783949 | AO85: 0.2678866396 | AP85: 75 | AQ85: 1.8749772 | AR85: 1.895566737 | AS85: 0.0626885769 | AT85: 0.0626885769 | AU85: No TLC Needed | AV85: 0.024999696 | AW85: -- | AX85: 1 | AY85: Positive Change | AZ85: <4 consecutive layers | BA85: No | BB85: 3192.6384 | BC85: No
A86: 76 | B86: =IF(Inputs!B91="","",IF(units=2,CONVERT(Inputs!B91,"ft","m"),Inputs!B91)) -> 1.899976896 | C86: =IF(Inputs!C91="","",IF(units=2,Inputs!C91*95.76,Inputs!C91*1000)) -> 2012.8752 | D86: =IF(Inputs!D91="","",IF(units=2,Inputs!D91*95.76,Inputs!D91)) -> 41.27256 | E86: =IF(Inputs!E91="","",IF(units=2,Inputs!E91*95.76,Inputs!E91)) -> 0 | F86: 9.66850935 | G86: 2012.8752 | H86: 2.050428164 | I86: 17.53551348 | J86: 1460.836973 | K86: 36.52048022 | L86: 26.85197087 | M86: 0.5350879472 | N86: 2.035198907 | O86: 33.77140725 | P86: 84.33688159 | Q86: 0.09404682383 | R86: 1.1 | S86: 1.192857295 | T86: 1.046592787 | U86: 0.9862748548 | V86: 0.1198467563 | W86: 0.1379738257 | X86: 0.5298476447 | Y86: 0.2261909767 | Z86: 2.088317425 | AA86: 73.60184953 | AB86: 0.71014572 | AC86: 2.222822316 | AD86: 50.08619516 | AE86: 1.713540489 | AF86: 85.82472336 | AG86: 0.1387922641 | AH86: 0.1387922641 | AI86: 1.27 | AJ86: 0.9854651767 | AK86: 0.2882199325 | AL86: 0.8 | AM86: 1 | AN86: 0.4799113608 | AO86: 0.289203956 | AP86: 76 | AQ86: 1.899976896 | AR86: 2.222822316 | AS86: 0.3272555791 | AT86: 0.3272555791 | AU86: No TLC Needed | AV86: 0.024999696 | AW86: -- | AX86: 1 | AY86: Positive Change | AZ86: <4 consecutive layers | BA86: No | BB86: 2012.8752 | BC86: No
A87: 77 | B87: =IF(Inputs!B92="","",IF(units=2,CONVERT(Inputs!B92,"ft","m"),Inputs!B92)) -> 1.924976592 | C87: =IF(Inputs!C92="","",IF(units=2,Inputs!C92*95.76,Inputs!C92*1000)) -> 1973.6136 | D87: =IF(Inputs!D92="","",IF(units=2,Inputs!D92*95.76,Inputs!D92)) -> 40.41072 | E87: =IF(Inputs!E92="","",IF(units=2,Inputs!E92*95.76,Inputs!E92)) -> 13.47458112 | F87: 9.913756368 | G87: 1976.308516 | H87: 2.044757672 | I87: 17.50420888 | J87: 1478.341182 | K87: 36.95808012 | L87: 27.04432375 | M87: 0.5362340679 | N87: 2.030512051 | O87: 33.11268808 | P87: 83.88177647 | Q87: 0.09371133907 | R87: 1.1 | S87: 1.191201126 | T87: 1.046192669 | U87: 0.9859640753 | V87: 0.1194090466 | W87: 0.1374173562 | X87: 0.5324185363 | Y87: 0.2242766517 | Z87: 2.086624058 | AA87: 71.7100732 | AB87: 0.7132606007 | AC87: 2.230748726 | AD87: 49.1015088 | AE87: 1.7343602 | AF87: 85.15970265 | AG87: 0.1374361548 | AH87: 0.1374361548 | AI87: 1.27 | AJ87: 0.9852739291 | AK87: 0.2819461359 | AL87: =IF($B87="","",IF(AK87<=0.4,0.8,IF(AND(AK87<=0.6,AK87>0.4),0.7,0.6))) -> 0.8 | AM87: 1 | AN87: 0.4821139567 | AO87: 0.2850698531 | AP87: 77 | AQ87: 1.924976592 | AR87: 2.230748726 | AS87: 0.007926409393 | AT87: 0.007926409393 | AU87: No TLC Needed | AV87: 0.024999696 | AW87: -- | AX87: 1 | AY87: Negative Change | AZ87: <4 consecutive layers | BA87: No | BB87: 1973.6136 | BC87: No
A88: 78 | B88: =IF(Inputs!B93="","",IF(units=2,CONVERT(Inputs!B93,"ft","m"),Inputs!B93)) -> 1.949976288 | C88: =IF(Inputs!C93="","",IF(units=2,Inputs!C93*95.76,Inputs!C93*1000)) -> 1771.56 | D88: =IF(Inputs!D93="","",IF(units=2,Inputs!D93*95.76,Inputs!D93)) -> 35.71848 | E88: =IF(Inputs!E93="","",IF(units=2,Inputs!E93*95.76,Inputs!E93)) -> 7.1705088 | F88: 10.15900339 | G88: 1772.994102 | H88: 2.014585382 | I88: 17.32060249 | J88: 1495.661784 | K88: 37.39108992 | L88: 27.23208653 | M88: 0.5434393088 | N88: 2.042235716 | O88: 29.7226943 | P88: 81.06196997 | Q88: 0.09165588784 | R88: 1.1 | S88: 1.181334309 | T88: 1.043808925 | U88: 0.9856524097 | V88: 0.1167623657 | W88: 0.1340653593 | X88: 0.5359946571 | Y88: 0.2178424059 | Z88: 2.059688638 | AA88: 63.73375061 | AB88: 0.7261209623 | AC88: 2.26425977 | AD88: 44.47176047 | AE88: 1.827561495 | AF88: 81.27487708 | AG88: 0.1299288902 | AH88: 0.1299288902 | AI88: 1.27 | AJ88: 0.9850826814 | AK88: 0.2520364158 | AL88: 0.8 | AM88: 1 | AN88: 0.4843054169 | AO88: 0.2682788291 | AP88: 78 | AQ88: 1.949976288 | AR88: 2.26425977 | AS88: 0.03351104423 | AT88: 0.03351104423 | AU88: No TLC Needed | AV88: 0.024999696 | AW88: -- | AX88: 1 | AY88: Positive Change | AZ88: 0.1 | BA88: Yes | BB88: 1771.56 | BC88: No
A89: 79 | B89: =IF(Inputs!B94="","",IF(units=2,CONVERT(Inputs!B94,"ft","m"),Inputs!B94)) -> 1.974975984 | C89: =IF(Inputs!C94="","",IF(units=2,Inputs!C94*95.76,Inputs!C94*1000)) -> 1187.424 | D89: =IF(Inputs!D94="","",IF(units=2,Inputs!D94*95.76,Inputs!D94)) -> 33.0372 | E89: =IF(Inputs!E94="","",IF(units=2,Inputs!E94*95.76,Inputs!E94)) -> 13.92273792 | F89: 10.4042504 | G89: 1190.208548 | H89: 2.775748844 | I89: 17.07802268 | J89: 1512.739807 | K89: 37.81803529 | L89: 27.41378489 | M89: 0.5599977684 | N89: 2.079396916 | O89: 19.92223834 | P89: 74.84664398 | Q89: 0.08725754138 | R89: 1.1 | S89: 1.161895131 | T89: 1.039112574 | U89: 0.9853398602 | V89: 0.11127439 | W89: 0.1271892797 | X89: 0.5407840649 | Y89: 0.2057649204 | Z89: 2.873784672 | AA89: 42.0368992 | AB89: 0.8142191004 | AC89: 2.495253148 | AD89: 32.97266205 | AE89: 2.729015152 | AF89: 89.98289434 | AG89: 0.1477583503 | AH89: 0.1477583503 | AI89: 1.27 | AJ89: 0.9848914337 | AK89: 0.1438897626 | AL89: 0.8 | AM89: 1 | AN89: 0.4864943028 | AO89: 0.3037206179 | AP89: 79 | AQ89: 1.974975984 | AR89: 2.495253148 | AS89: 0.2309933779 | AT89: 0.2309933779 | AU89: No TLC Needed | AV89: 0.024999696 | AW89: -- | AX89: 1 | AY89: Positive Change | AZ89: 0.1 | BA89: Yes | BB89: 1187.424 | BC89: No
A90: 80 | B90: =IF(Inputs!B95="","",IF(units=2,CONVERT(Inputs!B95,"ft","m"),Inputs!B95)) -> 1.99997568 | C90: =IF(Inputs!C95="","",IF(units=2,Inputs!C95*95.76,Inputs!C95*1000)) -> 1028.4624 | D90: =IF(Inputs!D95="","",IF(units=2,Inputs!D95*95.76,Inputs!D95)) -> 29.2068 | E90: =IF(Inputs!E95="","",IF(units=2,Inputs!E95*95.76,Inputs!E95)) -> 29.01068352 | F90: 10.64949742 | G90: 1034.264537 | H90: 2.8239197 | I90: 16.88241689 | J90: 1529.622224 | K90: 38.24009058 | L90: 27.59059316 | M90: 0.5668736976 | N90: 2.090539876 | O90: 17.25522902 | P90: 72.37170836 | Q90: 0.08555273743 | R90: 1.1 | S90: 1.154996348 | T90: 1.037445884 | U90: 0.9850264285 | V90: 0.109200289 | W90: 0.1246183294 | X90: 0.5440148795 | Y90: 0.200730335 | Z90: 2.949519489 | AA90: 36.10014617 | AB90: 0.8359401364 | AC90: 2.552034743 | AD90: 29.16234381 | AE90: 3.028982086 | AF90: 88.33221699 | AG90: 0.1440973892 | AH90: 0.1440973892 | AI90: 1.27 | AJ90: 0.984700186 | AK90: 0.1044765 | AL90: 0.8 | AM90: 1 | AN90: 0.4886763613 | AO90: 0.2948728456 | AP90: 80 | AQ90: 1.99997568 | AR90: 2.552034743 | AS90: 0.05678159545 | AT90: 0.05678159545 | AU90: No TLC Needed | AV90: 0.024999696 | AW90: -- | AX90: 1 | AY90: Positive Change | AZ90: 0.1 | BA90: Yes | BB90: 1028.4624 | BC90: No
A91: 81 | B91: =IF(Inputs!B96="","",IF(units=2,CONVERT(Inputs!B96,"ft","m"),Inputs!B96)) -> 2.024975376 | C91: =IF(Inputs!C96="","",IF(units=2,Inputs!C96*95.76,Inputs!C96*1000)) -> 954.7272 | D91: =IF(Inputs!D96="","",IF(units=2,Inputs!D96*95.76,Inputs!D96)) -> 26.90856 | E91: =IF(Inputs!E96="","",IF(units=2,Inputs!E96*95.76,Inputs!E96)) -> 38.78050176 | F91: 10.89474444 | G91: 962.4833004 | H91: 2.795743052 | I91: 16.76055992 | J91: 1546.382783 | K91: 38.65909949 | L91: 27.76435505 | M91: 0.5703094086 | N91: 2.092398989 | O91: 16.01812228 | P91: 71.15787923 | Q91: 0.08472561193 | R91: 1.1 | S91: 1.151780508 | T91: 1.036668962 | U91: 0.9847121168 | V91: 0.10820288 | W91: 0.123387624 | X91: 0.5467688977 | Y91: 0.1978950895 | Z91: 2.937397338 | AA91: 33.27374971 | AB91: 0.8457295798 | AC91: 2.577503768 | AD91: 27.24999569 | AE91: 3.174624704 | AF91: 86.50850948 | AG91: 0.1402087258 | AH91: 0.1402087258 | AI91: 1.27 | AJ91: 0.9845089384 | AK91: 0.08366385408 | AL91: 0.8 | AM91: 1 | AN91: 0.4908437257 | AO91: 0.2856484019 | AP91: 81 | AQ91: 2.024975376 | AR91: 2.577503768 | AS91: 0.02546902502 | AT91: 0.02546902502 | AU91: No TLC Needed | AV91: 0.024999696 | AW91: -- | AX91: 1 | AY91: Positive Change | AZ91: 0.1 | BA91: Yes | BB91: 954.7272 | BC91: No
A92: 82 | B92: =IF(Inputs!B97="","",IF(units=2,CONVERT(Inputs!B97,"ft","m"),Inputs!B97)) -> 2.049975072 | C92: =IF(Inputs!C97="","",IF(units=2,Inputs!C97*95.76,Inputs!C97*1000)) -> 994.9464 | D92: =IF(Inputs!D97="","",IF(units=2,Inputs!D97*95.76,Inputs!D97)) -> 22.88664 | E92: =IF(Inputs!E97="","",IF(units=2,Inputs!E97*95.76,Inputs!E97)) -> 50.67159552 | F92: 11.13999146 | G92: 1005.080719 | H92: 2.277094721 | I92: 16.59093937 | J92: 1562.973723 | K92: 39.07386793 | L92: 27.93387647 | M92: 0.5710031688 | N92: 2.087012446 | O92: 16.69290777 | P92: 70.91460558 | Q92: 0.08456053061 | R92: 1.1 | S92: 1.151149028 | T92: 1.036516402 | U92: 0.9843969269 | V92: 0.1080044576 | W92: 0.123143231 | X92: 0.5491863557 | Y92: 0.1966626747 | Z92: 2.394319246 | AA92: 34.58191176 | AB92: 0.8190788279 | AC92: 2.507334729 | AD92: 27.3910166 | AE92: 2.79003658 | AF92: 76.42193827 | AG92: 0.1215085052 | AH92: 0.1215085052 | AI92: 1.27 | AJ92: 0.9843176907 | AK92: 0.09387409111 | AL92: 0.8 | AM92: 1 | AN92: 0.4930034097 | AO92: 0.2464658515 | AP92: 82 | AQ92: 2.049975072 | AR92: 2.507334729 | AS92: -0.07016903985 | AT92: 0.07016903985 | AU92: YES-TLC | AV92: 0.024999696 | AW92: <4 consecutive layers | AX92: 1 | AY92: Negative Change | AZ92: 0.1 | BA92: Yes | BB92: 994.95 | BC92: No
A93: 83 | B93: =IF(Inputs!B98="","",IF(units=2,CONVERT(Inputs!B98,"ft","m"),Inputs!B98)) -> 2.074974768 | C93: =IF(Inputs!C98="","",IF(units=2,Inputs!C98*95.76,Inputs!C98*1000)) -> 1082.088 | D93: =IF(Inputs!D98="","",IF(units=2,Inputs!D98*95.76,Inputs!D98)) -> 23.36544 | E93: =IF(Inputs!E98="","",IF(units=2,Inputs!E98*95.76,Inputs!E98)) -> 55.24279488 | F93: 11.38523847 | G93: 1093.136559 | H93: 2.137467621 | I93: 16.64695871 | J93: 1579.620682 | K93: 39.49003683 | L93: 28.10479836 | M93: 0.5680642275 | N93: 2.071931997 | O93: 18.15494301 | P93: 71.9493852 | Q93: 0.08526430266 | R93: 1.1 | S93: 1.153865122 | T93: 1.037172588 | U93: 0.9840808608 | V93: 0.1088518491 | W93: 0.1241879695 | X93: 0.5511341125 | Y93: 0.1975051928 | Z93: 2.241078616 | AA93: 37.48991573 | AB93: 0.801893103 | AC93: 2.462006465 | AD93: 29.07914105 | AE93: 2.568706942 | AF93: 74.69579147 | AG93: 0.1187588916 | AH93: 0.1187588916 | AI93: 1.27 | AJ93: 0.984126443 | AK93: 0.1155249636 | AL93: 0.8 | AM93: 1 | AN93: 0.4951279042 | AO93: 0.239854976 | AP93: 83 | AQ93: 2.074974768 | AR93: 2.462006465 | AS93: -0.04532826319 | AT93: 0.04532826319 | AU93: YES-TLC | AV93: 0.024999696 | AW93: <4 consecutive layers | AX93: 1 | AY93: Negative Change | AZ93: 0.1 | BA93: Yes | BB93: 1082.09 | BC93: No
A94: 84 | B94: =IF(Inputs!B99="","",IF(units=2,CONVERT(Inputs!B99,"ft","m"),Inputs!B99)) -> 2.099974464 | C94: =IF(Inputs!C99="","",IF(units=2,Inputs!C99*95.76,Inputs!C99*1000)) -> 1129.0104 | D94: =IF(Inputs!D99="","",IF(units=2,Inputs!D99*95.76,Inputs!D99)) -> 25.28064 | E94: =IF(Inputs!E99="","",IF(units=2,Inputs!E99*95.76,Inputs!E99)) -> 65.69978688 | F94: 11.63048549 | G94: 1142.150357 | H94: 2.213424864 | I94: 16.75439984 | J94: 1596.375081 | K94: 39.90889174 | L94: 28.27840625 | M94: 0.5654089504 | N94: 2.057711651 | O94: 18.94219275 | P94: 72.89380605 | Q94: 0.08591029665 | R94: 1.1 | S94: 1.156413194 | T94: 1.037788182 | U94: 0.9837639204 | V94: 0.1096331923 | W94: 0.1251536345 | X94: 0.5530538 | Y94: 0.1982324184 | Z94: 2.321238177 | AA94: 38.97820323 | AB94: 0.8007664205 | AC94: 2.458824441 | AD94: 30.22694644 | AE94: 2.553940648 | AF94: 77.19782719 | AG94: 0.1227856544 | AH94: 0.1227856544 | AI94: 1.27 | AJ94: 0.9839351954 | AK94: 0.1260430913 | AL94: 0.8 | AM94: 1 | AN94: 0.497210934 | AO94: 0.246948822 | AP94: 84 | AQ94: 2.099974464 | AR94: 2.458824441 | AS94: -0.003182024578 | AT94: 0.003182024578 | AU94: No TLC Needed | AV94: 0.024999696 | AW94: -- | AX94: 1 | AY94: Negative Change | AZ94: 0.1 | BA94: Yes | BB94: 1129.0104 | BC94: No
A95: 85 | B95: =IF(Inputs!B100="","",IF(units=2,CONVERT(Inputs!B100,"ft","m"),Inputs!B100)) -> 2.12497416 | C95: =IF(Inputs!C100="","",IF(units=2,Inputs!C100*95.76,Inputs!C100*1000)) -> 1098.3672 | D95: =IF(Inputs!D100="","",IF(units=2,Inputs!D100*95.76,Inputs!D100)) -> 24.4188 | E95: =IF(Inputs!E100="","",IF(units=2,Inputs!E100*95.76,Inputs!E100)) -> 64.44494784 | F95: 11.87573251 | G95: 1111.25619 | H95: 2.197405083 | I95: 16.70398596 | J95: 1613.079067 | K95: 40.32648631 | L95: 28.4507538 | M95: 0.5667015756 | N95: 2.054024075 | O95: 18.42807047 | P95: 72.43291675 | Q95: 0.08559459971 | R95: 1.1 | S95: 1.1551614 | T95: 1.037485759 | U95: 0.9834461079 | V95: 0.1092509171 | W95: 0.1246808977 | X95: 0.5554378867 | Y95: 0.1966933112 | Z95: 2.30792631 | AA95: 37.64152299 | AB95: 0.8046610347 | AC95: 2.468823305 | AD95: 29.37066319 | AE95: 2.600676969 | AF95: 76.38360732 | AG95: 0.1214460783 | AH95: 0.1214460783 | AI95: 1.27 | AJ95: 0.9837439477 | AK95: 0.1178218179 | AL95: 0.8 | AM95: 1 | AN95: 0.4992730402 | AO95: 0.2432458164 | AP95: 85 | AQ95: 2.12497416 | AR95: 2.468823305 | AS95: 0.009998864358 | AT95: 0.009998864358 | AU95: No TLC Needed | AV95: 0.024999696 | AW95: -- | AX95: 1 | AY95: Negative Change | AZ95: 0.1 | BA95: Yes | BB95: 1098.3672 | BC95: No
A96: 86 | B96: =IF(Inputs!B101="","",IF(units=2,CONVERT(Inputs!B101,"ft","m"),Inputs!B101)) -> 2.149973856 | C96: =IF(Inputs!C101="","",IF(units=2,Inputs!C101*95.76,Inputs!C101*1000)) -> 968.1336 | D96: =IF(Inputs!D101="","",IF(units=2,Inputs!D101*95.76,Inputs!D101)) -> 23.55696 | E96: =IF(Inputs!E101="","",IF(units=2,Inputs!E101*95.76,Inputs!E101)) -> 59.06706624 | F96: 12.12097953 | G96: 979.9470132 | H96: 2.403901403 | I96: 16.61443622 | J96: 1629.693504 | K96: 40.74184216 | L96: 28.62086264 | M96: 0.5710482986 | N96: 2.058376763 | O96: 16.24305078 | P96: 70.89880162 | Q96: 0.08454981419 | R96: 1.1 | S96: 1.151108155 | T96: 1.036506527 | U96: 0.983127425 | V96: 0.1079915841 | W96: 0.1231273799 | X96: 0.5581696071 | Y96: 0.1934744972 | Z96: 2.540130403 | AA96: 32.81540403 | AB96: 0.8323408697 | AC96: 2.54125347 | AD96: 26.54771891 | AE96: 2.969426702 | AF96: 78.83150541 | AG96: 0.125559863 | AH96: 0.125559863 | AI96: 1.27 | AJ96: 0.9835527 | AK96: 0.0831668042 | AL96: 0.8 | AM96: 1 | AN96: 0.5013199805 | AO96: 0.2504585252 | AP96: 86 | AQ96: 2.149973856 | AR96: 2.54125347 | AS96: 0.07243016481 | AT96: 0.07243016481 | AU96: No TLC Needed | AV96: 0.024999696 | AW96: -- | AX96: 1 | AY96: Positive Change | AZ96: <4 consecutive layers | BA96: No | BB96: 968.1336 | BC96: No
A97: 87 | B97: =IF(Inputs!B102="","",IF(units=2,CONVERT(Inputs!B102,"ft","m"),Inputs!B102)) -> 2.174973552 | C97: =IF(Inputs!C102="","",IF(units=2,Inputs!C102*95.76,Inputs!C102*1000)) -> 934.6176 | D97: =IF(Inputs!D102="","",IF(units=2,Inputs!D102*95.76,Inputs!D102)) -> 23.84424 | E97: =IF(Inputs!E102="","",IF(units=2,Inputs!E102*95.76,Inputs!E102)) -> 81.23588928 | F97: 12.36622655 | G97: 950.8647779 | H97: 2.507637317 | I97: 16.6168279 | J97: 1646.310332 | K97: 41.15725781 | L97: 28.79103126 | M97: 0.5719663792 | N97: 2.053791724 | O97: 15.68072953 | P97: 70.57786223 | Q97: 0.08433239688 | R97: 1.1 | S97: 1.150282046 | T97: 1.036306946 | U97: 0.9828078739 | V97: 0.1077305896 | W97: 0.1228061541 | X97: 0.5604539066 | Y97: 0.1922202492 | Z97: 2.668751916 | AA97: 31.5969064 | AB97: 0.8424674314 | AC97: 2.567611974 | AD97: 25.91548925 | AE97: 3.117226789 | AF97: 80.78445733 | AG97: 0.129030507 | AH97: 0.129030507 | AI97: 1.27 | AJ97: 0.9833614523 | AK97: 0.07289833125 | AL97: 0.8 | AM97: 1 | AN97: 0.5033404425 | AO97: 0.25634838 | AP97: 87 | AQ97: 2.174973552 | AR97: 2.567611974 | AS97: 0.02635850394 | AT97: 0.02635850394 | AU97: No TLC Needed | AV97: 0.024999696 | AW97: -- | AX97: 1 | AY97: Positive Change | AZ97: <4 consecutive layers | BA97: No | BB97: 934.6176 | BC97: No
A98: 88 | B98: =IF(Inputs!B103="","",IF(units=2,CONVERT(Inputs!B103,"ft","m"),Inputs!B103)) -> 2.199973248 | C98: =IF(Inputs!C103="","",IF(units=2,Inputs!C103*95.76,Inputs!C103*1000)) -> 801.5112 | D98: =IF(Inputs!D103="","",IF(units=2,Inputs!D103*95.76,Inputs!D103)) -> 21.45024 | E98: =IF(Inputs!E103="","",IF(units=2,Inputs!E103*95.76,Inputs!E103)) -> 81.17613504 | F98: 12.61147356 | G98: 817.746427 | H98: 2.623091865 | I98: 16.43728657 | J98: 1662.747618 | K98: 41.56818498 | L98: 28.95671141 | M98: 0.5775587783 | N98: 2.061451551 | O98: 13.44751088 | P98: 68.64592905 | Q98: 0.08303179851 | R98: 1.1 | S98: 1.145466 | T98: 1.035143427 | U98: 0.9824874565 | V98: 0.1061764645 | W98: 0.1208986563 | X98: 0.5632598328 | Y98: 0.1885035259 | Z98: 2.82261164 | AA98: 26.80477872 | AB98: 0.8694340747 | AC98: 2.638175981 | AD98: 22.76085766 | AE98: 3.550331675 | AF98: 80.80859391 | AG98: 0.1290744678 | AH98: 0.1290744678 | AI98: 1.27 | AJ98: 0.9831702047 | AK98: 0.03092355006 | AL98: 0.8 | AM98: 1 | AN98: 0.5053589589 | AO98: 0.2554114566 | AP98: 88 | AQ98: 2.199973248 | AR98: 2.638175981 | AS98: 0.07056400665 | AT98: 0.07056400665 | AU98: No TLC Needed | AV98: 0.024999696 | AW98: -- | AX98: 1 | AY98: Positive Change | AZ98: <4 consecutive layers | BA98: No | BB98: 801.5112 | BC98: No
A99: 89 | B99: =IF(Inputs!B104="","",IF(units=2,CONVERT(Inputs!B104,"ft","m"),Inputs!B104)) -> 2.224972944 | C99: =IF(Inputs!C104="","",IF(units=2,Inputs!C104*95.76,Inputs!C104*1000)) -> 725.8608 | D99: =IF(Inputs!D104="","",IF(units=2,Inputs!D104*95.76,Inputs!D104)) -> 14.17248 | E99: =IF(Inputs!E104="","",IF(units=2,Inputs!E104*95.76,Inputs!E104)) -> 59.72436288 | F99: 12.85672058 | G99: 737.8056726 | H99: 1.920896047 | I99: 15.92111182 | J99: 1678.66873 | K99: 41.96620793 | L99: 29.10948735 | M99: 0.5840637955 | N99: 2.07193858 | O99: 12.1782715 | P99: 66.44801541 | Q99: 0.08156853772 | R99: 1.1 | S99: 1.140307013 | T99: 1.033897057 | U99: 0.9821661748 | V99: 0.1044414119 | W99: 0.1187798352 | X99: 0.5661653903 | Y99: 0.1844715585 | Z99: 2.072319355 | AA99: 23.9042157 | AB99: 0.8531440582 | AC99: 2.59522216 | AD99: 19.90330832 | AE99: 3.280110305 | AF99: 65.28504672 | AG99: 0.1058776066 | AH99: 0.1058776066 | AI99: 1.27 | AJ99: 0.982978957 | AK99: 0.003620514414 | AL99: 0.8 | AM99: 1 | AN99: 0.5074214574 | AO99: 0.2086581185 | AP99: 89 | AQ99: 2.224972944 | AR99: 2.59522216 | AS99: -0.04295382038 | AT99: 0.04295382038 | AU99: YES-TLC | AV99: 0.024999696 | AW99: <4 consecutive layers | AX99: 1 | AY99: Negative Change | AZ99: <4 consecutive layers | BA99: No | BB99: 725.86 | BC99: No
A100: 90 | B100: =IF(Inputs!B105="","",IF(units=2,CONVERT(Inputs!B105,"ft","m"),Inputs!B105)) -> 2.24997264 | C100: =IF(Inputs!C105="","",IF(units=2,Inputs!C105*95.76,Inputs!C105*1000)) -> 735.4368 | D100: =IF(Inputs!D105="","",IF(units=2,Inputs!D105*95.76,Inputs!D105)) -> 12.83184 | E100: =IF(Inputs!E105="","",IF(units=2,Inputs!E105*95.76,Inputs!E105)) -> 58.1109984 | F100: 13.1019676 | G100: 747.0589997 | H100: 1.717647469 | I100: 15.81158116 | J100: 1694.480311 | K100: 42.36149265 | L100: 29.25952506 | M100: 0.5847680559 | N100: 2.067534389 | O100: 12.33893472 | P100: 66.21320832 | Q100: 0.08141320714 | R100: 1.1 | S100: 1.139775586 | T100: 1.033768668 | U100: 0.9818440308 | V100: 0.1042579957 | W100: 0.1185565143 | X100: 0.5684517309 | Y100: 0.1834069456 | Z100: 1.851435171 | AA100: 24.08437955 | AB100: 0.841280425 | AC100: 2.56388969 | AD100: 19.77489985 | AE100: 3.095902591 | AF100: 61.2211637 | AG100: 0.1013396695 | AH100: 0.1013396695 | AI100: 1.27 | AJ100: 0.9827877093 | AK100: 0.006416563452 | AL100: 0.8 | AM100: 1 | AN100: 0.5094753019 | AO100: 0.1989098768 | AP100: 90 | AQ100: 2.24997264 | AR100: 2.56388969 | AS100: -0.03133247 | AT100: 0.03133247 | AU100: YES-TLC | AV100: 0.024999696 | AW100: <4 consecutive layers | AX100: 1 | AY100: Negative Change | AZ100: <4 consecutive layers | BA100: No | BB100: 735.44 | BC100: No
A101: 91 | B101: =IF(Inputs!B106="","",IF(units=2,CONVERT(Inputs!B106,"ft","m"),Inputs!B106)) -> 2.274972336 | C101: =IF(Inputs!C106="","",IF(units=2,Inputs!C106*95.76,Inputs!C106*1000)) -> 656.9136 | D101: =IF(Inputs!D106="","",IF(units=2,Inputs!D106*95.76,Inputs!D106)) -> 11.68272 | E101: =IF(Inputs!E106="","",IF(units=2,Inputs!E106*95.76,Inputs!E106)) -> 45.2638368 | F101: 13.34721462 | G101: 665.9663674 | H101: 1.754250751 | I101: 15.65960095 | J101: 1710.139912 | K101: 42.75297792 | L101: 29.4057633 | M101: 0.5877446915 | N101: 2.069121103 | O101: 11.02149637 | P101: 65.22750925 | Q101: 0.0807631672 | R101: 1.099915546 | S101: 1.137585526 | T101: 1.033239567 | U101: 0.9815210265 | V101: 0.1034919112 | W101: 0.1176161004 | X101: 0.5710002645 | Y101: 0.1812466957 | Z101: 1.902225506 | AA101: 21.19357974 | AB101: 0.8612204862 | AC101: 2.616036405 | AD101: 17.85008483 | AE101: 3.408464161 | AF101: 60.84137442 | AG101: 0.1009449823 | AH101: 0.1009449823 | AI101: 1.27 | AJ101: 0.9825964616 | AK101: -0.02453866317 | AL101: 0.8 | AM101: 1 | AN101: 0.5115269808 | AO101: 0.1973404846 | AP101: 91 | AQ101: 2.274972336 | AR101: 2.616036405 | AS101: 0.05214671466 | AT101: 0.05214671466 | AU101: No TLC Needed | AV101: 0.024999696 | AW101: -- | AX101: 1 | AY101: Positive Change | AZ101: <4 consecutive layers | BA101: No | BB101: 656.9136 | BC101: No
A102: 92 | B102: =IF(Inputs!B107="","",IF(units=2,CONVERT(Inputs!B107,"ft","m"),Inputs!B107)) -> 2.299972032 | C102: =IF(Inputs!C107="","",IF(units=2,Inputs!C107*95.76,Inputs!C107*1000)) -> 587.0088 | D102: =IF(Inputs!D107="","",IF(units=2,Inputs!D107*95.76,Inputs!D107)) -> 8.42688 | E102: =IF(Inputs!E107="","",IF(units=2,Inputs!E107*95.76,Inputs!E107)) -> 43.08280704 | F102: 13.59246163 | G102: 595.6253614 | H102: 1.414795364 | I102: 15.24100871 | J102: 1725.380921 | K102: 43.1339985 | L102: 29.54153687 | M102: 0.5925683095 | N102: 2.075831294 | O102: 9.848654922 | P102: 63.65317839 | Q102: 0.07973154052 | R102: 1.098271984 | S102: 1.134222447 | T102: 1.032427074 | U102: 0.9811971638 | V102: 0.102280799 | W102: 0.1159747386 | X102: 0.5745618488 | Y102: 0.1780152985 | Z102: 1.549415413 | AA102: 18.70218755 | AB102: 0.8595823237 | AC102: 2.611560915 | AD102: 15.73001507 | AE102: 3.380457429 | AF102: 53.17464631 | AG102: 0.09398288476 | AH102: 0.09398288476 | AI102: 1.27 | AJ102: 0.982405214 | AK102: -0.05533404267 | AL102: 0.8 | AM102: 1 | AN102: 0.513613853 | AO102: 0.1829835473 | AP102: 92 | AQ102: 2.299972032 | AR102: 2.611560915 | AS102: -0.004475489697 | AT102: 0.004475489697 | AU102: No TLC Needed | AV102: 0.024999696 | AW102: -- | AX102: 1 | AY102: Negative Change | AZ102: <4 consecutive layers | BA102: No | BB102: 587.0088 | BC102: No
A103: 93 | B103: =IF(Inputs!B108="","",IF(units=2,CONVERT(Inputs!B108,"ft","m"),Inputs!B108)) -> 2.324971728 | C103: =IF(Inputs!C108="","",IF(units=2,Inputs!C108*95.76,Inputs!C108*1000)) -> 543.9168 | D103: =IF(Inputs!D108="","",IF(units=2,Inputs!D108*95.76,Inputs!D108)) -> 7.27776 | E103: =IF(Inputs!E108="","",IF(units=2,Inputs!E108*95.76,Inputs!E108)) -> 50.46245568 | F103: 13.83770865 | G103: 554.0092911 | H103: 1.313653059 | I103: 15.0445958 | J103: 1740.425517 | K103: 43.51010882 | L103: 29.67240017 | M103: 0.5948443597 | N103: 2.076196853 | O103: 9.125670466 | P103: 62.92011564 | Q103: 0.07925385886 | R103: 1.09733292 | S103: 1.132712109 | T103: 1.032062189 | U103: 0.9808724449 | V103: 0.1017218344 | W103: 0.1152015862 | X103: 0.5775224994 | Y103: 0.1761348424 | Z103: 1.454369042 | AA103: 17.20451259 | AB103: 0.8657477391 | AC103: 2.627573617 | AD103: 14.58938749 | AE103: 3.481700764 | AF103: 50.79588157 | AG103: 0.09218901059 | AH103: 0.09218901059 | AI103: 1.27 | AJ103: 0.9822139663 | AK103: -0.07638327985 | AL103: 0.8 | AM103: 1 | AN103: 0.5157070088 | AO103: 0.1787623768 | AP103: 93 | AQ103: 2.324971728 | AR103: 2.627573617 | AS103: 0.0160127018 | AT103: 0.0160127018 | AU103: No TLC Needed | AV103: 0.024999696 | AW103: -- | AX103: 1 | AY103: Positive Change | AZ103: <4 consecutive layers | BA103: No | BB103: 543.9168 | BC103: No
A104: 94 | B104: =IF(Inputs!B109="","",IF(units=2,CONVERT(Inputs!B109,"ft","m"),Inputs!B109)) -> 2.349971424 | C104: =IF(Inputs!C109="","",IF(units=2,Inputs!C109*95.76,Inputs!C109*1000)) -> 552.5352 | D104: =IF(Inputs!D109="","",IF(units=2,Inputs!D109*95.76,Inputs!D109)) -> 6.60744 | E104: =IF(Inputs!E109="","",IF(units=2,Inputs!E109*95.76,Inputs!E109)) -> 62.77182912 | F104: 14.08295567 | G104: 565.0895658 | H104: 1.16927305 | I104: 14.94103758 | J104: 1755.366554 | K104: 43.88363022 | L104: 29.80067455 | M104: 0.5955283538 | N104: 2.0726104 | O104: 9.270267358 | P104: 62.70103656 | Q104: 0.0791114234 | R104: 1.09681673 | S104: 1.132267508 | T104: 1.031954777 | U104: 0.9805468717 | V104: 0.1015553752 | W104: 0.1149470014 | X104: 0.580113853 | Y104: 0.1750611102 | Z104: 1.299011031 | AA104: 17.48973617 | AB104: 0.8537669318 | AC104: 2.595961791 | AD104: 14.62385153 | AE104: 3.284588809 | AF104: 48.03333907 | AG104: 0.09001177144 | AH104: 0.09001177144 | AI104: 1.27 | AJ104: 0.9820227186 | AK104: -0.07277125024 | AL104: 0.8 | AM104: 1 | AN104: 0.517794489 | AO104: 0.1738368665 | AP104: 94 | AQ104: 2.349971424 | AR104: 2.595961791 | AS104: -0.03161182619 | AT104: 0.03161182619 | AU104: YES-TLC | AV104: 0.024999696 | AW104: <4 consecutive layers | AX104: 1 | AY104: Negative Change | AZ104: <4 consecutive layers | BA104: No | BB104: 552.54 | BC104: No
A105: 95 | B105: =IF(Inputs!B110="","",IF(units=2,CONVERT(Inputs!B110,"ft","m"),Inputs!B110)) -> 2.37497112 | C105: =IF(Inputs!C110="","",IF(units=2,Inputs!C110*95.76,Inputs!C110*1000)) -> 582.2208 | D105: =IF(Inputs!D110="","",IF(units=2,Inputs!D110*95.76,Inputs!D110)) -> 5.55408 | E105: =IF(Inputs!E110="","",IF(units=2,Inputs!E110*95.76,Inputs!E110)) -> 69.85270656 | F105: 14.32820269 | G105: 596.1913413 | H105: 0.9315935364 | I105: 14.76181337 | J105: 1770.128367 | K105: 44.25267107 | L105: 29.92446838 | M105: 0.596713061 | N105: 2.070489545 | O105: 9.768323316 | P105: 62.32291116 | Q105: 0.07886592661 | R105: 1.096189355 | S105: 1.131507414 | T105: 1.031771144 | U105: 0.9802204462 | V105: 0.1012686962 | W105: 0.1145365708 | X105: 0.5828153782 | Y105: 0.1737577627 | Z105: 1.032418038 | AA105: 18.44439351 | AB105: 0.8271678587 | AC105: 2.525987616 | AD105: 14.93884059 | AE105: 2.887201517 | AF105: 43.13144323 | AG105: 0.08592849221 | AH105: 0.08592849221 | AI105: 1.27 | AJ105: 0.9818314709 | AK105: -0.05932382018 | AL105: 0.8 | AM105: 1 | AN105: 0.5198875663 | AO105: 0.1652828376 | AP105: 95 | AQ105: 2.37497112 | AR105: 2.525987616 | AS105: -0.06997417474 | AT105: 0.06997417474 | AU105: YES-TLC | AV105: 0.024999696 | AW105: <4 consecutive layers | AX105: 1 | AY105: Negative Change | AZ105: <4 consecutive layers | BA105: No | BB105: 582.22 | BC105: No
A106: 96 | B106: =IF(Inputs!B111="","",IF(units=2,CONVERT(Inputs!B111,"ft","m"),Inputs!B111)) -> 2.399970816 | C106: =IF(Inputs!C111="","",IF(units=2,Inputs!C111*95.76,Inputs!C111*1000)) -> 590.8392 | D106: =IF(Inputs!D111="","",IF(units=2,Inputs!D111*95.76,Inputs!D111)) -> 5.7456 | E106: =IF(Inputs!E111="","",IF(units=2,Inputs!E111*95.76,Inputs!E111)) -> 70.24110912 | F106: 14.5734497 | G106: 604.8874218 | H106: 0.9498627005 | I106: 14.80636332 | J106: 1784.934731 | K106: 44.62282565 | L106: 30.04937594 | M106: 0.5961353158 | N106: 2.063899754 | O106: 9.912920207 | P106: 62.50710096 | Q106: 0.07898545719 | R106: 1.096006134 | S106: 1.131876517 | T106: 1.031860316 | U106: 0.9798931705 | V106: 0.1014082429 | W106: 0.1146851411 | X106: 0.5850993333 | Y106: 0.1733179942 | Z106: 1.051890838 | AA106: 18.64479972 | AB106: 0.8271860588 | AC106: 2.525873608 | AD106: 15.11236727 | AE106: 2.88659665 | AF106: 43.62330874 | AG106: 0.08633821618 | AH106: 0.08633821618 | AI106: 1.27 | AJ106: 0.9816402233 | AK106: -0.05596628131 | AL106: 0.8 | AM106: 1 | AN106: 0.521955397 | AO106: 0.1654130155 | AP106: 96 | AQ106: 2.399970816 | AR106: 2.525873608 | AS106: -0.0001140080513 | AT106: 0.0001140080513 | AU106: No TLC Needed | AV106: 0.024999696 | AW106: -- | AX106: 1 | AY106: Negative Change | AZ106: <4 consecutive layers | BA106: No | BB106: 590.8392 | BC106: No
A107: 97 | B107: =IF(Inputs!B112="","",IF(units=2,CONVERT(Inputs!B112,"ft","m"),Inputs!B112)) -> 2.424970512 | C107: =IF(Inputs!C112="","",IF(units=2,Inputs!C112*95.76,Inputs!C112*1000)) -> 536.256 | D107: =IF(Inputs!D112="","",IF(units=2,Inputs!D112*95.76,Inputs!D112)) -> 5.55408 | E107: =IF(Inputs!E112="","",IF(units=2,Inputs!E112*95.76,Inputs!E112)) -> 68.717376 | F107: 14.81869672 | G107: 549.9994752 | H107: 1.009833691 | I107: 14.73089122 | J107: 1799.665622 | K107: 44.99109345 | L107: 30.17239673 | M107: 0.5972241717 | N107: 2.061596649 | O107: 8.997139896 | P107: 62.16029827 | Q107: 0.07876048333 | R107: 1.095410897 | S107: 1.131183358 | T107: 1.031692855 | U107: 0.9795650465 | V107: 0.1011456507 | W107: 0.114307491 | X107: 0.5877406062 | Y107: 0.1720923306 | Z107: 1.130567221 | AA107: 16.73743012 | AB107: 0.848665877 | AC107: 2.58209175 | AD107: 13.93384147 | AE107: 3.201608608 | AF107: 44.6107068 | AG107: 0.08716071877 | AH107: 0.08716071877 | AI107: 1.27 | AJ107: 0.9814489756 | AK107: -0.08251349051 | AL107: 0.8 | AM107: 1 | AN107: 0.5240152201 | AO107: 0.1663324183 | AP107: 97 | AQ107: 2.424970512 | AR107: 2.58209175 | AS107: 0.05621814238 | AT107: 0.05621814238 | AU107: No TLC Needed | AV107: 0.024999696 | AW107: -- | AX107: 1 | AY107: Positive Change | AZ107: 0.2 | BA107: Yes | BB107: 536.256 | BC107: No
A108: 98 | B108: =IF(Inputs!B113="","",IF(units=2,CONVERT(Inputs!B113,"ft","m"),Inputs!B113)) -> 2.449970208 | C108: =IF(Inputs!C113="","",IF(units=2,Inputs!C113*95.76,Inputs!C113*1000)) -> 499.8672 | D108: =IF(Inputs!D113="","",IF(units=2,Inputs!D113*95.76,Inputs!D113)) -> 5.2668 | E108: =IF(Inputs!E113="","",IF(units=2,Inputs!E113*95.76,Inputs!E113)) -> 68.8667616 | F108: 15.06394374 | G108: 513.6405523 | H108: 1.025386328 | I108: 14.64357339 | J108: 1814.309195 | K108: 45.35717833 | L108: 30.29323459 | M108: 0.5982430428 | N108: 2.059213047 | O108: 8.386619689 | P108: 61.83707035 | Q108: 0.07855112695 | R108: 1.094843319 | S108: 1.130544244 | T108: 1.03153845 | U108: 0.9792360763 | V108: 0.1009014963 | W108: 0.1139554235 | X108: 0.5903554142 | Y108: 0.1709165256 | Z108: 1.15878633 | AA108: 15.45834838 | AB108: 0.862185146 | AC108: 2.61741889 | AD108: 13.08871414 | AE108: 3.417160913 | AF108: 44.72624237 | AG108: 0.08725695989 | AH108: 0.08725695989 | AI108: 1.27 | AJ108: 0.9812577279 | AK108: -0.1019026452 | AL108: 0.8 | AM108: 1 | AN108: 0.5260692388 | AO108: 0.1658659231 | AP108: 98 | AQ108: 2.449970208 | AR108: 2.61741889 | AS108: 0.0353271393 | AT108: 0.0353271393 | AU108: No TLC Needed | AV108: 0.024999696 | AW108: -- | AX108: 1 | AY108: Positive Change | AZ108: 0.2 | BA108: Yes | BB108: 499.8672 | BC108: No
A109: 99 | B109: =IF(Inputs!B114="","",IF(units=2,CONVERT(Inputs!B114,"ft","m"),Inputs!B114)) -> 2.474969904 | C109: =IF(Inputs!C114="","",IF(units=2,Inputs!C114*95.76,Inputs!C114*1000)) -> 446.2416 | D109: =IF(Inputs!D114="","",IF(units=2,Inputs!D114*95.76,Inputs!D114)) -> 4.50072 | E109: =IF(Inputs!E114="","",IF(units=2,Inputs!E114*95.76,Inputs!E114)) -> 67.19364288 | F109: 15.30919076 | G109: 459.6803286 | H109: 0.9790978035 | I109: 14.42020156 | J109: 1828.729397 | K109: 45.71767899 | L109: 30.40848823 | M109: 0.6003463401 | N109: 2.059748092 | O109: 7.486905699 | P109: 61.1737324 | Q109: 0.07812244513 | R109: 1.094029064 | S109: 1.129253413 | T109: 1.031226595 | U109: 0.978906262 | V109: 0.1004021749 | W109: 0.1132729171 | X109: 0.593212978 | Y109: 0.1692514807 | Z109: 1.123708164 | AA109: 13.61339131 | AB109: 0.8781798987 | AC109: 2.659250594 | AD109: 11.75677774 | AE109: 3.690568221 | AF109: 43.38919029 | AG109: 0.08614319551 | AH109: 0.08614319551 | AI109: 1.27 | AJ109: 0.9810664802 | AK109: -0.1328450118 | AL109: 0.8 | AM109: 1 | AN109: 0.5281377591 | AO109: 0.1631074356 | AP109: 99 | AQ109: 2.474969904 | AR109: 2.659250594 | AS109: 0.04183170477 | AT109: 0.04183170477 | AU109: No TLC Needed | AV109: 0.024999696 | AW109: -- | AX109: 1 | AY109: Positive Change | AZ109: 0.2 | BA109: Yes | BB109: 446.2416 | BC109: No
A110: 100 | B110: =IF(Inputs!B115="","",IF(units=2,CONVERT(Inputs!B115,"ft","m"),Inputs!B115)) -> 2.4999696 | C110: =IF(Inputs!C115="","",IF(units=2,Inputs!C115*95.76,Inputs!C115*1000)) -> 408.8952 | D110: =IF(Inputs!D115="","",IF(units=2,Inputs!D115*95.76,Inputs!D115)) -> 4.02192 | E110: =IF(Inputs!E115="","",IF(units=2,Inputs!E115*95.76,Inputs!E115)) -> 66.65585472 | F110: 15.55443778 | G110: 422.2263709 | H110: 0.9525506403 | I110: 14.25822803 | J110: 1842.987625 | K110: 46.07413036 | L110: 30.51969258 | M110: 0.6017099094 | N110: 2.058604751 | O110: 6.860319171 | P110: 60.74649771 | Q110: 0.07784702148 | R110: 1.093413393 | S110: 1.128436711 | T110: 1.031029287 | U110: 0.9785756055 | V110: 0.1000817908 | W110: 0.1128263291 | X110: 0.5959079013 | Y110: 0.1679484204 | Z110: 1.108513352 | AA110: 12.32490267 | AB110: 0.8916584717 | AC110: 2.694483397 | AD110: 10.82237998 | AE110: 3.936533037 | AF110: 42.60265631 | AG110: 0.08548801271 | AH110: 0.08548801271 | AI110: 1.27 | AJ110: 0.9808752326 | AK110: -0.1567773584 | AL110: 0.8 | AM110: 1 | AN110: 0.5302127867 | AO110: 0.1612334045 | AP110: 100 | AQ110: 2.4999696 | AR110: 2.694483397 | AS110: 0.0352328028 | AT110: 0.0352328028 | AU110: No TLC Needed | AV110: 0.024999696 | AW110: -- | AX110: 1 | AY110: Positive Change | AZ110: 0.2 | BA110: Yes | BB110: 408.8952 | BC110: No
A111: 101 | B111: =IF(Inputs!B116="","",IF(units=2,CONVERT(Inputs!B116,"ft","m"),Inputs!B116)) -> 2.524969296 | C111: =IF(Inputs!C116="","",IF(units=2,Inputs!C116*95.76,Inputs!C116*1000)) -> 385.9128 | D111: =IF(Inputs!D116="","",IF(units=2,Inputs!D116*95.76,Inputs!D116)) -> 3.8304 | E111: =IF(Inputs!E116="","",IF(units=2,Inputs!E116*95.76,Inputs!E116)) -> 67.76130816 | F111: 15.79968479 | G111: 399.4650616 | H111: 0.9588823574 | I111: 14.18085557 | J111: 1857.168481 | K111: 46.42864743 | L111: 30.62896264 | M111: 0.6023597415 | N111: 2.055780202 | O111: 6.474727461 | P111: 60.54366632 | Q111: 0.07771644582 | R111: 1.092978955 | S111: 1.128052977 | T111: 1.030936579 | U111: 0.9782441089 | V111: 0.0999300134 | W111: 0.1126003382 | X111: 0.5984396955 | Y111: 0.1669842662 | Z111: 1.12830009 | AA111: 11.52622824 | AB111: 0.9028784126 | AC111: 2.723790537 | AD111: 10.26181925 | AE111: 4.152313656 | AF111: 42.61029222 | AG111: 0.08549437342 | AH111: 0.08549437342 | AI111: 1.27 | AJ111: 0.9806839849 | AK111: -0.1727785368 | AL111: 0.8 | AM111: 1 | AN111: 0.5322825924 | AO111: 0.1606183907 | AP111: 101 | AQ111: 2.524969296 | AR111: 2.723790537 | AS111: 0.02930713997 | AT111: 0.02930713997 | AU111: No TLC Needed | AV111: 0.024999696 | AW111: -- | AX111: 1 | AY111: Positive Change | AZ111: 0.2 | BA111: Yes | BB111: 385.9128 | BC111: No
A112: 102 | B112: =IF(Inputs!B117="","",IF(units=2,CONVERT(Inputs!B117,"ft","m"),Inputs!B117)) -> 2.549968992 | C112: =IF(Inputs!C117="","",IF(units=2,Inputs!C117*95.76,Inputs!C117*1000)) -> 349.524 | D112: =IF(Inputs!D117="","",IF(units=2,Inputs!D117*95.76,Inputs!D117)) -> 3.92616 | E112: =IF(Inputs!E117="","",IF(units=2,Inputs!E117*95.76,Inputs!E117)) -> 68.1198336 | F112: 16.04493181 | G112: 363.1479667 | H112: 1.081146078 | I112: 14.17271206 | J112: 1871.341193 | K112: 46.78296093 | L112: 30.73802912 | M112: 0.6028030377 | N112: 2.052468233 | O112: 5.864207254 | P112: 60.40558706 | Q112: 0.07762762202 | R112: 1.092596754 | S112: 1.127793213 | T112: 1.030873823 | U112: 0.9779117743 | V112: 0.09982680846 | W112: 0.1124378685 | X112: 0.600909545 | Y112: 0.166126182 | Z112: 1.296870755 | AA112: 10.29229963 | AB112: 0.9303243083 | AC112: 2.795685749 | AD112: 9.47147428 | AE112: 4.725868288 | AF112: 44.76093995 | AG112: 0.08728586297 | AH112: 0.08728586297 | AI112: 1.27 | AJ112: 0.9804927372 | AK112: -0.1998164093 | AL112: 0.8 | AM112: 1 | AN112: 0.5343373165 | AO112: 0.1633534853 | AP112: 102 | AQ112: 2.549968992 | AR112: 2.795685749 | AS112: 0.0718952115 | AT112: 0.0718952115 | AU112: No TLC Needed | AV112: 0.024999696 | AW112: -- | AX112: 1 | AY112: Positive Change | AZ112: 0.2 | BA112: Yes | BB112: 349.524 | BC112: No
A113: 103 | B113: =IF(Inputs!B118="","",IF(units=2,CONVERT(Inputs!B118,"ft","m"),Inputs!B118)) -> 2.574968688 | C113: =IF(Inputs!C118="","",IF(units=2,Inputs!C118*95.76,Inputs!C118*1000)) -> 338.0328 | D113: =IF(Inputs!D118="","",IF(units=2,Inputs!D118*95.76,Inputs!D118)) -> 4.3092 | E113: =IF(Inputs!E118="","",IF(units=2,Inputs!E118*95.76,Inputs!E118)) -> 64.59433344 | F113: 16.29017883 | G113: 350.9516667 | H113: 1.227861386 | I113: 14.26669647 | J113: 1885.607889 | K113: 47.139624 | L113: 30.84944517 | M113: 0.6024473001 | N113: 2.047130402 | O113: 5.671411399 | P113: 60.51637491 | Q113: 0.0776988855 | R113: 1.092400634 | S113: 1.12800154 | T113: 1.030924153 | U113: 0.9775786036 | V113: 0.09990960731 | W113: 0.1125164212 | X113: 0.6031772368 | Y113: 0.1656388889 | Z113: 1.481368542 | AA113: 9.848217398 | AB113: 0.9474039617 | AC113: 2.840369932 | AD113: 9.251100316 | AE113: 5.114849902 | AF113: 47.31798954 | AG113: 0.08941588529 | AH113: 0.08941588529 | AI113: 1.27 | AJ113: 0.9803014895 | AK113: -0.2092796853 | AL113: 0.8 | AM113: 1 | AN113: 0.5363618197 | AO113: 0.1667081474 | AP113: 103 | AQ113: 2.574968688 | AR113: 2.840369932 | AS113: 0.04468418336 | AT113: 0.04468418336 | AU113: No TLC Needed | AV113: 0.024999696 | AW113: -- | AX113: 1 | AY113: Positive Change | AZ113: 0.2 | BA113: Yes | BB113: 338.0328 | BC113: No
A114: 104 | B114: =IF(Inputs!B119="","",IF(units=2,CONVERT(Inputs!B119,"ft","m"),Inputs!B119)) -> 2.599968384 | C114: =IF(Inputs!C119="","",IF(units=2,Inputs!C119*95.76,Inputs!C119*1000)) -> 324.6264 | D114: =IF(Inputs!D119="","",IF(units=2,Inputs!D119*95.76,Inputs!D119)) -> 4.3092 | E114: =IF(Inputs!E119="","",IF(units=2,Inputs!E119*95.76,Inputs!E119)) -> 54.73488384 | F114: 16.53542585 | G114: 335.5733768 | H114: 1.284130476 | I114: 14.2495154 | J114: 1899.857404 | K114: 47.49585756 | L114: 30.96043171 | M114: 0.6026218478 | N114: 2.043128949 | O114: 5.446482902 | P114: 60.46199659 | Q114: 0.0776639027 | R114: 1.092080123 | S114: 1.127899191 | T114: 1.030899426 | U114: 0.977244599 | V114: 0.0998689592 | W114: 0.1124349482 | X114: 0.6055421263 | Y114: 0.1649248745 | Z114: 1.554935072 | AA114: 9.304699686 | AB114: 0.9595785928 | AC114: 2.872180597 | AD114: 8.869292748 | AE114: 5.407330954 | AF114: 47.95920122 | AG114: 0.08995001461 | AH114: 0.08995001461 | AI114: 1.27 | AJ114: 0.9801102419 | AK114: -0.2206255692 | AL114: 0.8 | AM114: 1 | AN114: 0.5383727746 | AO114: 0.1670775694 | AP114: 104 | AQ114: 2.599968384 | AR114: 2.872180597 | AS114: 0.03181066532 | AT114: 0.03181066532 | AU114: No TLC Needed | AV114: 0.024999696 | AW114: -- | AX114: 1 | AY114: Positive Change | AZ114: 0.2 | BA114: Yes | BB114: 324.6264 | BC114: No
A115: 105 | B115: =IF(Inputs!B120="","",IF(units=2,CONVERT(Inputs!B120,"ft","m"),Inputs!B120)) -> 2.62496808 | C115: =IF(Inputs!C120="","",IF(units=2,Inputs!C120*95.76,Inputs!C120*1000)) -> 369.6336 | D115: =IF(Inputs!D120="","",IF(units=2,Inputs!D120*95.76,Inputs!D120)) -> 4.40496 | E115: =IF(Inputs!E120="","",IF(units=2,Inputs!E120*95.76,Inputs!E120)) -> 54.46598976 | F115: 16.78067286 | G115: 380.526798 | H115: 1.157595214 | I115: 14.32300244 | J115: 1914.180407 | K115: 47.85392826 | L115: 31.0732554 | M115: 0.6014942934 | N115: 2.035940024 | O115: 6.2016 | P115: 60.81390808 | Q115: 0.07789044385 | R115: 1.092065389 | S115: 1.128564813 | T115: 1.031060235 | U115: 0.9769097625 | V115: 0.1001322797 | W115: 0.1127474647 | X115: 0.6075972028 | Y115: 0.1648004291 | Z115: 1.368936694 | AA115: 10.70608359 | AB115: 0.9290796253 | AC115: 2.791984687 | AD115: 9.845212264 | AE115: 4.69478081 | AF115: 46.22111361 | AG115: 0.08850218764 | AH115: 0.08850218764 | AI115: 1.27 | AJ115: 0.9799189942 | AK115: -0.1863361052 | AL115: 0.8 | AM115: 1 | AN115: 0.5403565895 | AO115: 0.1637847846 | AP115: 105 | AQ115: 2.62496808 | AR115: 2.791984687 | AS115: -0.08019590994 | AT115: 0.08019590994 | AU115: YES-TLC | AV115: 0.024999696 | AW115: <4 consecutive layers | AX115: 1 | AY115: Negative Change | AZ115: <4 consecutive layers | BA115: No | BB115: 369.63 | BC115: No
A116: 106 | B116: =IF(Inputs!B121="","",IF(units=2,CONVERT(Inputs!B121,"ft","m"),Inputs!B121)) -> 2.649967776 | C116: =IF(Inputs!C121="","",IF(units=2,Inputs!C121*95.76,Inputs!C121*1000)) -> 444.3264 | D116: =IF(Inputs!D121="","",IF(units=2,Inputs!D121*95.76,Inputs!D121)) -> 4.3092 | E116: =IF(Inputs!E121="","",IF(units=2,Inputs!E121*95.76,Inputs!E121)) -> 53.68918464 | F116: 17.02591988 | G116: 455.0642369 | H116: 0.9469432336 | I116: 14.36631001 | J116: 1928.546717 | K116: 48.21308165 | L116: 31.18716176 | M116: 0.600133862 | N116: 2.028210181 | O116: 7.454773057 | P116: 61.24050481 | Q116: 0.0781655386 | R116: 1.092104537 | S116: 1.129382091 | T116: 1.031257683 | U116: 0.9765740962 | V116: 0.1004523327 | W116: 0.1131335552 | X116: 0.6095733726 | Y116: 0.1647912085 | Z116: 1.087870516 | AA116: 13.04546911 | AB116: 0.8822276545 | AC116: 2.668866107 | AD116: 11.3550955 | AE116: 3.756255856 | AF116: 42.65264396 | AG116: 0.08552965242 | AH116: 0.08552965242 | AI116: 1.27 | AJ116: 0.9797277465 | AK116: -0.1375213832 | AL116: 0.8 | AM116: 1 | AN116: 0.5423178293 | AO116: 0.1577113047 | AP116: 106 | AQ116: 2.649967776 | AR116: 2.668866107 | AS116: -0.1231185804 | AT116: 0.1231185804 | AU116: YES-TLC | AV116: 0.024999696 | AW116: <4 consecutive layers | AX116: 1 | AY116: Negative Change | AZ116: <4 consecutive layers | BA116: No | BB116: 444.33 | BC116: No
A117: 107 | B117: =IF(Inputs!B122="","",IF(units=2,CONVERT(Inputs!B122,"ft","m"),Inputs!B122)) -> 2.674967472 | C117: =IF(Inputs!C122="","",IF(units=2,Inputs!C122*95.76,Inputs!C122*1000)) -> 451.0296 | D117: =IF(Inputs!D122="","",IF(units=2,Inputs!D122*95.76,Inputs!D122)) -> 5.2668 | E117: =IF(Inputs!E122="","",IF(units=2,Inputs!E122*95.76,Inputs!E122)) -> 52.22520576 | F117: 17.2711669 | G117: 461.4746412 | H117: 1.141297816 | I117: 14.60250842 | J117: 1943.149225 | K117: 48.57813992 | L117: 31.30697302 | M117: 0.5984925717 | N117: 2.019651413 | O117: 7.567237306 | P117: 61.75809847 | Q117: 0.07850002362 | R117: 1.092197675 | S117: 1.130389105 | T117: 1.031500969 | U117: 0.9762376021 | V117: 0.100841929 | W117: 0.1136088157 | X117: 0.6114312102 | Y117: 0.1649276767 | Z117: 1.308679561 | AA117: 13.18864334 | AB117: 0.8954661206 | AC117: 2.703457561 | AD117: 11.66487125 | AE117: 4.001518547 | AF117: 46.67719864 | AG117: 0.08888210647 | AH117: 0.08888210647 | AI117: 1.27 | AJ117: 0.9795364988 | AK117: -0.1340428255 | AL117: 0.8 | AM117: 1 | AN117: 0.5442267218 | AO117: 0.1633181594 | AP117: 107 | AQ117: 2.674967472 | AR117: 2.703457561 | AS117: 0.03459145365 | AT117: 0.03459145365 | AU117: No TLC Needed | AV117: 0.024999696 | AW117: -- | AX117: 1 | AY117: Positive Change | AZ117: 0.1 | BA117: Yes | BB117: 451.0296 | BC117: No
A118: 108 | B118: =IF(Inputs!B123="","",IF(units=2,CONVERT(Inputs!B123,"ft","m"),Inputs!B123)) -> 2.699967168 | C118: =IF(Inputs!C123="","",IF(units=2,Inputs!C123*95.76,Inputs!C123*1000)) -> 418.4712 | D118: =IF(Inputs!D123="","",IF(units=2,Inputs!D123*95.76,Inputs!D123)) -> 5.93712 | E118: =IF(Inputs!E123="","",IF(units=2,Inputs!E123*95.76,Inputs!E123)) -> 54.01783296 | F118: 17.51641392 | G118: 429.2747666 | H118: 1.383058233 | I118: 14.71258355 | J118: 1957.861809 | K118: 48.94595003 | L118: 31.42953611 | M118: 0.5984128097 | N118: 2.014745949 | O118: 7.020982383 | P118: 61.78333379 | Q118: 0.07851635159 | R118: 1.09191007 | S118: 1.130438636 | T118: 1.031512936 | U118: 0.9759002822 | V118: 0.10086096 | W118: 0.1136016521 | X118: 0.6136006947 | Y118: 0.1643755636 | Z118: 1.606688582 | AA118: 12.101 | AB118: 0.9249293255 | AC118: 2.780630066 | AD118: 11.0829898 | AE118: 4.600474983 | AF118: 50.9870173 | AG118: 0.09232712413 | AH118: 0.09232712413 | AI118: 1.27 | AJ118: 0.9793452512 | AK118: -0.1546672112 | AL118: 0.8 | AM118: 1 | AN118: 0.5461023554 | AO118: 0.1690656032 | AP118: 108 | AQ118: 2.699967168 | AR118: 2.780630066 | AS118: 0.07717250581 | AT118: 0.07717250581 | AU118: No TLC Needed | AV118: 0.024999696 | AW118: -- | AX118: 1 | AY118: Positive Change | AZ118: 0.1 | BA118: Yes | BB118: 418.4712 | BC118: No
A119: 109 | B119: =IF(Inputs!B124="","",IF(units=2,CONVERT(Inputs!B124,"ft","m"),Inputs!B124)) -> 2.724966864 | C119: =IF(Inputs!C124="","",IF(units=2,Inputs!C124*95.76,Inputs!C124*1000)) -> 383.9976 | D119: =IF(Inputs!D124="","",IF(units=2,Inputs!D124*95.76,Inputs!D124)) -> 5.55408 | E119: =IF(Inputs!E124="","",IF(units=2,Inputs!E124*95.76,Inputs!E124)) -> 64.35531648 | F119: 17.76166094 | G119: 396.8686633 | H119: 1.399475573 | I119: 14.60577063 | J119: 1972.46758 | K119: 49.31108986 | L119: 31.54942892 | M119: 0.5996761475 | N119: 2.013126018 | O119: 6.442594819 | P119: 61.38452634 | Q119: 0.07825853108 | R119: 1.091310308 | S119: 1.129660594 | T119: 1.031324967 | U119: 0.9755621387 | V119: 0.1005605974 | W119: 0.1131805066 | X119: 0.6160662318 | Y119: 0.1632301727 | Z119: 1.659487261 | AA119: 11.01628731 | AB119: 0.9410780338 | AC119: 2.822859845 | AD119: 10.28437761 | AE119: 4.959402495 | AF119: 51.00436798 | AG119: 0.09233971302 | AH119: 0.09233971302 | AI119: 1.27 | AJ119: 0.9791540035 | AK119: -0.1782382437 | AL119: 0.8 | AM119: 1 | AN119: 0.5479785253 | AO119: 0.1685097294 | AP119: 109 | AQ119: 2.724966864 | AR119: 2.822859845 | AS119: 0.04222977895 | AT119: 0.04222977895 | AU119: No TLC Needed | AV119: 0.024999696 | AW119: -- | AX119: 1 | AY119: Positive Change | AZ119: 0.1 | BA119: Yes | BB119: 383.9976 | BC119: No
A120: 110 | B120: =IF(Inputs!B125="","",IF(units=2,CONVERT(Inputs!B125,"ft","m"),Inputs!B125)) -> 2.74996656 | C120: =IF(Inputs!C125="","",IF(units=2,Inputs!C125*95.76,Inputs!C125*1000)) -> 373.464 | D120: =IF(Inputs!D125="","",IF(units=2,Inputs!D125*95.76,Inputs!D125)) -> 6.12864 | E120: =IF(Inputs!E125="","",IF(units=2,Inputs!E125*95.76,Inputs!E125)) -> 66.53634624 | F120: 18.00690795 | G120: 386.7712692 | H120: 1.584564441 | I120: 14.70912585 | J120: 1987.176705 | K120: 49.67881353 | L120: 31.67190558 | M120: 0.5993693131 | N120: 2.007737485 | O120: 6.265865285 | P120: 61.48121237 | Q120: 0.07832099369 | R120: 1.09107973 | S120: 1.129848296 | T120: 1.031370314 | U120: 0.9752231736 | V120: 0.1006333396 | W120: 0.113243426 | X120: 0.6181488657 | Y120: 0.1627979039 | Z120: 1.892810498 | AA120: 10.6432641 | AB120: 0.9572595705 | AC120: 2.865172441 | AD120: 10.12719352 | AE120: 5.341771044 | AF120: 54.09714911 | AG120: 0.09472333129 | AH120: 0.09472333129 | AI120: 1.27 | AJ120: 0.9789627558 | AK120: -0.1862325361 | AL120: 0.8 | AM120: 1 | AN120: 0.5498226507 | AO120: 0.1722797909 | AP120: 110 | AQ120: 2.74996656 | AR120: 2.865172441 | AS120: 0.04231259608 | AT120: 0.04231259608 | AU120: No TLC Needed | AV120: 0.024999696 | AW120: -- | AX120: 1 | AY120: Positive Change | AZ120: 0.1 | BA120: Yes | BB120: 373.464 | BC120: No
A121: 111 | B121: =IF(Inputs!B126="","",IF(units=2,CONVERT(Inputs!B126,"ft","m"),Inputs!B126)) -> 2.774966256 | C121: =IF(Inputs!C126="","",IF(units=2,Inputs!C126*95.76,Inputs!C126*1000)) -> 406.0224 | D121: =IF(Inputs!D126="","",IF(units=2,Inputs!D126*95.76,Inputs!D126)) -> 6.2244 | E121: =IF(Inputs!E126="","",IF(units=2,Inputs!E126*95.76,Inputs!E126)) -> 67.76130816 | F121: 18.25215497 | G121: 419.5746616 | H121: 1.483502358 | I121: 14.75817553 | J121: 2001.934881 | K121: 50.04776344 | L121: 31.79560846 | M121: 0.5983611356 | N121: 2.000712851 | O121: 6.812120207 | P121: 61.79968663 | Q121: 0.07852693335 | R121: 1.091013108 | S121: 1.130470755 | T121: 1.031520695 | U121: 0.974883389 | V121: 0.1008732942 | W121: 0.1135230675 | X121: 0.6200481954 | Y121: 0.1626862152 | Z121: 1.748551543 | AA121: 11.62194769 | AB121: 0.93806189 | AC121: 2.814624612 | AD121: 10.8168897 | AE121: 4.887643207 | AF121: 52.86909747 | AG121: 0.09374322442 | AH121: 0.09374322442 | AI121: 1.27 | AJ121: 0.9787715081 | AK121: -0.1643745428 | AL121: 0.8 | AM121: 1 | AN121: 0.5516432253 | AO121: 0.1699345159 | AP121: 111 | AQ121: 2.774966256 | AR121: 2.814624612 | AS121: -0.05054782954 | AT121: 0.05054782954 | AU121: YES-TLC | AV121: 0.024999696 | AW121: <4 consecutive layers | AX121: 1 | AY121: Negative Change | AZ121: <4 consecutive layers | BA121: No | BB121: 406.02 | BC121: No
A122: 112 | B122: =IF(Inputs!B127="","",IF(units=2,CONVERT(Inputs!B127,"ft","m"),Inputs!B127)) -> 2.799965952 | C122: =IF(Inputs!C127="","",IF(units=2,Inputs!C127*95.76,Inputs!C127*1000)) -> 473.0544 | D122: =IF(Inputs!D127="","",IF(units=2,Inputs!D127*95.76,Inputs!D127)) -> 5.07528 | E122: =IF(Inputs!E127="","",IF(units=2,Inputs!E127*95.76,Inputs!E127)) -> 76.30616448 | F122: 18.49740199 | G122: 488.3156329 | H122: 1.039344157 | I122: 14.58157692 | J122: 2016.516458 | K122: 50.41229843 | L122: 31.91489644 | M122: 0.5981073945 | N122: 1.995649831 | O122: 7.936762694 | P122: 61.88003205 | Q122: 0.07857893555 | R122: 1.090779125 | S122: 1.130628807 | T122: 1.03155888 | U122: 0.974542787 | V122: 0.1009339156 | W122: 0.1135711337 | X122: 0.622123044 | Y122: 0.1622410817 | Z122: 1.200845818 | AA122: 13.72096993 | AB122: 0.8830801863 | AC122: 2.670161179 | AD122: 11.98735682 | AE122: 3.765185183 | AF122: 45.13461828 | AG122: 0.08759713702 | AH122: 0.08759713702 | AI122: 1.27 | AJ122: 0.9785802605 | AK122: -0.1239454505 | AL122: 0.8 | AM122: 1 | AN122: 0.553476195 | AO122: 0.1582672169 | AP122: 112 | AQ122: 2.799965952 | AR122: 2.670161179 | AS122: -0.1444634325 | AT122: 0.1444634325 | AU122: YES-TLC | AV122: 0.024999696 | AW122: <4 consecutive layers | AX122: 1 | AY122: Negative Change | AZ122: <4 consecutive layers | BA122: No | BB122: 473.05 | BC122: No
A123: 113 | B123: =IF(Inputs!B128="","",IF(units=2,CONVERT(Inputs!B128,"ft","m"),Inputs!B128)) -> 2.824965648 | C123: =IF(Inputs!C128="","",IF(units=2,Inputs!C128*95.76,Inputs!C128*1000)) -> 533.3832 | D123: =IF(Inputs!D128="","",IF(units=2,Inputs!D128*95.76,Inputs!D128)) -> 7.6608 | E123: =IF(Inputs!E128="","",IF(units=2,Inputs!E128*95.76,Inputs!E128)) -> 78.36768576 | F123: 18.74264901 | G123: 549.0567372 | H123: 1.39526564 | I123: 15.10015613 | J123: 2031.616614 | K123: 50.78979774 | L123: 32.04714873 | M123: 0.5934877864 | N123: 1.980161886 | O123: 8.948940933 | P123: 63.35628377 | Q123: 0.07953787552 | R123: 1.091558033 | S123: 1.133606534 | T123: 1.032278275 | U123: 0.9742013696 | V123: 0.1020540454 | W123: 0.1149936455 | X123: 0.6230965737 | Y123: 0.1637852777 | Z123: 1.587423277 | AA123: 15.54793356 | AB123: 0.8887932394 | AC123: 2.68498478 | AD123: 13.67972573 | AE123: 3.868788452 | AF123: 52.92396491 | AG123: 0.09378605691 | AH123: 0.09378605691 | AI123: 1.27 | AJ123: 0.9783890128 | AK123: -0.09235378615 | AL123: 0.8 | AM123: 1 | AN123: 0.555211037 | AO123: 0.1689196552 | AP123: 113 | AQ123: 2.824965648 | AR123: 2.68498478 | AS123: 0.01482360029 | AT123: 0.01482360029 | AU123: No TLC Needed | AV123: 0.024999696 | AW123: -- | AX123: 1 | AY123: Positive Change | AZ123: <4 consecutive layers | BA123: No | BB123: 533.3832 | BC123: No
A124: 114 | B124: =IF(Inputs!B129="","",IF(units=2,CONVERT(Inputs!B129,"ft","m"),Inputs!B129)) -> 2.849965344 | C124: =IF(Inputs!C129="","",IF(units=2,Inputs!C129*95.76,Inputs!C129*1000)) -> 686.5992 | D124: =IF(Inputs!D129="","",IF(units=2,Inputs!D129*95.76,Inputs!D129)) -> 9.95904 | E124: =IF(Inputs!E129="","",IF(units=2,Inputs!E129*95.76,Inputs!E129)) -> 77.77014336 | F124: 18.98789602 | G124: 702.1532287 | H124: 1.418357076 | I124: 15.49626456 | J124: 2047.112879 | K124: 51.17719964 | L124: 32.18930362 | M124: 0.5870164669 | N124: 1.960365965 | O124: 11.51955233 | P124: 65.46765267 | Q124: 0.08092123644 | R124: 1.092792298 | S124: 1.138113039 | T124: 1.033367011 | U124: 0.973859139 | V124: 0.1036779816 | W124: 0.117078932 | X124: 0.6234936292 | Y124: 0.166285551 | Z124: 1.567311172 | AA124: 20.22336478 | AB124: 0.8510616921 | AC124: 2.585767732 | AD124: 17.04831216 | AE124: 3.223394861 | AF124: 54.95344181 | AG124: 0.09543361431 | AH124: 0.09543361431 | AI124: 1.27 | AJ124: 0.9781977651 | AK124: -0.02529775187 | AL124: 0.8 | AM124: 1 | AN124: 0.5568664323 | AO124: 0.1713761304 | AP124: 114 | AQ124: 2.849965344 | AR124: 2.585767732 | AS124: -0.09921704811 | AT124: 0.09921704811 | AU124: YES-TLC | AV124: 0.024999696 | AW124: <4 consecutive layers | AX124: 1 | AY124: Negative Change | AZ124: <4 consecutive layers | BA124: No | BB124: 686.6 | BC124: No
A125: 115 | B125: =IF(Inputs!B130="","",IF(units=2,CONVERT(Inputs!B130,"ft","m"),Inputs!B130)) -> 2.87496504 | C125: =IF(Inputs!C130="","",IF(units=2,Inputs!C130*95.76,Inputs!C130*1000)) -> 722.988 | D125: =IF(Inputs!D130="","",IF(units=2,Inputs!D130*95.76,Inputs!D130)) -> 11.39544 | E125: =IF(Inputs!E130="","",IF(units=2,Inputs!E130*95.76,Inputs!E130)) -> 76.87382976 | F125: 19.23314304 | G125: 738.362766 | H125: 1.543338928 | I125: 15.67053027 | J125: 2062.783409 | K125: 51.56895813 | L125: 32.33581509 | M125: 0.5845803276 | N125: 1.949714478 | O125: 12.13007254 | P125: 66.2757389 | Q125: 0.08145455433 | R125: 1.093033949 | S125: 1.139916741 | T125: 1.03380277 | U125: 0.9735160973 | V125: 0.1043068052 | W125: 0.1178647628 | X125: 0.6247978068 | Y125: 0.1669448966 | Z125: 1.69721728 | AA125: 21.23941536 | AB125: 0.8516776839 | AC125: 2.58719475 | AD125: 17.92956795 | AE125: 3.231892245 | AF125: 57.9464316 | AG125: 0.09809518548 | AH125: 0.09809518548 | AI125: 1.27 | AJ125: 0.9780065174 | AK125: -0.01209058627 | AL125: 0.8 | AM125: 1 | AN125: 0.5584775631 | AO125: 0.1756474959 | AP125: 115 | AQ125: 2.87496504 | AR125: 2.58719475 | AS125: 0.00142701847 | AT125: 0.00142701847 | AU125: No TLC Needed | AV125: 0.024999696 | AW125: -- | AX125: 1 | AY125: Negative Change | AZ125: <4 consecutive layers | BA125: No | BB125: 722.988 | BC125: No
A126: 116 | B126: =IF(Inputs!B131="","",IF(units=2,CONVERT(Inputs!B131,"ft","m"),Inputs!B131)) -> 2.899964736 | C126: =IF(Inputs!C131="","",IF(units=2,Inputs!C131*95.76,Inputs!C131*1000)) -> 587.0088 | D126: =IF(Inputs!D131="","",IF(units=2,Inputs!D131*95.76,Inputs!D131)) -> 13.21488 | E126: =IF(Inputs!E131="","",IF(units=2,Inputs!E131*95.76,Inputs!E131)) -> 116.6402765 | F126: 19.47839006 | G126: 610.3368553 | H126: 2.165178112 | I126: 15.76791077 | J126: 2078.55132 | K126: 51.96315111 | L126: 32.48476105 | M126: 0.5877033321 | N126: 1.951403832 | O126: 9.848654922 | P126: 65.24113078 | Q126: 0.08077212818 | R126: 1.09188331 | S126: 1.137615344 | T126: 1.033246771 | U126: 0.9731722464 | V126: 0.1035024559 | W126: 0.1167699084 | X126: 0.6274633886 | Y126: 0.1649537771 | Z126: 2.469860287 | AA126: 17.18878902 | AB126: 0.9160179343 | AC126: 2.755873887 | AD126: 15.62266207 | AE126: 4.400411426 | AF126: 68.74614066 | AG126: 0.1102153699 | AH126: 0.1102153699 | AI126: 1.27 | AJ126: 0.9778152698 | AK126: -0.06856958951 | AL126: 0.8 | AM126: 1 | AN126: 0.5600567738 | AO126: 0.1967932093 | AP126: 116 | AQ126: 2.899964736 | AR126: 2.755873887 | AS126: 0.1686791371 | AT126: 0.1686791371 | AU126: No TLC Needed | AV126: 0.024999696 | AW126: -- | AX126: 1 | AY126: Positive Change | AZ126: <4 consecutive layers | BA126: No | BB126: 587.0088 | BC126: No
A127: 117 | B127: =IF(Inputs!B132="","",IF(units=2,CONVERT(Inputs!B132,"ft","m"),Inputs!B132)) -> 2.924964432 | C127: =IF(Inputs!C132="","",IF(units=2,Inputs!C132*95.76,Inputs!C132*1000)) -> 772.7832 | D127: =IF(Inputs!D132="","",IF(units=2,Inputs!D132*95.76,Inputs!D132)) -> 15.22584 | E127: =IF(Inputs!E132="","",IF(units=2,Inputs!E132*95.76,Inputs!E132)) -> 59.06706624 | F127: 19.72363708 | G127: 784.5966132 | H127: 1.940594663 | I127: 16.02715753 | J127: 2094.578477 | K127: 52.36382518 | L127: 32.6401881 | M127: 0.57996918 | N127: 1.928963164 | O127: 12.96552124 | P127: 67.82536001 | Q127: 0.08248351247 | R127: 1.093436406 | S127: 1.143500619 | T127: 1.034668607 | U127: 0.9728275886 | V127: 0.1055247599 | W127: 0.119384838 | X127: 0.6273110612 | Y127: 0.168217598 | Z127: 2.113468978 | AA127: 22.4334733 | AB127: 0.8652868495 | AC127: 2.622520129 | AD127: 19.25850205 | AE127: 3.449437165 | AF127: 66.43099272 | AG127: 0.1072643517 | AH127: 0.1072643517 | AI127: 1.27 | AJ127: 0.9776240221 | AK127: 0.004454157009 | AL127: 0.8 | AM127: 1 | AN127: 0.561577905 | AO127: 0.191005292 | AP127: 117 | AQ127: 2.924964432 | AR127: 2.622520129 | AS127: -0.1333537587 | AT127: 0.1333537587 | AU127: YES-TLC | AV127: 0.024999696 | AW127: <4 consecutive layers | AX127: 1 | AY127: Negative Change | AZ127: <4 consecutive layers | BA127: No | BB127: 772.78 | BC127: No
A128: 118 | B128: =IF(Inputs!B133="","",IF(units=2,CONVERT(Inputs!B133,"ft","m"),Inputs!B133)) -> 2.949964128 | C128: =IF(Inputs!C133="","",IF(units=2,Inputs!C133*95.76,Inputs!C133*1000)) -> 726.8184 | D128: =IF(Inputs!D133="","",IF(units=2,Inputs!D133*95.76,Inputs!D133)) -> 15.51312 | E128: =IF(Inputs!E133="","",IF(units=2,Inputs!E133*95.76,Inputs!E133)) -> 50.85085824 | F128: 19.9688841 | G128: 736.9885716 | H128: 2.10493359 | I128: 16.02465715 | J128: 2110.603134 | K128: 52.76443673 | L128: 32.79555264 | M128: 0.5812337567 | N128: 1.926404045 | O128: 12.19433782 | P128: 67.39776128 | Q128: 0.08219874938 | R128: 1.092723498 | S128: 1.142495116 | T128: 1.034425685 | U128: 0.9724821259 | V128: 0.1051870444 | W128: 0.1188972556 | X128: 0.6294504667 | Y128: 0.1671093278 | Z128: 2.301465587 | AA128: 20.86332078 | AB128: 0.8833812683 | AC128: 2.669810817 | AD128: 18.29160125 | AE128: 3.762767559 | AF128: 68.8270438 | AG128: 0.1103221714 | AH128: 0.1103221714 | AI128: 1.27 | AJ128: 0.9774327744 | AK128: -0.01264187785 | AL128: 0.8 | AM128: 1 | AN128: 0.5630833511 | AO128: 0.1959251169 | AP128: 118 | AQ128: 2.949964128 | AR128: 2.669810817 | AS128: 0.04729068852 | AT128: 0.04729068852 | AU128: No TLC Needed | AV128: 0.024999696 | AW128: -- | AX128: 1 | AY128: Positive Change | AZ128: 0.125 | BA128: Yes | BB128: 726.8184 | BC128: No
A129: 119 | B129: =IF(Inputs!B134="","",IF(units=2,CONVERT(Inputs!B134,"ft","m"),Inputs!B134)) -> 2.974963824 | C129: =IF(Inputs!C134="","",IF(units=2,Inputs!C134*95.76,Inputs!C134*1000)) -> 647.3376 | D129: =IF(Inputs!D134="","",IF(units=2,Inputs!D134*95.76,Inputs!D134)) -> 14.364 | E129: =IF(Inputs!E134="","",IF(units=2,Inputs!E134*95.76,Inputs!E134)) -> 51.86668032 | F129: 20.21413111 | G129: 657.7109361 | H129: 2.183938142 | I129: 15.89248971 | J129: 2126.495624 | K129: 53.16174414 | L129: 32.94761303 | M129: 0.5845603719 | N129: 1.928424819 | O129: 10.86083316 | P129: 66.28238853 | Q129: 0.08145895206 | R129: 1.091512156 | S129: 1.139931767 | T129: 1.033806401 | U129: 0.9721358604 | V129: 0.1043119973 | W129: 0.1177069359 | X129: 0.6321171774 | Y129: 0.1650200327 | Z129: 2.417466119 | AA129: 18.34880091 | AB129: 0.9054132072 | AC129: 2.727440484 | AD129: 16.49907083 | AE129: 4.179908528 | AF129: 68.96460686 | AG129: 0.1105043477 | AH129: 0.1105043477 | AI129: 1.27 | AJ129: 0.9772415267 | AK129: -0.04432327527 | AL129: 0.8 | AM129: 1 | AN129: 0.5645944626 | AO129: 0.1957233998 | AP129: 119 | AQ129: 2.974963824 | AR129: 2.727440484 | AS129: 0.05762966664 | AT129: 0.05762966664 | AU129: No TLC Needed | AV129: 0.024999696 | AW129: -- | AX129: 1 | AY129: Positive Change | AZ129: 0.125 | BA129: Yes | BB129: 647.3376 | BC129: No
A130: 120 | B130: =IF(Inputs!B135="","",IF(units=2,CONVERT(Inputs!B135,"ft","m"),Inputs!B135)) -> 2.99996352 | C130: =IF(Inputs!C135="","",IF(units=2,Inputs!C135*95.76,Inputs!C135*1000)) -> 586.0512 | D130: =IF(Inputs!D135="","",IF(units=2,Inputs!D135*95.76,Inputs!D135)) -> 12.25728 | E130: =IF(Inputs!E135="","",IF(units=2,Inputs!E135*95.76,Inputs!E135)) -> 49.86491328 | F130: 20.45937813 | G130: 596.0241827 | H130: 2.056507161 | I130: 15.67228116 | J130: 2142.167905 | K130: 53.55354641 | L130: 33.09416828 | M130: 0.5877935293 | N130: 1.930399363 | O130: 9.832588601 | P130: 65.21142747 | Q130: 0.08075258851 | R130: 1.090360216 | S130: 1.137550338 | T130: 1.033231066 | U130: 0.9717887943 | V130: 0.1034794634 | W130: 0.1165793476 | X130: 0.6347524075 | Y130: 0.1630233493 | Z130: 2.301846763 | AA130: 16.39172895 | AB130: 0.9159620688 | AC130: 2.75493797 | AD130: 14.92056466 | AE130: 4.392996205 | AF130: 65.54598391 | AG130: 0.1061891383 | AH130: 0.1061891383 | AI130: 1.27 | AJ130: 0.9770502791 | AK130: -0.07159728465 | AL130: 0.8 | AM130: 1 | AN130: 0.5661260179 | AO130: 0.1875715565 | AP130: 120 | AQ130: 2.99996352 | AR130: 2.75493797 | AS130: 0.02749748612 | AT130: 0.02749748612 | AU130: No TLC Needed | AV130: 0.024999696 | AW130: -- | AX130: 1 | AY130: Positive Change | AZ130: 0.125 | BA130: Yes | BB130: 586.0512 | BC130: No
A131: 121 | B131: =IF(Inputs!B136="","",IF(units=2,CONVERT(Inputs!B136,"ft","m"),Inputs!B136)) -> 3.024963216 | C131: =IF(Inputs!C136="","",IF(units=2,Inputs!C136*95.76,Inputs!C136*1000)) -> 564.0264 | D131: =IF(Inputs!D136="","",IF(units=2,Inputs!D136*95.76,Inputs!D136)) -> 11.4912 | E131: =IF(Inputs!E136="","",IF(units=2,Inputs!E136*95.76,Inputs!E136)) -> 55.78058304 | F131: 20.70462515 | G131: 575.1825166 | H131: 1.997835412 | I131: 15.58439343 | J131: 2157.752299 | K131: 53.94315151 | L131: 33.23852636 | M131: 0.5889627577 | N131: 1.927977936 | O131: 9.463063212 | P131: 64.8272829 | Q131: 0.08050014822 | R131: 1.08972736 | S131: 1.136714956 | T131: 1.033029245 | U131: 0.9714409297 | V131: 0.1031826007 | W131: 0.1161547412 | X131: 0.63685951 | Y131: 0.1620178377 | Z131: 2.252808739 | AA131: 15.68178323 | AB131: 0.9200090395 | AC131: 2.765372971 | AD131: 14.34411749 | AE131: 4.47628162 | AF131: 64.20830948 | AG131: 0.1046182204 | AH131: 0.1046182204 | AI131: 1.27 | AJ131: 0.9768590314 | AK131: -0.08246989103 | AL131: 0.8 | AM131: 1 | AN131: 0.5676568555 | AO131: 0.1842983475 | AP131: 121 | AQ131: 3.024963216 | AR131: 2.765372971 | AS131: 0.01043500141 | AT131: 0.01043500141 | AU131: No TLC Needed | AV131: 0.024999696 | AW131: -- | AX131: 1 | AY131: Positive Change | AZ131: 0.125 | BA131: Yes | BB131: 564.0264 | BC131: No
A132: 122 | B132: =IF(Inputs!B137="","",IF(units=2,CONVERT(Inputs!B137,"ft","m"),Inputs!B137)) -> 3.049962912 | C132: =IF(Inputs!C137="","",IF(units=2,Inputs!C137*95.76,Inputs!C137*1000)) -> 523.8072 | D132: =IF(Inputs!D137="","",IF(units=2,Inputs!D137*95.76,Inputs!D137)) -> 10.34208 | E132: =IF(Inputs!E137="","",IF(units=2,Inputs!E137*95.76,Inputs!E137)) -> 60.14264256 | F132: 20.94987217 | G132: 535.8357285 | H132: 1.930084063 | I132: 15.4360252 | J132: 2173.188324 | K132: 54.32904745 | L132: 33.37917528 | M132: 0.5909850454 | N132: 1.927512599 | O132: 8.78827772 | P132: 64.16680463 | Q132: 0.08006723524 | R132: 1.088906735 | S132: 1.135301619 | T132: 1.032687794 | U132: 0.9710922685 | V132: 0.1026742934 | W132: 0.1154573142 | X132: 0.639175934 | Y132: 0.1606354181 | Z132: 2.20288845 | AA132: 14.42536183 | AB132: 0.9293917571 | AC132: 2.789817362 | AD132: 13.33756427 | AE132: 4.676655743 | AF132: 62.37519652 | AG132: 0.1025693333 | AH132: 0.1025693333 | AI132: 1.27 | AJ132: 0.9766677837 | AK132: -0.1028842873 | AL132: 0.8 | AM132: 1 | AN132: 0.5691972424 | AO132: 0.1801999828 | AP132: 122 | AQ132: 3.049962912 | AR132: 2.789817362 | AS132: 0.02444439037 | AT132: 0.02444439037 | AU132: No TLC Needed | AV132: 0.024999696 | AW132: -- | AX132: 1 | AY132: Positive Change | AZ132: 0.125 | BA132: Yes | BB132: 523.8072 | BC132: No
A133: 123 | B133: =IF(Inputs!B138="","",IF(units=2,CONVERT(Inputs!B138,"ft","m"),Inputs!B138)) -> 3.074962608 | C133: =IF(Inputs!C138="","",IF(units=2,Inputs!C138*95.76,Inputs!C138*1000)) -> 550.62 | D133: =IF(Inputs!D138="","",IF(units=2,Inputs!D138*95.76,Inputs!D138)) -> 9.576 | E133: =IF(Inputs!E138="","",IF(units=2,Inputs!E138*95.76,Inputs!E138)) -> 85.53819456 | F133: 21.19511918 | G133: 567.7276389 | H133: 1.686724292 | I133: 15.36966388 | J133: 2188.557988 | K133: 54.71328437 | L133: 33.51816519 | M133: 0.590689273 | N133: 1.922155919 | O133: 9.238134715 | P133: 64.26309316 | Q133: 0.08013026059 | R133: 1.088643751 | S133: 1.135505864 | T133: 1.032737138 | U133: 0.9707428131 | V133: 0.1027482343 | W133: 0.1155180758 | X133: 0.6409207193 | Y133: 0.1603134853 | Z133: 1.931008332 | AA133: 15.30556198 | AB133: 0.9092068147 | AC133: 2.736658494 | AD133: 13.84295896 | AE133: 4.250317134 | AF133: 58.83696565 | AG133: 0.09894234534 | AH133: 0.09894234534 | AI133: 1.27 | AJ133: 0.976476536 | AK133: -0.09008448154 | AL133: 0.8 | AM133: 1 | AN133: 0.5707340683 | AO133: 0.1733598025 | AP133: 123 | AQ133: 3.074962608 | AR133: 2.736658494 | AS133: -0.0531588678 | AT133: 0.0531588678 | AU133: YES-TLC | AV133: 0.024999696 | AW133: <4 consecutive layers | AX133: 1 | AY133: Negative Change | AZ133: <4 consecutive layers | BA133: No | BB133: 550.62 | BC133: No
A134: 124 | B134: =IF(Inputs!B139="","",IF(units=2,CONVERT(Inputs!B139,"ft","m"),Inputs!B139)) -> 3.099962304 | C134: =IF(Inputs!C139="","",IF(units=2,Inputs!C139*95.76,Inputs!C139*1000)) -> 607.1184 | D134: =IF(Inputs!D139="","",IF(units=2,Inputs!D139*95.76,Inputs!D139)) -> 9.28872 | E134: =IF(Inputs!E139="","",IF(units=2,Inputs!E139*95.76,Inputs!E139)) -> 107.3783693 | F134: 21.4403662 | G134: 628.5940739 | H134: 1.477697673 | I134: 15.37367705 | J134: 2203.931665 | K134: 55.09762162 | L134: 33.65725542 | M134: 0.5892349002 | N134: 1.914388882 | O134: 10.18604767 | P134: 64.73811124 | Q134: 0.08044161803 | R134: 1.088655071 | S134: 1.136522448 | T134: 1.032982736 | U134: 0.9703925655 | V134: 0.1031138196 | W134: 0.1159578723 | X134: 0.6423643173 | Y134: 0.1605223342 | Z134: 1.682675791 | AA134: 17.03931129 | AB134: 0.881958501 | AC134: 2.664960464 | AD134: 14.96073396 | AE134: 3.729445267 | AF134: 55.79523847 | AG134: 0.0961537874 | AH134: 0.0961537874 | AI134: 1.27 | AJ134: 0.9762852884 | AK134: -0.0644836379 | AL134: 0.8 | AM134: 1 | AN134: 0.572255974 | AO134: 0.1680258342 | AP134: 124 | AQ134: 3.099962304 | AR134: 2.664960464 | AS134: -0.07169802998 | AT134: 0.07169802998 | AU134: YES-TLC | AV134: 0.024999696 | AW134: <4 consecutive layers | AX134: 1 | AY134: Negative Change | AZ134: <4 consecutive layers | BA134: No | BB134: 607.12 | BC134: No
A135: 125 | B135: =IF(Inputs!B140="","",IF(units=2,CONVERT(Inputs!B140,"ft","m"),Inputs!B140)) -> 3.124962 | C135: =IF(Inputs!C140="","",IF(units=2,Inputs!C140*95.76,Inputs!C140*1000)) -> 622.44 | D135: =IF(Inputs!D140="","",IF(units=2,Inputs!D140*95.76,Inputs!D140)) -> 8.42688 | E135: =IF(Inputs!E140="","",IF(units=2,Inputs!E140*95.76,Inputs!E140)) -> 118.3133952 | F135: 21.68561322 | G135: 646.102679 | H135: 1.304263281 | I135: 15.27220012 | J135: 2219.203865 | K135: 55.47942198 | L135: 33.79380876 | M135: 0.5896112692 | N135: 1.910616437 | O135: 10.44310881 | P135: 64.61493696 | Q135: 0.08036081174 | R135: 1.088240636 | S135: 1.136257404 | T135: 1.032918704 | U135: 0.9700415278 | V135: 0.1030188908 | W135: 0.1157998376 | X135: 0.6442540977 | Y135: 0.1599041298 | Z135: 1.486325562 | AA135: 17.47726222 | AB135: 0.8674706297 | AC135: 2.626757695 | AD135: 15.11029232 | AE135: 3.476472024 | AF135: 52.53050854 | AG135: 0.09348086513 | AH135: 0.09348086513 | AI135: 1.27 | AJ135: 0.9760940407 | AK135: -0.05836842832 | AL135: 0.8 | AM135: 1 | AN135: 0.5737806305 | AO135: 0.1629209147 | AP135: 125 | AQ135: 3.124962 | AR135: 2.626757695 | AS135: -0.03820276932 | AT135: 0.03820276932 | AU135: YES-TLC | AV135: 0.024999696 | AW135: <4 consecutive layers | AX135: 1 | AY135: Negative Change | AZ135: <4 consecutive layers | BA135: No | BB135: 622.44 | BC135: No
A136: 126 | B136: =IF(Inputs!B141="","",IF(units=2,CONVERT(Inputs!B141,"ft","m"),Inputs!B141)) -> 3.149961696 | C136: =IF(Inputs!C141="","",IF(units=2,Inputs!C141*95.76,Inputs!C141*1000)) -> 593.712 | D136: =IF(Inputs!D141="","",IF(units=2,Inputs!D141*95.76,Inputs!D141)) -> 8.1396 | E136: =IF(Inputs!E141="","",IF(units=2,Inputs!E141*95.76,Inputs!E141)) -> 119.50848 | F136: 21.93086024 | G136: 617.613696 | H136: 1.317911188 | I136: 15.21500951 | J136: 2234.418874 | K136: 55.8597926 | L136: 33.92893236 | M136: 0.5906288873 | N136: 1.90824969 | O136: 9.961119171 | P136: 64.28276476 | Q136: 0.08014314021 | R136: 1.08768181 | S136: 1.135547666 | T136: 1.032747237 | U136: 0.9696897022 | V136: 0.1027633471 | W136: 0.1154341072 | X136: 0.6462925637 | Y136: 0.1590043781 | Z136: 1.513352532 | AA136: 16.55678102 | AB136: 0.8767118814 | AC136: 2.65083794 | AD136: 14.46758348 | AE136: 3.633975684 | AF136: 52.57484656 | AG136: 0.09351502926 | AH136: 0.09351502926 | AI136: 1.27 | AJ136: 0.975902793 | AK136: -0.07158831744 | AL136: 0.8 | AM136: 1 | AN136: 0.5753009913 | AO136: 0.1625497447 | AP136: 126 | AQ136: 3.149961696 | AR136: 2.65083794 | AS136: 0.02408024506 | AT136: 0.02408024506 | AU136: No TLC Needed | AV136: 0.024999696 | AW136: -- | AX136: 1 | AY136: Positive Change | AZ136: <4 consecutive layers | BA136: No | BB136: 593.712 | BC136: No
A137: 127 | B137: =IF(Inputs!B142="","",IF(units=2,CONVERT(Inputs!B142,"ft","m"),Inputs!B142)) -> 3.174961392 | C137: =IF(Inputs!C142="","",IF(units=2,Inputs!C142*95.76,Inputs!C142*1000)) -> 582.2208 | D137: =IF(Inputs!D142="","",IF(units=2,Inputs!D142*95.76,Inputs!D142)) -> 9.576 | E137: =IF(Inputs!E142="","",IF(units=2,Inputs!E142*95.76,Inputs!E142)) -> 121.6297555 | F137: 22.17610726 | G137: 606.5467511 | H137: 1.578773604 | I137: 15.39502451 | J137: 2249.813899 | K137: 56.24466353 | L137: 34.06855627 | M137: 0.5896172748 | N137: 1.901528911 | O137: 9.768323316 | P137: 64.6129729 | Q137: 0.08035952366 | R137: 1.087588531 | S137: 1.136253186 | T137: 1.032917685 | U137: 0.9693370907 | V137: 0.1030173779 | W137: 0.1157286332 | X137: 0.6477915061 | Y137: 0.1590286025 | Z137: 1.820614917 | AA137: 16.15278567 | AB137: 0.8966799885 | AC137: 2.703066832 | AD137: 14.43243373 | AE137: 3.998669198 | AF137: 57.71052821 | AG137: 0.09787508421 | AH137: 0.09787508421 | AI137: 1.27 | AJ137: 0.9757115454 | AK137: -0.07739858492 | AL137: 0.8 | AM137: 1 | AN137: 0.576777717 | AO137: 0.1696929013 | AP137: 127 | AQ137: 3.174961392 | AR137: 2.703066832 | AS137: 0.05222889266 | AT137: 0.05222889266 | AU137: No TLC Needed | AV137: 0.024999696 | AW137: -- | AX137: 1 | AY137: Positive Change | AZ137: <4 consecutive layers | BA137: No | BB137: 582.2208 | BC137: No
A138: 128 | B138: =IF(Inputs!B143="","",IF(units=2,CONVERT(Inputs!B143,"ft","m"),Inputs!B143)) -> 3.199961088 | C138: =IF(Inputs!C143="","",IF(units=2,Inputs!C143*95.76,Inputs!C143*1000)) -> 615.7368 | D138: =IF(Inputs!D143="","",IF(units=2,Inputs!D143*95.76,Inputs!D143)) -> 11.39544 | E138: =IF(Inputs!E143="","",IF(units=2,Inputs!E143*95.76,Inputs!E143)) -> 128.0234592 | F138: 22.42135427 | G138: 641.3414918 | H138: 1.776813156 | I138: 15.61651405 | J138: 2265.430413 | K138: 56.63507163 | L138: 34.21371736 | M138: 0.5871748906 | N138: 1.891744852 | O138: 10.33064456 | P138: 65.41535469 | Q138: 0.08088679618 | R138: 1.087819322 | S138: 1.137997828 | T138: 1.033339176 | U138: 0.9689836956 | V138: 0.1036374288 | W138: 0.1164974161 | X138: 0.6488811447 | Y138: 0.1597171217 | Z138: 2.038169339 | AA138: 17.08982436 | AB138: 0.8993804217 | AC138: 2.709966575 | AD138: 15.32123673 | AE138: 4.049252609 | AF138: 62.03955782 | AG138: 0.1022069559 | AH138: 0.1022069559 | AI138: 1.27 | AJ138: 0.9755202977 | AK138: -0.06299119811 | AL138: 0.8 | AM138: 1 | AN138: 0.5782037946 | AO138: 0.1767663181 | AP138: 128 | AQ138: 3.199961088 | AR138: 2.709966575 | AS138: 0.006899742304 | AT138: 0.006899742304 | AU138: No TLC Needed | AV138: 0.024999696 | AW138: -- | AX138: 1 | AY138: Negative Change | AZ138: <4 consecutive layers | BA138: No | BB138: 615.7368 | BC138: No
A139: 129 | B139: =IF(Inputs!B144="","",IF(units=2,CONVERT(Inputs!B144,"ft","m"),Inputs!B144)) -> 3.224960784 | C139: =IF(Inputs!C144="","",IF(units=2,Inputs!C144*95.76,Inputs!C144*1000)) -> 908.7624 | D139: =IF(Inputs!D144="","",IF(units=2,Inputs!D144*95.76,Inputs!D144)) -> 10.72512 | E139: =IF(Inputs!E144="","",IF(units=2,Inputs!E144*95.76,Inputs!E144)) -> 135.3732307 | F139: 22.66660129 | G139: 935.8370461 | H139: 1.146045676 | I139: 15.6916701 | J139: 2281.122083 | K139: 57.02735861 | L139: 34.36075732 | M139: 0.5795780775 | N139: 1.871548542 | O139: 15.24693886 | P139: 67.9580091 | Q139: 0.0825719826 | R139: 1.089294831 | S139: 1.143815134 | T139: 1.034744591 | U139: 0.9686295189 | V139: 0.1056297857 | W139: 0.119059761 | X139: =IF($B139="","",0.65*PGA_prob*Fpga*(K139/L139)*U139*(1/T139)*(1/R139)) -> 0.6485788448 | Y139: 0.162863446 | Z139: 1.259208495 | AA139: 25.57596968 | AB139: =IF(C139="","",MIN(0.381*AC139+0.05*(L139/atm)-0.15,1)) -> 0.7998374797 | AC139: 2.448508568 | AD139: =IF(C139="","",((G139-K139)/atm)*(atm/L139)^AB139) -> 20.5979976 | AE139: 2.506751826 | AF139: 51.63406809 | AG139: 0.09280241726 | AH139: 0.09280241726 | AI139: =IF($B139="","",ROUND((10^2.24)/(Mw_prob)^2.56,2)) -> 1.27 | AJ139: =IF($B139="","",IF(B139<=9.15, 1-0.00765*B139, IF(AND(B139>9.15, B139<=23),1.174-0.0267*B139,IF(AND(B139>23,B139<=30),0.744-0.008*B139,0.5)))) -> 0.97532905 | AK139: =IF($B139="","",-1.292+0.268*LN(C139/(L139^0.52))) -> 0.04073393101 | AL139: 0.8 | AM139: =IF($B139="","",IF((L139/atm)^(AL139-1)>1,1,(L139/atm)^(AL139-1))) -> 1 | AN139: =IF($B139="","",0.65*PGA_prob*Fpga*(K139/L139)*AJ139*(1/AM139)*(1/AI139)) -> 0.5796036683 | AO139: 0.1601135782 | AP139: 129 | AQ139: 3.224960784 | AR139: 2.448508568 | AS139: -0.261458007 | AT139: 0.261458007 | AU139: YES-TLC | AV139: 0.024999696 | AW139: <4 consecutive layers | AX139: 1 | AY139: Negative Change | AZ139: <4 consecutive layers | BA139: No | BB139: =IF(C139="","",IF(AND(TLC="Yes",AU139="YES-TLC"), ROUND(AX139*C139,2),IF(AX139="Height Exceeds 1m or 3ft, no TLC needed",C139*1,C139))) -> 908.76 | BC139: =IF(BA139="","",IF(AND(TransitionCorrection="Yes", BA139="Yes"), "Yes", "No")) -> No
A140: 130 | B140: =IF(Inputs!B145="","",IF(units=2,CONVERT(Inputs!B145,"ft","m"),Inputs!B145)) -> 3.24996048 | C140: =IF(Inputs!C145="","",IF(units=2,Inputs!C145*95.76,Inputs!C145*1000)) -> 1182.636 | D140: =IF(Inputs!D145="","",IF(units=2,Inputs!D145*95.76,Inputs!D145)) -> 12.4488 | E140: =IF(Inputs!E145="","",IF(units=2,Inputs!E145*95.76,Inputs!E145)) -> 107.7667718 | F140: =IF(B140="","",IF(B140<$C$5,0,$C$3*(B140-$C$5))) -> 22.91184831 | G140: =IF(B140="","",C140+E140*(1-$C$4)) -> 1204.189354 | H140: =IF(B140="","",(D140/G140)*100) -> 1.033790903 | I140: =IF(B140="","",(0.27*(LOG(H140))+0.36*(LOG(G140/$C$2))+1.236)*$C$3) -> 15.95978082 | J140: 2297.081864 | K140: =IF(B140="","",(J140/A140)*B140) -> 57.42634828 | L140: =IF(B140="","",K140-F140) -> 34.51449997 | M140: 0.5717325106 | N140: 1.851006255 | O140: 19.84190674 | P140: 70.65951547 | Q140: =IF(B140="","",IF(P140<=211,1/(37.3-8.27*(P140^(0.264))),0.3)) -> 0.08438767478 | R140: =IF(B140="","",IF(1-Q140*LN(L140/atm)<=1.1, 1-Q140*LN(L140/atm),1.1)) -> 1.090881614 | S140: =IF(B140="","",IF(1.09+(P140/180)^3<2.2,1.09+(P140/180)^3,2.2)) -> 1.150491513 | T140: =IF(B140="","",1+(S140-1)*(8.64*EXP(-Mw_prob/4)-1.325)) -> 1.036357551 | U140: =IF(B140="","",EXP((-1.012-1.126*SIN((B140/11.73+5.133)))+(0.106+0.118*SIN((B140/11.28+5.142)))*Mw_prob)) -> 0.9682745628 | V140: =IF(B140="","",IF(P140>225,10,EXP((P140/113)+(P140/1000)^2-(P140/140)^3+(P140/137)^4-2.8))) -> 0.1077969131 | W140: =IF(B140="","",V140*T140*R140) -> 0.1218690885 | X140: 0.6480135044 | Y140: =IF(B140="","",V140/X140) -> 0.1663497943 | Z140: =IF(C140="","",(D140/(C140-K140)*100)) -> 1.106353823 | AA140: =IF(C140="","",(G140-K140)/L140) -> 33.22554309 | AB140: 0.7519190851 | AC140: =IF(C140="","",((3.47-LOG(AA140))^2+(1.22+LOG(Z140))^2)^0.5) -> 2.322539379 | AD140: 25.43553734 | AE140: =IF(B140="","",IF(AC140<=1.64,1,-0.403*AC140^4+5.58*AC140^3-21.63*AC140^2+33.75*AC140-17.88)) -> 2.010639333 | AF140: =IF(C140="","",MIN(AE140*AD140,250)) -> 51.14169182 | AG140: =IF(C140="","",IF(AF140<50,0.833*(AF140/1000)+0.05,93*(AF140/1000)^3+0.08)) -> 0.09243965171 | AH140: =IF($B140="","",IF(B140<$C$5, 4,AG140)) -> 0.09243965171 | AI140: 1.27 | AJ140: 0.9751378023 | AK140: 0.1107076507 | AL140: 0.8 | AM140: 1 | AN140: 0.5809450342 | AO140: =IF($B140="","",AG140/AN140) -> 0.1591194455 | AP140: 130 | AQ140: =IF(B140="","",B140) -> 3.24996048 | AR140: =IF(AQ140="","",AC140) -> 2.322539379 | AS140: -0.1259691882 | AT140: =IF(AS140="","",ABS(AS140)) -> 0.1259691882 | AU140: =IF(AR140="","",IF(OR(AT140<=$AS$5,AR140<$AS$3,AR140>$AS$4),"No TLC Needed",IF(AND(AT140>$AS$5,AS140<0),"YES-TLC","No TLC Needed"))) -> YES-TLC | AV140: =IF(AQ140="","",AQ140-AQ139) -> 0.024999696 | AW140: <4 consecutive layers | AX140: =IF(AW140="","",IF(OR(AW140="--", AW140="<4 consecutive layers"), "1", IF(AW140>1, "Height Exceeds 1m or 3ft, no TLC needed", 0.25*((((AW140*100)/$AS$2)/17)-1.77)^2+1))) -> 1 | AY140: =IF(AQ140="","",IF(AS140>$AZ$4,"Positive Change",IF(AS140<$AZ$4,"Negative Change","No Transition"))) -> Negative Change | AZ140: <4 consecutive layers | BA140: =IF(AZ140="","",IF(AZ140="<4 consecutive layers", "No", "Yes")) -> No | BB140: 1182.64 | BC140: No
A141: 131 | B141: =IF(Inputs!B146="","",IF(units=2,CONVERT(Inputs!B146,"ft","m"),Inputs!B146)) -> 3.274960176 | C141: =IF(Inputs!C146="","",IF(units=2,Inputs!C146*95.76,Inputs!C146*1000)) -> 1252.5408 | D141: =IF(Inputs!D146="","",IF(units=2,Inputs!D146*95.76,Inputs!D146)) -> 15.99192 | E141: =IF(Inputs!E146="","",IF(units=2,Inputs!E146*95.76,Inputs!E146)) -> 62.20416384 | F141: 23.15709533 | G141: 1264.981633 | H141: 1.264201755 | I141: 16.26677291 | J141: =IF(B141="","",J140+I141) -> 2313.348637 | K141: 57.83301266 | L141: 34.67591733 | M141: 0.5651061739 | N141: 1.833004509 | O141: 21.01474819 | P141: 73.00207311 | Q141: 0.08598458044 | R141: 1.092200212 | S141: 1.156709558 | T141: 1.037859781 | U141: 0.9679188294 | V141: 0.1097232648 | W141: 0.1243768807 | X141: 0.6476032416 | Y141: 0.1694297646 | Z141: 1.338563301 | AA141: 34.81230528 | AB141: 0.7632027286 | AC141: 2.351946178 | AD141: 27.00592025 | AE141: 2.113723539 | AF141: 57.08304932 | AG141: 0.09729834054 | AH141: 0.09729834054 | AI141: 1.27 | AJ141: 0.9749465547 | AK141: 0.1254481913 | AL141: 0.8 | AM141: 1 | AN141: 0.5822213176 | AO141: 0.1671157301 | AP141: 131 | AQ141: 3.274960176 | AR141: 2.351946178 | AS141: =IF(AR141="","",AR141-AR140) -> 0.02940679848 | AT141: 0.02940679848 | AU141: No TLC Needed | AV141: 0.024999696 | AW141: -- | AX141: 1 | AY141: Positive Change | AZ141: <4 consecutive layers | BA141: No | BB141: 1252.5408 | BC141: No
A142: 132 | B142: =IF(Inputs!B147="","",IF(units=2,CONVERT(Inputs!B147,"ft","m"),Inputs!B147)) -> 3.299959872 | C142: =IF(Inputs!C147="","",IF(units=2,Inputs!C147*95.76,Inputs!C147*1000)) -> 1016.9712 | D142: =IF(Inputs!D147="","",IF(units=2,Inputs!D147*95.76,Inputs!D147)) -> 18.6732 | E142: =IF(Inputs!E147="","",IF(units=2,Inputs!E147*95.76,Inputs!E147)) -> 39.70669248 | F142: 23.40234234 | G142: 1024.912538 | H142: 1.821931072 | I142: 16.36438369 | J142: 2329.71302 | K142: 58.24211728 | L142: 34.83977493 | M142: 0.5686976017 | N142: 1.83515047 | O142: 17.06243316 | P142: 71.72544555 | Q142: 0.08511164353 | R142: 1.090862934 | S142: 1.153270643 | T142: 1.037028967 | U142: 0.967562321 | V142: 0.1086677046 | W142: 0.1229310429 | X142: 0.6501938334 | Y142: 0.1671312445 | Z142: 1.94770351 | AA142: 27.74617296 | AB142: 0.8300421085 | AC142: 2.527165397 | AD142: 23.14214425 | AE142: 2.893458165 | AF142: 66.96082622 | AG142: 0.1079219252 | AH142: 0.1079219252 | AI142: 1.27 | AJ142: 0.974755307 | AK142: 0.06895466198 | AL142: 0.8 | AM142: 1 | AN142: 0.5834677531 | AO142: 0.1849663922 | AP142: 132 | AQ142: 3.299959872 | AR142: 2.527165397 | AS142: 0.175219219 | AT142: 0.175219219 | AU142: No TLC Needed | AV142: 0.024999696 | AW142: -- | AX142: 1 | AY142: Positive Change | AZ142: <4 consecutive layers | BA142: No | BB142: 1016.9712 | BC142: No
A143: 133 | B143: =IF(Inputs!B148="","",IF(units=2,CONVERT(Inputs!B148,"ft","m"),Inputs!B148)) -> 3.324959568 | C143: =IF(Inputs!C148="","",IF(units=2,Inputs!C148*95.76,Inputs!C148*1000)) -> 1084.9608 | D143: =IF(Inputs!D148="","",IF(units=2,Inputs!D148*95.76,Inputs!D148)) -> 23.4612 | E143: =IF(Inputs!E148="","",IF(units=2,Inputs!E148*95.76,Inputs!E148)) -> 42.24624768 | F143: 23.64758936 | G143: 1093.41005 | H143: 2.145690906 | I143: 16.65175941 | J143: 2346.36478 | K143: 58.6584062 | L143: 35.01081684 | M143: 0.5636463536 | N143: 1.820249378 | O143: 18.20314197 | P143: 73.52573868 | Q143: 0.08634454607 | R143: 1.091756286 | S143: 1.158155463 | T143: 1.0382091 | U143: 0.9672050396 | V143: 0.1101604154 | W143: 0.1248636706 | X143: 0.6501284791 | Y143: 0.1694440698 | Z143: 2.285992914 | AA143: 29.55519856 | AB143: 0.8379626866 | AC143: 2.547732787 | AD143: 24.88005482 | AE143: 3.005069917 | AF143: 74.76630426 | AG143: 0.1188687604 | AH143: 0.1188687604 | AI143: 1.27 | AJ143: 0.9745640593 | AK143: 0.08561579977 | AL143: 0.8 | AM143: 1 | AN143: 0.5846525427 | AO143: 0.20331522 | AP143: 133 | AQ143: 3.324959568 | AR143: 2.547732787 | AS143: 0.02056738984 | AT143: 0.02056738984 | AU143: No TLC Needed | AV143: 0.024999696 | AW143: -- | AX143: 1 | AY143: Positive Change | AZ143: <4 consecutive layers | BA143: No | BB143: 1084.9608 | BC143: No
A144: 134 | B144: =IF(Inputs!B149="","",IF(units=2,CONVERT(Inputs!B149,"ft","m"),Inputs!B149)) -> 3.349959264 | C144: =IF(Inputs!C149="","",IF(units=2,Inputs!C149*95.76,Inputs!C149*1000)) -> 1108.9008 | D144: =IF(Inputs!D149="","",IF(units=2,Inputs!D149*95.76,Inputs!D149)) -> 24.61032 | E144: =IF(Inputs!E149="","",IF(units=2,Inputs!E149*95.76,Inputs!E149)) -> 47.83326912 | F144: 23.89283638 | G144: 1118.467454 | H144: 2.200360852 | I144: 16.71545306 | J144: 2363.080233 | K144: 59.07628745 | L144: 35.18345107 | M144: 0.5621911766 | N144: 1.812417961 | O144: 18.6048 | P144: 74.05048497 | Q144: 0.08670637889 | R144: 1.091714309 | S144: 1.15962516 | T144: 1.038564168 | U144: 0.9668469873 | V144: 0.1106009876 | W144: 0.1254010988 | X144: 0.6511084439 | Y144: 0.1698656938 | Z144: 2.344231794 | AA144: 30.11049611 | AB144: 0.8382246028 | AC144: 2.548196639 | AD144: 25.37475304 | AE144: 3.007638722 | AF144: 76.31808981 | AG144: 0.1213395194 | AH144: 0.1213395194 | AI144: 1.27 | AJ144: 0.9743728116 | AK144: 0.09077952702 | AL144: 0.8 | AM144: 1 | AN144: 0.5858134686 | AO144: 0.2071299585 | AP144: 134 | AQ144: 3.349959264 | AR144: 2.548196639 | AS144: 0.000463852478 | AT144: 0.000463852478 | AU144: No TLC Needed | AV144: 0.024999696 | AW144: -- | AX144: 1 | AY144: Negative Change | AZ144: 0.1 | BA144: Yes | BB144: 1108.9008 | BC144: No
A145: 135 | B145: =IF(Inputs!B150="","",IF(units=2,CONVERT(Inputs!B150,"ft","m"),Inputs!B150)) -> 3.37495896 | C145: =IF(Inputs!C150="","",IF(units=2,Inputs!C150*95.76,Inputs!C150*1000)) -> 1332.0216 | D145: =IF(Inputs!D150="","",IF(units=2,Inputs!D150*95.76,Inputs!D150)) -> 26.52552 | E145: =IF(Inputs!E150="","",IF(units=2,Inputs!E150*95.76,Inputs!E150)) -> 36.50984064 | F145: 24.1380834 | G145: 1339.323568 | H145: 1.980516182 | I145: 16.87075702 | J145: 2379.95099 | K145: 59.49805124 | L145: 35.35996784 | M145: 0.5537387155 | N145: 1.791315037 | O145: 22.34825285 | P145: 77.15319203 | Q145: 0.08886956277 | R145: 1.093557685 | S145: 1.168748843 | T145: 1.040768377 | U145: 0.9664881664 | V145: 0.1132609604 | W145: 0.1289068585 | X145: 0.6497627251 | Y145: 0.1743112616 | Z145: 2.084481661 | AA145: 36.19419346 | AB145: 0.8023995241 | AC145: 2.453938941 | AD145: 29.39645948 | AE145: 2.53146281 | AF145: 74.41604392 | AG145: 0.1183250459 | AH145: 0.1183250459 | AI145: 1.27 | AJ145: 0.974181564 | AK145: 0.1392141474 | AL145: 0.8 | AM145: 1 | AN145: 0.5869352904 | AO145: 0.2015981112 | AP145: 135 | AQ145: 3.37495896 | AR145: 2.453938941 | AS145: -0.09425769797 | AT145: 0.09425769797 | AU145: YES-TLC | AV145: 0.024999696 | AW145: <4 consecutive layers | AX145: 1 | AY145: Negative Change | AZ145: 0.1 | BA145: Yes | BB145: 1332.02 | BC145: No
A146: 136 | B146: =IF(Inputs!B151="","",IF(units=2,CONVERT(Inputs!B151,"ft","m"),Inputs!B151)) -> 3.399958656 | C146: =IF(Inputs!C151="","",IF(units=2,Inputs!C151*95.76,Inputs!C151*1000)) -> 1361.7072 | D146: =IF(Inputs!D151="","",IF(units=2,Inputs!D151*95.76,Inputs!D151)) -> 21.64176 | E146: =IF(Inputs!E151="","",IF(units=2,Inputs!E151*95.76,Inputs!E151)) -> 32.44655232 | F146: 24.38333042 | G146: 1368.19651 | H146: 1.581772782 | I146: 16.64486615 | J146: 2396.595856 | K146: 59.91416784 | L146: 35.53083742 | M146: 0.556110703 | N146: 1.790986005 | O146: 22.84630881 | P146: 76.27301492 | Q146: 0.08825169624 | R146: 1.092481794 | S146: 1.166084331 | T146: 1.040124652 | U146: 0.966128579 | V146: 0.1124964158 | W146: 0.1278316173 | X146: 0.651962441 | Y146: 0.1725504549 | Z146: 1.662457815 | AA146: 36.82103878 | AB146: 0.7772070241 | AC146: 2.387595588 | AD146: 29.15415543 | AE146: 2.248841623 | AF146: 65.5630782 | AG146: 0.1062096339 | AH146: 0.1062096339 | AI146: 1.27 | AJ146: 0.9739903163 | AK146: 0.1444494417 | AL146: 0.8 | AM146: 1 | AN146: 0.5880823751 | AO146: 0.1806033277 | AP146: 136 | AQ146: 3.399958656 | AR146: 2.387595588 | AS146: -0.06634335336 | AT146: 0.06634335336 | AU146: YES-TLC | AV146: 0.024999696 | AW146: <4 consecutive layers | AX146: 1 | AY146: Negative Change | AZ146: 0.1 | BA146: Yes | BB146: 1361.71 | BC146: No
A147: 137 | B147: =IF(Inputs!B152="","",IF(units=2,CONVERT(Inputs!B152,"ft","m"),Inputs!B152)) -> 3.424958352 | C147: =IF(Inputs!C152="","",IF(units=2,Inputs!C152*95.76,Inputs!C152*1000)) -> 1314.7848 | D147: =IF(Inputs!D152="","",IF(units=2,Inputs!D152*95.76,Inputs!D152)) -> 19.24776 | E147: =IF(Inputs!E152="","",IF(units=2,Inputs!E152*95.76,Inputs!E152)) -> 19.65914496 | F147: 24.62857743 | G147: 1318.716629 | H147: 1.459582717 | I147: 16.49589078 | J147: 2413.091747 | K147: 60.32656009 | L147: 35.69798266 | M147: 0.5592214807 | N147: 1.792124262 | O147: 22.05905907 | P147: 75.12992287 | Q147: 0.08745429056 | R147: 1.091235726 | S147: 1.162714549 | T147: 1.039310539 | U147: 0.9657682273 | V147: 0.1115154679 | W147: 0.1264733488 | X147: 0.6543905986 | Y147: 0.1704111705 | Z147: 1.534348405 | AA147: 35.25101351 | AB147: 0.7751549681 | AC147: 2.381993132 | AD147: 27.88049042 | AE147: 2.226852716 | AF147: 62.0857458 | AG147: 0.1022565916 | AH147: 0.1022565916 | AI147: 1.27 | AJ147: 0.9737990686 | AK147: 0.1343976545 | AL147: 0.8 | AM147: 1 | AN147: 0.5892419784 | AO147: 0.173539217 | AP147: 137 | AQ147: 3.424958352 | AR147: 2.381993132 | AS147: -0.005602455991 | AT147: 0.005602455991 | AU147: No TLC Needed | AV147: 0.024999696 | AW147: -- | AX147: 1 | AY147: Negative Change | AZ147: 0.1 | BA147: Yes | BB147: 1314.7848 | BC147: No
A148: 138 | B148: =IF(Inputs!B153="","",IF(units=2,CONVERT(Inputs!B153,"ft","m"),Inputs!B153)) -> 3.449958048 | C148: =IF(Inputs!C153="","",IF(units=2,Inputs!C153*95.76,Inputs!C153*1000)) -> 1057.1904 | D148: =IF(Inputs!D153="","",IF(units=2,Inputs!D153*95.76,Inputs!D153)) -> 18.09864 | E148: =IF(Inputs!E153="","",IF(units=2,Inputs!E153*95.76,Inputs!E153)) -> 0 | F148: 24.87382445 | G148: 1057.1904 | H148: 1.711956522 | I148: 16.34032289 | J148: 2429.43207 | K148: 60.7350632 | L148: 35.86123874 | M148: 0.5671338282 | N148: 1.80230858 | O148: 17.73721865 | P148: 72.27927546 | Q148: 0.08548954798 | R148: 1.088795956 | S148: 1.154747627 | T148: 1.037385794 | U148: 0.9654071134 | V148: 0.1091238955 | W148: 0.1232555989 | X148: 0.6582654436 | Y148: 0.1657749112 | Z148: 1.816302179 | AA148: 27.78641708 | AB148: 0.8234938578 | AC148: 2.508655413 | AD148: 23.13194552 | AE148: 2.79679778 | AF148: 64.69537388 | AG148: 0.1051827196 | AH148: 0.1051827196 | AI148: 1.27 | AJ148: 0.9736078209 | AK148: 0.07532218624 | AL148: 0.8 | AM148: 1 | AN148: 0.5904154192 | AO148: 0.1781503602 | AP148: 138 | AQ148: 3.449958048 | AR148: 2.508655413 | AS148: 0.1266622812 | AT148: 0.1266622812 | AU148: No TLC Needed | AV148: 0.024999696 | AW148: -- | AX148: 1 | AY148: Positive Change | AZ148: 0.1 | BA148: Yes | BB148: 1057.1904 | BC148: No
A149: 139 | B149: =IF(Inputs!B154="","",IF(units=2,CONVERT(Inputs!B154,"ft","m"),Inputs!B154)) -> 3.474957744 | C149: =IF(Inputs!C154="","",IF(units=2,Inputs!C154*95.76,Inputs!C154*1000)) -> 921.2112 | D149: =IF(Inputs!D154="","",IF(units=2,Inputs!D154*95.76,Inputs!D154)) -> 16.2792 | E149: =IF(Inputs!E154="","",IF(units=2,Inputs!E154*95.76,Inputs!E154)) -> 8.12657664 | F149: 25.11907147 | G149: 922.8365153 | H149: 1.764039429 | I149: 16.16633235 | J149: 2445.598402 | K149: 61.13921659 | L149: 36.02014512 | M149: 0.5726201765 | N149: 1.808025143 | O149: 15.45580104 | P149: 70.34996284 | Q149: 0.08417824685 | R149: 1.087061756 | S149: 1.149699968 | T149: 1.03616632 | U149: 0.9650452395 | V149: 0.1075457575 | W149: 0.121137044 | X149: 0.6613046136 | Y149: 0.1626266554 | Z149: 1.892771804 | AA149: 23.92264928 | AB149: 0.847647145 | AC149: 2.571844056 | AD149: 20.43509992 | AE149: 3.14165369 | AF149: 64.20000708 | AG149: 0.1046086719 | AH149: 0.1046086719 | AI149: 1.27 | AJ149: 0.9734165733 | AK149: 0.03780757789 | AL149: 0.8 | AM149: 1 | AN149: 0.5916060193 | AO149: 0.1768215138 | AP149: 139 | AQ149: 3.474957744 | AR149: 2.571844056 | AS149: 0.0631886431 | AT149: 0.0631886431 | AU149: No TLC Needed | AV149: 0.024999696 | AW149: -- | AX149: 1 | AY149: Positive Change | AZ149: 0.1 | BA149: Yes | BB149: 921.2112 | BC149: No
A150: 140 | B150: =IF(Inputs!B155="","",IF(units=2,CONVERT(Inputs!B155,"ft","m"),Inputs!B155)) -> 3.49995744 | C150: =IF(Inputs!C155="","",IF(units=2,Inputs!C155*95.76,Inputs!C155*1000)) -> 709.5816 | D150: =IF(Inputs!D155="","",IF(units=2,Inputs!D155*95.76,Inputs!D155)) -> 13.11912 | E150: =IF(Inputs!E155="","",IF(units=2,Inputs!E155*95.76,Inputs!E155)) -> 13.41482688 | F150: 25.36431849 | G150: 712.2645654 | H150: 1.841888624 | I150: 15.81876244 | J150: 2461.417165 | K150: 61.53468084 | L150: 36.17036236 | M150: 0.5816813876 | N150: 1.820636179 | O150: 11.90514404 | P150: 67.24687778 | Q150: 0.08209842044 | R150: 1.084569017 | S150: 1.142143342 | T150: 1.034340699 | U150: 0.9646826078 | V150: 0.1050681794 | W150: 0.1178669415 | X150: 0.665263799 | Y150: 0.1579346111 | Z150: 2.024408976 | AA150: 17.99069299 | AB150: 0.8927032199 | AC150: 2.689906913 | AD150: 16.10820701 | AE150: 3.903760366 | AF150: 62.8825801 | AG150: 0.1031245881 | AH150: 0.1031245881 | AI150: 1.27 | AJ150: 0.9732253256 | AK150: -0.03272410118 | AL150: 0.8 | AM150: 1 | AN150: 0.5928433205 | AO150: 0.173949144 | AP150: 140 | AQ150: 3.49995744 | AR150: 2.689906913 | AS150: 0.1180628567 | AT150: 0.1180628567 | AU150: No TLC Needed | AV150: 0.024999696 | AW150: -- | AX150: 1 | AY150: Positive Change | AZ150: 0.1 | BA150: Yes | BB150: 709.5816 | BC150: No
A151: 141 | B151: =IF(Inputs!B156="","",IF(units=2,CONVERT(Inputs!B156,"ft","m"),Inputs!B156)) -> 3.524957136 | C151: =IF(Inputs!C156="","",IF(units=2,Inputs!C156*95.76,Inputs!C156*1000)) -> 598.5 | D151: =IF(Inputs!D156="","",IF(units=2,Inputs!D156*95.76,Inputs!D156)) -> 11.77848 | E151: =IF(Inputs!E156="","",IF(units=2,Inputs!E156*95.76,Inputs!E156)) -> 28.0844928 | F151: 25.6095655 | G151: 604.1168986 | H151: 1.949702124 | I151: 15.63161702 | J151: 2477.048782 | K151: 61.92546652 | L151: 36.31590101 | M151: 0.5863659164 | N151: 1.825140305 | O151: 10.04145078 | P151: 65.68273156 | Q151: 0.08106296983 | R151: 1.083176888 | S151: 1.138588792 | T151: 1.033481949 | U151: 0.9643192204 | V151: 0.1038449399 | W151: 0.11624857 | X151: 0.6679657025 | Y151: 0.1554644789 | Z151: 2.195124678 | AA151: 14.92986314 | AB151: 0.9258055769 | AC151: 2.776601242 | AD151: 13.8354511 | AE151: 4.567399689 | AF151: 63.19203503 | AG151: 0.10346767 | AH151: 0.10346767 | AI151: 1.27 | AJ151: 0.9730340779 | AK151: -0.07891044422 | AL151: =IF($B151="","",IF(AK151<=0.4,0.8,IF(AND(AK151<=0.6,AK151>0.4),0.7,0.6))) -> 0.8 | AM151: 1 | AN151: 0.5941005445 | AO151: 0.1741585174 | AP151: 141 | AQ151: 3.524957136 | AR151: 2.776601242 | AS151: 0.08669432891 | AT151: 0.08669432891 | AU151: No TLC Needed | AV151: 0.024999696 | AW151: -- | AX151: 1 | AY151: Positive Change | AZ151: 0.1 | BA151: Yes | BB151: 598.5 | BC151: No
A152: 142 | B152: =IF(Inputs!B157="","",IF(units=2,CONVERT(Inputs!B157,"ft","m"),Inputs!B157)) -> 3.549956832 | C152: =IF(Inputs!C157="","",IF(units=2,Inputs!C157*95.76,Inputs!C157*1000)) -> 572.6448 | D152: =IF(Inputs!D157="","",IF(units=2,Inputs!D157*95.76,Inputs!D157)) -> 10.5336 | E152: =IF(Inputs!E157="","",IF(units=2,Inputs!E157*95.76,Inputs!E157)) -> 43.71022656 | F152: 25.85481252 | G152: 581.3868453 | H152: 1.8118057 | I152: 15.48841677 | J152: 2492.537198 | K152: 62.31267223 | L152: 36.4578597 | M152: 0.5880181821 | N152: 1.824047871 | O152: 9.607660104 | P152: 65.13748914 | Q152: 0.08070396242 | R152: 1.082493662 | S152: 1.13738878 | T152: 1.033192035 | U152: 0.9639550796 | V152: 0.1034222538 | W152: 0.1156699132 | X152: 0.6698826789 | Y152: 0.1543886072 | Z152: 2.06406758 | AA152: 14.23764799 | AB152: 0.926720648 | AC152: 2.778819142 | AD152: 13.21014798 | AE152: 4.585582937 | AF152: 60.57622917 | AG152: 0.1006723407 | AH152: 0.1006723407 | AI152: 1.27 | AJ152: 0.9728428302 | AK152: -0.09128925994 | AL152: 0.8 | AM152: 1 | AN152: 0.5953705187 | AO152: 0.1690919143 | AP152: 142 | AQ152: 3.549956832 | AR152: 2.778819142 | AS152: 0.002217900036 | AT152: 0.002217900036 | AU152: No TLC Needed | AV152: 0.024999696 | AW152: -- | AX152: 1 | AY152: Negative Change | AZ152: 0.125 | BA152: Yes | BB152: 572.6448 | BC152: No
A153: 143 | B153: =IF(Inputs!B158="","",IF(units=2,CONVERT(Inputs!B158,"ft","m"),Inputs!B158)) -> 3.574956528 | C153: =IF(Inputs!C158="","",IF(units=2,Inputs!C158*95.76,Inputs!C158*1000)) -> 554.4504 | D153: =IF(Inputs!D158="","",IF(units=2,Inputs!D158*95.76,Inputs!D158)) -> 8.23536 | E153: =IF(Inputs!E158="","",IF(units=2,Inputs!E158*95.76,Inputs!E158)) -> 52.10569728 | F153: 26.10005954 | G153: 564.8715395 | H153: 1.457917318 | I153: 15.19423607 | J153: 2507.731434 | K153: 62.69252351 | L153: 36.59246397 | M153: 0.5902361583 | N153: 1.824215679 | O153: 9.3024 | P153: 64.41081058 | Q153: 0.08022700624 | R153: 1.081710472 | S153: 1.13582039 | T153: 1.032813125 | U153: 0.9635901874 | V153: 0.1028617756 | W153: 0.1149176666 | X153: 0.6719652917 | Y153: 0.1530760247 | Z153: 1.674677803 | AA153: 13.72356386 | AB153: 0.9132510294 | AC153: 2.743291476 | AD153: 12.56306691 | AE153: 4.301619034 | AF153: 54.04152772 | AG153: 0.09467796345 | AH153: 0.09467796345 | AI153: 1.27 | AJ153: 0.9726515826 | AK153: -0.1004560947 | AL153: 0.8 | AM153: 1 | AN153: 0.596679108 | AO153: 0.1586748424 | AP153: 143 | AQ153: 3.574956528 | AR153: 2.743291476 | AS153: -0.0355276657 | AT153: 0.0355276657 | AU153: YES-TLC | AV153: 0.024999696 | AW153: <4 consecutive layers | AX153: 1 | AY153: Negative Change | AZ153: 0.125 | BA153: Yes | BB153: 554.45 | BC153: No
A154: 144 | B154: =IF(Inputs!B159="","",IF(units=2,CONVERT(Inputs!B159,"ft","m"),Inputs!B159)) -> 3.599956224 | C154: =IF(Inputs!C159="","",IF(units=2,Inputs!C159*95.76,Inputs!C159*1000)) -> 567.8568 | D154: =IF(Inputs!D159="","",IF(units=2,Inputs!D159*95.76,Inputs!D159)) -> 8.04384 | E154: =IF(Inputs!E159="","",IF(units=2,Inputs!E159*95.76,Inputs!E159)) -> 70.33074048 | F154: 26.34530656 | G154: 581.9229481 | H154: 1.382286096 | I154: 15.17857192 | J154: 2522.910006 | K154: 63.07198319 | L154: 36.72667664 | M154: 0.5900038433 | N154: 1.81984891 | O154: 9.527328497 | P154: 64.48664312 | Q154: 0.08027669904 | R154: 1.081467186 | S154: 1.135982417 | T154: 1.032852269 | U154: 0.9632245461 | V154: 0.1029201143 | W154: 0.1149613392 | X154: 0.6734323885 | Y154: 0.1528291719 | Z154: 1.593518611 | AA154: 14.12735952 | AB154: 0.9049205232 | AC154: 2.721252801 | AD154: 12.82791714 | AE154: 4.133222148 | AF154: 53.02063124 | AG154: 0.09386173623 | AH154: 0.09386173623 | AI154: 1.27 | AJ154: 0.9724603349 | AK154: -0.09456326481 | AL154: 0.8 | AM154: 1 | AN154: 0.5979793522 | AO154: 0.1569648448 | AP154: 144 | AQ154: 3.599956224 | AR154: 2.721252801 | AS154: -0.02203867473 | AT154: 0.02203867473 | AU154: YES-TLC | AV154: 0.024999696 | AW154: <4 consecutive layers | AX154: 1 | AY154: Negative Change | AZ154: 0.125 | BA154: Yes | BB154: 567.86 | BC154: No
A155: 145 | B155: =IF(Inputs!B160="","",IF(units=2,CONVERT(Inputs!B160,"ft","m"),Inputs!B160)) -> 3.62495592 | C155: =IF(Inputs!C160="","",IF(units=2,Inputs!C160*95.76,Inputs!C160*1000)) -> 570.7296 | D155: =IF(Inputs!D160="","",IF(units=2,Inputs!D160*95.76,Inputs!D160)) -> 8.52264 | E155: =IF(Inputs!E160="","",IF(units=2,Inputs!E160*95.76,Inputs!E160)) -> 83.68581312 | F155: 26.59055358 | G155: 587.4667626 | H155: 1.450744202 | I155: 15.2487183 | J155: 2538.158725 | K155: 63.45319651 | L155: 36.86264294 | M155: 0.589513621 | N155: 1.81498567 | O155: 9.575527461 | P155: 64.64687772 | Q155: 0.08038176119 | R155: 1.081276774 | S155: 1.136326037 | T155: 1.032935285 | U155: 0.9628581579 | V155: 0.1030434983 | W155: 0.1150881428 | X155: 0.6748115695 | Y155: 0.1526996616 | Z155: 1.680078147 | AA155: 14.21530103 | AB155: 0.9087177471 | AC155: 2.731043168 | AD155: 12.96197777 | AE155: 4.207303901 | AF155: 54.53497962 | AG155: 0.09508371834 | AH155: 0.09508371834 | AI155: 1.27 | AJ155: 0.9722690872 | AK155: -0.09372583877 | AL155: 0.8 | AM155: 1 | AN155: 0.5992567708 | AO155: 0.1586694101 | AP155: 145 | AQ155: 3.62495592 | AR155: 2.731043168 | AS155: 0.009790367016 | AT155: 0.009790367016 | AU155: No TLC Needed | AV155: 0.024999696 | AW155: -- | AX155: 1 | AY155: Negative Change | AZ155: 0.125 | BA155: Yes | BB155: 570.7296 | BC155: No
A156: 146 | B156: =IF(Inputs!B161="","",IF(units=2,CONVERT(Inputs!B161,"ft","m"),Inputs!B161)) -> 3.649955616 | C156: =IF(Inputs!C161="","",IF(units=2,Inputs!C161*95.76,Inputs!C161*1000)) -> 608.076 | D156: =IF(Inputs!D161="","",IF(units=2,Inputs!D161*95.76,Inputs!D161)) -> 8.6184 | E156: =IF(Inputs!E161="","",IF(units=2,Inputs!E161*95.76,Inputs!E161)) -> 102.7175386 | F156: 26.83580059 | G156: 628.6195077 | H156: 1.371004223 | I156: 15.28753241 | J156: 2553.446257 | K156: 63.83538018 | L156: 36.99957958 | M156: 0.5882836194 | N156: 1.808779991 | O156: 10.20211399 | P156: 65.05020727 | Q156: 0.08064658395 | R156: 1.081245516 | S156: 1.137198537 | T156: 1.033146074 | U156: 0.9624910249 | V156: 0.1033547632 | W156: 0.1154560101 | X156: 0.6759871755 | Y156: 0.1528945621 | Z156: 1.58356427 | AA156: 15.26460932 | AB156: 0.8936079874 | AC156: 2.691207649 | AD156: 13.71314535 | AE156: 3.913049888 | AF156: 53.66022186 | AG156: 0.09436945644 | AH156: 0.09436945644 | AI156: 1.27 | AJ156: 0.9720778395 | AK156: -0.07725557053 | AL156: 0.8 | AM156: 1 | AN156: 0.6005167686 | AO156: 0.1571470796 | AP156: 146 | AQ156: 3.649955616 | AR156: 2.691207649 | AS156: -0.03983551901 | AT156: 0.03983551901 | AU156: YES-TLC | AV156: 0.024999696 | AW156: <4 consecutive layers | AX156: 1 | AY156: Negative Change | AZ156: 0.125 | BA156: Yes | BB156: 608.08 | BC156: No
A157: 147 | B157: =IF(Inputs!B162="","",IF(units=2,CONVERT(Inputs!B162,"ft","m"),Inputs!B162)) -> 3.674955312 | C157: =IF(Inputs!C162="","",IF(units=2,Inputs!C162*95.76,Inputs!C162*1000)) -> 622.44 | D157: =IF(Inputs!D162="","",IF(units=2,Inputs!D162*95.76,Inputs!D162)) -> 9.95904 | E157: =IF(Inputs!E162="","",IF(units=2,Inputs!E162*95.76,Inputs!E162)) -> 130.2941203 | F157: 27.08104761 | G157: 648.4988241 | H157: 1.535706717 | I157: 15.46578447 | J157: 2568.912041 | K157: 64.22202009 | L157: 37.14097248 | M157: 0.5867978363 | N157: 1.802036842 | O157: 10.44310881 | P157: 65.53987635 | Q157: 0.08096881348 | R157: 1.081261308 | S157: 1.13827245 | T157: 1.033405523 | U157: 0.9621231494 | V157: 0.1037340137 | W157: 0.1159104582 | X157: 0.6770536323 | Y157: 0.1532138796 | Z157: 1.784077253 | AA157: 15.73132756 | AB157: 0.900032719 | AC157: 2.707887334 | AD157: 14.22961995 | AE157: 4.033949471 | AF157: 57.40156788 | AG157: 0.09758952912 | AH157: 0.09758952912 | AI157: 1.27 | AJ157: 0.9718865919 | AK157: -0.07153002245 | AL157: 0.8 | AM157: 1 | AN157: 0.601735617 | AO157: 0.1621800777 | AP157: 147 | AQ157: 3.674955312 | AR157: 2.707887334 | AS157: 0.01667968418 | AT157: 0.01667968418 | AU157: No TLC Needed | AV157: 0.024999696 | AW157: -- | AX157: 1 | AY157: Positive Change | AZ157: <4 consecutive layers | BA157: No | BB157: 622.44 | BC157: No
A158: 148 | B158: =IF(Inputs!B163="","",IF(units=2,CONVERT(Inputs!B163,"ft","m"),Inputs!B163)) -> 3.699955008 | C158: =IF(Inputs!C163="","",IF(units=2,Inputs!C163*95.76,Inputs!C163*1000)) -> 649.2528 | D158: =IF(Inputs!D163="","",IF(units=2,Inputs!D163*95.76,Inputs!D163)) -> 11.87424 | E158: =IF(Inputs!E163="","",IF(units=2,Inputs!E163*95.76,Inputs!E163)) -> 136.926841 | F158: 27.32629463 | G158: 676.6381682 | H158: 1.754887702 | I158: 15.6844014 | J158: 2584.596443 | K158: 64.61412535 | L158: 37.28783073 | M158: 0.5845506022 | N158: 1.7938344 | O158: 10.8929658 | P158: 66.28564416 | Q158: 0.08146110522 | R158: 1.08143391 | S158: 1.139939125 | T158: 1.033808178 | U158: 0.9617545336 | V158: 0.1043145394 | W158: 0.1166231564 | X158: 0.6778721701 | Y158: 0.1538852662 | Z158: 2.031039087 | AA158: 16.41350625 | AB158: 0.9060947265 | AC158: 2.723607907 | AD158: 14.94281563 | AE158: 4.150937131 | AF158: 62.02668824 | AG158: 0.1021931388 | AH158: 0.1021931388 | AI158: 1.27 | AJ158: 0.9716953442 | AK158: -0.06077709609 | AL158: 0.8 | AM158: 1 | AN158: 0.602906422 | AO158: 0.1695008298 | AP158: 148 | AQ158: 3.699955008 | AR158: 2.723607907 | AS158: 0.01572057361 | AT158: 0.01572057361 | AU158: No TLC Needed | AV158: 0.024999696 | AW158: -- | AX158: 1 | AY158: Positive Change | AZ158: <4 consecutive layers | BA158: No | BB158: 649.2528 | BC158: No
A159: 149 | B159: =IF(Inputs!B164="","",IF(units=2,CONVERT(Inputs!B164,"ft","m"),Inputs!B164)) -> 3.724954704 | C159: =IF(Inputs!C164="","",IF(units=2,Inputs!C164*95.76,Inputs!C164*1000)) -> 666.4896 | D159: =IF(Inputs!D164="","",IF(units=2,Inputs!D164*95.76,Inputs!D164)) -> 14.45976 | E159: =IF(Inputs!E164="","",IF(units=2,Inputs!E164*95.76,Inputs!E164)) -> 154.7037274 | F159: 27.57154165 | G159: 697.4303455 | H159: 2.073290916 | I159: 15.92261677 | J159: 2600.51906 | K159: 65.01218593 | L159: 37.44064429 | M159: 0.5825030716 | N159: 1.785906733 | O159: 11.18215959 | P159: 66.97055898 | Q159: 0.08191488979 | R159: 1.081552524 | S159: 1.141503205 | T159: 1.034186048 | U159: 0.9613851795 | V159: 0.1048509005 | W159: 0.1172785139 | X159: 0.678681086 | Y159: 0.1544921505 | Z159: 2.404040395 | AA159: 16.89122 | AB159: 0.9182047571 | AC159: 2.755194844 | AD159: 15.57022683 | AE159: 4.395030336 | AF159: 68.43161925 | AG159: 0.1098025481 | AH159: 0.1098025481 | AI159: 1.27 | AJ159: 0.9715040965 | AK159: -0.05432482047 | AL159: 0.8 | AM159: 1 | AN159: 0.6040258538 | AO159: 0.1817845171 | AP159: 149 | AQ159: 3.724954704 | AR159: 2.755194844 | AS159: 0.03158693713 | AT159: 0.03158693713 | AU159: No TLC Needed | AV159: 0.024999696 | AW159: -- | AX159: 1 | AY159: Positive Change | AZ159: <4 consecutive layers | BA159: No | BB159: 666.4896 | BC159: No
A160: 150 | B160: =IF(Inputs!B165="","",IF(units=2,CONVERT(Inputs!B165,"ft","m"),Inputs!B165)) -> 3.7499544 | C160: =IF(Inputs!C165="","",IF(units=2,Inputs!C165*95.76,Inputs!C165*1000)) -> 724.9032 | D160: =IF(Inputs!D165="","",IF(units=2,Inputs!D165*95.76,Inputs!D165)) -> 17.2368 | E160: =IF(Inputs!E165="","",IF(units=2,Inputs!E165*95.76,Inputs!E165)) -> 160.2309946 | F160: 27.81678866 | G160: 756.9493989 | H160: 2.277140325 | I160: 16.15610204 | J160: 2616.675162 | K160: 65.41608357 | L160: 37.59929491 | M160: 0.5789703616 | N160: 1.775285114 | O160: 12.16220518 | P160: 68.16450502 | Q160: 0.08270982937 | R160: 1.081994214 | S160: 1.144307191 | T160: 1.034863468 | U160: 0.9610150895 | V160: 0.1057935281 | W160: 0.1184587362 | X160: 0.6790319492 | Y160: 0.155800516 | Z160: 2.613667435 | AA160: 18.39218839 | AB160: 0.9150374622 | AC160: 2.746676254 | AD160: 16.90650737 | AE160: 4.328004701 | AF160: 73.17144337 | AG160: 0.1164340806 | AH160: 0.1164340806 | AI160: 1.27 | AJ160: 0.9713128488 | AK160: -0.03239845261 | AL160: 0.8 | AM160: 1 | AN160: 0.6050947837 | AO160: 0.1924228794 | AP160: 150 | AQ160: 3.7499544 | AR160: 2.746676254 | AS160: -0.008518590467 | AT160: 0.008518590467 | AU160: No TLC Needed | AV160: 0.024999696 | AW160: -- | AX160: 1 | AY160: Negative Change | AZ160: <4 consecutive layers | BA160: No | BB160: 724.9032 | BC160: No
A161: 151 | B161: =IF(Inputs!B166="","",IF(units=2,CONVERT(Inputs!B166,"ft","m"),Inputs!B166)) -> 3.774954096 | C161: =IF(Inputs!C166="","",IF(units=2,Inputs!C166*95.76,Inputs!C166*1000)) -> 811.0872 | D161: =IF(Inputs!D166="","",IF(units=2,Inputs!D166*95.76,Inputs!D166)) -> 24.8976 | E161: =IF(Inputs!E166="","",IF(units=2,Inputs!E166*95.76,Inputs!E166)) -> 173.7653299 | F161: 28.06203568 | G161: 845.840266 | H161: 2.943534495 | I161: 16.62167643 | J161: 2633.296838 | K161: 65.83162043 | L161: 37.76958475 | M161: 0.5727954649 | N161: 1.759889799 | O161: 13.60817409 | P161: 70.28895336 | Q161: 0.08413701373 | R161: 1.083028848 | S161: 1.149544783 | T161: 1.036128829 | U161: 0.9606442658 | V161: 0.1074963472 | W161: 0.1206278226 | X161: 0.6785225808 | Y161: 0.158427074 | Z161: 3.340813633 | AA161: 20.65176651 | AB161: 0.9248554738 | AC161: 2.772224758 | AD161: 19.17574236 | AE161: 4.53169861 | AF161: 86.89868498 | AG161: 0.141027076 | AH161: 0.141027076 | AI161: 1.27 | AJ161: 0.9711216012 | AK161: -0.002921764556 | AL161: 0.8 | AM161: 1 | AN161: 0.6060736268 | AO161: 0.2326896762 | AP161: 151 | AQ161: 3.774954096 | AR161: 2.772224758 | AS161: 0.02554850432 | AT161: 0.02554850432 | AU161: No TLC Needed | AV161: 0.024999696 | AW161: -- | AX161: 1 | AY161: Positive Change | AZ161: <4 consecutive layers | BA161: No | BB161: 811.0872 | BC161: No
A162: 152 | B162: =IF(Inputs!B167="","",IF(units=2,CONVERT(Inputs!B167,"ft","m"),Inputs!B167)) -> 3.799953792 | C162: =IF(Inputs!C167="","",IF(units=2,Inputs!C167*95.76,Inputs!C167*1000)) -> 961.4304 | D162: =IF(Inputs!D167="","",IF(units=2,Inputs!D167*95.76,Inputs!D167)) -> 31.21776 | E162: =IF(Inputs!E167="","",IF(units=2,Inputs!E167*95.76,Inputs!E167)) -> 192.6476698 | F162: 28.3072827 | G162: 999.959934 | H162: 3.121901082 | I162: 16.94607773 | J162: 2650.242916 | K162: 66.25526722 | L162: 37.94798452 | M162: 0.5647918744 | N162: 1.741403812 | O162: 16.13058653 | P162: 73.11458575 | Q162: 0.08606182733 | R162: 1.084522765 | S162: 1.157018477 | T162: 1.037934414 | U162: 0.9602727105 | V162: 0.1098169804 | W162: 0.1236169665 | X162: 0.6772996567 | Y162: 0.1621394301 | Z162: 3.487335478 | AA162: 24.60485526 | AB162: 0.9071545388 | AC162: 2.725534552 | AD162: 22.46051113 | AE162: 4.165478964 | AF162: 93.55878665 | AG162: 0.1561617108 | AH162: 0.1561617108 | AI162: 1.27 | AJ162: 0.9709303535 | AK162: 0.04199402642 | AL162: 0.8 | AM162: 1 | AN162: 0.6069867487 | AO162: 0.2572736739 | AP162: 152 | AQ162: 3.799953792 | AR162: 2.725534552 | AS162: -0.04669020602 | AT162: 0.04669020602 | AU162: YES-TLC | AV162: 0.024999696 | AW162: <4 consecutive layers | AX162: 1 | AY162: Negative Change | AZ162: <4 consecutive layers | BA162: No | BB162: 961.43 | BC162: No
A163: 153 | B163: =IF(Inputs!B168="","",IF(units=2,CONVERT(Inputs!B168,"ft","m"),Inputs!B168)) -> 3.824953488 | C163: =IF(Inputs!C168="","",IF(units=2,Inputs!C168*95.76,Inputs!C168*1000)) -> 1110.816 | D163: =IF(Inputs!D168="","",IF(units=2,Inputs!D168*95.76,Inputs!D168)) -> 35.71848 | E163: =IF(Inputs!E168="","",IF(units=2,Inputs!E168*95.76,Inputs!E168)) -> 95.69641536 | F163: 28.55252972 | G163: 1129.955283 | H163: 3.161052524 | I163: 17.1478666 | J163: 2667.390782 | K163: 66.68395867 | L163: 38.13142896 | M163: 0.5572340927 | N163: 1.723887156 | O163: 18.63693264 | P163: 75.85874611 | Q163: 0.08796205857 | R163: 1.085964821 | S163: 1.16485132 | T163: 1.039826766 | U163: 0.9599004258 | V163: 0.1121393777 | W163: 0.1266294996 | X163: 0.6760065218 | Y163: 0.165885053 | Z163: 3.420877685 | AA163: 27.88438182 | AB163: 0.8894528571 | AC163: 2.678835853 | AD163: 25.02886216 | AE163: 3.82550064 | AF163: 95.74792821 | AG163: 0.1616340053 | AH163: 0.1616340053 | AI163: 1.27 | AJ163: 0.9707391058 | AK163: 0.0800286687 | AL163: 0.8 | AM163: 1 | AN163: 0.6078553661 | AO163: 0.265908659 | AP163: 153 | AQ163: 3.824953488 | AR163: 2.678835853 | AS163: -0.04669869933 | AT163: 0.04669869933 | AU163: YES-TLC | AV163: 0.024999696 | AW163: <4 consecutive layers | AX163: 1 | AY163: Negative Change | AZ163: <4 consecutive layers | BA163: No | BB163: 1110.82 | BC163: No
A164: 154 | B164: =IF(Inputs!B169="","",IF(units=2,CONVERT(Inputs!B169,"ft","m"),Inputs!B169)) -> 3.849953184 | C164: =IF(Inputs!C169="","",IF(units=2,Inputs!C169*95.76,Inputs!C169*1000)) -> 1097.4096 | D164: =IF(Inputs!D169="","",IF(units=2,Inputs!D169*95.76,Inputs!D169)) -> 41.27256 | E164: =IF(Inputs!E169="","",IF(units=2,Inputs!E169*95.76,Inputs!E169)) -> 35.88242112 | F164: 28.79777674 | G164: 1104.586084 | H164: 3.736472928 | I164: 17.30541448 | J164: 2684.696197 | K164: 67.11658878 | L164: 38.31881204 | M164: 0.5564007444 | N164: 1.717792018 | O164: 18.41200415 | P164: 76.16589822 | Q164: 0.08817673388 | R164: 1.08574237 | S164: 1.165764226 | T164: 1.040047317 | U164: 0.959527414 | V164: 0.1124039275 | W164: 0.1269291496 | X164: 0.6767971156 | Y164: 0.166082161 | Z164: 4.005905073 | AA164: 27.07467795 | AB164: 0.9104673989 | AC164: 2.733749437 | AD164: 24.8172281 | AE164: 4.227986109 | AF164: 104.9268957 | AG164: 0.1874344144 | AH164: 0.1874344144 | AI164: 1.27 | AJ164: 0.9705478581 | AK164: 0.07609135203 | AL164: 0.8 | AM164: 1 | AN164: 0.6086872861 | AO164: 0.3079321988 | AP164: 154 | AQ164: 3.849953184 | AR164: 2.733749437 | AS164: 0.05491358373 | AT164: 0.05491358373 | AU164: No TLC Needed | AV164: 0.024999696 | AW164: -- | AX164: 1 | AY164: Positive Change | AZ164: <4 consecutive layers | BA164: No | BB164: 1097.4096 | BC164: No
A165: 155 | B165: =IF(Inputs!B170="","",IF(units=2,CONVERT(Inputs!B170,"ft","m"),Inputs!B170)) -> 3.87495288 | C165: =IF(Inputs!C170="","",IF(units=2,Inputs!C170*95.76,Inputs!C170*1000)) -> 1068.6816 | D165: =IF(Inputs!D170="","",IF(units=2,Inputs!D170*95.76,Inputs!D170)) -> 46.53936 | E165: =IF(Inputs!E170="","",IF(units=2,Inputs!E170*95.76,Inputs!E170)) -> -2.42004672 | F165: 29.04302375 | G165: 1068.197591 | H165: 4.356811924 | I165: 17.43072362 | J165: 2702.126921 | K165: 67.55235157 | L165: 38.50932781 | M165: 0.5566138883 | N165: 1.713411591 | O165: 17.93001451 | P165: 76.08725155 | Q165: 0.08812172711 | R165: 1.085251839 | S165: 1.165529772 | T165: 1.039990675 | U165: 0.9591536773 | V165: 0.1123360969 | W165: 0.126788337 | X165: 0.6779004341 | Y165: 0.1657117937 | Z165: 4.648686478 | AA165: 25.98448989 | AB165: 0.9321372935 | AC165: 2.790379049 | AD165: 24.33333491 | AE165: 4.681347422 | AF165: 113.9127946 | AG165: 0.2174676373 | AH165: 0.2174676373 | AI165: 1.27 | AJ165: 0.9703566105 | AK165: 0.0682910202 | AL165: 0.8 | AM165: 1 | AN165: 0.6094882523 | AO165: 0.356803657 | AP165: 155 | AQ165: 3.87495288 | AR165: 2.790379049 | AS165: 0.05662961258 | AT165: 0.05662961258 | AU165: No TLC Needed | AV165: 0.024999696 | AW165: -- | AX165: 1 | AY165: Positive Change | AZ165: <4 consecutive layers | BA165: No | BB165: 1068.6816 | BC165: No
A166: 156 | B166: =IF(Inputs!B171="","",IF(units=2,CONVERT(Inputs!B171,"ft","m"),Inputs!B171)) -> 3.899952576 | C166: =IF(Inputs!C171="","",IF(units=2,Inputs!C171*95.76,Inputs!C171*1000)) -> 1008.3528 | D166: =IF(Inputs!D171="","",IF(units=2,Inputs!D171*95.76,Inputs!D171)) -> 52.57224 | E166: =IF(Inputs!E171="","",IF(units=2,Inputs!E171*95.76,Inputs!E171)) -> 76.57505856 | F166: 29.28827077 | G166: 1023.667812 | H166: 5.135673839 | I166: 17.55460833 | J166: 2719.681529 | K166: 67.99121144 | L166: 38.70294067 | M166: 0.5585667976 | N166: 1.711849749 | O166: 16.91783627 | P166: 75.36943919 | Q166: 0.08762091021 | R166: 1.084327905 | S166: 1.163412216 | T166: 1.03947909 | U166: 0.9587792178 | V166: 0.1117199195 | W166: 0.1259235638 | X166: 0.6795386958 | Y166: 0.1644055302 | Z166: 5.590640945 | AA166: 24.6926095 | AB166: 0.9592267771 | AC166: 2.861229293 | AD166: 23.74241524 | AE166: 5.305163759 | AF166: 125.9574009 | AG166: 0.2658463432 | AH166: 0.2658463432 | AI166: 1.27 | AJ166: 0.9701653628 | AK166: 0.05201927212 | AL166: 0.8 | AM166: 1 | AN166: 0.6102587524 | AO166: 0.4356288904 | AP166: 156 | AQ166: 3.899952576 | AR166: 2.861229293 | AS166: 0.07085024427 | AT166: 0.07085024427 | AU166: No TLC Needed | AV166: 0.024999696 | AW166: -- | AX166: 1 | AY166: Positive Change | AZ166: <4 consecutive layers | BA166: No | BB166: 1008.3528 | BC166: No
A167: 157 | B167: =IF(Inputs!B172="","",IF(units=2,CONVERT(Inputs!B172,"ft","m"),Inputs!B172)) -> 3.924952272 | C167: =IF(Inputs!C172="","",IF(units=2,Inputs!C172*95.76,Inputs!C172*1000)) -> 1022.7168 | D167: =IF(Inputs!D172="","",IF(units=2,Inputs!D172*95.76,Inputs!D172)) -> 54.00864 | E167: =IF(Inputs!E172="","",IF(units=2,Inputs!E172*95.76,Inputs!E172)) -> 48.07228608 | F167: 29.53351779 | G167: 1032.331257 | H167: 5.231716043 | I167: 17.58884746 | J167: 2737.270376 | K167: 68.43092728 | L167: 38.89740949 | M167: 0.5576536294 | N167: 1.705572211 | O167: 17.15883109 | P167: 75.70446047 | Q167: 0.08785437861 | R167: 1.084112267 | S167: 1.164395538 | T167: 1.039716653 | U167: 0.9584040379 | V167: 0.1120068555 | W167: 0.1262507199 | X167: 0.6802276476 | Y167: 0.1646608394 | Z167: 5.659587084 | AA167: 24.78057903 | AB167: 0.9602917016 | AC167: 2.8637725 | AD167: 23.85617989 | AE167: 5.32875124 | AF167: 127.1236482 | AG167: 0.2710565766 | AH167: 0.2710565766 | AI167: 1.27 | AJ167: 0.9699741151 | AK167: 0.0551115179 | AL167: 0.8 | AM167: 1 | AN167: 0.6110142337 | AO167: 0.4436174506 | AP167: 157 | AQ167: 3.924952272 | AR167: 2.8637725 | AS167: 0.0025432062 | AT167: 0.0025432062 | AU167: No TLC Needed | AV167: 0.024999696 | AW167: -- | AX167: 1 | AY167: Negative Change | AZ167: 0.1 | BA167: Yes | BB167: 1022.7168 | BC167: No
A168: 158 | B168: =IF(Inputs!B173="","",IF(units=2,CONVERT(Inputs!B173,"ft","m"),Inputs!B173)) -> 3.949951968 | C168: =IF(Inputs!C173="","",IF(units=2,Inputs!C173*95.76,Inputs!C173*1000)) -> 1035.1656 | D168: =IF(Inputs!D173="","",IF(units=2,Inputs!D173*95.76,Inputs!D173)) -> 51.61464 | E168: =IF(Inputs!E173="","",IF(units=2,Inputs!E173*95.76,Inputs!E173)) -> 29.16006912 | F168: 29.77876481 | G168: 1040.997614 | H168: 4.958190039 | I168: 17.53989917 | J168: 2754.810275 | K168: 68.86941943 | L168: 39.09065462 | M168: 0.5573134613 | N168: 1.700314213 | O168: 17.36769326 | P168: 75.82954038 | Q168: 0.08794166727 | R168: 1.083760019 | S168: 1.1647649 | T168: 1.039805888 | U168: 0.9580281397 | V168: 0.1121142731 | W168: 0.1263415798 | X168: 0.6810978418 | Y168: 0.1646081756 | Z168: 5.341492706 | AA168: 24.86855756 | AB168: 0.9533880788 | AC168: 2.845402469 | AD168: 23.788654 | AE168: 5.160252483 | AF168: 122.7554609 | AG168: 0.2520304844 | AH168: 0.2520304844 | AI168: 1.27 | AJ168: 0.9697828674 | AK168: 0.05766335943 | AL168: 0.8 | AM168: 1 | AN168: 0.6117689383 | AO168: 0.411970057 | AP168: 158 | AQ168: 3.949951968 | AR168: 2.845402469 | AS168: -0.0183700309 | AT168: 0.0183700309 | AU168: YES-TLC | AV168: 0.024999696 | AW168: <4 consecutive layers | AX168: 1 | AY168: Negative Change | AZ168: 0.1 | BA168: Yes | BB168: 1035.17 | BC168: No
A169: 159 | B169: =IF(Inputs!B174="","",IF(units=2,CONVERT(Inputs!B174,"ft","m"),Inputs!B174)) -> 3.974951664 | C169: =IF(Inputs!C174="","",IF(units=2,Inputs!C174*95.76,Inputs!C174*1000)) -> 1003.5648 | D169: =IF(Inputs!D174="","",IF(units=2,Inputs!D174*95.76,Inputs!D174)) -> 45.9648 | E169: =IF(Inputs!E174="","",IF(units=2,Inputs!E174*95.76,Inputs!E174)) -> 20.70484416 | F169: 30.02401182 | G169: 1007.705769 | H169: 4.561331434 | I169: 17.39408067 | J169: 2772.204356 | K169: 69.30426615 | L169: 39.28025433 | M169: 0.5594896707 | N169: 1.699235911 | O169: 16.82947917 | P169: 75.03196733 | Q169: 0.0873862179 | R169: 1.08280816 | S169: 1.1624305 | T169: 1.039241915 | U169: 0.9576515254 | V169: 0.1114320161 | W169: 0.1253944061 | X169: 0.682791594 | Y169: 0.1632006268 | Z169: 4.919912416 | AA169: 23.88990394 | AB169: 0.9491098707 | AC169: 2.833928011 | AD169: 22.76517334 | AE169: 5.057205838 | AF169: 115.1281675 | AG169: 0.2219148116 | AH169: 0.2219148116 | AI169: 1.27 | AJ169: 0.9695916198 | AK169: 0.04868027025 | AL169: 0.8 | AM169: 1 | AN169: 0.6125393141 | AO169: 0.3622866427 | AP169: 159 | AQ169: 3.974951664 | AR169: 2.833928011 | AS169: -0.01147445752 | AT169: 0.01147445752 | AU169: YES-TLC | AV169: 0.024999696 | AW169: <4 consecutive layers | AX169: 1 | AY169: Negative Change | AZ169: 0.1 | BA169: Yes | BB169: 1003.56 | BC169: No
A170: 160 | B170: =IF(Inputs!B175="","",IF(units=2,CONVERT(Inputs!B175,"ft","m"),Inputs!B175)) -> 3.99995136 | C170: =IF(Inputs!C175="","",IF(units=2,Inputs!C175*95.76,Inputs!C175*1000)) -> 974.8368 | D170: =IF(Inputs!D175="","",IF(units=2,Inputs!D175*95.76,Inputs!D175)) -> 40.98528 | E170: =IF(Inputs!E175="","",IF(units=2,Inputs!E175*95.76,Inputs!E175)) -> 15.3867168 | F170: 30.26925884 | G170: 977.9141434 | H170: 4.191091854 | I170: 17.25067526 | J170: 2789.455031 | K170: 69.73552779 | L170: 39.46626895 | M170: 0.5615415179 | N170: 1.698032272 | O170: 16.33547227 | P170: 74.2856439 | Q170: 0.08686889889 | R170: 1.081907539 | S170: 1.160290586 | T170: 1.038724929 | U170: 0.9572741973 | V170: 0.1107992595 | W170: 0.1245166878 | X170: 0.6844422803 | Y170: 0.1618825468 | Z170: 4.528253496 | AA170: 23.01151438 | AB170: 0.9446116673 | AC170: 2.821880782 | AD170: 21.84058175 | AE170: 4.950826143 | AF170: 108.1289231 | AG170: 0.1975732658 | AH170: 0.1975732658 | AI170: 1.27 | AJ170: 0.9694003721 | AK170: 0.04023817516 | AL170: 0.8 | AM170: 1 | AN170: 0.6133249606 | AO170: 0.3221347222 | AP170: 160 | AQ170: 3.99995136 | AR170: 2.821880782 | AS170: -0.01204722951 | AT170: 0.01204722951 | AU170: YES-TLC | AV170: 0.024999696 | AW170: <4 consecutive layers | AX170: 1 | AY170: Negative Change | AZ170: 0.1 | BA170: Yes | BB170: 974.84 | BC170: No
A171: 161 | B171: =IF(Inputs!B176="","",IF(units=2,CONVERT(Inputs!B176,"ft","m"),Inputs!B176)) -> 4.024951056 | C171: =IF(Inputs!C176="","",IF(units=2,Inputs!C176*95.76,Inputs!C176*1000)) -> 900.144 | D171: =IF(Inputs!D176="","",IF(units=2,Inputs!D176*95.76,Inputs!D176)) -> 36.58032 | E171: =IF(Inputs!E176="","",IF(units=2,Inputs!E176*95.76,Inputs!E176)) -> 9.23203008 | F171: 30.51450586 | G171: 901.990406 | H171: 4.055510985 | I171: 17.08889264 | J171: 2806.543924 | K171: 70.16274491 | L171: 39.64823905 | M171: 0.5654994506 | N171: 1.699952957 | O171: 15.10190122 | P171: 72.86146784 | Q171: 0.08588811804 | R171: 1.080587673 | S171: 1.156324843 | T171: 1.037766837 | U171: 0.9568961577 | V171: 0.1096063089 | W171: 0.1229123013 | X171: 0.6866743715 | Y171: 0.1596190471 | Z171: 4.407367007 | AA171: 20.98019183 | AB171: 0.9532327552 | AC171: 2.844272626 | AD171: 20.07946529 | AE171: 5.150030951 | AF171: 103.4098677 | AG171: 0.182841617 | AH171: 0.182841617 | AI171: 1.27 | AJ171: 0.9692091244 | AK171: 0.01823338805 | AL171: 0.8 | AM171: 1 | AN171: 0.6141289897 | AO171: 0.2977251035 | AP171: 161 | AQ171: 4.024951056 | AR171: 2.844272626 | AS171: 0.02239184396 | AT171: 0.02239184396 | AU171: No TLC Needed | AV171: 0.024999696 | AW171: -- | AX171: 1 | AY171: Positive Change | AZ171: <4 consecutive layers | BA171: No | BB171: 900.144 | BC171: No
A172: 162 | B172: =IF(Inputs!B177="","",IF(units=2,CONVERT(Inputs!B177,"ft","m"),Inputs!B177)) -> 4.049950752 | C172: =IF(Inputs!C177="","",IF(units=2,Inputs!C177*95.76,Inputs!C177*1000)) -> 881.9496 | D172: =IF(Inputs!D177="","",IF(units=2,Inputs!D177*95.76,Inputs!D177)) -> 32.84568 | E172: =IF(Inputs!E177="","",IF(units=2,Inputs!E177*95.76,Inputs!E177)) -> 7.73817408 | F172: 30.75975288 | G172: 883.4972348 | H172: 3.717689055 | I172: 16.95707174 | J172: 2823.500996 | K172: 70.58666655 | L172: 39.82691367 | M172: 0.5670265256 | N172: 1.698055631 | O172: 14.77925401 | P172: 72.31739306 | Q172: 0.08551560202 | R172: 1.079853637 | S172: 1.154850118 | T172: 1.037410555 | U172: 0.9565174086 | V172: 0.1091553898 | W172: 0.1222814958 | X172: 0.6881553624 | Y172: 0.1586202706 | Z172: 4.048210566 | AA172: 20.4110862 | AB172: 0.9476251283 | AC172: 2.82932303 | AD172: 19.43685584 | AE172: 5.016324402 | AF172: 97.50157424 | AG172: 0.1662020972 | AH172: 0.1662020972 | AI172: 1.27 | AJ172: 0.9690178767 | AK172: 0.01213425681 | AL172: 0.8 | AM172: 1 | AN172: 0.614946375 | AO172: 0.2702708789 | AP172: 162 | AQ172: 4.049950752 | AR172: 2.82932303 | AS172: -0.01494959566 | AT172: 0.01494959566 | AU172: YES-TLC | AV172: 0.024999696 | AW172: <4 consecutive layers | AX172: 1 | AY172: Negative Change | AZ172: 0.225 | BA172: Yes | BB172: 881.95 | BC172: No
A173: 163 | B173: =IF(Inputs!B178="","",IF(units=2,CONVERT(Inputs!B178,"ft","m"),Inputs!B178)) -> 4.074950448 | C173: =IF(Inputs!C178="","",IF(units=2,Inputs!C178*95.76,Inputs!C178*1000)) -> 869.5008 | D173: =IF(Inputs!D178="","",IF(units=2,Inputs!D178*95.76,Inputs!D178)) -> 31.40928 | E173: =IF(Inputs!E178="","",IF(units=2,Inputs!E178*95.76,Inputs!E178)) -> 7.70829696 | F173: 31.00499989 | G173: 871.0424594 | H173: 3.605941325 | I173: 16.90018941 | J173: 2840.401185 | K173: 71.00916615 | L173: 40.00416625 | M173: 0.5679185772 | N173: 1.695190094 | O173: 14.54478103 | P173: 72.00095489 | Q173: 0.08529948551 | R173: 1.07927304 | S173: 1.154002546 | T173: 1.037205789 | U173: 0.9561379524 | V173: 0.108894315 | W173: 0.1218993719 | X173: 0.6894402645 | Y173: 0.1579459753 | Z173: 3.933576592 | AA173: 19.99874933 | AB173: 0.9472367298 | AC173: 2.828074038 | AD173: 19.04175531 | AE173: 5.005282933 | AF173: 95.30937288 | AG173: 0.1605174078 | AH173: 0.1605174078 | AI173: 1.27 | AJ173: 0.9688266291 | AK173: 0.007705604839 | AL173: 0.8 | AM173: 1 | AN173: 0.6157645648 | AO173: 0.2606798392 | AP173: 163 | AQ173: 4.074950448 | AR173: 2.828074038 | AS173: -0.00124899166 | AT173: 0.00124899166 | AU173: No TLC Needed | AV173: 0.024999696 | AW173: -- | AX173: 1 | AY173: Negative Change | AZ173: 0.225 | BA173: Yes | BB173: 869.5008 | BC173: No
A174: 164 | B174: =IF(Inputs!B179="","",IF(units=2,CONVERT(Inputs!B179,"ft","m"),Inputs!B179)) -> 4.099950144 | C174: =IF(Inputs!C179="","",IF(units=2,Inputs!C179*95.76,Inputs!C179*1000)) -> 925.0416 | D174: =IF(Inputs!D179="","",IF(units=2,Inputs!D179*95.76,Inputs!D179)) -> 28.91952 | E174: =IF(Inputs!E179="","",IF(units=2,Inputs!E179*95.76,Inputs!E179)) -> 8.60461056 | F174: 31.25024691 | G174: 926.7625221 | H174: 3.120488724 | I174: 16.82896448 | J174: 2857.23015 | K174: 71.42988514 | L174: 40.17963823 | M174: 0.5662934391 | N174: 1.688441708 | O174: 15.41183684 | P174: 72.57820663 | Q174: 0.08569402767 | R174: 1.079264646 | S174: 1.1555543 | T174: 1.03758068 | U174: 0.9557577913 | V174: 0.1093712233 | W174: 0.1224765367 | X174: 0.6899777827 | Y174: 0.1585141233 | Z174: 3.387901021 | AA174: 21.28771374 | AB174: 0.9236120043 | AC174: 2.765839618 | AD174: 19.83550011 | AE174: 4.480037426 | AF174: 88.86378286 | AG174: 0.1452615432 | AH174: 0.1452615432 | AI174: 1.27 | AJ174: 0.9686353814 | AK174: 0.02369007498 | AL174: 0.8 | AM174: 1 | AN174: 0.6165860498 | AO174: 0.235590058 | AP174: 164 | AQ174: 4.099950144 | AR174: 2.765839618 | AS174: -0.06223442057 | AT174: 0.06223442057 | AU174: YES-TLC | AV174: 0.024999696 | AW174: <4 consecutive layers | AX174: 1 | AY174: Negative Change | AZ174: 0.225 | BA174: Yes | BB174: 925.04 | BC174: No
A175: 165 | B175: =IF(Inputs!B180="","",IF(units=2,CONVERT(Inputs!B180,"ft","m"),Inputs!B180)) -> 4.12494984 | C175: =IF(Inputs!C180="","",IF(units=2,Inputs!C180*95.76,Inputs!C180*1000)) -> 906.8472 | D175: =IF(Inputs!D180="","",IF(units=2,Inputs!D180*95.76,Inputs!D180)) -> 27.19584 | E175: =IF(Inputs!E180="","",IF(units=2,Inputs!E180*95.76,Inputs!E180)) -> 8.57473344 | F175: 31.49549393 | G175: 908.5621467 | H175: 2.993283409 | I175: 16.75066923 | J175: 2873.980819 | K175: 71.84864678 | L175: 40.35315285 | M175: 0.5675265345 | N175: 1.686239745 | O175: 15.08908283 | P175: 72.13989872 | Q175: 0.08539433064 | R175: 1.078619456 | S175: 1.154373789 | T175: 1.037295478 | U175: 0.9553769276 | V175: 0.1090088435 | W175: 0.1219642267 | X175: 0.691366437 | Y175: 0.1576715873 | Z175: 3.25699247 | AA175: 20.73477388 | AB175: 0.9229734226 | AC175: 2.763938819 | AD175: 19.31528245 | AE175: 4.464755655 | AF175: 86.23801654 | AG175: 0.1396457119 | AH175: 0.1396457119 | AI175: 1.27 | AJ175: 0.9684441337 | AK175: 0.01776579794 | AL175: 0.8 | AM175: 1 | AN175: 0.6174120904 | AO175: 0.2261791015 | AP175: 165 | AQ175: 4.12494984 | AR175: 2.763938819 | AS175: -0.001900799042 | AT175: 0.001900799042 | AU175: No TLC Needed | AV175: 0.024999696 | AW175: -- | AX175: 1 | AY175: Negative Change | AZ175: 0.225 | BA175: Yes | BB175: 906.8472 | BC175: No
A176: 166 | B176: =IF(Inputs!B181="","",IF(units=2,CONVERT(Inputs!B181,"ft","m"),Inputs!B181)) -> 4.149949536 | C176: =IF(Inputs!C181="","",IF(units=2,Inputs!C181*95.76,Inputs!C181*1000)) -> 972.9216 | D176: =IF(Inputs!D181="","",IF(units=2,Inputs!D181*95.76,Inputs!D181)) -> 25.95096 | E176: =IF(Inputs!E181="","",IF(units=2,Inputs!E181*95.76,Inputs!E181)) -> 9.94908096 | F176: 31.74074095 | G176: 974.9114162 | H176: 2.661878769 | I176: 16.72379673 | J176: 2890.704616 | K176: 72.26673662 | L176: 40.52599567 | M176: 0.5654016403 | N176: 1.678882086 | O176: 16.11766191 | P176: 72.89641858 | Q176: 0.08591208859 | R176: 1.078728939 | S176: 1.156420335 | T176: 1.037789907 | U176: 0.9549953634 | V176: 0.1096353646 | W176: 0.1227361334 | X176: 0.6917471808 | Y176: 0.1584905116 | Z176: 2.88134346 | AA176: 22.27322647 | AB176: 0.9011535237 | AC176: 2.706444881 | AD176: 20.34435492 | AE176: 4.023363403 | AF176: 81.85273305 | AG176: 0.1310014477 | AH176: 0.1310014477 | AI176: 1.27 | AJ176: 0.968252886 | AK176: 0.03601847372 | AL176: 0.8 | AM176: 1 | AN176: 0.6182341437 | AO176: 0.2118961708 | AP176: 166 | AQ176: 4.149949536 | AR176: 2.706444881 | AS176: -0.05749393749 | AT176: 0.05749393749 | AU176: YES-TLC | AV176: 0.024999696 | AW176: 0.1 | AX176: 1.658484516 | AY176: Negative Change | AZ176: 0.225 | BA176: Yes | BB176: 1613.58 | BC176: No
A177: 167 | B177: =IF(Inputs!B182="","",IF(units=2,CONVERT(Inputs!B182,"ft","m"),Inputs!B182)) -> 4.174949232 | C177: =IF(Inputs!C182="","",IF(units=2,Inputs!C182*95.76,Inputs!C182*1000)) -> 1055.2752 | D177: =IF(Inputs!D182="","",IF(units=2,Inputs!D182*95.76,Inputs!D182)) -> 26.23824 | E177: =IF(Inputs!E182="","",IF(units=2,Inputs!E182*95.76,Inputs!E182)) -> 11.59232256 | F177: 31.98598797 | G177: 1057.593665 | H177: 2.480937706 | I177: 16.76767466 | J177: 2907.47229 | K177: 72.68592339 | L177: 40.69993542 | M177: 0.562349798 | N177: 1.670165962 | O177: 17.39096311 | P177: 73.99315164 | Q177: 0.08666679015 | R177: 1.079049357 | S177: 1.159463564 | T177: 1.038525127 | U177: 0.9546131011 | V177: 0.1105527264 | W177: 0.123887582 | X177: 0.6918131622 | Y177: 0.1598014211 | Z177: 2.670316136 | AA177: 24.1992458 | AB177: 0.8826691458 | AC177: 2.657704171 | AD177: 21.7432467 | AE177: 3.680104012 | AF177: 80.01740942 | AG177: 0.127647093 | AH177: 0.127647093 | AI177: 1.27 | AJ177: 0.9680616384 | AK177: 0.05719751398 | AL177: 0.8 | AM177: 1 | AN177: 0.6190404655 | AO177: 0.2062015331 | AP177: 167 | AQ177: 4.174949232 | AR177: 2.657704171 | AS177: -0.04874071019 | AT177: 0.04874071019 | AU177: YES-TLC | AV177: 0.024999696 | AW177: 0.1 | AX177: 1.658484516 | AY177: Negative Change | AZ177: 0.225 | BA177: Yes | BB177: 1750.16 | BC177: No
A178: 168 | B178: =IF(Inputs!B183="","",IF(units=2,CONVERT(Inputs!B183,"ft","m"),Inputs!B183)) -> 4.199948928 | C178: =IF(Inputs!C183="","",IF(units=2,Inputs!C183*95.76,Inputs!C183*1000)) -> 1111.7736 | D178: =IF(Inputs!D183="","",IF(units=2,Inputs!D183*95.76,Inputs!D183)) -> 22.9824 | E178: =IF(Inputs!E183="","",IF(units=2,Inputs!E183*95.76,Inputs!E183)) -> 16.1336448 | F178: 32.23123498 | G178: 1115.000329 | H178: 2.061201186 | I178: 16.63553825 | J178: 2924.107829 | K178: 73.10180679 | L178: 40.8705718 | M178: 0.5616703943 | N178: 1.665213602 | O178: 18.26749095 | P178: 74.23895047 | Q178: 0.08683661047 | R178: 1.078840946 | S178: 1.160158122 | T178: 1.038692927 | U178: 0.9542301428 | V178: 0.1107598488 | W178: 0.1241157654 | X178: 0.692610531 | Y178: 0.1599164955 | Z178: 2.212672006 | AA178: 25.49263385 | AB178: 0.8569028642 | AC178: 2.589855132 | AD178: 22.38673011 | AE178: 3.247793629 | AF178: 72.70747943 | AG178: 0.1157454045 | AH178: 0.1157454045 | AI178: 1.27 | AJ178: 0.9678703907 | AK178: 0.0705919999 | AL178: 0.8 | AM178: 1 | AN178: 0.6198606079 | AO178: 0.1867281176 | AP178: 168 | AQ178: 4.199948928 | AR178: 2.589855132 | AS178: -0.06784903944 | AT178: 0.06784903944 | AU178: YES-TLC | AV178: 0.024999696 | AW178: 0.1 | AX178: 1.658484516 | AY178: Negative Change | AZ178: 0.225 | BA178: Yes | BB178: 1843.86 | BC178: No
A179: 169 | B179: =IF(Inputs!B184="","",IF(units=2,CONVERT(Inputs!B184,"ft","m"),Inputs!B184)) -> 4.224948624 | C179: =IF(Inputs!C184="","",IF(units=2,Inputs!C184*95.76,Inputs!C184*1000)) -> 1102.1976 | D179: =IF(Inputs!D184="","",IF(units=2,Inputs!D184*95.76,Inputs!D184)) -> 20.77992 | E179: =IF(Inputs!E184="","",IF(units=2,Inputs!E184*95.76,Inputs!E184)) -> 23.57304768 | F179: 32.476482 | G179: 1106.91221 | H179: 1.877287089 | I179: 16.51686206 | J179: 2940.624691 | K179: 73.51472332 | L179: 41.03824131 | M179: 0.5630798954 | N179: 1.663506694 | O179: 18.09159996 | P179: 73.72968078 | Q179: 0.08648503755 | R179: 1.07816767 | S179: 1.158724177 | T179: 1.038346497 | U179: 0.9538464908 | V179: 0.1103313404 | W179: 0.1235172179 | X179: 0.6940625681 | Y179: 0.158964545 | Z179: 2.020051123 | AA179: 25.18132973 | AB179: 0.8495887377 | AC179: 2.570440788 | AD179: 21.98052429 | AE179: 3.13353273 | AF179: 68.87669228 | AG179: 0.1103878375 | AH179: 0.1103878375 | AI179: 1.27 | AJ179: 0.967679143 | AK179: 0.06770309831 | AL179: 0.8 | AM179: 1 | AN179: 0.6206923649 | AO179: 0.1778462952 | AP179: 169 | AQ179: 4.224948624 | AR179: 2.570440788 | AS179: -0.01941434393 | AT179: 0.01941434393 | AU179: YES-TLC | AV179: 0.024999696 | AW179: 0.1 | AX179: 1.658484516 | AY179: Negative Change | AZ179: 0.225 | BA179: Yes | BB179: 1827.98 | BC179: No
A180: 170 | B180: =IF(Inputs!B185="","",IF(units=2,CONVERT(Inputs!B185,"ft","m"),Inputs!B185)) -> 4.24994832 | C180: =IF(Inputs!C185="","",IF(units=2,Inputs!C185*95.76,Inputs!C185*1000)) -> 1053.36 | D180: =IF(Inputs!D185="","",IF(units=2,Inputs!D185*95.76,Inputs!D185)) -> 17.81136 | E180: =IF(Inputs!E185="","",IF(units=2,Inputs!E185*95.76,Inputs!E185)) -> 26.4412512 | F180: 32.72172902 | G180: 1058.64825 | H180: 1.682462517 | I180: 16.32244583 | J180: 2956.947136 | K180: 73.9227795 | L180: 41.20105048 | M180: 0.566273938 | N180: 1.664579601 | O180: 17.30125163 | P180: 72.58515407 | Q180: 0.0856987842 | R180: 1.077117715 | S180: 1.155573127 | T180: 1.037585229 | U180: 0.9534621474 | V180: 0.1093769807 | W180: 0.1222398701 | X180: 0.6960647861 | Y180: 0.1571362076 | Z180: 1.818530032 | AA180: 23.90049427 | AB180: 0.8464896057 | AC180: 2.562095717 | AD180: 20.81678911 | AE180: 3.0856787 | AF180: 64.23392277 | AG180: 0.1046476935 | AH180: 0.1046476935 | AI180: 1.27 | AJ180: 0.9674878954 | AK180: 0.05500530089 | AL180: 0.8 | AM180: 1 | AN180: 0.6215484324 | AO180: 0.1683661128 | AP180: 170 | AQ180: 4.24994832 | AR180: 2.562095717 | AS180: -0.008345070869 | AT180: 0.008345070869 | AU180: No TLC Needed | AV180: 0.024999696 | AW180: -- | AX180: 1 | AY180: Negative Change | AZ180: 0.225 | BA180: Yes | BB180: 1053.36 | BC180: No
A181: 171 | B181: =IF(Inputs!B186="","",IF(units=2,CONVERT(Inputs!B186,"ft","m"),Inputs!B186)) -> 4.274948016 | C181: =IF(Inputs!C186="","",IF(units=2,Inputs!C186*95.76,Inputs!C186*1000)) -> 994.9464 | D181: =IF(Inputs!D186="","",IF(units=2,Inputs!D186*95.76,Inputs!D186)) -> 16.94952 | E181: =IF(Inputs!E186="","",IF(units=2,Inputs!E186*95.76,Inputs!E186)) -> 30.44478528 | F181: 32.96697604 | G181: 1001.035357 | H181: 1.693198935 | I181: 16.24393722 | J181: 2973.191074 | K181: 74.32887299 | L181: 41.36189695 | M181: 0.5686929567 | N181: 1.66451465 | O181: 16.34141924 | P181: 71.72708599 | Q181: 0.0851127611 | R181: 1.076258743 | S181: 1.153274984 | T181: 1.037030016 | U181: 0.9530771148 | V181: 0.1086690519 | W181: 0.1212869004 | X181: 0.6978149658 | Y181: 0.155727603 | Z181: 1.841103336 | AA181: 22.40483518 | AB181: 0.8564874019 | AC181: 2.588128327 | AD181: 19.70147227 | AE181: 3.237463469 | AF181: 63.78279676 | AG181: 0.1041320171 | AH181: 0.1041320171 | AI181: 1.27 | AJ181: 0.9672966477 | AK181: 0.03917251354 | AL181: 0.8 | AM181: 1 | AN181: 0.6224095085 | AO181: 0.1673046694 | AP181: 171 | AQ181: 4.274948016 | AR181: 2.588128327 | AS181: 0.02603261046 | AT181: 0.02603261046 | AU181: No TLC Needed | AV181: 0.024999696 | AW181: -- | AX181: 1 | AY181: Positive Change | AZ181: <4 consecutive layers | BA181: No | BB181: 994.9464 | BC181: No
A182: 172 | B182: =IF(Inputs!B187="","",IF(units=2,CONVERT(Inputs!B187,"ft","m"),Inputs!B187)) -> 4.299947712 | C182: =IF(Inputs!C187="","",IF(units=2,Inputs!C187*95.76,Inputs!C187*1000)) -> 931.7448 | D182: =IF(Inputs!D187="","",IF(units=2,Inputs!D187*95.76,Inputs!D187)) -> 17.42832 | E182: =IF(Inputs!E187="","",IF(units=2,Inputs!E187*95.76,Inputs!E187)) -> 37.70492544 | F182: 33.21222305 | G182: 939.2857851 | H182: 1.8554864 | I182: 16.25156786 | J182: 2989.442642 | K182: 74.73515725 | L182: 41.52293419 | M182: 0.570615635 | N182: 1.663691523 | O182: 15.29608029 | P182: 71.05042241 | Q182: 0.08465266548 | R182: 1.075517565 | S182: 1.151501042 | T182: 1.036601445 | U182: 0.9526913952 | V182: 0.1081151749 | W182: 0.1205357773 | X182: 0.6993957679 | Y182: 0.1545836848 | Z182: 2.033620059 | AA182: 20.82103889 | AB182: 0.875965547 | AC182: 2.639043496 | AD182: 18.64008566 | AE182: 3.55600388 | AF182: 66.28421692 | AG182: 0.1070840333 | AH182: 0.1070840333 | AI182: 1.27 | AJ182: 0.9671054 | AK182: 0.02104217117 | AL182: 0.8 | AM182: 1 | AN182: 0.6232613016 | AO182: 0.1718124212 | AP182: 172 | AQ182: 4.299947712 | AR182: 2.639043496 | AS182: 0.05091516916 | AT182: 0.05091516916 | AU182: No TLC Needed | AV182: 0.024999696 | AW182: -- | AX182: 1 | AY182: Positive Change | AZ182: <4 consecutive layers | BA182: No | BB182: 931.7448 | BC182: No
A183: 173 | B183: =IF(Inputs!B188="","",IF(units=2,CONVERT(Inputs!B188,"ft","m"),Inputs!B188)) -> 4.324947408 | C183: =IF(Inputs!C188="","",IF(units=2,Inputs!C188*95.76,Inputs!C188*1000)) -> 912.5928 | D183: =IF(Inputs!D188="","",IF(units=2,Inputs!D188*95.76,Inputs!D188)) -> 24.4188 | E183: =IF(Inputs!E188="","",IF(units=2,Inputs!E188*95.76,Inputs!E188)) -> 50.16368448 | F183: 33.45747007 | G183: 922.6255369 | H183: 2.646664223 | I183: 16.6326576 | J183: 3006.075299 | K183: 75.15096863 | L183: 41.69349856 | M183: 0.5687725206 | N183: 1.657090168 | O183: 14.92244934 | P183: 71.69899075 | Q183: 0.08509362235 | R183: 1.075562113 | S183: 1.15320066 | T183: 1.037012059 | U183: 0.952304991 | V183: 0.1086459789 | W183: 0.1211805612 | X183: 0.6998196928 | Y183: 0.1552485305 | Z183: 2.915880135 | AA183: 20.3263002 | AB183: 0.9148506325 | AC183: 2.740883177 | AD183: 18.84606258 | AE183: 4.282930462 | AF183: 80.71637552 | AG183: 0.1289066488 | AH183: 0.1289066488 | AI183: 1.27 | AJ183: 0.9669141523 | AK183: 0.01490475273 | AL183: 0.8 | AM183: 1 | AN183: 0.6240416796 | AO183: 0.2065673704 | AP183: 173 | AQ183: 4.324947408 | AR183: 2.740883177 | AS183: 0.101839681 | AT183: 0.101839681 | AU183: No TLC Needed | AV183: 0.024999696 | AW183: -- | AX183: 1 | AY183: Positive Change | AZ183: <4 consecutive layers | BA183: No | BB183: 912.5928 | BC183: No
A184: 174 | B184: =IF(Inputs!B189="","",IF(units=2,CONVERT(Inputs!B189,"ft","m"),Inputs!B189)) -> 4.349947104 | C184: =IF(Inputs!C189="","",IF(units=2,Inputs!C189*95.76,Inputs!C189*1000)) -> 1082.088 | D184: =IF(Inputs!D189="","",IF(units=2,Inputs!D189*95.76,Inputs!D189)) -> 29.39832 | E184: =IF(Inputs!E189="","",IF(units=2,Inputs!E189*95.76,Inputs!E189)) -> 76.0372704 | F184: 33.70271709 | G184: 1097.295454 | H184: 2.679161742 | I184: 16.91261874 | J184: 3022.987918 | K184: 75.57377896 | L184: 41.87106187 | M184: 0.5611445927 | N184: 1.641983447 | O184: 17.53226719 | P184: 74.42959031 | Q184: 0.08696849471 | R184: 1.076857384 | S184: 1.160699993 | T184: 1.038823839 | U184: 0.9519179043 | V184: 0.1109208849 | W184: 0.1240833251 | X184: 0.6984249085 | Y184: 0.1588157632 | Z184: 2.920805229 | AA184: 24.40161843 | AB184: 0.8914335156 | AC184: 2.679190953 | AD184: 22.1692259 | AE184: 3.82798843 | AF184: 84.86354024 | AG184: 0.1368389942 | AH184: 0.1368389942 | AI184: 1.27 | AJ184: 0.9667229047 | AK184: 0.05996845596 | AL184: 0.8 | AM184: 1 | AN184: 0.624767758 | AO184: 0.2190237771 | AP184: 174 | AQ184: 4.349947104 | AR184: 2.679190953 | AS184: -0.06169222465 | AT184: 0.06169222465 | AU184: YES-TLC | AV184: 0.024999696 | AW184: 0.125 | AX184: 1.628988949 | AY184: Negative Change | AZ184: 0.2 | BA184: Yes | BB184: 1762.71 | BC184: No
A185: 175 | B185: =IF(Inputs!B190="","",IF(units=2,CONVERT(Inputs!B190,"ft","m"),Inputs!B190)) -> 4.3749468 | C185: =IF(Inputs!C190="","",IF(units=2,Inputs!C190*95.76,Inputs!C190*1000)) -> 1511.0928 | D185: =IF(Inputs!D190="","",IF(units=2,Inputs!D190*95.76,Inputs!D190)) -> 37.63368 | E185: =IF(Inputs!E190="","",IF(units=2,Inputs!E190*95.76,Inputs!E190)) -> 109.290505 | F185: 33.94796411 | G185: 1532.950901 | H185: 2.454982738 | I185: 17.32490407 | J185: 3040.312822 | K185: 76.00689629 | L185: 42.05893219 | M185: 0.5440936794 | N185: 1.613491662 | O185: 24.05741606 | P185: 80.80938277 | Q185: 0.09147367187 | R185: 1.080429268 | S185: 1.18048318 | T185: 1.043603299 | U185: 0.9515301375 | V185: 0.1165304965 | W185: 0.1313927434 | X185: 0.6935035335 | Y185: 0.168031583 | Z185: 2.622399112 | AA185: 34.64053719 | AB185: 0.8355076552 | AC185: 2.532160593 | AD185: 29.97587297 | AE185: 2.92015532 | AF185: 87.53420493 | AG185: 0.1423758279 | AH185: 0.1423758279 | AI185: 1.27 | AJ185: 0.966531657 | AK185: 0.1488406414 | AL185: 0.8 | AM185: 1 | AN185: 0.6254178553 | AO185: 0.2276491256 | AP185: 175 | AQ185: 4.3749468 | AR185: 2.532160593 | AS185: -0.1470303599 | AT185: 0.1470303599 | AU185: YES-TLC | AV185: 0.024999696 | AW185: 0.125 | AX185: 1.628988949 | AY185: Negative Change | AZ185: 0.2 | BA185: Yes | BB185: 2461.55 | BC185: No
A186: 176 | B186: =IF(Inputs!B191="","",IF(units=2,CONVERT(Inputs!B191,"ft","m"),Inputs!B191)) -> 4.399946496 | C186: =IF(Inputs!C191="","",IF(units=2,Inputs!C191*95.76,Inputs!C191*1000)) -> 2533.8096 | D186: =IF(Inputs!D191="","",IF(units=2,Inputs!D191*95.76,Inputs!D191)) -> 39.7404 | E186: =IF(Inputs!E191="","",IF(units=2,Inputs!E191*95.76,Inputs!E191)) -> 134.0586374 | F186: 34.19321113 | G186: 2560.621327 | H186: 1.551982699 | I186: 17.58428575 | J186: 3057.897108 | K186: 76.44649809 | L186: 42.25328697 | M186: 0.5183605355 | N186: 1.573629246 | O186: 39.34352974 | P186: 91.18797098 | Q186: 0.09923158771 | R186: 1.08679301 | S186: 1.220015503 | T186: 1.053153994 | U186: 0.9511416928 | V186: 0.1268480265 | W186: 0.1451852278 | X186: 0.6837018544 | Y186: 0.1855312015 | Z186: 1.617196904 | AA186: 58.79246345 | AB186: 0.7171224997 | AC186: 2.221186676 | AD186: 45.90594268 | AE186: 1.709301289 | AF186: 78.46708701 | AG186: 0.1249309436 | AH186: 0.1249309436 | AI186: 1.27 | AJ186: 0.9663404093 | AK186: 0.2867248867 | AL186: 0.8 | AM186: 1 | AN186: 0.6260177882 | AO186: 0.1995645267 | AP186: 176 | AQ186: 4.399946496 | AR186: 2.221186676 | AS186: -0.3109739164 | AT186: 0.3109739164 | AU186: YES-TLC | AV186: 0.024999696 | AW186: 0.125 | AX186: 1.628988949 | AY186: Negative Change | AZ186: 0.2 | BA186: Yes | BB186: 4127.55 | BC186: No
A187: 177 | B187: =IF(Inputs!B192="","",IF(units=2,CONVERT(Inputs!B192,"ft","m"),Inputs!B192)) -> 4.424946192 | C187: =IF(Inputs!C192="","",IF(units=2,Inputs!C192*95.76,Inputs!C192*1000)) -> 4184.712 | D187: =IF(Inputs!D192="","",IF(units=2,Inputs!D192*95.76,Inputs!D192)) -> 39.7404 | E187: =IF(Inputs!E192="","",IF(units=2,Inputs!E192*95.76,Inputs!E192)) -> 50.43257856 | F187: 34.43845814 | G187: 4194.798516 | H187: 0.9473732731 | I187: 17.77354927 | J187: 3075.670657 | K187: 76.89083142 | L187: 42.45237328 | M187: 0.52639879 | N187: 1.580815437 | O187: 65.29391749 | P187: 87.84656173 | Q187: 0.09667057258 | R187: 1.084098599 | S187: 1.206240318 | T187: 1.049826018 | U187: 0.9507525725 | V187: 0.12333116 | W187: 0.1403650328 | X187: 0.6880454611 | Y187: 0.1792485628 | Z187: 0.9674325724 | AA187: 97.00064723 | AB187: 0.5991948896 | AC187: 1.911407538 | AD187: 68.44545176 | AE187: 1.192792638 | AF187: 81.64123097 | AG187: 0.1306071152 | AH187: 0.1306071152 | AI187: 1.27 | AJ187: 0.9661491616 | AK187: 0.4205291382 | AL187: 0.7 | AM187: 1 | AN187: 0.626579527 | AO187: 0.2084445941 | AP187: 177 | AQ187: 4.424946192 | AR187: 1.911407538 | AS187: -0.3097791381 | AT187: 0.3097791381 | AU187: YES-TLC | AV187: 0.024999696 | AW187: 0.125 | AX187: 1.628988949 | AY187: Negative Change | AZ187: 0.2 | BA187: Yes | BB187: 6816.85 | BC187: No
A188: 178 | B188: =IF(Inputs!B193="","",IF(units=2,CONVERT(Inputs!B193,"ft","m"),Inputs!B193)) -> 4.449945888 | C188: =IF(Inputs!C193="","",IF(units=2,Inputs!C193*95.76,Inputs!C193*1000)) -> 4830.1344 | D188: =IF(Inputs!D193="","",IF(units=2,Inputs!D193*95.76,Inputs!D193)) -> 34.4736 | E188: =IF(Inputs!E193="","",IF(units=2,Inputs!E193*95.76,Inputs!E193)) -> 16.76106432 | F188: 34.68370516 | G188: 4833.486613 | H188: 0.7132242781 | I188: 17.66434568 | J188: 3093.335003 | K188: 77.33243469 | L188: 42.64872953 | M188: 0.5530082912 | N188: 1.613713121 | O188: 76.92091005 | P188: 77.42573072 | Q188: 0.08906157317 | R188: 1.077068158 | S188: 1.16958632 | T188: 1.040970704 | U188: 0.9503627787 | V188: 0.1134993784 | W188: 0.1272550943 | X188: 0.6989183887 | Y188: 0.162392892 | Z188: 0.7253321357 | AA188: 111.5192464 | AB188: 0.5516925534 | AC188: 1.786475175 | AD188: 75.66084271 | AE188: 1.091226242 | AF188: 82.56309708 | AG188: 0.1323408626 | AH188: 0.1323408626 | AI188: 1.27 | AJ188: 0.965957914 | AK188: 0.4583269958 | AL188: 0.7 | AM188: 1 | AN188: 0.6271525992 | AO188: 0.2110185986 | AP188: 178 | AQ188: 4.449945888 | AR188: 1.786475175 | AS188: -0.1249323633 | AT188: 0.1249323633 | AU188: YES-TLC | AV188: 0.024999696 | AW188: 0.125 | AX188: 1.628988949 | AY188: Negative Change | AZ188: 0.2 | BA188: Yes | BB188: 7868.24 | BC188: No
A189: 179 | B189: =IF(Inputs!B194="","",IF(units=2,CONVERT(Inputs!B194,"ft","m"),Inputs!B194)) -> 4.474945584 | C189: =IF(Inputs!C194="","",IF(units=2,Inputs!C194*95.76,Inputs!C194*1000)) -> 5490.8784 | D189: =IF(Inputs!D194="","",IF(units=2,Inputs!D194*95.76,Inputs!D194)) -> 26.23824 | E189: =IF(Inputs!E194="","",IF(units=2,Inputs!E194*95.76,Inputs!E194)) -> -0.65729664 | F189: 34.92895218 | G189: 5490.746941 | H189: 0.4778628533 | I189: 17.39922414 | J189: 3110.734227 | K189: 77.76741001 | L189: 42.83845783 | M189: 0.5317556791 | N189: 1.580572036 | O189: 85.67036877 | P189: 85.67039374 | Q189: 0.09503601089 | R189: 1.08181621 | S189: 1.197813904 | T189: 1.047790264 | U189: 0.9499723139 | V189: 0.1211473604 | W189: 0.1373225309 | X189: 0.6918470125 | Y189: 0.1751071525 | Z189: 0.4847164606 | AA189: 126.3579458 | AB189: 0.4963065773 | AC189: 1.640859428 | AD189: 81.89931275 | AE189: 0.9923541743 | AF189: 81.27312488 | AG189: 0.129925661 | AH189: 0.129925661 | AI189: 1.27 | AJ189: 0.9657666663 | AK189: 0.4920697485 | AL189: 0.7 | AM189: 1 | AN189: 0.6277626246 | AO189: 0.2069662256 | AP189: 179 | AQ189: 4.474945584 | AR189: 1.640859428 | AS189: -0.1456157475 | AT189: 0.1456157475 | AU189: No TLC Needed | AV189: 0.024999696 | AW189: -- | AX189: 1 | AY189: Negative Change | AZ189: 0.2 | BA189: Yes | BB189: 5490.8784 | BC189: No
A190: 180 | B190: =IF(Inputs!B195="","",IF(units=2,CONVERT(Inputs!B195,"ft","m"),Inputs!B195)) -> 4.49994528 | C190: =IF(Inputs!C195="","",IF(units=2,Inputs!C195*95.76,Inputs!C195*1000)) -> 5819.3352 | D190: =IF(Inputs!D195="","",IF(units=2,Inputs!D195*95.76,Inputs!D195)) -> 19.53504 | E190: =IF(Inputs!E195="","",IF(units=2,Inputs!E195*95.76,Inputs!E195)) -> -6.18456384 | F190: 35.1741992 | G190: 5818.098287 | H190: 0.3357633205 | I190: 17.08207625 | J190: 3127.816303 | K190: 78.19445672 | L190: 43.02025752 | M190: 0.4575018859 | N190: 1.479825994 | O190: 84.99221008 | P190: 119.6083993 | Q190: 0.1241288178 | R190: 1.1 | S190: 1.383405006 | T190: 1.092627596 | U190: 0.9495811803 | V190: 0.1703635456 | W190: 0.2047583025 | X190: 0.6530303512 | Y190: 0.2608815124 | Z190: 0.3402640847 | AA190: 133.4232792 | AB190: 0.458219843 | AC190: 1.540658783 | AD190: 83.88141861 | AE190: 1 | AF190: 83.88141861 | AG190: 0.1348883592 | AH190: 0.1348883592 | AI190: 1.27 | AJ190: 0.9655754186 | AK190: 0.5070497845 | AL190: 0.7 | AM190: 1 | AN190: 0.6284179742 | AO190: 0.2146475193 | AP190: 180 | AQ190: 4.49994528 | AR190: 1.540658783 | AS190: -0.1002006441 | AT190: 0.1002006441 | AU190: No TLC Needed | AV190: 0.024999696 | AW190: -- | AX190: 1 | AY190: Negative Change | AZ190: 0.2 | BA190: Yes | BB190: 5819.3352 | BC190: No
A191: 181 | B191: =IF(Inputs!B196="","",IF(units=2,CONVERT(Inputs!B196,"ft","m"),Inputs!B196)) -> 4.524944976 | C191: =IF(Inputs!C196="","",IF(units=2,Inputs!C196*95.76,Inputs!C196*1000)) -> 5953.3992 | D191: =IF(Inputs!D196="","",IF(units=2,Inputs!D196*95.76,Inputs!D196)) -> 15.70464 | E191: =IF(Inputs!E196="","",IF(units=2,Inputs!E196*95.76,Inputs!E196)) -> -10.09846656 | F191: 35.41944621 | G191: 5951.379507 | H191: 0.2638823483 | I191: 16.83970046 | J191: 3144.656003 | K191: 78.61544411 | L191: 43.1959979 | M191: 0.408040648 | N191: 1.416075719 | O191: 83.20577309 | P191: 147.1190838 | Q191: 0.1559235782 | R191: 1.1 | S191: 1.635996074 | T191: 1.153651587 | U191: 0.9491893801 | V191: 0.2706212588 | W191: 0.3434229092 | X191: 0.6190319087 | Y191: 0.4371685127 | Z191: 0.2673228608 | AA191: 135.9562077 | AB191: 0.4370919516 | AC191: 1.484977385 | AD191: 84.13357308 | AE191: 1 | AF191: 84.13357308 | AG191: 0.1353848455 | AH191: 0.1353848455 | AI191: 1.27 | AJ191: 0.9653841709 | AK191: 0.5125857044 | AL191: 0.7 | AM191: 1 | AN191: 0.6291062081 | AO191: 0.2152018909 | AP191: 181 | AQ191: 4.524944976 | AR191: 1.484977385 | AS191: -0.05568139795 | AT191: 0.05568139795 | AU191: No TLC Needed | AV191: 0.024999696 | AW191: -- | AX191: 1 | AY191: Negative Change | AZ191: 0.2 | BA191: Yes | BB191: 5953.3992 | BC191: No
A192: 182 | B192: =IF(Inputs!B197="","",IF(units=2,CONVERT(Inputs!B197,"ft","m"),Inputs!B197)) -> 4.549944672 | C192: =IF(Inputs!C197="","",IF(units=2,Inputs!C197*95.76,Inputs!C197*1000)) -> 5650.7976 | D192: =IF(Inputs!D197="","",IF(units=2,Inputs!D197*95.76,Inputs!D197)) -> 20.97144 | E192: =IF(Inputs!E197="","",IF(units=2,Inputs!E197*95.76,Inputs!E197)) -> -13.98249216 | F192: 35.66469323 | G192: 5648.001102 | H192: 0.371307293 | I192: 17.15231586 | J192: 3161.808319 | K192: 79.04424679 | L192: 43.37955356 | M192: 0.5045113497 | N192: 1.534185559 | O192: 85.54431396 | P192: 97.16308605 | Q192: 0.1039775001 | R192: 1.088208788 | S192: 1.247284666 | T192: 1.059742006 | U192: 0.9487969156 | V192: 0.1337216542 | W192: 0.1542105616 | X192: 0.681725016 | Y192: 0.1961518957 | Z192: 0.3763885203 | AA192: 128.3774589 | AB192: 0.4722215277 | AC192: 1.576943261 | AD192: 82.04243521 | AE192: 1 | AF192: 82.04243521 | AG192: 0.1313568735 | AH192: 0.1313568735 | AI192: 1.27 | AJ192: 0.9651929233 | AK192: 0.4980143738 | AL192: 0.7 | AM192: 1 | AN192: 0.6297363358 | AO192: 0.2085902719 | AP192: 182 | AQ192: 4.549944672 | AR192: 1.576943261 | AS192: 0.09196587523 | AT192: 0.09196587523 | AU192: No TLC Needed | AV192: 0.024999696 | AW192: -- | AX192: 1 | AY192: Positive Change | AZ192: 0.275 | BA192: Yes | BB192: 5650.7976 | BC192: No
A193: 183 | B193: =IF(Inputs!B198="","",IF(units=2,CONVERT(Inputs!B198,"ft","m"),Inputs!B198)) -> 4.574944368 | C193: =IF(Inputs!C198="","",IF(units=2,Inputs!C198*95.76,Inputs!C198*1000)) -> 5083.8984 | D193: =IF(Inputs!D198="","",IF(units=2,Inputs!D198*95.76,Inputs!D198)) -> 34.18632 | E193: =IF(Inputs!E198="","",IF(units=2,Inputs!E198*95.76,Inputs!E198)) -> -16.31290752 | F193: 35.90994025 | G193: 5080.635818 | H193: 0.6728748373 | I193: 17.673841 | J193: 3179.48216 | K193: 79.48608745 | L193: 43.5761472 | M193: 0.5471793424 | N193: 1.586805147 | O193: 79.61293257 | P193: 79.62611441 | Q193: 0.09062411095 | R193: 1.076470732 | S193: 1.17656634 | T193: 1.042657022 | U193: 0.9484037891 | V193: 0.1154549826 | W193: 0.1295854911 | X193: 0.7008983378 | Y193: 0.1647242922 | Z193: 0.6831235691 | AA193: 114.7680567 | AB193: 0.542384921 | AC193: 1.760844525 | AD193: 78.00453359 | AE193: 1.0735592 | AF193: 83.74248467 | AG193: 0.1346160737 | AH193: 0.1346160737 | AI193: 1.27 | AJ193: 0.9650016756 | AK193: 0.4690517155 | AL193: 0.7 | AM193: 1 | AN193: 0.6302745846 | AO193: 0.2135832175 | AP193: 183 | AQ193: 4.574944368 | AR193: 1.760844525 | AS193: 0.1839012647 | AT193: 0.1839012647 | AU193: No TLC Needed | AV193: 0.024999696 | AW193: -- | AX193: 1 | AY193: Positive Change | AZ193: 0.275 | BA193: Yes | BB193: 5083.8984 | BC193: No
A194: 184 | B194: =IF(Inputs!B199="","",IF(units=2,CONVERT(Inputs!B199,"ft","m"),Inputs!B199)) -> 4.599944064 | C194: =IF(Inputs!C199="","",IF(units=2,Inputs!C199*95.76,Inputs!C199*1000)) -> 4200.0336 | D194: =IF(Inputs!D199="","",IF(units=2,Inputs!D199*95.76,Inputs!D199)) -> 45.19872 | E194: =IF(Inputs!E199="","",IF(units=2,Inputs!E199*95.76,Inputs!E199)) -> -17.926272 | F194: 36.15518727 | G194: 4196.448346 | H194: 1.077070806 | I194: 17.92174622 | J194: 3197.403907 | K194: 79.93412565 | L194: 43.77893839 | M194: 0.5102030503 | N194: 1.534419853 | O194: 63.60537581 | P194: 94.67363904 | Q194: 0.1019731507 | R194: 1.085573862 | S194: 1.235502246 | T194: 1.056895467 | U194: 0.9480100029 | V194: 0.1307575652 | W194: 0.1500231356 | X194: 0.6860435202 | Y194: 0.190596604 | Z194: 1.097029824 | AA194: 94.02955786 | AB194: 0.6170760454 | AC194: 1.956621572 | AD194: 68.18788623 | AE194: 1.239772896 | AF194: 84.5374932 | AG194: 0.1361863791 | AH194: 0.1361863791 | AI194: 1.27 | AJ194: 0.9648104279 | AK194: 0.4172204713 | AL194: 0.7 | AM194: 1 | AN194: 0.6307662215 | AO194: 0.2159062652 | AP194: 184 | AQ194: 4.599944064 | AR194: 1.956621572 | AS194: 0.1957770467 | AT194: 0.1957770467 | AU194: No TLC Needed | AV194: 0.024999696 | AW194: -- | AX194: 1 | AY194: Positive Change | AZ194: 0.275 | BA194: Yes | BB194: 4200.0336 | BC194: No
A195: 185 | B195: =IF(Inputs!B200="","",IF(units=2,CONVERT(Inputs!B200,"ft","m"),Inputs!B200)) -> 4.62494376 | C195: =IF(Inputs!C200="","",IF(units=2,Inputs!C200*95.76,Inputs!C200*1000)) -> 3482.7912 | D195: =IF(Inputs!D200="","",IF(units=2,Inputs!D200*95.76,Inputs!D200)) -> 42.70896 | E195: =IF(Inputs!E200="","",IF(units=2,Inputs!E200*95.76,Inputs!E200)) -> -18.3744288 | F195: 36.40043429 | G195: 3479.116314 | H195: 1.227580688 | I195: 17.78468981 | J195: 3215.188596 | K195: 80.37873749 | L195: 43.97830321 | M195: 0.5077783732 | N195: 1.527772055 | O195: 52.50662023 | P195: 95.72833653 | Q195: 0.102817482 | R195: 1.085815251 | S195: 1.240419459 | T195: 1.058083427 | U195: 0.9476155592 | V195: 0.1319947193 | W195: 0.1516465051 | X195: 0.6855232716 | Y195: 0.192545935 | Z195: 1.255255219 | AA195: 77.28214435 | AB195: 0.6563699457 | AC195: 2.059496956 | AD195: 58.01239294 | AE195: 1.37719009 | AF195: 79.89409268 | AG195: 0.1274271421 | AH195: 0.1274271421 | AI195: 1.27 | AJ195: 0.9646191802 | AK195: 0.3664020071 | AL195: 0.8 | AM195: 1 | AN195: 0.6312742009 | AO195: 0.2018570408 | AP195: 185 | AQ195: 4.62494376 | AR195: 2.059496956 | AS195: 0.1028753842 | AT195: 0.1028753842 | AU195: No TLC Needed | AV195: 0.024999696 | AW195: -- | AX195: 1 | AY195: Positive Change | AZ195: 0.275 | BA195: Yes | BB195: 3482.7912 | BC195: No
A196: 186 | B196: =IF(Inputs!B201="","",IF(units=2,CONVERT(Inputs!B201,"ft","m"),Inputs!B201)) -> 4.649943456 | C196: =IF(Inputs!C201="","",IF(units=2,Inputs!C201*95.76,Inputs!C201*1000)) -> 3339.1512 | D196: =IF(Inputs!D201="","",IF(units=2,Inputs!D201*95.76,Inputs!D201)) -> 45.86904 | E196: =IF(Inputs!E201="","",IF(units=2,Inputs!E201*95.76,Inputs!E201)) -> -17.23909824 | F196: 36.6456813 | G196: 3335.70338 | H196: 1.375093489 | I196: 17.85066049 | J196: 3233.039257 | K196: 80.82499858 | L196: 44.17931727 | M196: 0.5044028921 | N196: 1.519973577 | O196: 50.08679697 | P196: 97.21098617 | Q196: 0.1040164591 | R196: 1.086341611 | S196: 1.247517399 | T196: 1.059798233 | U196: 0.9472204604 | V196: 0.1337802156 | W196: 0.1540215527 | X196: 0.6844651293 | Y196: 0.1954522003 | Z196: 1.407748554 | AA196: 73.67425715 | AB196: 0.6747493879 | AC196: 2.107476614 | AD196: 56.2423808 | AE196: 1.45910447 | AF196: 82.06350922 | AG196: 0.1313964593 | AH196: 0.1313964593 | AI196: 1.27 | AJ196: 0.9644279326 | AK196: 0.3544790152 | AL196: 0.8 | AM196: 1 | AN196: 0.6317655237 | AO196: 0.2079829532 | AP196: 186 | AQ196: 4.649943456 | AR196: 2.107476614 | AS196: 0.04797965731 | AT196: 0.04797965731 | AU196: No TLC Needed | AV196: 0.024999696 | AW196: -- | AX196: 1 | AY196: Positive Change | AZ196: 0.275 | BA196: Yes | BB196: 3339.1512 | BC196: No
A197: 187 | B197: =IF(Inputs!B202="","",IF(units=2,CONVERT(Inputs!B202,"ft","m"),Inputs!B202)) -> 4.674943152 | C197: =IF(Inputs!C202="","",IF(units=2,Inputs!C202*95.76,Inputs!C202*1000)) -> 3184.9776 | D197: =IF(Inputs!D202="","",IF(units=2,Inputs!D202*95.76,Inputs!D202)) -> 43.47504 | E197: =IF(Inputs!E202="","",IF(units=2,Inputs!E202*95.76,Inputs!E202)) -> -13.68372096 | F197: 36.89092832 | G197: 3182.240856 | H197: 1.366176917 | I197: 17.77094048 | J197: 3250.810197 | K197: 81.26926669 | L197: 44.37833837 | M197: 0.5078479959 | N197: 1.520850945 | O197: 47.80025168 | P197: 95.6979317 | Q197: 0.1027930428 | R197: 1.084864055 | S197: 1.240276177 | T197: 1.058048811 | U197: 0.9468247087 | V197: 0.131958679 | W197: 0.1514673345 | X197: 0.6869213598 | Y197: 0.1921015807 | Z197: 1.400745023 | AA197: 69.87579308 | AB197: 0.6809972198 | AC197: 2.123617356 | AD197: 53.69696192 | AE197: 1.489599864 | AF197: 79.98698718 | AG197: 0.1275927681 | AH197: 0.1275927681 | AI197: 1.27 | AJ197: 0.9642366849 | AK197: 0.3411838977 | AL197: 0.8 | AM197: 1 | AN197: 0.6322639072 | AO197: 0.2018030235 | AP197: 187 | AQ197: 4.674943152 | AR197: 2.123617356 | AS197: 0.01614074182 | AT197: 0.01614074182 | AU197: No TLC Needed | AV197: 0.024999696 | AW197: -- | AX197: 1 | AY197: Positive Change | AZ197: 0.275 | BA197: Yes | BB197: 3184.9776 | BC197: No
A198: 188 | B198: =IF(Inputs!B203="","",IF(units=2,CONVERT(Inputs!B203,"ft","m"),Inputs!B203)) -> 4.699942848 | C198: =IF(Inputs!C203="","",IF(units=2,Inputs!C203*95.76,Inputs!C203*1000)) -> 2921.6376 | D198: =IF(Inputs!D203="","",IF(units=2,Inputs!D203*95.76,Inputs!D203)) -> 42.6132 | E198: =IF(Inputs!E203="","",IF(units=2,Inputs!E203*95.76,Inputs!E203)) -> 2.86820352 | F198: 37.13617534 | G198: 2922.211241 | H198: 1.458251868 | I198: 17.71522158 | J198: 3268.525419 | K198: 81.71214184 | L198: 44.5759665 | M198: 0.5112364229 | N198: 1.521650834 | O198: 43.87032102 | P198: 94.22674717 | Q198: 0.1016175051 | R198: 1.083442028 | S198: 1.233451496 | T198: 1.056400022 | U198: 0.9464283063 | V198: 0.1302412887 | W198: 0.1490674303 | X198: 0.6892910258 | Y198: 0.1889496364 | Z198: 1.500504173 | AA198: 63.72265868 | AB198: 0.7000959048 | AC198: 2.173489175 | AD198: 49.81307311 | AE198: 1.593986899 | AF198: 79.40138596 | AG198: 0.1265550929 | AH198: 0.1265550929 | AI198: 1.27 | AJ198: 0.9640454372 | AK198: 0.3174360083 | AL198: 0.8 | AM198: 1 | AN198: 0.6327654617 | AO198: 0.2000031617 | AP198: 188 | AQ198: 4.699942848 | AR198: 2.173489175 | AS198: 0.04987181927 | AT198: 0.04987181927 | AU198: No TLC Needed | AV198: 0.024999696 | AW198: -- | AX198: 1 | AY198: Positive Change | AZ198: 0.275 | BA198: Yes | BB198: 2921.6376 | BC198: No
A199: 189 | B199: =IF(Inputs!B204="","",IF(units=2,CONVERT(Inputs!B204,"ft","m"),Inputs!B204)) -> 4.724942544 | C199: =IF(Inputs!C204="","",IF(units=2,Inputs!C204*95.76,Inputs!C204*1000)) -> 2701.3896 | D199: =IF(Inputs!D204="","",IF(units=2,Inputs!D204*95.76,Inputs!D204)) -> 44.91144 | E199: =IF(Inputs!E204="","",IF(units=2,Inputs!E204*95.76,Inputs!E204)) -> 25.57481472 | F199: 37.38142236 | G199: 2706.504563 | H199: 1.659389037 | I199: 17.74624284 | J199: 3286.271662 | K199: 82.15579252 | L199: 44.77437016 | M199: 0.5129669989 | N199: 1.520347244 | O199: 40.52849761 | P199: 93.48182283 | Q199: 0.1010274336 | R199: 1.082508831 | S199: 1.230076087 | T199: 1.05558455 | U199: 0.9460312557 | V199: 0.1293908623 | W199: 0.1478522985 | X199: 0.690800866 | Y199: 0.1873055879 | Z199: 1.71467854 | AA199: 58.61274566 | AB199: 0.725013663 | AC199: 2.238633147 | AD199: 46.82286159 | AE199: 1.755528381 | AF199: 82.19886238 | AG199: 0.1316511945 | AH199: 0.1316511945 | AI199: 1.27 | AJ199: 0.9638541895 | AK199: 0.2958118087 | AL199: 0.8 | AM199: 1 | AN199: 0.633256243 | AO199: 0.2078956125 | AP199: 189 | AQ199: 4.724942544 | AR199: 2.238633147 | AS199: 0.06514397258 | AT199: 0.06514397258 | AU199: No TLC Needed | AV199: 0.024999696 | AW199: -- | AX199: 1 | AY199: Positive Change | AZ199: 0.275 | BA199: Yes | BB199: 2701.3896 | BC199: No
A200: 190 | B200: =IF(Inputs!B205="","",IF(units=2,CONVERT(Inputs!B205,"ft","m"),Inputs!B205)) -> 4.74994224 | C200: =IF(Inputs!C205="","",IF(units=2,Inputs!C205*95.76,Inputs!C205*1000)) -> 2579.7744 | D200: =IF(Inputs!D205="","",IF(units=2,Inputs!D205*95.76,Inputs!D205)) -> 48.3588 | E200: =IF(Inputs!E205="","",IF(units=2,Inputs!E205*95.76,Inputs!E205)) -> 41.76821376 | F200: 37.62666937 | G200: 2588.128043 | H200: 1.868485608 | I200: 17.81416664 | J200: 3304.085828 | K200: 82.60114127 | L200: 44.97447189 | M200: 0.5135608368 | N200: 1.517605398 | O200: 38.63438445 | P200: 93.22720776 | Q200: 0.1008265297 | R200: 1.081895152 | S200: 1.228934632 | T200: 1.055308784 | U200: 0.9456335591 | V200: 0.1291030383 | W200: 0.1474012583 | X200: 0.6917374382 | Y200: 0.1866358985 | Z200: 1.936541641 | AA200: 55.70997937 | AB200: 0.7446363341 | AC200: 2.289877055 | AD200: 45.27446496 | AE200: 1.904657354 | AF200: 86.23234262 | AG200: 0.1396339397 | AH200: 0.1396339397 | AI200: 1.27 | AJ200: 0.9636629419 | AK200: 0.2828451338 | AL200: 0.8 | AM200: 1 | AN200: 0.6337304431 | AO200: 0.2203364873 | AP200: 190 | AQ200: 4.74994224 | AR200: 2.289877055 | AS200: 0.05124390717 | AT200: 0.05124390717 | AU200: No TLC Needed | AV200: 0.024999696 | AW200: -- | AX200: 1 | AY200: Positive Change | AZ200: 0.275 | BA200: Yes | BB200: 2579.7744 | BC200: No
... 925 more rows

Sheet Map Help
Z5: =IF($A5="","",IF($A5="","",$T5*$U5*$V5*$W5*$X5*$Y5)) -> 
Z6: =IF($A6="","",IF($A6="","",$T6*$U6*$V6*$W6*$X6*$Y6)) -> 
L14: Mapped Value
L15: 30
AB38: =IF($A38="","",$W38*$X38*$Y38*$Z38*$AA38) -> 
AB39: =IF($A39="","",$W39*$X39*$Y39*$Z39*$AA39) -> 

Sheet PB Liquefaction Initiation
A1: Simplified Performance-based Liquefaction Triggering using Boulanger & Idriss (2014) | AB1: Simplified Performance-based Liquefaction Triggering using Ku et al. (2010), Probabalistic Version of Robertson and Wride (2009)
A2: PGA: | B2: 0.697 | C2: g | T2: a: | U2: -0.4021 | AB2: PGA: | AC2: 0.697 | AD2: g
A3: Fpga: | B3: =Fpga -> 1.1 | T3: b: | U3: -3.367 | AB3: Fpga: | AC3: 1.1
A4: Design GW: | B4: =IF(units=2,CONVERT(design_gw,"ft","m")) -> 0.6096 | C4: m | T4: c: | U4: -8.761 | AB4: Depth to Water: | AC4: =B4 -> 0.6096 | AD4: m
A5: Mw: | B5: =Mw_prob -> 6.83 | T5: d: | U5: -21.38 | AB5: Mw: | AC5: 6.81
A6: CSRref: | B6: =CSR_ref_BI -> 81.91 | C6: % | T6: e: | U6: 186.3 | AB6: qreqref : | AC6: =qreq_ref_ku -> 196.169
A7: σε : | B7: 0.506 | AB7: σε : | AC7: 0.3537
AT9: Calculations for Reference Profile
A10: Depth (m) | B10: g (kN/m3) | C10: qc1n,cs | D10: sv (kPa) | E10: sv' (kPa) | F10: Susceptible? | G10: MSFsite | H10: MSFref | I10: Kssite | J10: Ksref | K10: ΔCSRs | L10: ΔCSRrd | M10: ΔCSRFpga | N10: ΔCSRKs | O10: ΔCSRMSF | P10: DCSR | Q10: CSRsite | R10: CSRsite [corrected] | S10: CRRqsite | T10: FSL | U10: qreqsite | V10: PL | W10: Liquefy? | AA10: Susceptible? | AB10: =A10 -> Depth (m) | AC10: Qtncs | AD10: CSRpseudosite | AE10: CSRpseudoref | AF10: qreqpseudosite | AG10: qreqpseudoref | AH10: Dqreq | AI10: qreqsite | AJ10: qreqsite (corrected) | AK10: CRR(Qtncs) | AL10: CRR(qreqsite) | AM10: FSL | AN10: PL | AO10: CSR (%) | AP10: Liquefy? | AR10: CRR (%) | AT10: Depth (m) | AU10: Qtncs [R&W] | AV10: qc1ncs [B&I] | AW10: qc (kPa) | AX10: fs (kPa) | AY10: u (kPa) | AZ10: u0 (kPa) | BA10: qt (kPa) | BB10: Rf (%) | BC10: γ (kN/m³) | BD10: σ,v (kPa) | BE10: σ'v (kPa) | BF10: σ,v/σ'v (kPa) | BG10: rd [B&I] | BH10: rd [R&W] | BI10: MSFmax [B&I] | BJ10: MSF [B&I] | BK10: MSF [R&W] | BL10: Cs [B&I] | BM10: Ks [B&I] | BN10: CSRref [B&I] | BO10: CSRref [R&W]
A11: =IF('Soil Info'!B11="","",'Soil Info'!B11) -> 0.024999696 | B11: ='Soil Info'!I11 -> 16.18756859 | C11: =IF('Soil Info'!P11="","",'Soil Info'!P11) -> 137.6947955 | D11: =IF(A11="","",'Soil Info'!K11) -> 0.4046842937 | E11: =IF(A11="","",'Soil Info'!L11) -> 0.4046842937 | F11: =IF(A11="","",IF(OR(Method_BI="FALSE",Inputs!F16="NL",'Soil Info'!BC11="Yes",A11<$B$4,'Soil Info'!AC11>ic_susceptibilitythreshold),"No","Yes")) -> No | G11: ='Soil Info'!T11 -> 1.12989108 | H11: =IF(A11="","",$BJ$11) -> 1.067149034 | I11: ='Soil Info'!R11 -> 1.1 | J11: =$BM$11 -> 1.090079982 | K11: =IF(D11="","",LN((D11/E11)/$BF$11)) -> -0.8511347644 | L11: =IF(A11="","",-0.6712-1.126*SIN(A11/11.73+5.133)+(0.0675+0.118*SIN(A11/11.28+5.142))*$B$5) -> 0.08474348756 | M11: =IF(A11="","",LN($B$3/1)) -> 0.0953101798 | N11: =IF(A11="","",-LN(I11/J11)) -> -0.009059107828 | O11: =0 -> 0 | P11: =IF(A11="","",K11+L11+M11+N11+O11) -> -0.6801402048 | Q11: =IF(A11="","",EXP(LN($B$6/100)+P11)*100) -> 41.49118017 | R11: =IF(OR(F11="No",F11=""),NA(),IF($B$2<0.05,MAX((Q11+15)/3.3661,0), IF($B$2>=0.2, Q11,MAX((Q11-2.1362)/0.957,0)))) ->  | S11: =IF(OR(F11="",F11="No",Method_BI=FALSE),NA(),100*EXP((C11/113)+(C11/1000)^2-(C11/140)^3+(C11/137)^4-2.6)) ->  | T11: =IF(OR(A11="",F11="No"),NA(),IF(S11/R11>3,3,S11/R11)) ->  | U11: =($U$2*(LN(1/(R11/100)))^4+$U$3*(LN(1/(R11/100)))^3+$U$4*(LN(1/(R11/100)))^2+$U$5*(LN(1/(R11/100)))+$U$6) ->  | V11: =_xlfn.NORM.S.DIST(-LN(T11)/$B$7,TRUE) ->  | W11: =IF(F11="No","No",IF(T11<1,"Yes","No")) -> No | AA11: =IF(A11="","",IF(OR(Method_Ku="FALSE",Inputs!F16="NL",'Soil Info'!BC11="Yes",A11<$AC$4,'Soil Info'!AC11>ic_susceptibilitythreshold),"No","Yes")) -> No | AB11: =IF(OR(A11="",Method_Ku=""),"",A11) -> 0.024999696 | AC11: =IF(AB11="",NA(),'Soil Info'!AF11) -> 84.43168842 | AD11: =IF(AC11="","",'Soil Info'!AN11) -> 0.3579945134 | AE11: =$BO$11 -> 1.041773113 | AF11: =IF(AA11="No",NA(),IF((((EXP(LN(AD11)-0.102)-0.05)/0.833))*1000<50, (((EXP(LN(AD11)-0.102)-0.05)/0.833))*1000, IF((((EXP(LN(AD11)-0.102)-0.08)/93)^(1/3))*1000 <=165,(((EXP(LN(AD11)-0.102)-0.08)/93)^(1/3))*1000, -91.63*AD11^(-0.2524)+273.8))) ->  | AG11: =IF((((EXP(LN(AE11)-0.102)-0.05)/0.833))*1000<50, (((EXP(LN(AE11)-0.102)-0.05)/0.833))*1000, IF((((EXP(LN(AE11)-0.102)-0.08)/93)^(1/3))*1000 <=165,(((EXP(LN(AE11)-0.102)-0.08)/93)^(1/3))*1000, -91.63*AE11^(-0.2524)+273.8)) -> 183.1115989 | AH11: =AF11-$AG$11 ->  | AI11: =AH11+$AC$6 ->  | AJ11: =IF(AC11="",NA(),IF($AC$2<0.05,MAX(AI11-45,0), IF($AC$2>=0.2, AI11,MAX((AI11-10.025)/0.879,0)))) ->  | AK11: =IF(AC11="",NA(),IF(AC11<=50,0.833*(AC11/1000)+0.05,IF(AC11>=161, EXP(AC11/113+(AC11/1000)^2-(AC11/140)^3+(AC11/137)^4-2.6), 93*(AC11/1000)^3+0.08))) -> 0.1359756791 | AL11: =IF(AC11="",NA(),IF(AJ11<=50,0.833*(AJ11/1000)+0.05,IF(AJ11>=161, EXP(AJ11/113+(AJ11/1000)^2-(AJ11/140)^3+(AJ11/137)^4-2.6), 93*(AJ11/1000)^3+0.08))) ->  | AM11: =IF(AC11="",NA(),IF(AK11/AL11>3,3,AK11/AL11)) ->  | AN11: =IF(AC11="",NA(),1-_xlfn.NORM.S.DIST((0.102+LN(AM11))/$AC$7,TRUE)) ->  | AO11: =IF(OR(AP11="No",AP11=""),NA(),IF(AJ11>=161, R11,EXP(0.102+LN(AL11))*100)) ->  | AP11: =IF(OR(AA11="No",AB11=""),"No",IF(AM11<1,"Yes","No")) -> No | AR11: =AK11*100 -> 13.59756791 | AT11: 6 | AU11: 99.48 | AV11: 101.48 | AW11: 6800 | AX11: 19.15 | AY11: 0 | AZ11: 58.86 | BA11: 6800 | BB11: 0.2816176471 | BC11: 17.11897377 | BD11: 102.71 | BE11: 43.85 | BF11: =BD11/BE11 -> 2.342303307 | BG11: 0.9541 | BH11: 0.892465 | BI11: =IF(AT11="","",IF(1.09+(AV11/180)^3<2.2,1.09+(AV11/180)^3,2.2)) -> 1.269194164 | BJ11: 1.067149034 | BK11: 1.28 | BL11: =IF(1/(37.3-8.27*(AV11^(0.264)))<=0.3,1/(37.3-8.27*(AV11^(0.264))),0.3) -> 0.1075506815 | BM11: 1.090079982 | BN11: 1.11371956 | BO11: 1.041773113
A12: =IF('Soil Info'!B12="","",'Soil Info'!B12) -> 0.049999392 | B12: ='Soil Info'!I12 -> 17.36175453 | C12: =IF('Soil Info'!P12="","",'Soil Info'!P12) -> 391.5542404 | D12: =IF(A12="","",'Soil Info'!K12) -> 0.838722879 | E12: =IF(A12="","",'Soil Info'!L12) -> 0.838722879 | F12: =IF(A12="","",IF(OR(Method_BI="FALSE",Inputs!F17="NL",'Soil Info'!BC12="Yes",A12<$B$4,'Soil Info'!AC12>ic_susceptibilitythreshold),"No","Yes")) -> No | G12: ='Soil Info'!T12 -> 1.289910444 | H12: =IF(A12="","",$BJ$11) -> 1.067149034 | I12: ='Soil Info'!R12 -> 1.1 | J12: =$BM$11 -> 1.090079982 | K12: =IF(D12="","",LN((D12/E12)/$BF$11)) -> -0.8511347644 | L12: =IF(A12="","",-0.6712-1.126*SIN(A12/11.73+5.133)+(0.0675+0.118*SIN(A12/11.28+5.142))*$B$5) -> 0.0845059814 | M12: =IF(A12="","",LN($B$3/1)) -> 0.0953101798 | N12: =IF(A12="","",-LN(I12/J12)) -> -0.009059107828 | O12: =0 -> 0 | P12: =IF(A12="","",K12+L12+M12+N12+O12) -> -0.680377711 | Q12: =IF(A12="","",EXP(LN($B$6/100)+P12)*100) -> 41.48132693 | R12: =IF(OR(F12="No",F12=""),NA(),IF($B$2<0.05,MAX((Q12+15)/3.3661,0), IF($B$2>=0.2, Q12,MAX((Q12-2.1362)/0.957,0)))) ->  | T12: =IF(OR(A12="",F12="No"),NA(),IF(S12/R12>3,3,S12/R12)) ->  | U12: =($U$2*(LN(1/(R12/100)))^4+$U$3*(LN(1/(R12/100)))^3+$U$4*(LN(1/(R12/100)))^2+$U$5*(LN(1/(R12/100)))+$U$6) ->  | V12: =_xlfn.NORM.S.DIST(-LN(T12)/$B$7,TRUE) ->  | W12: =IF(F12="No","No",IF(T12<1,"Yes","No")) -> No | AA12: =IF(A12="","",IF(OR(Method_Ku="FALSE",Inputs!F17="NL",'Soil Info'!BC12="Yes",A12<$AC$4,'Soil Info'!AC12>ic_susceptibilitythreshold),"No","Yes")) -> No | AB12: 0.049999392 | AC12: =IF(AB12="",NA(),'Soil Info'!AF12) -> 250 | AD12: =IF(AC12="","",'Soil Info'!AN12) -> 0.3579260347 | AF12: =IF(AA12="No",NA(),IF((((EXP(LN(AD12)-0.102)-0.05)/0.833))*1000<50, (((EXP(LN(AD12)-0.102)-0.05)/0.833))*1000, IF((((EXP(LN(AD12)-0.102)-0.08)/93)^(1/3))*1000 <=165,(((EXP(LN(AD12)-0.102)-0.08)/93)^(1/3))*1000, -91.63*AD12^(-0.2524)+273.8))) ->  | AH12: =AF12-$AG$11 ->  | AI12: =AH12+$AC$6 ->  | AJ12: =IF(AC12="",NA(),IF($AC$2<0.05,MAX(AI12-45,0), IF($AC$2>=0.2, AI12,MAX((AI12-10.025)/0.879,0)))) ->  | AK12: =IF(AC12="",NA(),IF(AC12<=50,0.833*(AC12/1000)+0.05,IF(AC12>=161, EXP(AC12/113+(AC12/1000)^2-(AC12/140)^3+(AC12/137)^4-2.6), 93*(AC12/1000)^3+0.08))) -> 159.0588362 | AL12: =IF(AC12="",NA(),IF(AJ12<=50,0.833*(AJ12/1000)+0.05,IF(AJ12>=161, EXP(AJ12/113+(AJ12/1000)^2-(AJ12/140)^3+(AJ12/137)^4-2.6), 93*(AJ12/1000)^3+0.08))) ->  | AM12: =IF(AC12="",NA(),IF(AK12/AL12>3,3,AK12/AL12)) ->  | AN12: =IF(AC12="",NA(),1-_xlfn.NORM.S.DIST((0.102+LN(AM12))/$AC$7,TRUE)) ->  | AO12: =IF(OR(AP12="No",AP12=""),NA(),IF(AJ12>=161, R12,EXP(0.102+LN(AL12))*100)) ->  | AP12: =IF(OR(AA12="No",AB12=""),"No",IF(AM12<1,"Yes","No")) -> No | AR12: =AK12*100 -> 15905.88362
A13: =IF('Soil Info'!B13="","",'Soil Info'!B13) -> 0.074999088 | B13: ='Soil Info'!I13 -> 17.87503695 | C13: =IF('Soil Info'!P13="","",'Soil Info'!P13) -> 483.0732446 | D13: =IF(A13="","",'Soil Info'!K13) -> 1.285593369 | E13: =IF(A13="","",'Soil Info'!L13) -> 1.285593369 | F13: =IF(A13="","",IF(OR(Method_BI="FALSE",Inputs!F18="NL",'Soil Info'!BC13="Yes",A13<$B$4,'Soil Info'!AC13>ic_susceptibilitythreshold),"No","Yes")) -> No | G13: ='Soil Info'!T13 -> 1.289910444 | H13: 1.067149034 | I13: ='Soil Info'!R13 -> 1.1 | J13: 1.090079982 | K13: -0.8511347644 | L13: 0.08426740701 | M13: 0.0953101798 | N13: -0.009059107828 | O13: =0 -> 0 | P13: -0.6806162854 | Q13: 41.47143173 | W13: No | AA13: =IF(A13="","",IF(OR(Method_Ku="FALSE",Inputs!F18="NL",'Soil Info'!BC13="Yes",A13<$AC$4,'Soil Info'!AC13>ic_susceptibilitythreshold),"No","Yes")) -> No | AB13: 0.074999088 | AC13: =IF(AB13="",NA(),'Soil Info'!AF13) -> 250 | AD13: =IF(AC13="","",'Soil Info'!AN13) -> 0.357857556 | AK13: 159.0588362 | AP13: No | AR13: 15905.88362
A14: =IF('Soil Info'!B14="","",'Soil Info'!B14) -> 0.099998784 | B14: ='Soil Info'!I14 -> 17.77391585 | C14: =IF('Soil Info'!P14="","",'Soil Info'!P14) -> 484.6279519 | D14: =IF(A14="","",'Soil Info'!K14) -> 1.729935862 | E14: =IF(A14="","",'Soil Info'!L14) -> 1.729935862 | F14: =IF(A14="","",IF(OR(Method_BI="FALSE",Inputs!F19="NL",'Soil Info'!BC14="Yes",A14<$B$4,'Soil Info'!AC14>ic_susceptibilitythreshold),"No","Yes")) -> No | G14: ='Soil Info'!T14 -> 1.289910444 | H14: 1.067149034 | I14: ='Soil Info'!R14 -> 1.1 | J14: 1.090079982 | K14: -0.8511347644 | L14: 0.0840277652 | M14: 0.0953101798 | N14: -0.009059107828 | O14: =0 -> 0 | P14: -0.6808559272 | Q14: 41.46149463 | W14: No | AA14: =IF(A14="","",IF(OR(Method_Ku="FALSE",Inputs!F19="NL",'Soil Info'!BC14="Yes",A14<$AC$4,'Soil Info'!AC14>ic_susceptibilitythreshold),"No","Yes")) -> No | AB14: 0.099998784 | AC14: =IF(AB14="",NA(),'Soil Info'!AF14) -> 250 | AD14: =IF(AC14="","",'Soil Info'!AN14) -> 0.3577890773 | AK14: 159.0588362 | AP14: No | AR14: 15905.88362
